{"text_format":"1","workbook":"xlsx","n_sheets":9,"sheets":["Sheet1","C1","C2","C3","C4","C5","C6","C7","CJuri"],"not_rendered":{"charts":0,"images":0,"macros":1,"external_links":0,"defined_names":0,"comments":0,"pivot_tables":0},"unopened":[],"bounds":{"document_bytes":16777216,"sheet_cells":100000,"rows_first":2000,"rows_last":500,"rows_between":2000,"halvings":0,"cell_chars":16384,"cell_head_chars":4096},"cells_cut":0,"cells_raw":0,"read":"whole","date_system":"1900"}

{"sheet":"Sheet1","index":0,"n_rows":135,"n_cols":9,"rows_kept":135,"cut":false,"hidden":false,"merged":[]}
["[thumb=",540,"]","http://kativ.eu/files/naviga/","C1/","DSC_0642.JPG","[/thumb]",{"$f":"CONCATENATE(A1,B1,C1,D1,E1,F1,G1)","v":"[thumb=540]http://kativ.eu/files/naviga/C1/DSC_0642.JPG[/thumb]"},{"$f":"ConcatRange(H1:H20,\" \")","v":"[thumb=540]http://kativ.eu/files/naviga/C1/DSC_0642.JPG[/thumb] [thumb=540]http://kativ.eu/files/naviga/C1/DSC_0643.JPG[/thumb] [thumb=540]http://kativ.eu/files/naviga/C1/DSC_0644.JPG[/thumb] [thumb=540]http://kativ.eu/files/naviga/C1/DSC_0645.JPG[/thumb] [thumb=540]http://kativ.eu/files/naviga/C1/DSC_0646.JPG[/thumb] [thumb=540]http://kativ.eu/files/naviga/C1/DSC_0649.JPG[/thumb] [thumb=540]http://kativ.eu/files/naviga/C1/DSC_0664.JPG[/thumb] [thumb=540]http://kativ.eu/files/naviga/C1/DSC_0665.JPG[/thumb] [thumb=540]http://kativ.eu/files/naviga/C1/DSC_0684.JPG[/thumb] [thumb=540]http://kativ.eu/files/naviga/C1/DSC_0685.JPG[/thumb] [thumb=540]http://kativ.eu/files/naviga/C1/DSC_0686.JPG[/thumb] [thumb=540]http://kativ.eu/files/naviga/C1/DSC_0687.JPG[/thumb] [thumb=540]http://kativ.eu/files/naviga/C1/DSC_0688.JPG[/thumb] [thumb=540]http://kativ.eu/files/naviga/C1/DSC_0689.JPG[/thumb] [thumb=540]http://kativ.eu/files/naviga/C1/DSC_0690.JPG[/thumb] [thumb=540]http://kativ.eu/files/naviga/C1/DSC_0691.JPG[/thumb] [thumb=540]http://kativ.eu/files/naviga/C1/DSC_0692.JPG[/thumb] [thumb=540]http://kativ.eu/files/naviga/C1/DSC_0693.JPG[/thumb] [thumb=540]http://kativ.eu/files/naviga/C1/DSC_0694.JPG[/thumb] [thumb=540]http://kativ.eu/files/naviga/C1/DSC_0695.JPG[/thumb]"}]
["[thumb=",540,"]","http://kativ.eu/files/naviga/","C1/","DSC_0643.JPG","[/thumb]",{"$f":"CONCATENATE(A2,B2,C2,D2,E2,F2,G2)","v":"[thumb=540]http://kativ.eu/files/naviga/C1/DSC_0643.JPG[/thumb]"}]
["[thumb=",540,"]","http://kativ.eu/files/naviga/","C1/","DSC_0644.JPG","[/thumb]","[thumb=540]http://kativ.eu/files/naviga/C1/DSC_0644.JPG[/thumb]"]
["[thumb=",540,"]","http://kativ.eu/files/naviga/","C1/","DSC_0645.JPG","[/thumb]","[thumb=540]http://kativ.eu/files/naviga/C1/DSC_0645.JPG[/thumb]"]
["[thumb=",540,"]","http://kativ.eu/files/naviga/","C1/","DSC_0646.JPG","[/thumb]","[thumb=540]http://kativ.eu/files/naviga/C1/DSC_0646.JPG[/thumb]"]
["[thumb=",540,"]","http://kativ.eu/files/naviga/","C1/","DSC_0649.JPG","[/thumb]","[thumb=540]http://kativ.eu/files/naviga/C1/DSC_0649.JPG[/thumb]"]
["[thumb=",540,"]","http://kativ.eu/files/naviga/","C1/","DSC_0664.JPG","[/thumb]","[thumb=540]http://kativ.eu/files/naviga/C1/DSC_0664.JPG[/thumb]"]
["[thumb=",540,"]","http://kativ.eu/files/naviga/","C1/","DSC_0665.JPG","[/thumb]","[thumb=540]http://kativ.eu/files/naviga/C1/DSC_0665.JPG[/thumb]"]
["[thumb=",540,"]","http://kativ.eu/files/naviga/","C1/","DSC_0684.JPG","[/thumb]","[thumb=540]http://kativ.eu/files/naviga/C1/DSC_0684.JPG[/thumb]"]
["[thumb=",540,"]","http://kativ.eu/files/naviga/","C1/","DSC_0685.JPG","[/thumb]","[thumb=540]http://kativ.eu/files/naviga/C1/DSC_0685.JPG[/thumb]"]
["[thumb=",540,"]","http://kativ.eu/files/naviga/","C1/","DSC_0686.JPG","[/thumb]","[thumb=540]http://kativ.eu/files/naviga/C1/DSC_0686.JPG[/thumb]"]
["[thumb=",540,"]","http://kativ.eu/files/naviga/","C1/","DSC_0687.JPG","[/thumb]","[thumb=540]http://kativ.eu/files/naviga/C1/DSC_0687.JPG[/thumb]"]
["[thumb=",540,"]","http://kativ.eu/files/naviga/","C1/","DSC_0688.JPG","[/thumb]","[thumb=540]http://kativ.eu/files/naviga/C1/DSC_0688.JPG[/thumb]"]
["[thumb=",540,"]","http://kativ.eu/files/naviga/","C1/","DSC_0689.JPG","[/thumb]","[thumb=540]http://kativ.eu/files/naviga/C1/DSC_0689.JPG[/thumb]"]
["[thumb=",540,"]","http://kativ.eu/files/naviga/","C1/","DSC_0690.JPG","[/thumb]","[thumb=540]http://kativ.eu/files/naviga/C1/DSC_0690.JPG[/thumb]"]
["[thumb=",540,"]","http://kativ.eu/files/naviga/","C1/","DSC_0691.JPG","[/thumb]","[thumb=540]http://kativ.eu/files/naviga/C1/DSC_0691.JPG[/thumb]"]
["[thumb=",540,"]","http://kativ.eu/files/naviga/","C1/","DSC_0692.JPG","[/thumb]","[thumb=540]http://kativ.eu/files/naviga/C1/DSC_0692.JPG[/thumb]"]
["[thumb=",540,"]","http://kativ.eu/files/naviga/","C1/","DSC_0693.JPG","[/thumb]","[thumb=540]http://kativ.eu/files/naviga/C1/DSC_0693.JPG[/thumb]"]
["[thumb=",540,"]","http://kativ.eu/files/naviga/","C1/","DSC_0694.JPG","[/thumb]","[thumb=540]http://kativ.eu/files/naviga/C1/DSC_0694.JPG[/thumb]"]
["[thumb=",540,"]","http://kativ.eu/files/naviga/","C1/","DSC_0695.JPG","[/thumb]","[thumb=540]http://kativ.eu/files/naviga/C1/DSC_0695.JPG[/thumb]"]
["[thumb=",540,"]","http://kativ.eu/files/naviga/","C1/","DSC_0696.JPG","[/thumb]","[thumb=540]http://kativ.eu/files/naviga/C1/DSC_0696.JPG[/thumb]",{"$f":"ConcatRange(H21:H40,\" \")","v":"[thumb=540]http://kativ.eu/files/naviga/C1/DSC_0696.JPG[/thumb] [thumb=540]http://kativ.eu/files/naviga/C1/DSC_0697.JPG[/thumb] [thumb=540]http://kativ.eu/files/naviga/C1/DSC_0698.JPG[/thumb] [thumb=540]http://kativ.eu/files/naviga/C1/DSC_0699.JPG[/thumb] [thumb=540]http://kativ.eu/files/naviga/C1/DSC_0700.JPG[/thumb] [thumb=540]http://kativ.eu/files/naviga/C1/DSC_0702.JPG[/thumb] [thumb=540]http://kativ.eu/files/naviga/C1/DSC_0703.JPG[/thumb] [thumb=540]http://kativ.eu/files/naviga/C1/DSC_0704.JPG[/thumb] [thumb=540]http://kativ.eu/files/naviga/C1/DSC_0705.JPG[/thumb] [thumb=540]http://kativ.eu/files/naviga/C1/DSC_0706.JPG[/thumb] [thumb=540]http://kativ.eu/files/naviga/C1/DSC_0707.JPG[/thumb] [thumb=540]http://kativ.eu/files/naviga/C1/DSC_0708.JPG[/thumb] [thumb=540]http://kativ.eu/files/naviga/C1/DSC_0709.JPG[/thumb] [thumb=540]http://kativ.eu/files/naviga/C1/DSC_0710.JPG[/thumb] [thumb=540]http://kativ.eu/files/naviga/C1/DSC_0711.JPG[/thumb] [thumb=540]http://kativ.eu/files/naviga/C1/DSC_0712.JPG[/thumb] [thumb=540]http://kativ.eu/files/naviga/C1/DSC_0713.JPG[/thumb] [thumb=540]http://kativ.eu/files/naviga/C1/DSC_0714.JPG[/thumb] [thumb=540]http://kativ.eu/files/naviga/C1/DSC_0715.JPG[/thumb] [thumb=540]http://kativ.eu/files/naviga/C1/DSC_0716.JPG[/thumb]"}]
["[thumb=",540,"]","http://kativ.eu/files/naviga/","C1/","DSC_0697.JPG","[/thumb]","[thumb=540]http://kativ.eu/files/naviga/C1/DSC_0697.JPG[/thumb]"]
["[thumb=",540,"]","http://kativ.eu/files/naviga/","C1/","DSC_0698.JPG","[/thumb]","[thumb=540]http://kativ.eu/files/naviga/C1/DSC_0698.JPG[/thumb]"]
["[thumb=",540,"]","http://kativ.eu/files/naviga/","C1/","DSC_0699.JPG","[/thumb]","[thumb=540]http://kativ.eu/files/naviga/C1/DSC_0699.JPG[/thumb]"]
["[thumb=",540,"]","http://kativ.eu/files/naviga/","C1/","DSC_0700.JPG","[/thumb]","[thumb=540]http://kativ.eu/files/naviga/C1/DSC_0700.JPG[/thumb]"]
["[thumb=",540,"]","http://kativ.eu/files/naviga/","C1/","DSC_0702.JPG","[/thumb]","[thumb=540]http://kativ.eu/files/naviga/C1/DSC_0702.JPG[/thumb]"]
["[thumb=",540,"]","http://kativ.eu/files/naviga/","C1/","DSC_0703.JPG","[/thumb]","[thumb=540]http://kativ.eu/files/naviga/C1/DSC_0703.JPG[/thumb]"]
["[thumb=",540,"]","http://kativ.eu/files/naviga/","C1/","DSC_0704.JPG","[/thumb]","[thumb=540]http://kativ.eu/files/naviga/C1/DSC_0704.JPG[/thumb]"]
["[thumb=",540,"]","http://kativ.eu/files/naviga/","C1/","DSC_0705.JPG","[/thumb]","[thumb=540]http://kativ.eu/files/naviga/C1/DSC_0705.JPG[/thumb]"]
["[thumb=",540,"]","http://kativ.eu/files/naviga/","C1/","DSC_0706.JPG","[/thumb]","[thumb=540]http://kativ.eu/files/naviga/C1/DSC_0706.JPG[/thumb]"]
["[thumb=",540,"]","http://kativ.eu/files/naviga/","C1/","DSC_0707.JPG","[/thumb]","[thumb=540]http://kativ.eu/files/naviga/C1/DSC_0707.JPG[/thumb]"]
["[thumb=",540,"]","http://kativ.eu/files/naviga/","C1/","DSC_0708.JPG","[/thumb]","[thumb=540]http://kativ.eu/files/naviga/C1/DSC_0708.JPG[/thumb]"]
["[thumb=",540,"]","http://kativ.eu/files/naviga/","C1/","DSC_0709.JPG","[/thumb]","[thumb=540]http://kativ.eu/files/naviga/C1/DSC_0709.JPG[/thumb]"]
["[thumb=",540,"]","http://kativ.eu/files/naviga/","C1/","DSC_0710.JPG","[/thumb]","[thumb=540]http://kativ.eu/files/naviga/C1/DSC_0710.JPG[/thumb]"]
["[thumb=",540,"]","http://kativ.eu/files/naviga/","C1/","DSC_0711.JPG","[/thumb]","[thumb=540]http://kativ.eu/files/naviga/C1/DSC_0711.JPG[/thumb]"]
["[thumb=",540,"]","http://kativ.eu/files/naviga/","C1/","DSC_0712.JPG","[/thumb]","[thumb=540]http://kativ.eu/files/naviga/C1/DSC_0712.JPG[/thumb]"]
["[thumb=",540,"]","http://kativ.eu/files/naviga/","C1/","DSC_0713.JPG","[/thumb]","[thumb=540]http://kativ.eu/files/naviga/C1/DSC_0713.JPG[/thumb]"]
["[thumb=",540,"]","http://kativ.eu/files/naviga/","C1/","DSC_0714.JPG","[/thumb]","[thumb=540]http://kativ.eu/files/naviga/C1/DSC_0714.JPG[/thumb]"]
["[thumb=",540,"]","http://kativ.eu/files/naviga/","C1/","DSC_0715.JPG","[/thumb]","[thumb=540]http://kativ.eu/files/naviga/C1/DSC_0715.JPG[/thumb]"]
["[thumb=",540,"]","http://kativ.eu/files/naviga/","C1/","DSC_0716.JPG","[/thumb]","[thumb=540]http://kativ.eu/files/naviga/C1/DSC_0716.JPG[/thumb]",{"$f":"ConcatRange(H40:H59,\" \")","v":"[thumb=540]http://kativ.eu/files/naviga/C1/DSC_0716.JPG[/thumb] [thumb=540]http://kativ.eu/files/naviga/C1/DSC_0717.JPG[/thumb] [thumb=540]http://kativ.eu/files/naviga/C1/DSC_0718.JPG[/thumb] [thumb=540]http://kativ.eu/files/naviga/C1/DSC_0719.JPG[/thumb] [thumb=540]http://kativ.eu/files/naviga/C1/DSC_0720.JPG[/thumb] [thumb=540]http://kativ.eu/files/naviga/C1/DSC_0721.JPG[/thumb] [thumb=540]http://kativ.eu/files/naviga/C1/DSC_0722.JPG[/thumb] [thumb=540]http://kativ.eu/files/naviga/C1/DSC_0723.JPG[/thumb] [thumb=540]http://kativ.eu/files/naviga/C1/DSC_0724.JPG[/thumb] [thumb=540]http://kativ.eu/files/naviga/C1/DSC_0725.JPG[/thumb] [thumb=540]http://kativ.eu/files/naviga/C1/DSC_0727.JPG[/thumb] [thumb=540]http://kativ.eu/files/naviga/C1/DSC_0728.JPG[/thumb] [thumb=540]http://kativ.eu/files/naviga/C1/DSC_0729.JPG[/thumb] [thumb=540]http://kativ.eu/files/naviga/C1/DSC_0730.JPG[/thumb] [thumb=540]http://kativ.eu/files/naviga/C1/DSC_0731.JPG[/thumb] [thumb=540]http://kativ.eu/files/naviga/C1/DSC_0732.JPG[/thumb] [thumb=540]http://kativ.eu/files/naviga/C1/DSC_0733.JPG[/thumb] [thumb=540]http://kativ.eu/files/naviga/C1/DSC_0734.JPG[/thumb] [thumb=540]http://kativ.eu/files/naviga/C1/DSC_0735.JPG[/thumb] [thumb=540]http://kativ.eu/files/naviga/C1/DSC_0736.JPG[/thumb]"}]
["[thumb=",540,"]","http://kativ.eu/files/naviga/","C1/","DSC_0717.JPG","[/thumb]","[thumb=540]http://kativ.eu/files/naviga/C1/DSC_0717.JPG[/thumb]"]
["[thumb=",540,"]","http://kativ.eu/files/naviga/","C1/","DSC_0718.JPG","[/thumb]","[thumb=540]http://kativ.eu/files/naviga/C1/DSC_0718.JPG[/thumb]"]
["[thumb=",540,"]","http://kativ.eu/files/naviga/","C1/","DSC_0719.JPG","[/thumb]","[thumb=540]http://kativ.eu/files/naviga/C1/DSC_0719.JPG[/thumb]"]
["[thumb=",540,"]","http://kativ.eu/files/naviga/","C1/","DSC_0720.JPG","[/thumb]","[thumb=540]http://kativ.eu/files/naviga/C1/DSC_0720.JPG[/thumb]"]
["[thumb=",540,"]","http://kativ.eu/files/naviga/","C1/","DSC_0721.JPG","[/thumb]","[thumb=540]http://kativ.eu/files/naviga/C1/DSC_0721.JPG[/thumb]"]
["[thumb=",540,"]","http://kativ.eu/files/naviga/","C1/","DSC_0722.JPG","[/thumb]","[thumb=540]http://kativ.eu/files/naviga/C1/DSC_0722.JPG[/thumb]"]
["[thumb=",540,"]","http://kativ.eu/files/naviga/","C1/","DSC_0723.JPG","[/thumb]","[thumb=540]http://kativ.eu/files/naviga/C1/DSC_0723.JPG[/thumb]"]
["[thumb=",540,"]","http://kativ.eu/files/naviga/","C1/","DSC_0724.JPG","[/thumb]","[thumb=540]http://kativ.eu/files/naviga/C1/DSC_0724.JPG[/thumb]"]
["[thumb=",540,"]","http://kativ.eu/files/naviga/","C1/","DSC_0725.JPG","[/thumb]","[thumb=540]http://kativ.eu/files/naviga/C1/DSC_0725.JPG[/thumb]"]
["[thumb=",540,"]","http://kativ.eu/files/naviga/","C1/","DSC_0727.JPG","[/thumb]","[thumb=540]http://kativ.eu/files/naviga/C1/DSC_0727.JPG[/thumb]"]
["[thumb=",540,"]","http://kativ.eu/files/naviga/","C1/","DSC_0728.JPG","[/thumb]","[thumb=540]http://kativ.eu/files/naviga/C1/DSC_0728.JPG[/thumb]"]
["[thumb=",540,"]","http://kativ.eu/files/naviga/","C1/","DSC_0729.JPG","[/thumb]","[thumb=540]http://kativ.eu/files/naviga/C1/DSC_0729.JPG[/thumb]"]
["[thumb=",540,"]","http://kativ.eu/files/naviga/","C1/","DSC_0730.JPG","[/thumb]","[thumb=540]http://kativ.eu/files/naviga/C1/DSC_0730.JPG[/thumb]"]
["[thumb=",540,"]","http://kativ.eu/files/naviga/","C1/","DSC_0731.JPG","[/thumb]","[thumb=540]http://kativ.eu/files/naviga/C1/DSC_0731.JPG[/thumb]"]
["[thumb=",540,"]","http://kativ.eu/files/naviga/","C1/","DSC_0732.JPG","[/thumb]","[thumb=540]http://kativ.eu/files/naviga/C1/DSC_0732.JPG[/thumb]"]
["[thumb=",540,"]","http://kativ.eu/files/naviga/","C1/","DSC_0733.JPG","[/thumb]","[thumb=540]http://kativ.eu/files/naviga/C1/DSC_0733.JPG[/thumb]"]
["[thumb=",540,"]","http://kativ.eu/files/naviga/","C1/","DSC_0734.JPG","[/thumb]","[thumb=540]http://kativ.eu/files/naviga/C1/DSC_0734.JPG[/thumb]"]
["[thumb=",540,"]","http://kativ.eu/files/naviga/","C1/","DSC_0735.JPG","[/thumb]","[thumb=540]http://kativ.eu/files/naviga/C1/DSC_0735.JPG[/thumb]"]
["[thumb=",540,"]","http://kativ.eu/files/naviga/","C1/","DSC_0736.JPG","[/thumb]","[thumb=540]http://kativ.eu/files/naviga/C1/DSC_0736.JPG[/thumb]"]
["[thumb=",540,"]","http://kativ.eu/files/naviga/","C1/","DSC_0737.JPG","[/thumb]","[thumb=540]http://kativ.eu/files/naviga/C1/DSC_0737.JPG[/thumb]",{"$f":"ConcatRange(H60:H79,\" \")","v":"[thumb=540]http://kativ.eu/files/naviga/C1/DSC_0737.JPG[/thumb] [thumb=540]http://kativ.eu/files/naviga/C1/DSC_0738.JPG[/thumb] [thumb=540]http://kativ.eu/files/naviga/C1/DSC_0739.JPG[/thumb] [thumb=540]http://kativ.eu/files/naviga/C1/DSC_0740.JPG[/thumb] [thumb=540]http://kativ.eu/files/naviga/C1/DSC_0741.JPG[/thumb] [thumb=540]http://kativ.eu/files/naviga/C1/DSC_0742.JPG[/thumb] [thumb=540]http://kativ.eu/files/naviga/C1/DSC_0743.JPG[/thumb] [thumb=540]http://kativ.eu/files/naviga/C1/DSC_0744.JPG[/thumb] [thumb=540]http://kativ.eu/files/naviga/C1/DSC_0745.JPG[/thumb] [thumb=540]http://kativ.eu/files/naviga/C1/DSC_0746.JPG[/thumb] [thumb=540]http://kativ.eu/files/naviga/C1/DSC_0747.JPG[/thumb] [thumb=540]http://kativ.eu/files/naviga/C1/DSC_0748.JPG[/thumb] [thumb=540]http://kativ.eu/files/naviga/C1/DSC_0749.JPG[/thumb] [thumb=540]http://kativ.eu/files/naviga/C1/DSC_0750.JPG[/thumb] [thumb=540]http://kativ.eu/files/naviga/C1/DSC_0751.JPG[/thumb] [thumb=540]http://kativ.eu/files/naviga/C1/DSC_0752.JPG[/thumb] [thumb=540]http://kativ.eu/files/naviga/C1/DSC_0753.JPG[/thumb] [thumb=540]http://kativ.eu/files/naviga/C1/DSC_0754.JPG[/thumb] [thumb=540]http://kativ.eu/files/naviga/C1/DSC_0755.JPG[/thumb] [thumb=540]http://kativ.eu/files/naviga/C1/DSC_0756.JPG[/thumb]"}]
["[thumb=",540,"]","http://kativ.eu/files/naviga/","C1/","DSC_0738.JPG","[/thumb]","[thumb=540]http://kativ.eu/files/naviga/C1/DSC_0738.JPG[/thumb]"]
["[thumb=",540,"]","http://kativ.eu/files/naviga/","C1/","DSC_0739.JPG","[/thumb]","[thumb=540]http://kativ.eu/files/naviga/C1/DSC_0739.JPG[/thumb]"]
["[thumb=",540,"]","http://kativ.eu/files/naviga/","C1/","DSC_0740.JPG","[/thumb]","[thumb=540]http://kativ.eu/files/naviga/C1/DSC_0740.JPG[/thumb]"]
["[thumb=",540,"]","http://kativ.eu/files/naviga/","C1/","DSC_0741.JPG","[/thumb]","[thumb=540]http://kativ.eu/files/naviga/C1/DSC_0741.JPG[/thumb]"]
["[thumb=",540,"]","http://kativ.eu/files/naviga/","C1/","DSC_0742.JPG","[/thumb]","[thumb=540]http://kativ.eu/files/naviga/C1/DSC_0742.JPG[/thumb]"]
["[thumb=",540,"]","http://kativ.eu/files/naviga/","C1/","DSC_0743.JPG","[/thumb]",{"$f":"CONCATENATE(A66,B66,C66,D66,E66,F66,G66)","v":"[thumb=540]http://kativ.eu/files/naviga/C1/DSC_0743.JPG[/thumb]"}]
["[thumb=",540,"]","http://kativ.eu/files/naviga/","C1/","DSC_0744.JPG","[/thumb]","[thumb=540]http://kativ.eu/files/naviga/C1/DSC_0744.JPG[/thumb]"]
["[thumb=",540,"]","http://kativ.eu/files/naviga/","C1/","DSC_0745.JPG","[/thumb]","[thumb=540]http://kativ.eu/files/naviga/C1/DSC_0745.JPG[/thumb]"]
["[thumb=",540,"]","http://kativ.eu/files/naviga/","C1/","DSC_0746.JPG","[/thumb]","[thumb=540]http://kativ.eu/files/naviga/C1/DSC_0746.JPG[/thumb]"]
["[thumb=",540,"]","http://kativ.eu/files/naviga/","C1/","DSC_0747.JPG","[/thumb]","[thumb=540]http://kativ.eu/files/naviga/C1/DSC_0747.JPG[/thumb]"]
["[thumb=",540,"]","http://kativ.eu/files/naviga/","C1/","DSC_0748.JPG","[/thumb]","[thumb=540]http://kativ.eu/files/naviga/C1/DSC_0748.JPG[/thumb]"]
["[thumb=",540,"]","http://kativ.eu/files/naviga/","C1/","DSC_0749.JPG","[/thumb]","[thumb=540]http://kativ.eu/files/naviga/C1/DSC_0749.JPG[/thumb]"]
["[thumb=",540,"]","http://kativ.eu/files/naviga/","C1/","DSC_0750.JPG","[/thumb]","[thumb=540]http://kativ.eu/files/naviga/C1/DSC_0750.JPG[/thumb]"]
["[thumb=",540,"]","http://kativ.eu/files/naviga/","C1/","DSC_0751.JPG","[/thumb]","[thumb=540]http://kativ.eu/files/naviga/C1/DSC_0751.JPG[/thumb]"]
["[thumb=",540,"]","http://kativ.eu/files/naviga/","C1/","DSC_0752.JPG","[/thumb]","[thumb=540]http://kativ.eu/files/naviga/C1/DSC_0752.JPG[/thumb]"]
["[thumb=",540,"]","http://kativ.eu/files/naviga/","C1/","DSC_0753.JPG","[/thumb]","[thumb=540]http://kativ.eu/files/naviga/C1/DSC_0753.JPG[/thumb]"]
["[thumb=",540,"]","http://kativ.eu/files/naviga/","C1/","DSC_0754.JPG","[/thumb]","[thumb=540]http://kativ.eu/files/naviga/C1/DSC_0754.JPG[/thumb]"]
["[thumb=",540,"]","http://kativ.eu/files/naviga/","C1/","DSC_0755.JPG","[/thumb]","[thumb=540]http://kativ.eu/files/naviga/C1/DSC_0755.JPG[/thumb]"]
["[thumb=",540,"]","http://kativ.eu/files/naviga/","C1/","DSC_0756.JPG","[/thumb]","[thumb=540]http://kativ.eu/files/naviga/C1/DSC_0756.JPG[/thumb]"]
["[thumb=",540,"]","http://kativ.eu/files/naviga/","C1/","DSC_0757.JPG","[/thumb]","[thumb=540]http://kativ.eu/files/naviga/C1/DSC_0757.JPG[/thumb]",{"$f":"ConcatRange(H80:H99,\" \")","v":"[thumb=540]http://kativ.eu/files/naviga/C1/DSC_0757.JPG[/thumb] [thumb=540]http://kativ.eu/files/naviga/C1/DSC_0758.JPG[/thumb] [thumb=540]http://kativ.eu/files/naviga/C1/DSC_0759.JPG[/thumb] [thumb=540]http://kativ.eu/files/naviga/C1/DSC_0760.JPG[/thumb] [thumb=540]http://kativ.eu/files/naviga/C1/DSC_0761.JPG[/thumb] [thumb=540]http://kativ.eu/files/naviga/C1/DSC_0975.JPG[/thumb] [thumb=540]http://kativ.eu/files/naviga/C1/DSC_0976.JPG[/thumb] [thumb=540]http://kativ.eu/files/naviga/C1/DSC_0977.JPG[/thumb] [thumb=540]http://kativ.eu/files/naviga/C1/DSC_0978.JPG[/thumb] [thumb=540]http://kativ.eu/files/naviga/C1/DSC_0979.JPG[/thumb] [thumb=540]http://kativ.eu/files/naviga/C1/DSC_0980.JPG[/thumb] [thumb=540]http://kativ.eu/files/naviga/C1/DSC_0981.JPG[/thumb] [thumb=540]http://kativ.eu/files/naviga/C1/DSC_0982.JPG[/thumb] [thumb=540]http://kativ.eu/files/naviga/C1/DSC_0983.JPG[/thumb] [thumb=540]http://kativ.eu/files/naviga/C1/DSC_0984.JPG[/thumb] [thumb=540]http://kativ.eu/files/naviga/C1/DSC_0985.JPG[/thumb] [thumb=540]http://kativ.eu/files/naviga/C1/DSC_0986.JPG[/thumb] [thumb=540]http://kativ.eu/files/naviga/C1/DSC_0987.JPG[/thumb] [thumb=540]http://kativ.eu/files/naviga/C1/DSC_0988.JPG[/thumb] [thumb=540]http://kativ.eu/files/naviga/C1/DSC_0989.JPG[/thumb]"}]
["[thumb=",540,"]","http://kativ.eu/files/naviga/","C1/","DSC_0758.JPG","[/thumb]","[thumb=540]http://kativ.eu/files/naviga/C1/DSC_0758.JPG[/thumb]"]
["[thumb=",540,"]","http://kativ.eu/files/naviga/","C1/","DSC_0759.JPG","[/thumb]","[thumb=540]http://kativ.eu/files/naviga/C1/DSC_0759.JPG[/thumb]"]
["[thumb=",540,"]","http://kativ.eu/files/naviga/","C1/","DSC_0760.JPG","[/thumb]","[thumb=540]http://kativ.eu/files/naviga/C1/DSC_0760.JPG[/thumb]"]
["[thumb=",540,"]","http://kativ.eu/files/naviga/","C1/","DSC_0761.JPG","[/thumb]","[thumb=540]http://kativ.eu/files/naviga/C1/DSC_0761.JPG[/thumb]"]
["[thumb=",540,"]","http://kativ.eu/files/naviga/","C1/","DSC_0975.JPG","[/thumb]","[thumb=540]http://kativ.eu/files/naviga/C1/DSC_0975.JPG[/thumb]"]
["[thumb=",540,"]","http://kativ.eu/files/naviga/","C1/","DSC_0976.JPG","[/thumb]","[thumb=540]http://kativ.eu/files/naviga/C1/DSC_0976.JPG[/thumb]"]
["[thumb=",540,"]","http://kativ.eu/files/naviga/","C1/","DSC_0977.JPG","[/thumb]","[thumb=540]http://kativ.eu/files/naviga/C1/DSC_0977.JPG[/thumb]"]
["[thumb=",540,"]","http://kativ.eu/files/naviga/","C1/","DSC_0978.JPG","[/thumb]","[thumb=540]http://kativ.eu/files/naviga/C1/DSC_0978.JPG[/thumb]"]
["[thumb=",540,"]","http://kativ.eu/files/naviga/","C1/","DSC_0979.JPG","[/thumb]","[thumb=540]http://kativ.eu/files/naviga/C1/DSC_0979.JPG[/thumb]"]
["[thumb=",540,"]","http://kativ.eu/files/naviga/","C1/","DSC_0980.JPG","[/thumb]","[thumb=540]http://kativ.eu/files/naviga/C1/DSC_0980.JPG[/thumb]"]
["[thumb=",540,"]","http://kativ.eu/files/naviga/","C1/","DSC_0981.JPG","[/thumb]","[thumb=540]http://kativ.eu/files/naviga/C1/DSC_0981.JPG[/thumb]"]
["[thumb=",540,"]","http://kativ.eu/files/naviga/","C1/","DSC_0982.JPG","[/thumb]","[thumb=540]http://kativ.eu/files/naviga/C1/DSC_0982.JPG[/thumb]"]
["[thumb=",540,"]","http://kativ.eu/files/naviga/","C1/","DSC_0983.JPG","[/thumb]","[thumb=540]http://kativ.eu/files/naviga/C1/DSC_0983.JPG[/thumb]"]
["[thumb=",540,"]","http://kativ.eu/files/naviga/","C1/","DSC_0984.JPG","[/thumb]","[thumb=540]http://kativ.eu/files/naviga/C1/DSC_0984.JPG[/thumb]"]
["[thumb=",540,"]","http://kativ.eu/files/naviga/","C1/","DSC_0985.JPG","[/thumb]","[thumb=540]http://kativ.eu/files/naviga/C1/DSC_0985.JPG[/thumb]"]
["[thumb=",540,"]","http://kativ.eu/files/naviga/","C1/","DSC_0986.JPG","[/thumb]","[thumb=540]http://kativ.eu/files/naviga/C1/DSC_0986.JPG[/thumb]"]
["[thumb=",540,"]","http://kativ.eu/files/naviga/","C1/","DSC_0987.JPG","[/thumb]","[thumb=540]http://kativ.eu/files/naviga/C1/DSC_0987.JPG[/thumb]"]
["[thumb=",540,"]","http://kativ.eu/files/naviga/","C1/","DSC_0988.JPG","[/thumb]","[thumb=540]http://kativ.eu/files/naviga/C1/DSC_0988.JPG[/thumb]"]
["[thumb=",540,"]","http://kativ.eu/files/naviga/","C1/","DSC_0989.JPG","[/thumb]","[thumb=540]http://kativ.eu/files/naviga/C1/DSC_0989.JPG[/thumb]"]
["[thumb=",540,"]","http://kativ.eu/files/naviga/","C1/","DSC_0990.JPG","[/thumb]","[thumb=540]http://kativ.eu/files/naviga/C1/DSC_0990.JPG[/thumb]",{"$f":"ConcatRange(H100:H119,\" \")","v":"[thumb=540]http://kativ.eu/files/naviga/C1/DSC_0990.JPG[/thumb] [thumb=540]http://kativ.eu/files/naviga/C1/DSC_0991.JPG[/thumb] [thumb=540]http://kativ.eu/files/naviga/C1/DSC_0992.JPG[/thumb] [thumb=540]http://kativ.eu/files/naviga/C1/DSC_0993.JPG[/thumb] [thumb=540]http://kativ.eu/files/naviga/C1/DSC_0994.JPG[/thumb] [thumb=540]http://kativ.eu/files/naviga/C1/DSC_0995.JPG[/thumb] [thumb=540]http://kativ.eu/files/naviga/C1/DSC_0996.JPG[/thumb] [thumb=540]http://kativ.eu/files/naviga/C1/DSC_0997.JPG[/thumb] [thumb=540]http://kativ.eu/files/naviga/C1/DSC_0998.JPG[/thumb] [thumb=540]http://kativ.eu/files/naviga/C1/DSC_0999.JPG[/thumb] [thumb=540]http://kativ.eu/files/naviga/C1/DSC_1000.JPG[/thumb] [thumb=540]http://kativ.eu/files/naviga/C1/DSC_1001.JPG[/thumb] [thumb=540]http://kativ.eu/files/naviga/C1/DSC_1002.JPG[/thumb] [thumb=540]http://kativ.eu/files/naviga/C1/DSC_1159.JPG[/thumb] [thumb=540]http://kativ.eu/files/naviga/C1/DSC_1160.JPG[/thumb] [thumb=540]http://kativ.eu/files/naviga/C1/DSC_1161.JPG[/thumb] [thumb=540]http://kativ.eu/files/naviga/C1/DSC_1162.JPG[/thumb] [thumb=540]http://kativ.eu/files/naviga/C1/DSC_1163.JPG[/thumb] [thumb=540]http://kativ.eu/files/naviga/C1/DSC_1164.JPG[/thumb] [thumb=540]http://kativ.eu/files/naviga/C1/DSC_1165.JPG[/thumb]"}]
["[thumb=",540,"]","http://kativ.eu/files/naviga/","C1/","DSC_0991.JPG","[/thumb]","[thumb=540]http://kativ.eu/files/naviga/C1/DSC_0991.JPG[/thumb]"]
["[thumb=",540,"]","http://kativ.eu/files/naviga/","C1/","DSC_0992.JPG","[/thumb]","[thumb=540]http://kativ.eu/files/naviga/C1/DSC_0992.JPG[/thumb]"]
["[thumb=",540,"]","http://kativ.eu/files/naviga/","C1/","DSC_0993.JPG","[/thumb]","[thumb=540]http://kativ.eu/files/naviga/C1/DSC_0993.JPG[/thumb]"]
["[thumb=",540,"]","http://kativ.eu/files/naviga/","C1/","DSC_0994.JPG","[/thumb]","[thumb=540]http://kativ.eu/files/naviga/C1/DSC_0994.JPG[/thumb]"]
["[thumb=",540,"]","http://kativ.eu/files/naviga/","C1/","DSC_0995.JPG","[/thumb]","[thumb=540]http://kativ.eu/files/naviga/C1/DSC_0995.JPG[/thumb]"]
["[thumb=",540,"]","http://kativ.eu/files/naviga/","C1/","DSC_0996.JPG","[/thumb]","[thumb=540]http://kativ.eu/files/naviga/C1/DSC_0996.JPG[/thumb]"]
["[thumb=",540,"]","http://kativ.eu/files/naviga/","C1/","DSC_0997.JPG","[/thumb]","[thumb=540]http://kativ.eu/files/naviga/C1/DSC_0997.JPG[/thumb]"]
["[thumb=",540,"]","http://kativ.eu/files/naviga/","C1/","DSC_0998.JPG","[/thumb]","[thumb=540]http://kativ.eu/files/naviga/C1/DSC_0998.JPG[/thumb]"]
["[thumb=",540,"]","http://kativ.eu/files/naviga/","C1/","DSC_0999.JPG","[/thumb]","[thumb=540]http://kativ.eu/files/naviga/C1/DSC_0999.JPG[/thumb]"]
["[thumb=",540,"]","http://kativ.eu/files/naviga/","C1/","DSC_1000.JPG","[/thumb]","[thumb=540]http://kativ.eu/files/naviga/C1/DSC_1000.JPG[/thumb]"]
["[thumb=",540,"]","http://kativ.eu/files/naviga/","C1/","DSC_1001.JPG","[/thumb]","[thumb=540]http://kativ.eu/files/naviga/C1/DSC_1001.JPG[/thumb]"]
["[thumb=",540,"]","http://kativ.eu/files/naviga/","C1/","DSC_1002.JPG","[/thumb]","[thumb=540]http://kativ.eu/files/naviga/C1/DSC_1002.JPG[/thumb]"]
["[thumb=",540,"]","http://kativ.eu/files/naviga/","C1/","DSC_1159.JPG","[/thumb]","[thumb=540]http://kativ.eu/files/naviga/C1/DSC_1159.JPG[/thumb]"]
["[thumb=",540,"]","http://kativ.eu/files/naviga/","C1/","DSC_1160.JPG","[/thumb]","[thumb=540]http://kativ.eu/files/naviga/C1/DSC_1160.JPG[/thumb]"]
["[thumb=",540,"]","http://kativ.eu/files/naviga/","C1/","DSC_1161.JPG","[/thumb]","[thumb=540]http://kativ.eu/files/naviga/C1/DSC_1161.JPG[/thumb]"]
["[thumb=",540,"]","http://kativ.eu/files/naviga/","C1/","DSC_1162.JPG","[/thumb]","[thumb=540]http://kativ.eu/files/naviga/C1/DSC_1162.JPG[/thumb]"]
["[thumb=",540,"]","http://kativ.eu/files/naviga/","C1/","DSC_1163.JPG","[/thumb]","[thumb=540]http://kativ.eu/files/naviga/C1/DSC_1163.JPG[/thumb]"]
["[thumb=",540,"]","http://kativ.eu/files/naviga/","C1/","DSC_1164.JPG","[/thumb]","[thumb=540]http://kativ.eu/files/naviga/C1/DSC_1164.JPG[/thumb]"]
["[thumb=",540,"]","http://kativ.eu/files/naviga/","C1/","DSC_1165.JPG","[/thumb]","[thumb=540]http://kativ.eu/files/naviga/C1/DSC_1165.JPG[/thumb]"]
["[thumb=",540,"]","http://kativ.eu/files/naviga/","C1/","DSC_1166.JPG","[/thumb]","[thumb=540]http://kativ.eu/files/naviga/C1/DSC_1166.JPG[/thumb]",{"$f":"ConcatRange(H120:H135,\" \")","v":"[thumb=540]http://kativ.eu/files/naviga/C1/DSC_1166.JPG[/thumb] [thumb=540]http://kativ.eu/files/naviga/C1/DSC_1167.JPG[/thumb] [thumb=540]http://kativ.eu/files/naviga/C1/DSC_1168.JPG[/thumb] [thumb=540]http://kativ.eu/files/naviga/C1/DSC_1169.JPG[/thumb] [thumb=540]http://kativ.eu/files/naviga/C1/DSC_1170.JPG[/thumb] [thumb=540]http://kativ.eu/files/naviga/C1/DSC_1171.JPG[/thumb] [thumb=540]http://kativ.eu/files/naviga/C1/DSC_1172.JPG[/thumb] [thumb=540]http://kativ.eu/files/naviga/C1/DSC_1173.JPG[/thumb] [thumb=540]http://kativ.eu/files/naviga/C1/DSC_1174.JPG[/thumb] [thumb=540]http://kativ.eu/files/naviga/C1/DSC_1175.JPG[/thumb] [thumb=540]http://kativ.eu/files/naviga/C1/DSC_1176.JPG[/thumb] [thumb=540]http://kativ.eu/files/naviga/C1/DSC_1177.JPG[/thumb] [thumb=540]http://kativ.eu/files/naviga/C1/DSC_1178.JPG[/thumb] [thumb=540]http://kativ.eu/files/naviga/C1/DSC_1179.JPG[/thumb] [thumb=540]http://kativ.eu/files/naviga/C1/DSC_1180.JPG[/thumb] [thumb=540]http://kativ.eu/files/naviga/C1/DSC_1181.JPG[/thumb]"}]
["[thumb=",540,"]","http://kativ.eu/files/naviga/","C1/","DSC_1167.JPG","[/thumb]","[thumb=540]http://kativ.eu/files/naviga/C1/DSC_1167.JPG[/thumb]"]
["[thumb=",540,"]","http://kativ.eu/files/naviga/","C1/","DSC_1168.JPG","[/thumb]","[thumb=540]http://kativ.eu/files/naviga/C1/DSC_1168.JPG[/thumb]"]
["[thumb=",540,"]","http://kativ.eu/files/naviga/","C1/","DSC_1169.JPG","[/thumb]","[thumb=540]http://kativ.eu/files/naviga/C1/DSC_1169.JPG[/thumb]"]
["[thumb=",540,"]","http://kativ.eu/files/naviga/","C1/","DSC_1170.JPG","[/thumb]","[thumb=540]http://kativ.eu/files/naviga/C1/DSC_1170.JPG[/thumb]"]
["[thumb=",540,"]","http://kativ.eu/files/naviga/","C1/","DSC_1171.JPG","[/thumb]","[thumb=540]http://kativ.eu/files/naviga/C1/DSC_1171.JPG[/thumb]"]
["[thumb=",540,"]","http://kativ.eu/files/naviga/","C1/","DSC_1172.JPG","[/thumb]","[thumb=540]http://kativ.eu/files/naviga/C1/DSC_1172.JPG[/thumb]"]
["[thumb=",540,"]","http://kativ.eu/files/naviga/","C1/","DSC_1173.JPG","[/thumb]","[thumb=540]http://kativ.eu/files/naviga/C1/DSC_1173.JPG[/thumb]"]
["[thumb=",540,"]","http://kativ.eu/files/naviga/","C1/","DSC_1174.JPG","[/thumb]","[thumb=540]http://kativ.eu/files/naviga/C1/DSC_1174.JPG[/thumb]"]
["[thumb=",540,"]","http://kativ.eu/files/naviga/","C1/","DSC_1175.JPG","[/thumb]","[thumb=540]http://kativ.eu/files/naviga/C1/DSC_1175.JPG[/thumb]"]
["[thumb=",540,"]","http://kativ.eu/files/naviga/","C1/","DSC_1176.JPG","[/thumb]",{"$f":"CONCATENATE(A130,B130,C130,D130,E130,F130,G130)","v":"[thumb=540]http://kativ.eu/files/naviga/C1/DSC_1176.JPG[/thumb]"}]
["[thumb=",540,"]","http://kativ.eu/files/naviga/","C1/","DSC_1177.JPG","[/thumb]","[thumb=540]http://kativ.eu/files/naviga/C1/DSC_1177.JPG[/thumb]"]
["[thumb=",540,"]","http://kativ.eu/files/naviga/","C1/","DSC_1178.JPG","[/thumb]","[thumb=540]http://kativ.eu/files/naviga/C1/DSC_1178.JPG[/thumb]"]
["[thumb=",540,"]","http://kativ.eu/files/naviga/","C1/","DSC_1179.JPG","[/thumb]","[thumb=540]http://kativ.eu/files/naviga/C1/DSC_1179.JPG[/thumb]"]
["[thumb=",540,"]","http://kativ.eu/files/naviga/","C1/","DSC_1180.JPG","[/thumb]","[thumb=540]http://kativ.eu/files/naviga/C1/DSC_1180.JPG[/thumb]"]
["[thumb=",540,"]","http://kativ.eu/files/naviga/","C1/","DSC_1181.JPG","[/thumb]","[thumb=540]http://kativ.eu/files/naviga/C1/DSC_1181.JPG[/thumb]"]

{"sheet":"C1","index":1,"n_rows":135,"n_cols":10,"rows_kept":135,"cut":false,"hidden":false,"merged":[]}
["[url=","http://kativ.eu/files/naviga/Pictures/2014_","C1","/","][img]","/Thumbs/","[/img][/url]","DSC_0642.JPG",{"$f":"CONCATENATE(A1,B1,C1,D1,H1,E1,B1,C1,F1,H1,G1)","v":"[url=http://kativ.eu/files/naviga/Pictures/2014_C1/DSC_0642.JPG][img]http://kativ.eu/files/naviga/Pictures/2014_C1/Thumbs/DSC_0642.JPG[/img][/url]"},{"$f":"ConcatRange(I1:I45,\" \")","v":"[url=http://kativ.eu/files/naviga/Pictures/2014_C1/DSC_0642.JPG][img]http://kativ.eu/files/naviga/Pictures/2014_C1/Thumbs/DSC_0642.JPG[/img][/url] [url=http://kativ.eu/files/naviga/Pictures/2014_C1/DSC_0643.JPG][img]http://kativ.eu/files/naviga/Pictures/2014_C1/Thumbs/DSC_0643.JPG[/img][/url] [url=http://kativ.eu/files/naviga/Pictures/2014_C1/DSC_0644.JPG][img]http://kativ.eu/files/naviga/Pictures/2014_C1/Thumbs/DSC_0644.JPG[/img][/url] [url=http://kativ.eu/files/naviga/Pictures/2014_C1/DSC_0645.JPG][img]http://kativ.eu/files/naviga/Pictures/2014_C1/Thumbs/DSC_0645.JPG[/img][/url] [url=http://kativ.eu/files/naviga/Pictures/2014_C1/DSC_0646.JPG][img]http://kativ.eu/files/naviga/Pictures/2014_C1/Thumbs/DSC_0646.JPG[/img][/url] [url=http://kativ.eu/files/naviga/Pictures/2014_C1/DSC_0649.JPG][img]http://kativ.eu/files/naviga/Pictures/2014_C1/Thumbs/DSC_0649.JPG[/img][/url] [url=http://kativ.eu/files/naviga/Pictures/2014_C1/DSC_0664.JPG][img]http://kativ.eu/files/naviga/Pictures/2014_C1/Thumbs/DSC_0664.JPG[/img][/url] [url=http://kativ.eu/files/naviga/Pictures/2014_C1/DSC_0665.JPG][img]http://kativ.eu/files/naviga/Pictures/2014_C1/Thumbs/DSC_0665.JPG[/img][/url] [url=http://kativ.eu/files/naviga/Pictures/2014_C1/DSC_0684.JPG][img]http://kativ.eu/files/naviga/Pictures/2014_C1/Thumbs/DSC_0684.JPG[/img][/url] [url=http://kativ.eu/files/naviga/Pictures/2014_C1/DSC_0685.JPG][img]http://kativ.eu/files/naviga/Pictures/2014_C1/Thumbs/DSC_0685.JPG[/img][/url] [url=http://kativ.eu/files/naviga/Pictures/2014_C1/DSC_0686.JPG][img]http://kativ.eu/files/naviga/Pictures/2014_C1/Thumbs/DSC_0686.JPG[/img][/url] [url=http://kativ.eu/files/naviga/Pictures/2014_C1/DSC_0687.JPG][img]http://kativ.eu/files/naviga/Pictures/2014_C1/Thumbs/DSC_0687.JPG[/img][/url] [url=http://kativ.eu/files/naviga/Pictures/2014_C1/DSC_0688.JPG][img]http://kativ.eu/files/naviga/Pictures/2014_C1/Thumbs/DSC_0688.JPG[/img][/url] [url=http://kativ.eu/files/naviga/Pictures/2014_C1/DSC_0689.JPG][img]http://kativ.eu/files/naviga/Pictures/2014_C1/Thumbs/DSC_0689.JPG[/img][/url] [url=http://kativ.eu/files/naviga/Pictures/2014_C1/DSC_0690.JPG][img]http://kativ.eu/files/naviga/Pictures/2014_C1/Thumbs/DSC_0690.JPG[/img][/url] [url=http://kativ.eu/files/naviga/Pictures/2014_C1/DSC_0691.JPG][img]http://kativ.eu/files/naviga/Pictures/2014_C1/Thumbs/DSC_0691.JPG[/img][/url] [url=http://kativ.eu/files/naviga/Pictures/2014_C1/DSC_0692.JPG][img]http://kativ.eu/files/naviga/Pictures/2014_C1/Thumbs/DSC_0692.JPG[/img][/url] [url=http://kativ.eu/files/naviga/Pictures/2014_C1/DSC_0693.JPG][img]http://kativ.eu/files/naviga/Pictures/2014_C1/Thumbs/DSC_0693.JPG[/img][/url] [url=http://kativ.eu/files/naviga/Pictures/2014_C1/DSC_0694.JPG][img]http://kativ.eu/files/naviga/Pictures/2014_C1/Thumbs/DSC_0694.JPG[/img][/url] [url=http://kativ.eu/files/naviga/Pictures/2014_C1/DSC_0695.JPG][img]http://kativ.eu/files/naviga/Pictures/2014_C1/Thumbs/DSC_0695.JPG[/img][/url] [url=http://kativ.eu/files/naviga/Pictures/2014_C1/DSC_0696.JPG][img]http://kativ.eu/files/naviga/Pictures/2014_C1/Thumbs/DSC_0696.JPG[/img][/url] [url=http://kativ.eu/files/naviga/Pictures/2014_C1/DSC_0697.JPG][img]http://kativ.eu/files/naviga/Pictures/2014_C1/Thumbs/DSC_0697.JPG[/img][/url] [url=http://kativ.eu/files/naviga/Pictures/2014_C1/DSC_0698.JPG][img]http://kativ.eu/files/naviga/Pictures/2014_C1/Thumbs/DSC_0698.JPG[/img][/url] [url=http://kativ.eu/files/naviga/Pictures/2014_C1/DSC_0699.JPG][img]http://kativ.eu/files/naviga/Pictures/2014_C1/Thumbs/DSC_0699.JPG[/img][/url] [url=http://kativ.eu/files/naviga/Pictures/2014_C1/DSC_0700.JPG][img]http://kativ.eu/files/naviga/Pictures/2014_C1/Thumbs/DSC_0700.JPG[/img][/url] [url=http://kativ.eu/files/naviga/Pictures/2014_C1/DSC_0702.JPG][img]http://kativ.eu/files/naviga/Pictures/2014_C1/Thumbs/DSC_0702.JPG[/img][/url] [url=http://kativ.eu/files/naviga/Pictures/2014_C1/DSC_0703.JPG][img]http://kativ.eu/files/naviga/Pictures/2014_C1/Thumbs/DSC_0703.JPG[/img][/url] [url=http://kativ.eu/files/naviga/Pictures/2014_C1/DSC_0704.JPG][img]http://kativ.eu/files/naviga/Pictures/2014_C1/Thumbs/DSC_0704.JPG[/img][/url] [url=http://kativ.eu/files/naviga/Pictures/2014_C1/DSC_0705.JPG][img]http://kativ.eu/files/naviga/Pictures/2014_C1/Thumbs/DSC_0705.JPG[/img][/url] [url=http://kativ.eu/files/naviga/Pictures/2014_C1/DSC_0706.JPG][img]http://kativ.eu/files/naviga/Pictures/2014_C1/Thumbs/DSC_0706.JPG[/img][/url] [url=http://kativ.eu/files/naviga/Pictures/2014_C1/DSC_0707.JPG][img]http://kativ.eu/files/naviga/Pictures/2014_C1/Thumbs/DSC_0707.JPG[/img][/url] [url=http://kativ.eu/files/naviga/Pictures/2014_C1/DSC_0708.JPG][img]http://kativ.eu/files/naviga/Pictures/2014_C1/Thumbs/DSC_0708.JPG[/img][/url] [url=http://kativ.eu/files/naviga/Pictures/2014_C1/DSC_0709.JPG][img]http://kativ.eu/files/naviga/Pictures/2014_C1/Thumbs/DSC_0709.JPG[/img][/url] [url=http://kativ.eu/files/naviga/Pictures/2014_C1/DSC_0710.JPG][img]http://kativ.eu/files/naviga/Pictures/2014_C1/Thumbs/DSC_0710.JPG[/img][/url] [url=http://kativ.eu/files/naviga/Pictures/2014_C1/DSC_0711.JPG][img]http://kativ.eu/files/naviga/Pictures/2014_C1/Thumbs/DSC_0711.JPG[/img][/url] [url=http://kativ.eu/files/naviga/Pictures/2014_C1/DSC_0712.JPG][img]http://kativ.eu/files/naviga/Pictures/2014_C1/Thumbs/DSC_0712.JPG[/img][/url] [url=http://kativ.eu/files/naviga/Pictures/2014_C1/DSC_0713.JPG][img]http://kativ.eu/files/naviga/Pictures/2014_C1/Thumbs/DSC_0713.JPG[/img][/url] [url=http://kativ.eu/files/naviga/Pictures/2014_C1/DSC_0714.JPG][img]http://kativ.eu/files/naviga/Pictures/2014_C1/Thumbs/DSC_0714.JPG[/img][/url] [url=http://kativ.eu/files/naviga/Pictures/2014_C1/DSC_0715.JPG][img]http://kativ.eu/files/naviga/Pictures/2014_C1/Thumbs/DSC_0715.JPG[/img][/url] [url=http://kativ.eu/files/naviga/Pictures/2014_C1/DSC_0716.JPG][img]http://kativ.eu/files/naviga/Pictures/2014_C1/Thumbs/DSC_0716.JPG[/img][/url] [url=http://kativ.eu/files/naviga/Pictures/2014_C1/DSC_0717.JPG][img]http://kativ.eu/files/naviga/Pictures/2014_C1/Thumbs/DSC_0717.JPG[/img][/url] [url=http://kativ.eu/files/naviga/Pictures/2014_C1/DSC_0718.JPG][img]http://kativ.eu/files/naviga/Pictures/2014_C1/Thumbs/DSC_0718.JPG[/img][/url] [url=http://kativ.eu/files/naviga/Pictures/2014_C1/DSC_0719.JPG][img]http://kativ.eu/files/naviga/Pictures/2014_C1/Thumbs/DSC_0719.JPG[/img][/url] [url=http://kativ.eu/files/naviga/Pictures/2014_C1/DSC_0720.JPG][img]http://kativ.eu/files/naviga/Pictures/2014_C1/Thumbs/DSC_0720.JPG[/img][/url] [url=http://kativ.eu/files/naviga/Pictures/2014_C1/DSC_0721.JPG][img]http://kativ.eu/files/naviga/Pictures/2014_C1/Thumbs/DSC_0721.JPG[/img][/url]"}]
["[url=","http://kativ.eu/files/naviga/Pictures/2014_","C1","/","][img]","/Thumbs/","[/img][/url]","DSC_0643.JPG",{"$f":"CONCATENATE(A2,B2,C2,D2,H2,E2,B2,C2,F2,H2,G2)","v":"[url=http://kativ.eu/files/naviga/Pictures/2014_C1/DSC_0643.JPG][img]http://kativ.eu/files/naviga/Pictures/2014_C1/Thumbs/DSC_0643.JPG[/img][/url]"}]
["[url=","http://kativ.eu/files/naviga/Pictures/2014_","C1","/","][img]","/Thumbs/","[/img][/url]","DSC_0644.JPG","[url=http://kativ.eu/files/naviga/Pictures/2014_C1/DSC_0644.JPG][img]http://kativ.eu/files/naviga/Pictures/2014_C1/Thumbs/DSC_0644.JPG[/img][/url]"]
["[url=","http://kativ.eu/files/naviga/Pictures/2014_","C1","/","][img]","/Thumbs/","[/img][/url]","DSC_0645.JPG","[url=http://kativ.eu/files/naviga/Pictures/2014_C1/DSC_0645.JPG][img]http://kativ.eu/files/naviga/Pictures/2014_C1/Thumbs/DSC_0645.JPG[/img][/url]"]
["[url=","http://kativ.eu/files/naviga/Pictures/2014_","C1","/","][img]","/Thumbs/","[/img][/url]","DSC_0646.JPG","[url=http://kativ.eu/files/naviga/Pictures/2014_C1/DSC_0646.JPG][img]http://kativ.eu/files/naviga/Pictures/2014_C1/Thumbs/DSC_0646.JPG[/img][/url]"]
["[url=","http://kativ.eu/files/naviga/Pictures/2014_","C1","/","][img]","/Thumbs/","[/img][/url]","DSC_0649.JPG","[url=http://kativ.eu/files/naviga/Pictures/2014_C1/DSC_0649.JPG][img]http://kativ.eu/files/naviga/Pictures/2014_C1/Thumbs/DSC_0649.JPG[/img][/url]"]
["[url=","http://kativ.eu/files/naviga/Pictures/2014_","C1","/","][img]","/Thumbs/","[/img][/url]","DSC_0664.JPG","[url=http://kativ.eu/files/naviga/Pictures/2014_C1/DSC_0664.JPG][img]http://kativ.eu/files/naviga/Pictures/2014_C1/Thumbs/DSC_0664.JPG[/img][/url]"]
["[url=","http://kativ.eu/files/naviga/Pictures/2014_","C1","/","][img]","/Thumbs/","[/img][/url]","DSC_0665.JPG","[url=http://kativ.eu/files/naviga/Pictures/2014_C1/DSC_0665.JPG][img]http://kativ.eu/files/naviga/Pictures/2014_C1/Thumbs/DSC_0665.JPG[/img][/url]"]
["[url=","http://kativ.eu/files/naviga/Pictures/2014_","C1","/","][img]","/Thumbs/","[/img][/url]","DSC_0684.JPG","[url=http://kativ.eu/files/naviga/Pictures/2014_C1/DSC_0684.JPG][img]http://kativ.eu/files/naviga/Pictures/2014_C1/Thumbs/DSC_0684.JPG[/img][/url]"]
["[url=","http://kativ.eu/files/naviga/Pictures/2014_","C1","/","][img]","/Thumbs/","[/img][/url]","DSC_0685.JPG","[url=http://kativ.eu/files/naviga/Pictures/2014_C1/DSC_0685.JPG][img]http://kativ.eu/files/naviga/Pictures/2014_C1/Thumbs/DSC_0685.JPG[/img][/url]"]
["[url=","http://kativ.eu/files/naviga/Pictures/2014_","C1","/","][img]","/Thumbs/","[/img][/url]","DSC_0686.JPG","[url=http://kativ.eu/files/naviga/Pictures/2014_C1/DSC_0686.JPG][img]http://kativ.eu/files/naviga/Pictures/2014_C1/Thumbs/DSC_0686.JPG[/img][/url]"]
["[url=","http://kativ.eu/files/naviga/Pictures/2014_","C1","/","][img]","/Thumbs/","[/img][/url]","DSC_0687.JPG","[url=http://kativ.eu/files/naviga/Pictures/2014_C1/DSC_0687.JPG][img]http://kativ.eu/files/naviga/Pictures/2014_C1/Thumbs/DSC_0687.JPG[/img][/url]"]
["[url=","http://kativ.eu/files/naviga/Pictures/2014_","C1","/","][img]","/Thumbs/","[/img][/url]","DSC_0688.JPG","[url=http://kativ.eu/files/naviga/Pictures/2014_C1/DSC_0688.JPG][img]http://kativ.eu/files/naviga/Pictures/2014_C1/Thumbs/DSC_0688.JPG[/img][/url]"]
["[url=","http://kativ.eu/files/naviga/Pictures/2014_","C1","/","][img]","/Thumbs/","[/img][/url]","DSC_0689.JPG","[url=http://kativ.eu/files/naviga/Pictures/2014_C1/DSC_0689.JPG][img]http://kativ.eu/files/naviga/Pictures/2014_C1/Thumbs/DSC_0689.JPG[/img][/url]"]
["[url=","http://kativ.eu/files/naviga/Pictures/2014_","C1","/","][img]","/Thumbs/","[/img][/url]","DSC_0690.JPG","[url=http://kativ.eu/files/naviga/Pictures/2014_C1/DSC_0690.JPG][img]http://kativ.eu/files/naviga/Pictures/2014_C1/Thumbs/DSC_0690.JPG[/img][/url]"]
["[url=","http://kativ.eu/files/naviga/Pictures/2014_","C1","/","][img]","/Thumbs/","[/img][/url]","DSC_0691.JPG","[url=http://kativ.eu/files/naviga/Pictures/2014_C1/DSC_0691.JPG][img]http://kativ.eu/files/naviga/Pictures/2014_C1/Thumbs/DSC_0691.JPG[/img][/url]"]
["[url=","http://kativ.eu/files/naviga/Pictures/2014_","C1","/","][img]","/Thumbs/","[/img][/url]","DSC_0692.JPG","[url=http://kativ.eu/files/naviga/Pictures/2014_C1/DSC_0692.JPG][img]http://kativ.eu/files/naviga/Pictures/2014_C1/Thumbs/DSC_0692.JPG[/img][/url]"]
["[url=","http://kativ.eu/files/naviga/Pictures/2014_","C1","/","][img]","/Thumbs/","[/img][/url]","DSC_0693.JPG","[url=http://kativ.eu/files/naviga/Pictures/2014_C1/DSC_0693.JPG][img]http://kativ.eu/files/naviga/Pictures/2014_C1/Thumbs/DSC_0693.JPG[/img][/url]"]
["[url=","http://kativ.eu/files/naviga/Pictures/2014_","C1","/","][img]","/Thumbs/","[/img][/url]","DSC_0694.JPG","[url=http://kativ.eu/files/naviga/Pictures/2014_C1/DSC_0694.JPG][img]http://kativ.eu/files/naviga/Pictures/2014_C1/Thumbs/DSC_0694.JPG[/img][/url]"]
["[url=","http://kativ.eu/files/naviga/Pictures/2014_","C1","/","][img]","/Thumbs/","[/img][/url]","DSC_0695.JPG","[url=http://kativ.eu/files/naviga/Pictures/2014_C1/DSC_0695.JPG][img]http://kativ.eu/files/naviga/Pictures/2014_C1/Thumbs/DSC_0695.JPG[/img][/url]"]
["[url=","http://kativ.eu/files/naviga/Pictures/2014_","C1","/","][img]","/Thumbs/","[/img][/url]","DSC_0696.JPG","[url=http://kativ.eu/files/naviga/Pictures/2014_C1/DSC_0696.JPG][img]http://kativ.eu/files/naviga/Pictures/2014_C1/Thumbs/DSC_0696.JPG[/img][/url]"]
["[url=","http://kativ.eu/files/naviga/Pictures/2014_","C1","/","][img]","/Thumbs/","[/img][/url]","DSC_0697.JPG","[url=http://kativ.eu/files/naviga/Pictures/2014_C1/DSC_0697.JPG][img]http://kativ.eu/files/naviga/Pictures/2014_C1/Thumbs/DSC_0697.JPG[/img][/url]"]
["[url=","http://kativ.eu/files/naviga/Pictures/2014_","C1","/","][img]","/Thumbs/","[/img][/url]","DSC_0698.JPG","[url=http://kativ.eu/files/naviga/Pictures/2014_C1/DSC_0698.JPG][img]http://kativ.eu/files/naviga/Pictures/2014_C1/Thumbs/DSC_0698.JPG[/img][/url]"]
["[url=","http://kativ.eu/files/naviga/Pictures/2014_","C1","/","][img]","/Thumbs/","[/img][/url]","DSC_0699.JPG","[url=http://kativ.eu/files/naviga/Pictures/2014_C1/DSC_0699.JPG][img]http://kativ.eu/files/naviga/Pictures/2014_C1/Thumbs/DSC_0699.JPG[/img][/url]"]
["[url=","http://kativ.eu/files/naviga/Pictures/2014_","C1","/","][img]","/Thumbs/","[/img][/url]","DSC_0700.JPG","[url=http://kativ.eu/files/naviga/Pictures/2014_C1/DSC_0700.JPG][img]http://kativ.eu/files/naviga/Pictures/2014_C1/Thumbs/DSC_0700.JPG[/img][/url]"]
["[url=","http://kativ.eu/files/naviga/Pictures/2014_","C1","/","][img]","/Thumbs/","[/img][/url]","DSC_0702.JPG","[url=http://kativ.eu/files/naviga/Pictures/2014_C1/DSC_0702.JPG][img]http://kativ.eu/files/naviga/Pictures/2014_C1/Thumbs/DSC_0702.JPG[/img][/url]"]
["[url=","http://kativ.eu/files/naviga/Pictures/2014_","C1","/","][img]","/Thumbs/","[/img][/url]","DSC_0703.JPG","[url=http://kativ.eu/files/naviga/Pictures/2014_C1/DSC_0703.JPG][img]http://kativ.eu/files/naviga/Pictures/2014_C1/Thumbs/DSC_0703.JPG[/img][/url]"]
["[url=","http://kativ.eu/files/naviga/Pictures/2014_","C1","/","][img]","/Thumbs/","[/img][/url]","DSC_0704.JPG","[url=http://kativ.eu/files/naviga/Pictures/2014_C1/DSC_0704.JPG][img]http://kativ.eu/files/naviga/Pictures/2014_C1/Thumbs/DSC_0704.JPG[/img][/url]"]
["[url=","http://kativ.eu/files/naviga/Pictures/2014_","C1","/","][img]","/Thumbs/","[/img][/url]","DSC_0705.JPG","[url=http://kativ.eu/files/naviga/Pictures/2014_C1/DSC_0705.JPG][img]http://kativ.eu/files/naviga/Pictures/2014_C1/Thumbs/DSC_0705.JPG[/img][/url]"]
["[url=","http://kativ.eu/files/naviga/Pictures/2014_","C1","/","][img]","/Thumbs/","[/img][/url]","DSC_0706.JPG","[url=http://kativ.eu/files/naviga/Pictures/2014_C1/DSC_0706.JPG][img]http://kativ.eu/files/naviga/Pictures/2014_C1/Thumbs/DSC_0706.JPG[/img][/url]"]
["[url=","http://kativ.eu/files/naviga/Pictures/2014_","C1","/","][img]","/Thumbs/","[/img][/url]","DSC_0707.JPG","[url=http://kativ.eu/files/naviga/Pictures/2014_C1/DSC_0707.JPG][img]http://kativ.eu/files/naviga/Pictures/2014_C1/Thumbs/DSC_0707.JPG[/img][/url]"]
["[url=","http://kativ.eu/files/naviga/Pictures/2014_","C1","/","][img]","/Thumbs/","[/img][/url]","DSC_0708.JPG","[url=http://kativ.eu/files/naviga/Pictures/2014_C1/DSC_0708.JPG][img]http://kativ.eu/files/naviga/Pictures/2014_C1/Thumbs/DSC_0708.JPG[/img][/url]"]
["[url=","http://kativ.eu/files/naviga/Pictures/2014_","C1","/","][img]","/Thumbs/","[/img][/url]","DSC_0709.JPG","[url=http://kativ.eu/files/naviga/Pictures/2014_C1/DSC_0709.JPG][img]http://kativ.eu/files/naviga/Pictures/2014_C1/Thumbs/DSC_0709.JPG[/img][/url]"]
["[url=","http://kativ.eu/files/naviga/Pictures/2014_","C1","/","][img]","/Thumbs/","[/img][/url]","DSC_0710.JPG","[url=http://kativ.eu/files/naviga/Pictures/2014_C1/DSC_0710.JPG][img]http://kativ.eu/files/naviga/Pictures/2014_C1/Thumbs/DSC_0710.JPG[/img][/url]"]
["[url=","http://kativ.eu/files/naviga/Pictures/2014_","C1","/","][img]","/Thumbs/","[/img][/url]","DSC_0711.JPG","[url=http://kativ.eu/files/naviga/Pictures/2014_C1/DSC_0711.JPG][img]http://kativ.eu/files/naviga/Pictures/2014_C1/Thumbs/DSC_0711.JPG[/img][/url]"]
["[url=","http://kativ.eu/files/naviga/Pictures/2014_","C1","/","][img]","/Thumbs/","[/img][/url]","DSC_0712.JPG","[url=http://kativ.eu/files/naviga/Pictures/2014_C1/DSC_0712.JPG][img]http://kativ.eu/files/naviga/Pictures/2014_C1/Thumbs/DSC_0712.JPG[/img][/url]"]
["[url=","http://kativ.eu/files/naviga/Pictures/2014_","C1","/","][img]","/Thumbs/","[/img][/url]","DSC_0713.JPG","[url=http://kativ.eu/files/naviga/Pictures/2014_C1/DSC_0713.JPG][img]http://kativ.eu/files/naviga/Pictures/2014_C1/Thumbs/DSC_0713.JPG[/img][/url]"]
["[url=","http://kativ.eu/files/naviga/Pictures/2014_","C1","/","][img]","/Thumbs/","[/img][/url]","DSC_0714.JPG","[url=http://kativ.eu/files/naviga/Pictures/2014_C1/DSC_0714.JPG][img]http://kativ.eu/files/naviga/Pictures/2014_C1/Thumbs/DSC_0714.JPG[/img][/url]"]
["[url=","http://kativ.eu/files/naviga/Pictures/2014_","C1","/","][img]","/Thumbs/","[/img][/url]","DSC_0715.JPG","[url=http://kativ.eu/files/naviga/Pictures/2014_C1/DSC_0715.JPG][img]http://kativ.eu/files/naviga/Pictures/2014_C1/Thumbs/DSC_0715.JPG[/img][/url]"]
["[url=","http://kativ.eu/files/naviga/Pictures/2014_","C1","/","][img]","/Thumbs/","[/img][/url]","DSC_0716.JPG","[url=http://kativ.eu/files/naviga/Pictures/2014_C1/DSC_0716.JPG][img]http://kativ.eu/files/naviga/Pictures/2014_C1/Thumbs/DSC_0716.JPG[/img][/url]"]
["[url=","http://kativ.eu/files/naviga/Pictures/2014_","C1","/","][img]","/Thumbs/","[/img][/url]","DSC_0717.JPG","[url=http://kativ.eu/files/naviga/Pictures/2014_C1/DSC_0717.JPG][img]http://kativ.eu/files/naviga/Pictures/2014_C1/Thumbs/DSC_0717.JPG[/img][/url]"]
["[url=","http://kativ.eu/files/naviga/Pictures/2014_","C1","/","][img]","/Thumbs/","[/img][/url]","DSC_0718.JPG","[url=http://kativ.eu/files/naviga/Pictures/2014_C1/DSC_0718.JPG][img]http://kativ.eu/files/naviga/Pictures/2014_C1/Thumbs/DSC_0718.JPG[/img][/url]"]
["[url=","http://kativ.eu/files/naviga/Pictures/2014_","C1","/","][img]","/Thumbs/","[/img][/url]","DSC_0719.JPG","[url=http://kativ.eu/files/naviga/Pictures/2014_C1/DSC_0719.JPG][img]http://kativ.eu/files/naviga/Pictures/2014_C1/Thumbs/DSC_0719.JPG[/img][/url]"]
["[url=","http://kativ.eu/files/naviga/Pictures/2014_","C1","/","][img]","/Thumbs/","[/img][/url]","DSC_0720.JPG","[url=http://kativ.eu/files/naviga/Pictures/2014_C1/DSC_0720.JPG][img]http://kativ.eu/files/naviga/Pictures/2014_C1/Thumbs/DSC_0720.JPG[/img][/url]"]
["[url=","http://kativ.eu/files/naviga/Pictures/2014_","C1","/","][img]","/Thumbs/","[/img][/url]","DSC_0721.JPG","[url=http://kativ.eu/files/naviga/Pictures/2014_C1/DSC_0721.JPG][img]http://kativ.eu/files/naviga/Pictures/2014_C1/Thumbs/DSC_0721.JPG[/img][/url]"]
["[url=","http://kativ.eu/files/naviga/Pictures/2014_","C1","/","][img]","/Thumbs/","[/img][/url]","DSC_0722.JPG","[url=http://kativ.eu/files/naviga/Pictures/2014_C1/DSC_0722.JPG][img]http://kativ.eu/files/naviga/Pictures/2014_C1/Thumbs/DSC_0722.JPG[/img][/url]",{"$f":"ConcatRange(I46:I90,\" \")","v":"[url=http://kativ.eu/files/naviga/Pictures/2014_C1/DSC_0722.JPG][img]http://kativ.eu/files/naviga/Pictures/2014_C1/Thumbs/DSC_0722.JPG[/img][/url] [url=http://kativ.eu/files/naviga/Pictures/2014_C1/DSC_0723.JPG][img]http://kativ.eu/files/naviga/Pictures/2014_C1/Thumbs/DSC_0723.JPG[/img][/url] [url=http://kativ.eu/files/naviga/Pictures/2014_C1/DSC_0724.JPG][img]http://kativ.eu/files/naviga/Pictures/2014_C1/Thumbs/DSC_0724.JPG[/img][/url] [url=http://kativ.eu/files/naviga/Pictures/2014_C1/DSC_0725.JPG][img]http://kativ.eu/files/naviga/Pictures/2014_C1/Thumbs/DSC_0725.JPG[/img][/url] [url=http://kativ.eu/files/naviga/Pictures/2014_C1/DSC_0727.JPG][img]http://kativ.eu/files/naviga/Pictures/2014_C1/Thumbs/DSC_0727.JPG[/img][/url] [url=http://kativ.eu/files/naviga/Pictures/2014_C1/DSC_0728.JPG][img]http://kativ.eu/files/naviga/Pictures/2014_C1/Thumbs/DSC_0728.JPG[/img][/url] [url=http://kativ.eu/files/naviga/Pictures/2014_C1/DSC_0729.JPG][img]http://kativ.eu/files/naviga/Pictures/2014_C1/Thumbs/DSC_0729.JPG[/img][/url] [url=http://kativ.eu/files/naviga/Pictures/2014_C1/DSC_0730.JPG][img]http://kativ.eu/files/naviga/Pictures/2014_C1/Thumbs/DSC_0730.JPG[/img][/url] [url=http://kativ.eu/files/naviga/Pictures/2014_C1/DSC_0731.JPG][img]http://kativ.eu/files/naviga/Pictures/2014_C1/Thumbs/DSC_0731.JPG[/img][/url] [url=http://kativ.eu/files/naviga/Pictures/2014_C1/DSC_0732.JPG][img]http://kativ.eu/files/naviga/Pictures/2014_C1/Thumbs/DSC_0732.JPG[/img][/url] [url=http://kativ.eu/files/naviga/Pictures/2014_C1/DSC_0733.JPG][img]http://kativ.eu/files/naviga/Pictures/2014_C1/Thumbs/DSC_0733.JPG[/img][/url] [url=http://kativ.eu/files/naviga/Pictures/2014_C1/DSC_0734.JPG][img]http://kativ.eu/files/naviga/Pictures/2014_C1/Thumbs/DSC_0734.JPG[/img][/url] [url=http://kativ.eu/files/naviga/Pictures/2014_C1/DSC_0735.JPG][img]http://kativ.eu/files/naviga/Pictures/2014_C1/Thumbs/DSC_0735.JPG[/img][/url] [url=http://kativ.eu/files/naviga/Pictures/2014_C1/DSC_0736.JPG][img]http://kativ.eu/files/naviga/Pictures/2014_C1/Thumbs/DSC_0736.JPG[/img][/url] [url=http://kativ.eu/files/naviga/Pictures/2014_C1/DSC_0737.JPG][img]http://kativ.eu/files/naviga/Pictures/2014_C1/Thumbs/DSC_0737.JPG[/img][/url] [url=http://kativ.eu/files/naviga/Pictures/2014_C1/DSC_0738.JPG][img]http://kativ.eu/files/naviga/Pictures/2014_C1/Thumbs/DSC_0738.JPG[/img][/url] [url=http://kativ.eu/files/naviga/Pictures/2014_C1/DSC_0739.JPG][img]http://kativ.eu/files/naviga/Pictures/2014_C1/Thumbs/DSC_0739.JPG[/img][/url] [url=http://kativ.eu/files/naviga/Pictures/2014_C1/DSC_0740.JPG][img]http://kativ.eu/files/naviga/Pictures/2014_C1/Thumbs/DSC_0740.JPG[/img][/url] [url=http://kativ.eu/files/naviga/Pictures/2014_C1/DSC_0741.JPG][img]http://kativ.eu/files/naviga/Pictures/2014_C1/Thumbs/DSC_0741.JPG[/img][/url] [url=http://kativ.eu/files/naviga/Pictures/2014_C1/DSC_0742.JPG][img]http://kativ.eu/files/naviga/Pictures/2014_C1/Thumbs/DSC_0742.JPG[/img][/url] [url=http://kativ.eu/files/naviga/Pictures/2014_C1/DSC_0743.JPG][img]http://kativ.eu/files/naviga/Pictures/2014_C1/Thumbs/DSC_0743.JPG[/img][/url] [url=http://kativ.eu/files/naviga/Pictures/2014_C1/DSC_0744.JPG][img]http://kativ.eu/files/naviga/Pictures/2014_C1/Thumbs/DSC_0744.JPG[/img][/url] [url=http://kativ.eu/files/naviga/Pictures/2014_C1/DSC_0745.JPG][img]http://kativ.eu/files/naviga/Pictures/2014_C1/Thumbs/DSC_0745.JPG[/img][/url] [url=http://kativ.eu/files/naviga/Pictures/2014_C1/DSC_0746.JPG][img]http://kativ.eu/files/naviga/Pictures/2014_C1/Thumbs/DSC_0746.JPG[/img][/url] [url=http://kativ.eu/files/naviga/Pictures/2014_C1/DSC_0747.JPG][img]http://kativ.eu/files/naviga/Pictures/2014_C1/Thumbs/DSC_0747.JPG[/img][/url] [url=http://kativ.eu/files/naviga/Pictures/2014_C1/DSC_0748.JPG][img]http://kativ.eu/files/naviga/Pictures/2014_C1/Thumbs/DSC_0748.JPG[/img][/url] [url=http://kativ.eu/files/naviga/Pictures/2014_C1/DSC_0749.JPG][img]http://kativ.eu/files/naviga/Pictures/2014_C1/Thumbs/DSC_0749.JPG[/img][/url] [url=http://kativ.eu/files/naviga/Pictures/2014_C1/DSC_0750.JPG][img]http://kativ.eu/files/naviga/Pictures/2014_C1/Thumbs/DSC_0750.JPG[/img][/url] [url=http://kativ.eu/files/naviga/Pictures/2014_C1/DSC_0751.JPG][img]http://kativ.eu/files/naviga/Pictures/2014_C1/Thumbs/DSC_0751.JPG[/img][/url] [url=http://kativ.eu/files/naviga/Pictures/2014_C1/DSC_0752.JPG][img]http://kativ.eu/files/naviga/Pictures/2014_C1/Thumbs/DSC_0752.JPG[/img][/url] [url=http://kativ.eu/files/naviga/Pictures/2014_C1/DSC_0753.JPG][img]http://kativ.eu/files/naviga/Pictures/2014_C1/Thumbs/DSC_0753.JPG[/img][/url] [url=http://kativ.eu/files/naviga/Pictures/2014_C1/DSC_0754.JPG][img]http://kativ.eu/files/naviga/Pictures/2014_C1/Thumbs/DSC_0754.JPG[/img][/url] [url=http://kativ.eu/files/naviga/Pictures/2014_C1/DSC_0755.JPG][img]http://kativ.eu/files/naviga/Pictures/2014_C1/Thumbs/DSC_0755.JPG[/img][/url] [url=http://kativ.eu/files/naviga/Pictures/2014_C1/DSC_0756.JPG][img]http://kativ.eu/files/naviga/Pictures/2014_C1/Thumbs/DSC_0756.JPG[/img][/url] [url=http://kativ.eu/files/naviga/Pictures/2014_C1/DSC_0757.JPG][img]http://kativ.eu/files/naviga/Pictures/2014_C1/Thumbs/DSC_0757.JPG[/img][/url] [url=http://kativ.eu/files/naviga/Pictures/2014_C1/DSC_0758.JPG][img]http://kativ.eu/files/naviga/Pictures/2014_C1/Thumbs/DSC_0758.JPG[/img][/url] [url=http://kativ.eu/files/naviga/Pictures/2014_C1/DSC_0759.JPG][img]http://kativ.eu/files/naviga/Pictures/2014_C1/Thumbs/DSC_0759.JPG[/img][/url] [url=http://kativ.eu/files/naviga/Pictures/2014_C1/DSC_0760.JPG][img]http://kativ.eu/files/naviga/Pictures/2014_C1/Thumbs/DSC_0760.JPG[/img][/url] [url=http://kativ.eu/files/naviga/Pictures/2014_C1/DSC_0761.JPG][img]http://kativ.eu/files/naviga/Pictures/2014_C1/Thumbs/DSC_0761.JPG[/img][/url] [url=http://kativ.eu/files/naviga/Pictures/2014_C1/DSC_0975.JPG][img]http://kativ.eu/files/naviga/Pictures/2014_C1/Thumbs/DSC_0975.JPG[/img][/url] [url=http://kativ.eu/files/naviga/Pictures/2014_C1/DSC_0976.JPG][img]http://kativ.eu/files/naviga/Pictures/2014_C1/Thumbs/DSC_0976.JPG[/img][/url] [url=http://kativ.eu/files/naviga/Pictures/2014_C1/DSC_0977.JPG][img]http://kativ.eu/files/naviga/Pictures/2014_C1/Thumbs/DSC_0977.JPG[/img][/url] [url=http://kativ.eu/files/naviga/Pictures/2014_C1/DSC_0978.JPG][img]http://kativ.eu/files/naviga/Pictures/2014_C1/Thumbs/DSC_0978.JPG[/img][/url] [url=http://kativ.eu/files/naviga/Pictures/2014_C1/DSC_0979.JPG][img]http://kativ.eu/files/naviga/Pictures/2014_C1/Thumbs/DSC_0979.JPG[/img][/url] [url=http://kativ.eu/files/naviga/Pictures/2014_C1/DSC_0980.JPG][img]http://kativ.eu/files/naviga/Pictures/2014_C1/Thumbs/DSC_0980.JPG[/img][/url]"}]
["[url=","http://kativ.eu/files/naviga/Pictures/2014_","C1","/","][img]","/Thumbs/","[/img][/url]","DSC_0723.JPG","[url=http://kativ.eu/files/naviga/Pictures/2014_C1/DSC_0723.JPG][img]http://kativ.eu/files/naviga/Pictures/2014_C1/Thumbs/DSC_0723.JPG[/img][/url]"]
["[url=","http://kativ.eu/files/naviga/Pictures/2014_","C1","/","][img]","/Thumbs/","[/img][/url]","DSC_0724.JPG","[url=http://kativ.eu/files/naviga/Pictures/2014_C1/DSC_0724.JPG][img]http://kativ.eu/files/naviga/Pictures/2014_C1/Thumbs/DSC_0724.JPG[/img][/url]"]
["[url=","http://kativ.eu/files/naviga/Pictures/2014_","C1","/","][img]","/Thumbs/","[/img][/url]","DSC_0725.JPG","[url=http://kativ.eu/files/naviga/Pictures/2014_C1/DSC_0725.JPG][img]http://kativ.eu/files/naviga/Pictures/2014_C1/Thumbs/DSC_0725.JPG[/img][/url]"]
["[url=","http://kativ.eu/files/naviga/Pictures/2014_","C1","/","][img]","/Thumbs/","[/img][/url]","DSC_0727.JPG","[url=http://kativ.eu/files/naviga/Pictures/2014_C1/DSC_0727.JPG][img]http://kativ.eu/files/naviga/Pictures/2014_C1/Thumbs/DSC_0727.JPG[/img][/url]"]
["[url=","http://kativ.eu/files/naviga/Pictures/2014_","C1","/","][img]","/Thumbs/","[/img][/url]","DSC_0728.JPG","[url=http://kativ.eu/files/naviga/Pictures/2014_C1/DSC_0728.JPG][img]http://kativ.eu/files/naviga/Pictures/2014_C1/Thumbs/DSC_0728.JPG[/img][/url]"]
["[url=","http://kativ.eu/files/naviga/Pictures/2014_","C1","/","][img]","/Thumbs/","[/img][/url]","DSC_0729.JPG","[url=http://kativ.eu/files/naviga/Pictures/2014_C1/DSC_0729.JPG][img]http://kativ.eu/files/naviga/Pictures/2014_C1/Thumbs/DSC_0729.JPG[/img][/url]"]
["[url=","http://kativ.eu/files/naviga/Pictures/2014_","C1","/","][img]","/Thumbs/","[/img][/url]","DSC_0730.JPG","[url=http://kativ.eu/files/naviga/Pictures/2014_C1/DSC_0730.JPG][img]http://kativ.eu/files/naviga/Pictures/2014_C1/Thumbs/DSC_0730.JPG[/img][/url]"]
["[url=","http://kativ.eu/files/naviga/Pictures/2014_","C1","/","][img]","/Thumbs/","[/img][/url]","DSC_0731.JPG","[url=http://kativ.eu/files/naviga/Pictures/2014_C1/DSC_0731.JPG][img]http://kativ.eu/files/naviga/Pictures/2014_C1/Thumbs/DSC_0731.JPG[/img][/url]"]
["[url=","http://kativ.eu/files/naviga/Pictures/2014_","C1","/","][img]","/Thumbs/","[/img][/url]","DSC_0732.JPG","[url=http://kativ.eu/files/naviga/Pictures/2014_C1/DSC_0732.JPG][img]http://kativ.eu/files/naviga/Pictures/2014_C1/Thumbs/DSC_0732.JPG[/img][/url]"]
["[url=","http://kativ.eu/files/naviga/Pictures/2014_","C1","/","][img]","/Thumbs/","[/img][/url]","DSC_0733.JPG","[url=http://kativ.eu/files/naviga/Pictures/2014_C1/DSC_0733.JPG][img]http://kativ.eu/files/naviga/Pictures/2014_C1/Thumbs/DSC_0733.JPG[/img][/url]"]
["[url=","http://kativ.eu/files/naviga/Pictures/2014_","C1","/","][img]","/Thumbs/","[/img][/url]","DSC_0734.JPG","[url=http://kativ.eu/files/naviga/Pictures/2014_C1/DSC_0734.JPG][img]http://kativ.eu/files/naviga/Pictures/2014_C1/Thumbs/DSC_0734.JPG[/img][/url]"]
["[url=","http://kativ.eu/files/naviga/Pictures/2014_","C1","/","][img]","/Thumbs/","[/img][/url]","DSC_0735.JPG","[url=http://kativ.eu/files/naviga/Pictures/2014_C1/DSC_0735.JPG][img]http://kativ.eu/files/naviga/Pictures/2014_C1/Thumbs/DSC_0735.JPG[/img][/url]"]
["[url=","http://kativ.eu/files/naviga/Pictures/2014_","C1","/","][img]","/Thumbs/","[/img][/url]","DSC_0736.JPG","[url=http://kativ.eu/files/naviga/Pictures/2014_C1/DSC_0736.JPG][img]http://kativ.eu/files/naviga/Pictures/2014_C1/Thumbs/DSC_0736.JPG[/img][/url]"]
["[url=","http://kativ.eu/files/naviga/Pictures/2014_","C1","/","][img]","/Thumbs/","[/img][/url]","DSC_0737.JPG","[url=http://kativ.eu/files/naviga/Pictures/2014_C1/DSC_0737.JPG][img]http://kativ.eu/files/naviga/Pictures/2014_C1/Thumbs/DSC_0737.JPG[/img][/url]"]
["[url=","http://kativ.eu/files/naviga/Pictures/2014_","C1","/","][img]","/Thumbs/","[/img][/url]","DSC_0738.JPG","[url=http://kativ.eu/files/naviga/Pictures/2014_C1/DSC_0738.JPG][img]http://kativ.eu/files/naviga/Pictures/2014_C1/Thumbs/DSC_0738.JPG[/img][/url]"]
["[url=","http://kativ.eu/files/naviga/Pictures/2014_","C1","/","][img]","/Thumbs/","[/img][/url]","DSC_0739.JPG","[url=http://kativ.eu/files/naviga/Pictures/2014_C1/DSC_0739.JPG][img]http://kativ.eu/files/naviga/Pictures/2014_C1/Thumbs/DSC_0739.JPG[/img][/url]"]
["[url=","http://kativ.eu/files/naviga/Pictures/2014_","C1","/","][img]","/Thumbs/","[/img][/url]","DSC_0740.JPG","[url=http://kativ.eu/files/naviga/Pictures/2014_C1/DSC_0740.JPG][img]http://kativ.eu/files/naviga/Pictures/2014_C1/Thumbs/DSC_0740.JPG[/img][/url]"]
["[url=","http://kativ.eu/files/naviga/Pictures/2014_","C1","/","][img]","/Thumbs/","[/img][/url]","DSC_0741.JPG","[url=http://kativ.eu/files/naviga/Pictures/2014_C1/DSC_0741.JPG][img]http://kativ.eu/files/naviga/Pictures/2014_C1/Thumbs/DSC_0741.JPG[/img][/url]"]
["[url=","http://kativ.eu/files/naviga/Pictures/2014_","C1","/","][img]","/Thumbs/","[/img][/url]","DSC_0742.JPG","[url=http://kativ.eu/files/naviga/Pictures/2014_C1/DSC_0742.JPG][img]http://kativ.eu/files/naviga/Pictures/2014_C1/Thumbs/DSC_0742.JPG[/img][/url]"]
["[url=","http://kativ.eu/files/naviga/Pictures/2014_","C1","/","][img]","/Thumbs/","[/img][/url]","DSC_0743.JPG",{"$f":"CONCATENATE(A66,B66,C66,D66,H66,E66,B66,C66,F66,H66,G66)","v":"[url=http://kativ.eu/files/naviga/Pictures/2014_C1/DSC_0743.JPG][img]http://kativ.eu/files/naviga/Pictures/2014_C1/Thumbs/DSC_0743.JPG[/img][/url]"}]
["[url=","http://kativ.eu/files/naviga/Pictures/2014_","C1","/","][img]","/Thumbs/","[/img][/url]","DSC_0744.JPG","[url=http://kativ.eu/files/naviga/Pictures/2014_C1/DSC_0744.JPG][img]http://kativ.eu/files/naviga/Pictures/2014_C1/Thumbs/DSC_0744.JPG[/img][/url]"]
["[url=","http://kativ.eu/files/naviga/Pictures/2014_","C1","/","][img]","/Thumbs/","[/img][/url]","DSC_0745.JPG","[url=http://kativ.eu/files/naviga/Pictures/2014_C1/DSC_0745.JPG][img]http://kativ.eu/files/naviga/Pictures/2014_C1/Thumbs/DSC_0745.JPG[/img][/url]"]
["[url=","http://kativ.eu/files/naviga/Pictures/2014_","C1","/","][img]","/Thumbs/","[/img][/url]","DSC_0746.JPG","[url=http://kativ.eu/files/naviga/Pictures/2014_C1/DSC_0746.JPG][img]http://kativ.eu/files/naviga/Pictures/2014_C1/Thumbs/DSC_0746.JPG[/img][/url]"]
["[url=","http://kativ.eu/files/naviga/Pictures/2014_","C1","/","][img]","/Thumbs/","[/img][/url]","DSC_0747.JPG","[url=http://kativ.eu/files/naviga/Pictures/2014_C1/DSC_0747.JPG][img]http://kativ.eu/files/naviga/Pictures/2014_C1/Thumbs/DSC_0747.JPG[/img][/url]"]
["[url=","http://kativ.eu/files/naviga/Pictures/2014_","C1","/","][img]","/Thumbs/","[/img][/url]","DSC_0748.JPG","[url=http://kativ.eu/files/naviga/Pictures/2014_C1/DSC_0748.JPG][img]http://kativ.eu/files/naviga/Pictures/2014_C1/Thumbs/DSC_0748.JPG[/img][/url]"]
["[url=","http://kativ.eu/files/naviga/Pictures/2014_","C1","/","][img]","/Thumbs/","[/img][/url]","DSC_0749.JPG","[url=http://kativ.eu/files/naviga/Pictures/2014_C1/DSC_0749.JPG][img]http://kativ.eu/files/naviga/Pictures/2014_C1/Thumbs/DSC_0749.JPG[/img][/url]"]
["[url=","http://kativ.eu/files/naviga/Pictures/2014_","C1","/","][img]","/Thumbs/","[/img][/url]","DSC_0750.JPG","[url=http://kativ.eu/files/naviga/Pictures/2014_C1/DSC_0750.JPG][img]http://kativ.eu/files/naviga/Pictures/2014_C1/Thumbs/DSC_0750.JPG[/img][/url]"]
["[url=","http://kativ.eu/files/naviga/Pictures/2014_","C1","/","][img]","/Thumbs/","[/img][/url]","DSC_0751.JPG","[url=http://kativ.eu/files/naviga/Pictures/2014_C1/DSC_0751.JPG][img]http://kativ.eu/files/naviga/Pictures/2014_C1/Thumbs/DSC_0751.JPG[/img][/url]"]
["[url=","http://kativ.eu/files/naviga/Pictures/2014_","C1","/","][img]","/Thumbs/","[/img][/url]","DSC_0752.JPG","[url=http://kativ.eu/files/naviga/Pictures/2014_C1/DSC_0752.JPG][img]http://kativ.eu/files/naviga/Pictures/2014_C1/Thumbs/DSC_0752.JPG[/img][/url]"]
["[url=","http://kativ.eu/files/naviga/Pictures/2014_","C1","/","][img]","/Thumbs/","[/img][/url]","DSC_0753.JPG","[url=http://kativ.eu/files/naviga/Pictures/2014_C1/DSC_0753.JPG][img]http://kativ.eu/files/naviga/Pictures/2014_C1/Thumbs/DSC_0753.JPG[/img][/url]"]
["[url=","http://kativ.eu/files/naviga/Pictures/2014_","C1","/","][img]","/Thumbs/","[/img][/url]","DSC_0754.JPG","[url=http://kativ.eu/files/naviga/Pictures/2014_C1/DSC_0754.JPG][img]http://kativ.eu/files/naviga/Pictures/2014_C1/Thumbs/DSC_0754.JPG[/img][/url]"]
["[url=","http://kativ.eu/files/naviga/Pictures/2014_","C1","/","][img]","/Thumbs/","[/img][/url]","DSC_0755.JPG","[url=http://kativ.eu/files/naviga/Pictures/2014_C1/DSC_0755.JPG][img]http://kativ.eu/files/naviga/Pictures/2014_C1/Thumbs/DSC_0755.JPG[/img][/url]"]
["[url=","http://kativ.eu/files/naviga/Pictures/2014_","C1","/","][img]","/Thumbs/","[/img][/url]","DSC_0756.JPG","[url=http://kativ.eu/files/naviga/Pictures/2014_C1/DSC_0756.JPG][img]http://kativ.eu/files/naviga/Pictures/2014_C1/Thumbs/DSC_0756.JPG[/img][/url]"]
["[url=","http://kativ.eu/files/naviga/Pictures/2014_","C1","/","][img]","/Thumbs/","[/img][/url]","DSC_0757.JPG","[url=http://kativ.eu/files/naviga/Pictures/2014_C1/DSC_0757.JPG][img]http://kativ.eu/files/naviga/Pictures/2014_C1/Thumbs/DSC_0757.JPG[/img][/url]"]
["[url=","http://kativ.eu/files/naviga/Pictures/2014_","C1","/","][img]","/Thumbs/","[/img][/url]","DSC_0758.JPG","[url=http://kativ.eu/files/naviga/Pictures/2014_C1/DSC_0758.JPG][img]http://kativ.eu/files/naviga/Pictures/2014_C1/Thumbs/DSC_0758.JPG[/img][/url]"]
["[url=","http://kativ.eu/files/naviga/Pictures/2014_","C1","/","][img]","/Thumbs/","[/img][/url]","DSC_0759.JPG","[url=http://kativ.eu/files/naviga/Pictures/2014_C1/DSC_0759.JPG][img]http://kativ.eu/files/naviga/Pictures/2014_C1/Thumbs/DSC_0759.JPG[/img][/url]"]
["[url=","http://kativ.eu/files/naviga/Pictures/2014_","C1","/","][img]","/Thumbs/","[/img][/url]","DSC_0760.JPG","[url=http://kativ.eu/files/naviga/Pictures/2014_C1/DSC_0760.JPG][img]http://kativ.eu/files/naviga/Pictures/2014_C1/Thumbs/DSC_0760.JPG[/img][/url]"]
["[url=","http://kativ.eu/files/naviga/Pictures/2014_","C1","/","][img]","/Thumbs/","[/img][/url]","DSC_0761.JPG","[url=http://kativ.eu/files/naviga/Pictures/2014_C1/DSC_0761.JPG][img]http://kativ.eu/files/naviga/Pictures/2014_C1/Thumbs/DSC_0761.JPG[/img][/url]"]
["[url=","http://kativ.eu/files/naviga/Pictures/2014_","C1","/","][img]","/Thumbs/","[/img][/url]","DSC_0975.JPG","[url=http://kativ.eu/files/naviga/Pictures/2014_C1/DSC_0975.JPG][img]http://kativ.eu/files/naviga/Pictures/2014_C1/Thumbs/DSC_0975.JPG[/img][/url]"]
["[url=","http://kativ.eu/files/naviga/Pictures/2014_","C1","/","][img]","/Thumbs/","[/img][/url]","DSC_0976.JPG","[url=http://kativ.eu/files/naviga/Pictures/2014_C1/DSC_0976.JPG][img]http://kativ.eu/files/naviga/Pictures/2014_C1/Thumbs/DSC_0976.JPG[/img][/url]"]
["[url=","http://kativ.eu/files/naviga/Pictures/2014_","C1","/","][img]","/Thumbs/","[/img][/url]","DSC_0977.JPG","[url=http://kativ.eu/files/naviga/Pictures/2014_C1/DSC_0977.JPG][img]http://kativ.eu/files/naviga/Pictures/2014_C1/Thumbs/DSC_0977.JPG[/img][/url]"]
["[url=","http://kativ.eu/files/naviga/Pictures/2014_","C1","/","][img]","/Thumbs/","[/img][/url]","DSC_0978.JPG","[url=http://kativ.eu/files/naviga/Pictures/2014_C1/DSC_0978.JPG][img]http://kativ.eu/files/naviga/Pictures/2014_C1/Thumbs/DSC_0978.JPG[/img][/url]"]
["[url=","http://kativ.eu/files/naviga/Pictures/2014_","C1","/","][img]","/Thumbs/","[/img][/url]","DSC_0979.JPG","[url=http://kativ.eu/files/naviga/Pictures/2014_C1/DSC_0979.JPG][img]http://kativ.eu/files/naviga/Pictures/2014_C1/Thumbs/DSC_0979.JPG[/img][/url]"]
["[url=","http://kativ.eu/files/naviga/Pictures/2014_","C1","/","][img]","/Thumbs/","[/img][/url]","DSC_0980.JPG","[url=http://kativ.eu/files/naviga/Pictures/2014_C1/DSC_0980.JPG][img]http://kativ.eu/files/naviga/Pictures/2014_C1/Thumbs/DSC_0980.JPG[/img][/url]"]
["[url=","http://kativ.eu/files/naviga/Pictures/2014_","C1","/","][img]","/Thumbs/","[/img][/url]","DSC_0981.JPG","[url=http://kativ.eu/files/naviga/Pictures/2014_C1/DSC_0981.JPG][img]http://kativ.eu/files/naviga/Pictures/2014_C1/Thumbs/DSC_0981.JPG[/img][/url]",{"$f":"ConcatRange(I91:I135,\" \")","v":"[url=http://kativ.eu/files/naviga/Pictures/2014_C1/DSC_0981.JPG][img]http://kativ.eu/files/naviga/Pictures/2014_C1/Thumbs/DSC_0981.JPG[/img][/url] [url=http://kativ.eu/files/naviga/Pictures/2014_C1/DSC_0982.JPG][img]http://kativ.eu/files/naviga/Pictures/2014_C1/Thumbs/DSC_0982.JPG[/img][/url] [url=http://kativ.eu/files/naviga/Pictures/2014_C1/DSC_0983.JPG][img]http://kativ.eu/files/naviga/Pictures/2014_C1/Thumbs/DSC_0983.JPG[/img][/url] [url=http://kativ.eu/files/naviga/Pictures/2014_C1/DSC_0984.JPG][img]http://kativ.eu/files/naviga/Pictures/2014_C1/Thumbs/DSC_0984.JPG[/img][/url] [url=http://kativ.eu/files/naviga/Pictures/2014_C1/DSC_0985.JPG][img]http://kativ.eu/files/naviga/Pictures/2014_C1/Thumbs/DSC_0985.JPG[/img][/url] [url=http://kativ.eu/files/naviga/Pictures/2014_C1/DSC_0986.JPG][img]http://kativ.eu/files/naviga/Pictures/2014_C1/Thumbs/DSC_0986.JPG[/img][/url] [url=http://kativ.eu/files/naviga/Pictures/2014_C1/DSC_0987.JPG][img]http://kativ.eu/files/naviga/Pictures/2014_C1/Thumbs/DSC_0987.JPG[/img][/url] [url=http://kativ.eu/files/naviga/Pictures/2014_C1/DSC_0988.JPG][img]http://kativ.eu/files/naviga/Pictures/2014_C1/Thumbs/DSC_0988.JPG[/img][/url] [url=http://kativ.eu/files/naviga/Pictures/2014_C1/DSC_0989.JPG][img]http://kativ.eu/files/naviga/Pictures/2014_C1/Thumbs/DSC_0989.JPG[/img][/url] [url=http://kativ.eu/files/naviga/Pictures/2014_C1/DSC_0990.JPG][img]http://kativ.eu/files/naviga/Pictures/2014_C1/Thumbs/DSC_0990.JPG[/img][/url] [url=http://kativ.eu/files/naviga/Pictures/2014_C1/DSC_0991.JPG][img]http://kativ.eu/files/naviga/Pictures/2014_C1/Thumbs/DSC_0991.JPG[/img][/url] [url=http://kativ.eu/files/naviga/Pictures/2014_C1/DSC_0992.JPG][img]http://kativ.eu/files/naviga/Pictures/2014_C1/Thumbs/DSC_0992.JPG[/img][/url] [url=http://kativ.eu/files/naviga/Pictures/2014_C1/DSC_0993.JPG][img]http://kativ.eu/files/naviga/Pictures/2014_C1/Thumbs/DSC_0993.JPG[/img][/url] [url=http://kativ.eu/files/naviga/Pictures/2014_C1/DSC_0994.JPG][img]http://kativ.eu/files/naviga/Pictures/2014_C1/Thumbs/DSC_0994.JPG[/img][/url] [url=http://kativ.eu/files/naviga/Pictures/2014_C1/DSC_0995.JPG][img]http://kativ.eu/files/naviga/Pictures/2014_C1/Thumbs/DSC_0995.JPG[/img][/url] [url=http://kativ.eu/files/naviga/Pictures/2014_C1/DSC_0996.JPG][img]http://kativ.eu/files/naviga/Pictures/2014_C1/Thumbs/DSC_0996.JPG[/img][/url] [url=http://kativ.eu/files/naviga/Pictures/2014_C1/DSC_0997.JPG][img]http://kativ.eu/files/naviga/Pictures/2014_C1/Thumbs/DSC_0997.JPG[/img][/url] [url=http://kativ.eu/files/naviga/Pictures/2014_C1/DSC_0998.JPG][img]http://kativ.eu/files/naviga/Pictures/2014_C1/Thumbs/DSC_0998.JPG[/img][/url] [url=http://kativ.eu/files/naviga/Pictures/2014_C1/DSC_0999.JPG][img]http://kativ.eu/files/naviga/Pictures/2014_C1/Thumbs/DSC_0999.JPG[/img][/url] [url=http://kativ.eu/files/naviga/Pictures/2014_C1/DSC_1000.JPG][img]http://kativ.eu/files/naviga/Pictures/2014_C1/Thumbs/DSC_1000.JPG[/img][/url] [url=http://kativ.eu/files/naviga/Pictures/2014_C1/DSC_1001.JPG][img]http://kativ.eu/files/naviga/Pictures/2014_C1/Thumbs/DSC_1001.JPG[/img][/url] [url=http://kativ.eu/files/naviga/Pictures/2014_C1/DSC_1002.JPG][img]http://kativ.eu/files/naviga/Pictures/2014_C1/Thumbs/DSC_1002.JPG[/img][/url] [url=http://kativ.eu/files/naviga/Pictures/2014_C1/DSC_1159.JPG][img]http://kativ.eu/files/naviga/Pictures/2014_C1/Thumbs/DSC_1159.JPG[/img][/url] [url=http://kativ.eu/files/naviga/Pictures/2014_C1/DSC_1160.JPG][img]http://kativ.eu/files/naviga/Pictures/2014_C1/Thumbs/DSC_1160.JPG[/img][/url] [url=http://kativ.eu/files/naviga/Pictures/2014_C1/DSC_1161.JPG][img]http://kativ.eu/files/naviga/Pictures/2014_C1/Thumbs/DSC_1161.JPG[/img][/url] [url=http://kativ.eu/files/naviga/Pictures/2014_C1/DSC_1162.JPG][img]http://kativ.eu/files/naviga/Pictures/2014_C1/Thumbs/DSC_1162.JPG[/img][/url] [url=http://kativ.eu/files/naviga/Pictures/2014_C1/DSC_1163.JPG][img]http://kativ.eu/files/naviga/Pictures/2014_C1/Thumbs/DSC_1163.JPG[/img][/url] [url=http://kativ.eu/files/naviga/Pictures/2014_C1/DSC_1164.JPG][img]http://kativ.eu/files/naviga/Pictures/2014_C1/Thumbs/DSC_1164.JPG[/img][/url] [url=http://kativ.eu/files/naviga/Pictures/2014_C1/DSC_1165.JPG][img]http://kativ.eu/files/naviga/Pictures/2014_C1/Thumbs/DSC_1165.JPG[/img][/url] [url=http://kativ.eu/files/naviga/Pictures/2014_C1/DSC_1166.JPG][img]http://kativ.eu/files/naviga/Pictures/2014_C1/Thumbs/DSC_1166.JPG[/img][/url] [url=http://kativ.eu/files/naviga/Pictures/2014_C1/DSC_1167.JPG][img]http://kativ.eu/files/naviga/Pictures/2014_C1/Thumbs/DSC_1167.JPG[/img][/url] [url=http://kativ.eu/files/naviga/Pictures/2014_C1/DSC_1168.JPG][img]http://kativ.eu/files/naviga/Pictures/2014_C1/Thumbs/DSC_1168.JPG[/img][/url] [url=http://kativ.eu/files/naviga/Pictures/2014_C1/DSC_1169.JPG][img]http://kativ.eu/files/naviga/Pictures/2014_C1/Thumbs/DSC_1169.JPG[/img][/url] [url=http://kativ.eu/files/naviga/Pictures/2014_C1/DSC_1170.JPG][img]http://kativ.eu/files/naviga/Pictures/2014_C1/Thumbs/DSC_1170.JPG[/img][/url] [url=http://kativ.eu/files/naviga/Pictures/2014_C1/DSC_1171.JPG][img]http://kativ.eu/files/naviga/Pictures/2014_C1/Thumbs/DSC_1171.JPG[/img][/url] [url=http://kativ.eu/files/naviga/Pictures/2014_C1/DSC_1172.JPG][img]http://kativ.eu/files/naviga/Pictures/2014_C1/Thumbs/DSC_1172.JPG[/img][/url] [url=http://kativ.eu/files/naviga/Pictures/2014_C1/DSC_1173.JPG][img]http://kativ.eu/files/naviga/Pictures/2014_C1/Thumbs/DSC_1173.JPG[/img][/url] [url=http://kativ.eu/files/naviga/Pictures/2014_C1/DSC_1174.JPG][img]http://kativ.eu/files/naviga/Pictures/2014_C1/Thumbs/DSC_1174.JPG[/img][/url] [url=http://kativ.eu/files/naviga/Pictures/2014_C1/DSC_1175.JPG][img]http://kativ.eu/files/naviga/Pictures/2014_C1/Thumbs/DSC_1175.JPG[/img][/url] [url=http://kativ.eu/files/naviga/Pictures/2014_C1/DSC_1176.JPG][img]http://kativ.eu/files/naviga/Pictures/2014_C1/Thumbs/DSC_1176.JPG[/img][/url] [url=http://kativ.eu/files/naviga/Pictures/2014_C1/DSC_1177.JPG][img]http://kativ.eu/files/naviga/Pictures/2014_C1/Thumbs/DSC_1177.JPG[/img][/url] [url=http://kativ.eu/files/naviga/Pictures/2014_C1/DSC_1178.JPG][img]http://kativ.eu/files/naviga/Pictures/2014_C1/Thumbs/DSC_1178.JPG[/img][/url] [url=http://kativ.eu/files/naviga/Pictures/2014_C1/DSC_1179.JPG][img]http://kativ.eu/files/naviga/Pictures/2014_C1/Thumbs/DSC_1179.JPG[/img][/url] [url=http://kativ.eu/files/naviga/Pictures/2014_C1/DSC_1180.JPG][img]http://kativ.eu/files/naviga/Pictures/2014_C1/Thumbs/DSC_1180.JPG[/img][/url] [url=http://kativ.eu/files/naviga/Pictures/2014_C1/DSC_1181.JPG][img]http://kativ.eu/files/naviga/Pictures/2014_C1/Thumbs/DSC_1181.JPG[/img][/url]"}]
["[url=","http://kativ.eu/files/naviga/Pictures/2014_","C1","/","][img]","/Thumbs/","[/img][/url]","DSC_0982.JPG","[url=http://kativ.eu/files/naviga/Pictures/2014_C1/DSC_0982.JPG][img]http://kativ.eu/files/naviga/Pictures/2014_C1/Thumbs/DSC_0982.JPG[/img][/url]"]
["[url=","http://kativ.eu/files/naviga/Pictures/2014_","C1","/","][img]","/Thumbs/","[/img][/url]","DSC_0983.JPG","[url=http://kativ.eu/files/naviga/Pictures/2014_C1/DSC_0983.JPG][img]http://kativ.eu/files/naviga/Pictures/2014_C1/Thumbs/DSC_0983.JPG[/img][/url]"]
["[url=","http://kativ.eu/files/naviga/Pictures/2014_","C1","/","][img]","/Thumbs/","[/img][/url]","DSC_0984.JPG","[url=http://kativ.eu/files/naviga/Pictures/2014_C1/DSC_0984.JPG][img]http://kativ.eu/files/naviga/Pictures/2014_C1/Thumbs/DSC_0984.JPG[/img][/url]"]
["[url=","http://kativ.eu/files/naviga/Pictures/2014_","C1","/","][img]","/Thumbs/","[/img][/url]","DSC_0985.JPG","[url=http://kativ.eu/files/naviga/Pictures/2014_C1/DSC_0985.JPG][img]http://kativ.eu/files/naviga/Pictures/2014_C1/Thumbs/DSC_0985.JPG[/img][/url]"]
["[url=","http://kativ.eu/files/naviga/Pictures/2014_","C1","/","][img]","/Thumbs/","[/img][/url]","DSC_0986.JPG","[url=http://kativ.eu/files/naviga/Pictures/2014_C1/DSC_0986.JPG][img]http://kativ.eu/files/naviga/Pictures/2014_C1/Thumbs/DSC_0986.JPG[/img][/url]"]
["[url=","http://kativ.eu/files/naviga/Pictures/2014_","C1","/","][img]","/Thumbs/","[/img][/url]","DSC_0987.JPG","[url=http://kativ.eu/files/naviga/Pictures/2014_C1/DSC_0987.JPG][img]http://kativ.eu/files/naviga/Pictures/2014_C1/Thumbs/DSC_0987.JPG[/img][/url]"]
["[url=","http://kativ.eu/files/naviga/Pictures/2014_","C1","/","][img]","/Thumbs/","[/img][/url]","DSC_0988.JPG","[url=http://kativ.eu/files/naviga/Pictures/2014_C1/DSC_0988.JPG][img]http://kativ.eu/files/naviga/Pictures/2014_C1/Thumbs/DSC_0988.JPG[/img][/url]"]
["[url=","http://kativ.eu/files/naviga/Pictures/2014_","C1","/","][img]","/Thumbs/","[/img][/url]","DSC_0989.JPG","[url=http://kativ.eu/files/naviga/Pictures/2014_C1/DSC_0989.JPG][img]http://kativ.eu/files/naviga/Pictures/2014_C1/Thumbs/DSC_0989.JPG[/img][/url]"]
["[url=","http://kativ.eu/files/naviga/Pictures/2014_","C1","/","][img]","/Thumbs/","[/img][/url]","DSC_0990.JPG","[url=http://kativ.eu/files/naviga/Pictures/2014_C1/DSC_0990.JPG][img]http://kativ.eu/files/naviga/Pictures/2014_C1/Thumbs/DSC_0990.JPG[/img][/url]"]
["[url=","http://kativ.eu/files/naviga/Pictures/2014_","C1","/","][img]","/Thumbs/","[/img][/url]","DSC_0991.JPG","[url=http://kativ.eu/files/naviga/Pictures/2014_C1/DSC_0991.JPG][img]http://kativ.eu/files/naviga/Pictures/2014_C1/Thumbs/DSC_0991.JPG[/img][/url]"]
["[url=","http://kativ.eu/files/naviga/Pictures/2014_","C1","/","][img]","/Thumbs/","[/img][/url]","DSC_0992.JPG","[url=http://kativ.eu/files/naviga/Pictures/2014_C1/DSC_0992.JPG][img]http://kativ.eu/files/naviga/Pictures/2014_C1/Thumbs/DSC_0992.JPG[/img][/url]"]
["[url=","http://kativ.eu/files/naviga/Pictures/2014_","C1","/","][img]","/Thumbs/","[/img][/url]","DSC_0993.JPG","[url=http://kativ.eu/files/naviga/Pictures/2014_C1/DSC_0993.JPG][img]http://kativ.eu/files/naviga/Pictures/2014_C1/Thumbs/DSC_0993.JPG[/img][/url]"]
["[url=","http://kativ.eu/files/naviga/Pictures/2014_","C1","/","][img]","/Thumbs/","[/img][/url]","DSC_0994.JPG","[url=http://kativ.eu/files/naviga/Pictures/2014_C1/DSC_0994.JPG][img]http://kativ.eu/files/naviga/Pictures/2014_C1/Thumbs/DSC_0994.JPG[/img][/url]"]
["[url=","http://kativ.eu/files/naviga/Pictures/2014_","C1","/","][img]","/Thumbs/","[/img][/url]","DSC_0995.JPG","[url=http://kativ.eu/files/naviga/Pictures/2014_C1/DSC_0995.JPG][img]http://kativ.eu/files/naviga/Pictures/2014_C1/Thumbs/DSC_0995.JPG[/img][/url]"]
["[url=","http://kativ.eu/files/naviga/Pictures/2014_","C1","/","][img]","/Thumbs/","[/img][/url]","DSC_0996.JPG","[url=http://kativ.eu/files/naviga/Pictures/2014_C1/DSC_0996.JPG][img]http://kativ.eu/files/naviga/Pictures/2014_C1/Thumbs/DSC_0996.JPG[/img][/url]"]
["[url=","http://kativ.eu/files/naviga/Pictures/2014_","C1","/","][img]","/Thumbs/","[/img][/url]","DSC_0997.JPG","[url=http://kativ.eu/files/naviga/Pictures/2014_C1/DSC_0997.JPG][img]http://kativ.eu/files/naviga/Pictures/2014_C1/Thumbs/DSC_0997.JPG[/img][/url]"]
["[url=","http://kativ.eu/files/naviga/Pictures/2014_","C1","/","][img]","/Thumbs/","[/img][/url]","DSC_0998.JPG","[url=http://kativ.eu/files/naviga/Pictures/2014_C1/DSC_0998.JPG][img]http://kativ.eu/files/naviga/Pictures/2014_C1/Thumbs/DSC_0998.JPG[/img][/url]"]
["[url=","http://kativ.eu/files/naviga/Pictures/2014_","C1","/","][img]","/Thumbs/","[/img][/url]","DSC_0999.JPG","[url=http://kativ.eu/files/naviga/Pictures/2014_C1/DSC_0999.JPG][img]http://kativ.eu/files/naviga/Pictures/2014_C1/Thumbs/DSC_0999.JPG[/img][/url]"]
["[url=","http://kativ.eu/files/naviga/Pictures/2014_","C1","/","][img]","/Thumbs/","[/img][/url]","DSC_1000.JPG","[url=http://kativ.eu/files/naviga/Pictures/2014_C1/DSC_1000.JPG][img]http://kativ.eu/files/naviga/Pictures/2014_C1/Thumbs/DSC_1000.JPG[/img][/url]"]
["[url=","http://kativ.eu/files/naviga/Pictures/2014_","C1","/","][img]","/Thumbs/","[/img][/url]","DSC_1001.JPG","[url=http://kativ.eu/files/naviga/Pictures/2014_C1/DSC_1001.JPG][img]http://kativ.eu/files/naviga/Pictures/2014_C1/Thumbs/DSC_1001.JPG[/img][/url]"]
["[url=","http://kativ.eu/files/naviga/Pictures/2014_","C1","/","][img]","/Thumbs/","[/img][/url]","DSC_1002.JPG","[url=http://kativ.eu/files/naviga/Pictures/2014_C1/DSC_1002.JPG][img]http://kativ.eu/files/naviga/Pictures/2014_C1/Thumbs/DSC_1002.JPG[/img][/url]"]
["[url=","http://kativ.eu/files/naviga/Pictures/2014_","C1","/","][img]","/Thumbs/","[/img][/url]","DSC_1159.JPG","[url=http://kativ.eu/files/naviga/Pictures/2014_C1/DSC_1159.JPG][img]http://kativ.eu/files/naviga/Pictures/2014_C1/Thumbs/DSC_1159.JPG[/img][/url]"]
["[url=","http://kativ.eu/files/naviga/Pictures/2014_","C1","/","][img]","/Thumbs/","[/img][/url]","DSC_1160.JPG","[url=http://kativ.eu/files/naviga/Pictures/2014_C1/DSC_1160.JPG][img]http://kativ.eu/files/naviga/Pictures/2014_C1/Thumbs/DSC_1160.JPG[/img][/url]"]
["[url=","http://kativ.eu/files/naviga/Pictures/2014_","C1","/","][img]","/Thumbs/","[/img][/url]","DSC_1161.JPG","[url=http://kativ.eu/files/naviga/Pictures/2014_C1/DSC_1161.JPG][img]http://kativ.eu/files/naviga/Pictures/2014_C1/Thumbs/DSC_1161.JPG[/img][/url]"]
["[url=","http://kativ.eu/files/naviga/Pictures/2014_","C1","/","][img]","/Thumbs/","[/img][/url]","DSC_1162.JPG","[url=http://kativ.eu/files/naviga/Pictures/2014_C1/DSC_1162.JPG][img]http://kativ.eu/files/naviga/Pictures/2014_C1/Thumbs/DSC_1162.JPG[/img][/url]"]
["[url=","http://kativ.eu/files/naviga/Pictures/2014_","C1","/","][img]","/Thumbs/","[/img][/url]","DSC_1163.JPG","[url=http://kativ.eu/files/naviga/Pictures/2014_C1/DSC_1163.JPG][img]http://kativ.eu/files/naviga/Pictures/2014_C1/Thumbs/DSC_1163.JPG[/img][/url]"]
["[url=","http://kativ.eu/files/naviga/Pictures/2014_","C1","/","][img]","/Thumbs/","[/img][/url]","DSC_1164.JPG","[url=http://kativ.eu/files/naviga/Pictures/2014_C1/DSC_1164.JPG][img]http://kativ.eu/files/naviga/Pictures/2014_C1/Thumbs/DSC_1164.JPG[/img][/url]"]
["[url=","http://kativ.eu/files/naviga/Pictures/2014_","C1","/","][img]","/Thumbs/","[/img][/url]","DSC_1165.JPG","[url=http://kativ.eu/files/naviga/Pictures/2014_C1/DSC_1165.JPG][img]http://kativ.eu/files/naviga/Pictures/2014_C1/Thumbs/DSC_1165.JPG[/img][/url]"]
["[url=","http://kativ.eu/files/naviga/Pictures/2014_","C1","/","][img]","/Thumbs/","[/img][/url]","DSC_1166.JPG","[url=http://kativ.eu/files/naviga/Pictures/2014_C1/DSC_1166.JPG][img]http://kativ.eu/files/naviga/Pictures/2014_C1/Thumbs/DSC_1166.JPG[/img][/url]"]
["[url=","http://kativ.eu/files/naviga/Pictures/2014_","C1","/","][img]","/Thumbs/","[/img][/url]","DSC_1167.JPG","[url=http://kativ.eu/files/naviga/Pictures/2014_C1/DSC_1167.JPG][img]http://kativ.eu/files/naviga/Pictures/2014_C1/Thumbs/DSC_1167.JPG[/img][/url]"]
["[url=","http://kativ.eu/files/naviga/Pictures/2014_","C1","/","][img]","/Thumbs/","[/img][/url]","DSC_1168.JPG","[url=http://kativ.eu/files/naviga/Pictures/2014_C1/DSC_1168.JPG][img]http://kativ.eu/files/naviga/Pictures/2014_C1/Thumbs/DSC_1168.JPG[/img][/url]"]
["[url=","http://kativ.eu/files/naviga/Pictures/2014_","C1","/","][img]","/Thumbs/","[/img][/url]","DSC_1169.JPG","[url=http://kativ.eu/files/naviga/Pictures/2014_C1/DSC_1169.JPG][img]http://kativ.eu/files/naviga/Pictures/2014_C1/Thumbs/DSC_1169.JPG[/img][/url]"]
["[url=","http://kativ.eu/files/naviga/Pictures/2014_","C1","/","][img]","/Thumbs/","[/img][/url]","DSC_1170.JPG","[url=http://kativ.eu/files/naviga/Pictures/2014_C1/DSC_1170.JPG][img]http://kativ.eu/files/naviga/Pictures/2014_C1/Thumbs/DSC_1170.JPG[/img][/url]"]
["[url=","http://kativ.eu/files/naviga/Pictures/2014_","C1","/","][img]","/Thumbs/","[/img][/url]","DSC_1171.JPG","[url=http://kativ.eu/files/naviga/Pictures/2014_C1/DSC_1171.JPG][img]http://kativ.eu/files/naviga/Pictures/2014_C1/Thumbs/DSC_1171.JPG[/img][/url]"]
["[url=","http://kativ.eu/files/naviga/Pictures/2014_","C1","/","][img]","/Thumbs/","[/img][/url]","DSC_1172.JPG","[url=http://kativ.eu/files/naviga/Pictures/2014_C1/DSC_1172.JPG][img]http://kativ.eu/files/naviga/Pictures/2014_C1/Thumbs/DSC_1172.JPG[/img][/url]"]
["[url=","http://kativ.eu/files/naviga/Pictures/2014_","C1","/","][img]","/Thumbs/","[/img][/url]","DSC_1173.JPG","[url=http://kativ.eu/files/naviga/Pictures/2014_C1/DSC_1173.JPG][img]http://kativ.eu/files/naviga/Pictures/2014_C1/Thumbs/DSC_1173.JPG[/img][/url]"]
["[url=","http://kativ.eu/files/naviga/Pictures/2014_","C1","/","][img]","/Thumbs/","[/img][/url]","DSC_1174.JPG","[url=http://kativ.eu/files/naviga/Pictures/2014_C1/DSC_1174.JPG][img]http://kativ.eu/files/naviga/Pictures/2014_C1/Thumbs/DSC_1174.JPG[/img][/url]"]
["[url=","http://kativ.eu/files/naviga/Pictures/2014_","C1","/","][img]","/Thumbs/","[/img][/url]","DSC_1175.JPG","[url=http://kativ.eu/files/naviga/Pictures/2014_C1/DSC_1175.JPG][img]http://kativ.eu/files/naviga/Pictures/2014_C1/Thumbs/DSC_1175.JPG[/img][/url]"]
["[url=","http://kativ.eu/files/naviga/Pictures/2014_","C1","/","][img]","/Thumbs/","[/img][/url]","DSC_1176.JPG",{"$f":"CONCATENATE(A130,B130,C130,D130,H130,E130,B130,C130,F130,H130,G130)","v":"[url=http://kativ.eu/files/naviga/Pictures/2014_C1/DSC_1176.JPG][img]http://kativ.eu/files/naviga/Pictures/2014_C1/Thumbs/DSC_1176.JPG[/img][/url]"}]
["[url=","http://kativ.eu/files/naviga/Pictures/2014_","C1","/","][img]","/Thumbs/","[/img][/url]","DSC_1177.JPG","[url=http://kativ.eu/files/naviga/Pictures/2014_C1/DSC_1177.JPG][img]http://kativ.eu/files/naviga/Pictures/2014_C1/Thumbs/DSC_1177.JPG[/img][/url]"]
["[url=","http://kativ.eu/files/naviga/Pictures/2014_","C1","/","][img]","/Thumbs/","[/img][/url]","DSC_1178.JPG","[url=http://kativ.eu/files/naviga/Pictures/2014_C1/DSC_1178.JPG][img]http://kativ.eu/files/naviga/Pictures/2014_C1/Thumbs/DSC_1178.JPG[/img][/url]"]
["[url=","http://kativ.eu/files/naviga/Pictures/2014_","C1","/","][img]","/Thumbs/","[/img][/url]","DSC_1179.JPG","[url=http://kativ.eu/files/naviga/Pictures/2014_C1/DSC_1179.JPG][img]http://kativ.eu/files/naviga/Pictures/2014_C1/Thumbs/DSC_1179.JPG[/img][/url]"]
["[url=","http://kativ.eu/files/naviga/Pictures/2014_","C1","/","][img]","/Thumbs/","[/img][/url]","DSC_1180.JPG","[url=http://kativ.eu/files/naviga/Pictures/2014_C1/DSC_1180.JPG][img]http://kativ.eu/files/naviga/Pictures/2014_C1/Thumbs/DSC_1180.JPG[/img][/url]"]
["[url=","http://kativ.eu/files/naviga/Pictures/2014_","C1","/","][img]","/Thumbs/","[/img][/url]","DSC_1181.JPG","[url=http://kativ.eu/files/naviga/Pictures/2014_C1/DSC_1181.JPG][img]http://kativ.eu/files/naviga/Pictures/2014_C1/Thumbs/DSC_1181.JPG[/img][/url]"]

{"sheet":"C2","index":2,"n_rows":59,"n_cols":10,"rows_kept":59,"cut":false,"hidden":false,"merged":[]}
["[url=","http://kativ.eu/files/naviga/Pictures/2014_","C2","/","][img]","/Thumbs/","[/img][/url]","DSC_1188.JPG",{"$f":"CONCATENATE(A1,B1,C1,D1,H1,E1,B1,C1,F1,H1,G1)","v":"[url=http://kativ.eu/files/naviga/Pictures/2014_C2/DSC_1188.JPG][img]http://kativ.eu/files/naviga/Pictures/2014_C2/Thumbs/DSC_1188.JPG[/img][/url]"},{"$f":"ConcatRange(I1:I30,\" \")","v":"[url=http://kativ.eu/files/naviga/Pictures/2014_C2/DSC_1188.JPG][img]http://kativ.eu/files/naviga/Pictures/2014_C2/Thumbs/DSC_1188.JPG[/img][/url] [url=http://kativ.eu/files/naviga/Pictures/2014_C2/DSC_1189.JPG][img]http://kativ.eu/files/naviga/Pictures/2014_C2/Thumbs/DSC_1189.JPG[/img][/url] [url=http://kativ.eu/files/naviga/Pictures/2014_C2/DSC_1190.JPG][img]http://kativ.eu/files/naviga/Pictures/2014_C2/Thumbs/DSC_1190.JPG[/img][/url] [url=http://kativ.eu/files/naviga/Pictures/2014_C2/DSC_1191.JPG][img]http://kativ.eu/files/naviga/Pictures/2014_C2/Thumbs/DSC_1191.JPG[/img][/url] [url=http://kativ.eu/files/naviga/Pictures/2014_C2/DSC_1192.JPG][img]http://kativ.eu/files/naviga/Pictures/2014_C2/Thumbs/DSC_1192.JPG[/img][/url] [url=http://kativ.eu/files/naviga/Pictures/2014_C2/DSC_1193.JPG][img]http://kativ.eu/files/naviga/Pictures/2014_C2/Thumbs/DSC_1193.JPG[/img][/url] [url=http://kativ.eu/files/naviga/Pictures/2014_C2/DSC_1194.JPG][img]http://kativ.eu/files/naviga/Pictures/2014_C2/Thumbs/DSC_1194.JPG[/img][/url] [url=http://kativ.eu/files/naviga/Pictures/2014_C2/DSC_1195.JPG][img]http://kativ.eu/files/naviga/Pictures/2014_C2/Thumbs/DSC_1195.JPG[/img][/url] [url=http://kativ.eu/files/naviga/Pictures/2014_C2/DSC_1196.JPG][img]http://kativ.eu/files/naviga/Pictures/2014_C2/Thumbs/DSC_1196.JPG[/img][/url] [url=http://kativ.eu/files/naviga/Pictures/2014_C2/DSC_1197.JPG][img]http://kativ.eu/files/naviga/Pictures/2014_C2/Thumbs/DSC_1197.JPG[/img][/url] [url=http://kativ.eu/files/naviga/Pictures/2014_C2/DSC_1198.JPG][img]http://kativ.eu/files/naviga/Pictures/2014_C2/Thumbs/DSC_1198.JPG[/img][/url] [url=http://kativ.eu/files/naviga/Pictures/2014_C2/DSC_1199.JPG][img]http://kativ.eu/files/naviga/Pictures/2014_C2/Thumbs/DSC_1199.JPG[/img][/url] [url=http://kativ.eu/files/naviga/Pictures/2014_C2/DSC_1200.JPG][img]http://kativ.eu/files/naviga/Pictures/2014_C2/Thumbs/DSC_1200.JPG[/img][/url] [url=http://kativ.eu/files/naviga/Pictures/2014_C2/DSC_1201.JPG][img]http://kativ.eu/files/naviga/Pictures/2014_C2/Thumbs/DSC_1201.JPG[/img][/url] [url=http://kativ.eu/files/naviga/Pictures/2014_C2/DSC_1202.JPG][img]http://kativ.eu/files/naviga/Pictures/2014_C2/Thumbs/DSC_1202.JPG[/img][/url] [url=http://kativ.eu/files/naviga/Pictures/2014_C2/DSC_1203.JPG][img]http://kativ.eu/files/naviga/Pictures/2014_C2/Thumbs/DSC_1203.JPG[/img][/url] [url=http://kativ.eu/files/naviga/Pictures/2014_C2/DSC_1204.JPG][img]http://kativ.eu/files/naviga/Pictures/2014_C2/Thumbs/DSC_1204.JPG[/img][/url] [url=http://kativ.eu/files/naviga/Pictures/2014_C2/DSC_1205.JPG][img]http://kativ.eu/files/naviga/Pictures/2014_C2/Thumbs/DSC_1205.JPG[/img][/url] [url=http://kativ.eu/files/naviga/Pictures/2014_C2/DSC_1206.JPG][img]http://kativ.eu/files/naviga/Pictures/2014_C2/Thumbs/DSC_1206.JPG[/img][/url] [url=http://kativ.eu/files/naviga/Pictures/2014_C2/DSC_1207.JPG][img]http://kativ.eu/files/naviga/Pictures/2014_C2/Thumbs/DSC_1207.JPG[/img][/url] [url=http://kativ.eu/files/naviga/Pictures/2014_C2/DSC_1208.JPG][img]http://kativ.eu/files/naviga/Pictures/2014_C2/Thumbs/DSC_1208.JPG[/img][/url] [url=http://kativ.eu/files/naviga/Pictures/2014_C2/DSC_1209.JPG][img]http://kativ.eu/files/naviga/Pictures/2014_C2/Thumbs/DSC_1209.JPG[/img][/url] [url=http://kativ.eu/files/naviga/Pictures/2014_C2/DSC_1210.JPG][img]http://kativ.eu/files/naviga/Pictures/2014_C2/Thumbs/DSC_1210.JPG[/img][/url] [url=http://kativ.eu/files/naviga/Pictures/2014_C2/DSC_1211.JPG][img]http://kativ.eu/files/naviga/Pictures/2014_C2/Thumbs/DSC_1211.JPG[/img][/url] [url=http://kativ.eu/files/naviga/Pictures/2014_C2/DSC_1212.JPG][img]http://kativ.eu/files/naviga/Pictures/2014_C2/Thumbs/DSC_1212.JPG[/img][/url] [url=http://kativ.eu/files/naviga/Pictures/2014_C2/DSC_1213.JPG][img]http://kativ.eu/files/naviga/Pictures/2014_C2/Thumbs/DSC_1213.JPG[/img][/url] [url=http://kativ.eu/files/naviga/Pictures/2014_C2/DSC_1214.JPG][img]http://kativ.eu/files/naviga/Pictures/2014_C2/Thumbs/DSC_1214.JPG[/img][/url] [url=http://kativ.eu/files/naviga/Pictures/2014_C2/DSC_1215.JPG][img]http://kativ.eu/files/naviga/Pictures/2014_C2/Thumbs/DSC_1215.JPG[/img][/url] [url=http://kativ.eu/files/naviga/Pictures/2014_C2/DSC_1216.JPG][img]http://kativ.eu/files/naviga/Pictures/2014_C2/Thumbs/DSC_1216.JPG[/img][/url] [url=http://kativ.eu/files/naviga/Pictures/2014_C2/DSC_1231.JPG][img]http://kativ.eu/files/naviga/Pictures/2014_C2/Thumbs/DSC_1231.JPG[/img][/url]"}]
["[url=","http://kativ.eu/files/naviga/Pictures/2014_","C2","/","][img]","/Thumbs/","[/img][/url]","DSC_1189.JPG",{"$f":"CONCATENATE(A2,B2,C2,D2,H2,E2,B2,C2,F2,H2,G2)","v":"[url=http://kativ.eu/files/naviga/Pictures/2014_C2/DSC_1189.JPG][img]http://kativ.eu/files/naviga/Pictures/2014_C2/Thumbs/DSC_1189.JPG[/img][/url]"}]
["[url=","http://kativ.eu/files/naviga/Pictures/2014_","C2","/","][img]","/Thumbs/","[/img][/url]","DSC_1190.JPG","[url=http://kativ.eu/files/naviga/Pictures/2014_C2/DSC_1190.JPG][img]http://kativ.eu/files/naviga/Pictures/2014_C2/Thumbs/DSC_1190.JPG[/img][/url]"]
["[url=","http://kativ.eu/files/naviga/Pictures/2014_","C2","/","][img]","/Thumbs/","[/img][/url]","DSC_1191.JPG","[url=http://kativ.eu/files/naviga/Pictures/2014_C2/DSC_1191.JPG][img]http://kativ.eu/files/naviga/Pictures/2014_C2/Thumbs/DSC_1191.JPG[/img][/url]"]
["[url=","http://kativ.eu/files/naviga/Pictures/2014_","C2","/","][img]","/Thumbs/","[/img][/url]","DSC_1192.JPG","[url=http://kativ.eu/files/naviga/Pictures/2014_C2/DSC_1192.JPG][img]http://kativ.eu/files/naviga/Pictures/2014_C2/Thumbs/DSC_1192.JPG[/img][/url]"]
["[url=","http://kativ.eu/files/naviga/Pictures/2014_","C2","/","][img]","/Thumbs/","[/img][/url]","DSC_1193.JPG","[url=http://kativ.eu/files/naviga/Pictures/2014_C2/DSC_1193.JPG][img]http://kativ.eu/files/naviga/Pictures/2014_C2/Thumbs/DSC_1193.JPG[/img][/url]"]
["[url=","http://kativ.eu/files/naviga/Pictures/2014_","C2","/","][img]","/Thumbs/","[/img][/url]","DSC_1194.JPG","[url=http://kativ.eu/files/naviga/Pictures/2014_C2/DSC_1194.JPG][img]http://kativ.eu/files/naviga/Pictures/2014_C2/Thumbs/DSC_1194.JPG[/img][/url]"]
["[url=","http://kativ.eu/files/naviga/Pictures/2014_","C2","/","][img]","/Thumbs/","[/img][/url]","DSC_1195.JPG","[url=http://kativ.eu/files/naviga/Pictures/2014_C2/DSC_1195.JPG][img]http://kativ.eu/files/naviga/Pictures/2014_C2/Thumbs/DSC_1195.JPG[/img][/url]"]
["[url=","http://kativ.eu/files/naviga/Pictures/2014_","C2","/","][img]","/Thumbs/","[/img][/url]","DSC_1196.JPG","[url=http://kativ.eu/files/naviga/Pictures/2014_C2/DSC_1196.JPG][img]http://kativ.eu/files/naviga/Pictures/2014_C2/Thumbs/DSC_1196.JPG[/img][/url]"]
["[url=","http://kativ.eu/files/naviga/Pictures/2014_","C2","/","][img]","/Thumbs/","[/img][/url]","DSC_1197.JPG","[url=http://kativ.eu/files/naviga/Pictures/2014_C2/DSC_1197.JPG][img]http://kativ.eu/files/naviga/Pictures/2014_C2/Thumbs/DSC_1197.JPG[/img][/url]"]
["[url=","http://kativ.eu/files/naviga/Pictures/2014_","C2","/","][img]","/Thumbs/","[/img][/url]","DSC_1198.JPG","[url=http://kativ.eu/files/naviga/Pictures/2014_C2/DSC_1198.JPG][img]http://kativ.eu/files/naviga/Pictures/2014_C2/Thumbs/DSC_1198.JPG[/img][/url]"]
["[url=","http://kativ.eu/files/naviga/Pictures/2014_","C2","/","][img]","/Thumbs/","[/img][/url]","DSC_1199.JPG","[url=http://kativ.eu/files/naviga/Pictures/2014_C2/DSC_1199.JPG][img]http://kativ.eu/files/naviga/Pictures/2014_C2/Thumbs/DSC_1199.JPG[/img][/url]"]
["[url=","http://kativ.eu/files/naviga/Pictures/2014_","C2","/","][img]","/Thumbs/","[/img][/url]","DSC_1200.JPG","[url=http://kativ.eu/files/naviga/Pictures/2014_C2/DSC_1200.JPG][img]http://kativ.eu/files/naviga/Pictures/2014_C2/Thumbs/DSC_1200.JPG[/img][/url]"]
["[url=","http://kativ.eu/files/naviga/Pictures/2014_","C2","/","][img]","/Thumbs/","[/img][/url]","DSC_1201.JPG","[url=http://kativ.eu/files/naviga/Pictures/2014_C2/DSC_1201.JPG][img]http://kativ.eu/files/naviga/Pictures/2014_C2/Thumbs/DSC_1201.JPG[/img][/url]"]
["[url=","http://kativ.eu/files/naviga/Pictures/2014_","C2","/","][img]","/Thumbs/","[/img][/url]","DSC_1202.JPG","[url=http://kativ.eu/files/naviga/Pictures/2014_C2/DSC_1202.JPG][img]http://kativ.eu/files/naviga/Pictures/2014_C2/Thumbs/DSC_1202.JPG[/img][/url]"]
["[url=","http://kativ.eu/files/naviga/Pictures/2014_","C2","/","][img]","/Thumbs/","[/img][/url]","DSC_1203.JPG","[url=http://kativ.eu/files/naviga/Pictures/2014_C2/DSC_1203.JPG][img]http://kativ.eu/files/naviga/Pictures/2014_C2/Thumbs/DSC_1203.JPG[/img][/url]"]
["[url=","http://kativ.eu/files/naviga/Pictures/2014_","C2","/","][img]","/Thumbs/","[/img][/url]","DSC_1204.JPG","[url=http://kativ.eu/files/naviga/Pictures/2014_C2/DSC_1204.JPG][img]http://kativ.eu/files/naviga/Pictures/2014_C2/Thumbs/DSC_1204.JPG[/img][/url]"]
["[url=","http://kativ.eu/files/naviga/Pictures/2014_","C2","/","][img]","/Thumbs/","[/img][/url]","DSC_1205.JPG","[url=http://kativ.eu/files/naviga/Pictures/2014_C2/DSC_1205.JPG][img]http://kativ.eu/files/naviga/Pictures/2014_C2/Thumbs/DSC_1205.JPG[/img][/url]"]
["[url=","http://kativ.eu/files/naviga/Pictures/2014_","C2","/","][img]","/Thumbs/","[/img][/url]","DSC_1206.JPG","[url=http://kativ.eu/files/naviga/Pictures/2014_C2/DSC_1206.JPG][img]http://kativ.eu/files/naviga/Pictures/2014_C2/Thumbs/DSC_1206.JPG[/img][/url]"]
["[url=","http://kativ.eu/files/naviga/Pictures/2014_","C2","/","][img]","/Thumbs/","[/img][/url]","DSC_1207.JPG","[url=http://kativ.eu/files/naviga/Pictures/2014_C2/DSC_1207.JPG][img]http://kativ.eu/files/naviga/Pictures/2014_C2/Thumbs/DSC_1207.JPG[/img][/url]"]
["[url=","http://kativ.eu/files/naviga/Pictures/2014_","C2","/","][img]","/Thumbs/","[/img][/url]","DSC_1208.JPG","[url=http://kativ.eu/files/naviga/Pictures/2014_C2/DSC_1208.JPG][img]http://kativ.eu/files/naviga/Pictures/2014_C2/Thumbs/DSC_1208.JPG[/img][/url]"]
["[url=","http://kativ.eu/files/naviga/Pictures/2014_","C2","/","][img]","/Thumbs/","[/img][/url]","DSC_1209.JPG","[url=http://kativ.eu/files/naviga/Pictures/2014_C2/DSC_1209.JPG][img]http://kativ.eu/files/naviga/Pictures/2014_C2/Thumbs/DSC_1209.JPG[/img][/url]"]
["[url=","http://kativ.eu/files/naviga/Pictures/2014_","C2","/","][img]","/Thumbs/","[/img][/url]","DSC_1210.JPG","[url=http://kativ.eu/files/naviga/Pictures/2014_C2/DSC_1210.JPG][img]http://kativ.eu/files/naviga/Pictures/2014_C2/Thumbs/DSC_1210.JPG[/img][/url]"]
["[url=","http://kativ.eu/files/naviga/Pictures/2014_","C2","/","][img]","/Thumbs/","[/img][/url]","DSC_1211.JPG","[url=http://kativ.eu/files/naviga/Pictures/2014_C2/DSC_1211.JPG][img]http://kativ.eu/files/naviga/Pictures/2014_C2/Thumbs/DSC_1211.JPG[/img][/url]"]
["[url=","http://kativ.eu/files/naviga/Pictures/2014_","C2","/","][img]","/Thumbs/","[/img][/url]","DSC_1212.JPG","[url=http://kativ.eu/files/naviga/Pictures/2014_C2/DSC_1212.JPG][img]http://kativ.eu/files/naviga/Pictures/2014_C2/Thumbs/DSC_1212.JPG[/img][/url]"]
["[url=","http://kativ.eu/files/naviga/Pictures/2014_","C2","/","][img]","/Thumbs/","[/img][/url]","DSC_1213.JPG","[url=http://kativ.eu/files/naviga/Pictures/2014_C2/DSC_1213.JPG][img]http://kativ.eu/files/naviga/Pictures/2014_C2/Thumbs/DSC_1213.JPG[/img][/url]"]
["[url=","http://kativ.eu/files/naviga/Pictures/2014_","C2","/","][img]","/Thumbs/","[/img][/url]","DSC_1214.JPG","[url=http://kativ.eu/files/naviga/Pictures/2014_C2/DSC_1214.JPG][img]http://kativ.eu/files/naviga/Pictures/2014_C2/Thumbs/DSC_1214.JPG[/img][/url]"]
["[url=","http://kativ.eu/files/naviga/Pictures/2014_","C2","/","][img]","/Thumbs/","[/img][/url]","DSC_1215.JPG","[url=http://kativ.eu/files/naviga/Pictures/2014_C2/DSC_1215.JPG][img]http://kativ.eu/files/naviga/Pictures/2014_C2/Thumbs/DSC_1215.JPG[/img][/url]"]
["[url=","http://kativ.eu/files/naviga/Pictures/2014_","C2","/","][img]","/Thumbs/","[/img][/url]","DSC_1216.JPG","[url=http://kativ.eu/files/naviga/Pictures/2014_C2/DSC_1216.JPG][img]http://kativ.eu/files/naviga/Pictures/2014_C2/Thumbs/DSC_1216.JPG[/img][/url]"]
["[url=","http://kativ.eu/files/naviga/Pictures/2014_","C2","/","][img]","/Thumbs/","[/img][/url]","DSC_1231.JPG","[url=http://kativ.eu/files/naviga/Pictures/2014_C2/DSC_1231.JPG][img]http://kativ.eu/files/naviga/Pictures/2014_C2/Thumbs/DSC_1231.JPG[/img][/url]"]
["[url=","http://kativ.eu/files/naviga/Pictures/2014_","C2","/","][img]","/Thumbs/","[/img][/url]","DSC_1232.JPG","[url=http://kativ.eu/files/naviga/Pictures/2014_C2/DSC_1232.JPG][img]http://kativ.eu/files/naviga/Pictures/2014_C2/Thumbs/DSC_1232.JPG[/img][/url]",{"$f":"ConcatRange(I31:I59,\" \")","v":"[url=http://kativ.eu/files/naviga/Pictures/2014_C2/DSC_1232.JPG][img]http://kativ.eu/files/naviga/Pictures/2014_C2/Thumbs/DSC_1232.JPG[/img][/url] [url=http://kativ.eu/files/naviga/Pictures/2014_C2/DSC_1233.JPG][img]http://kativ.eu/files/naviga/Pictures/2014_C2/Thumbs/DSC_1233.JPG[/img][/url] [url=http://kativ.eu/files/naviga/Pictures/2014_C2/DSC_1234.JPG][img]http://kativ.eu/files/naviga/Pictures/2014_C2/Thumbs/DSC_1234.JPG[/img][/url] [url=http://kativ.eu/files/naviga/Pictures/2014_C2/DSC_1243.JPG][img]http://kativ.eu/files/naviga/Pictures/2014_C2/Thumbs/DSC_1243.JPG[/img][/url] [url=http://kativ.eu/files/naviga/Pictures/2014_C2/DSC_1244.JPG][img]http://kativ.eu/files/naviga/Pictures/2014_C2/Thumbs/DSC_1244.JPG[/img][/url] [url=http://kativ.eu/files/naviga/Pictures/2014_C2/DSC_1245.JPG][img]http://kativ.eu/files/naviga/Pictures/2014_C2/Thumbs/DSC_1245.JPG[/img][/url] [url=http://kativ.eu/files/naviga/Pictures/2014_C2/DSC_1246.JPG][img]http://kativ.eu/files/naviga/Pictures/2014_C2/Thumbs/DSC_1246.JPG[/img][/url] [url=http://kativ.eu/files/naviga/Pictures/2014_C2/DSC_1247.JPG][img]http://kativ.eu/files/naviga/Pictures/2014_C2/Thumbs/DSC_1247.JPG[/img][/url] [url=http://kativ.eu/files/naviga/Pictures/2014_C2/DSC_1250.JPG][img]http://kativ.eu/files/naviga/Pictures/2014_C2/Thumbs/DSC_1250.JPG[/img][/url] [url=http://kativ.eu/files/naviga/Pictures/2014_C2/DSC_1251.JPG][img]http://kativ.eu/files/naviga/Pictures/2014_C2/Thumbs/DSC_1251.JPG[/img][/url] [url=http://kativ.eu/files/naviga/Pictures/2014_C2/DSC_1252.JPG][img]http://kativ.eu/files/naviga/Pictures/2014_C2/Thumbs/DSC_1252.JPG[/img][/url] [url=http://kativ.eu/files/naviga/Pictures/2014_C2/DSC_1253.JPG][img]http://kativ.eu/files/naviga/Pictures/2014_C2/Thumbs/DSC_1253.JPG[/img][/url] [url=http://kativ.eu/files/naviga/Pictures/2014_C2/DSC_1254.JPG][img]http://kativ.eu/files/naviga/Pictures/2014_C2/Thumbs/DSC_1254.JPG[/img][/url] [url=http://kativ.eu/files/naviga/Pictures/2014_C2/DSC_1255.JPG][img]http://kativ.eu/files/naviga/Pictures/2014_C2/Thumbs/DSC_1255.JPG[/img][/url] [url=http://kativ.eu/files/naviga/Pictures/2014_C2/DSC_1256.JPG][img]http://kativ.eu/files/naviga/Pictures/2014_C2/Thumbs/DSC_1256.JPG[/img][/url] [url=http://kativ.eu/files/naviga/Pictures/2014_C2/DSC_1257.JPG][img]http://kativ.eu/files/naviga/Pictures/2014_C2/Thumbs/DSC_1257.JPG[/img][/url] [url=http://kativ.eu/files/naviga/Pictures/2014_C2/DSC_1258.JPG][img]http://kativ.eu/files/naviga/Pictures/2014_C2/Thumbs/DSC_1258.JPG[/img][/url] [url=http://kativ.eu/files/naviga/Pictures/2014_C2/DSC_1259.JPG][img]http://kativ.eu/files/naviga/Pictures/2014_C2/Thumbs/DSC_1259.JPG[/img][/url] [url=http://kativ.eu/files/naviga/Pictures/2014_C2/DSC_1260.JPG][img]http://kativ.eu/files/naviga/Pictures/2014_C2/Thumbs/DSC_1260.JPG[/img][/url] [url=http://kativ.eu/files/naviga/Pictures/2014_C2/DSC_1261.JPG][img]http://kativ.eu/files/naviga/Pictures/2014_C2/Thumbs/DSC_1261.JPG[/img][/url] [url=http://kativ.eu/files/naviga/Pictures/2014_C2/DSC_1262.JPG][img]http://kativ.eu/files/naviga/Pictures/2014_C2/Thumbs/DSC_1262.JPG[/img][/url] [url=http://kativ.eu/files/naviga/Pictures/2014_C2/DSC_1263.JPG][img]http://kativ.eu/files/naviga/Pictures/2014_C2/Thumbs/DSC_1263.JPG[/img][/url] [url=http://kativ.eu/files/naviga/Pictures/2014_C2/DSC_1264.JPG][img]http://kativ.eu/files/naviga/Pictures/2014_C2/Thumbs/DSC_1264.JPG[/img][/url] [url=http://kativ.eu/files/naviga/Pictures/2014_C2/DSC_1265.JPG][img]http://kativ.eu/files/naviga/Pictures/2014_C2/Thumbs/DSC_1265.JPG[/img][/url] [url=http://kativ.eu/files/naviga/Pictures/2014_C2/DSC_1266.JPG][img]http://kativ.eu/files/naviga/Pictures/2014_C2/Thumbs/DSC_1266.JPG[/img][/url] [url=http://kativ.eu/files/naviga/Pictures/2014_C2/DSC_1267.JPG][img]http://kativ.eu/files/naviga/Pictures/2014_C2/Thumbs/DSC_1267.JPG[/img][/url] [url=http://kativ.eu/files/naviga/Pictures/2014_C2/DSC_1268.JPG][img]http://kativ.eu/files/naviga/Pictures/2014_C2/Thumbs/DSC_1268.JPG[/img][/url] [url=http://kativ.eu/files/naviga/Pictures/2014_C2/DSC_1269.JPG][img]http://kativ.eu/files/naviga/Pictures/2014_C2/Thumbs/DSC_1269.JPG[/img][/url] [url=http://kativ.eu/files/naviga/Pictures/2014_C2/DSC_1270.JPG][img]http://kativ.eu/files/naviga/Pictures/2014_C2/Thumbs/DSC_1270.JPG[/img][/url]"}]
["[url=","http://kativ.eu/files/naviga/Pictures/2014_","C2","/","][img]","/Thumbs/","[/img][/url]","DSC_1233.JPG","[url=http://kativ.eu/files/naviga/Pictures/2014_C2/DSC_1233.JPG][img]http://kativ.eu/files/naviga/Pictures/2014_C2/Thumbs/DSC_1233.JPG[/img][/url]"]
["[url=","http://kativ.eu/files/naviga/Pictures/2014_","C2","/","][img]","/Thumbs/","[/img][/url]","DSC_1234.JPG","[url=http://kativ.eu/files/naviga/Pictures/2014_C2/DSC_1234.JPG][img]http://kativ.eu/files/naviga/Pictures/2014_C2/Thumbs/DSC_1234.JPG[/img][/url]"]
["[url=","http://kativ.eu/files/naviga/Pictures/2014_","C2","/","][img]","/Thumbs/","[/img][/url]","DSC_1243.JPG","[url=http://kativ.eu/files/naviga/Pictures/2014_C2/DSC_1243.JPG][img]http://kativ.eu/files/naviga/Pictures/2014_C2/Thumbs/DSC_1243.JPG[/img][/url]"]
["[url=","http://kativ.eu/files/naviga/Pictures/2014_","C2","/","][img]","/Thumbs/","[/img][/url]","DSC_1244.JPG","[url=http://kativ.eu/files/naviga/Pictures/2014_C2/DSC_1244.JPG][img]http://kativ.eu/files/naviga/Pictures/2014_C2/Thumbs/DSC_1244.JPG[/img][/url]"]
["[url=","http://kativ.eu/files/naviga/Pictures/2014_","C2","/","][img]","/Thumbs/","[/img][/url]","DSC_1245.JPG","[url=http://kativ.eu/files/naviga/Pictures/2014_C2/DSC_1245.JPG][img]http://kativ.eu/files/naviga/Pictures/2014_C2/Thumbs/DSC_1245.JPG[/img][/url]"]
["[url=","http://kativ.eu/files/naviga/Pictures/2014_","C2","/","][img]","/Thumbs/","[/img][/url]","DSC_1246.JPG","[url=http://kativ.eu/files/naviga/Pictures/2014_C2/DSC_1246.JPG][img]http://kativ.eu/files/naviga/Pictures/2014_C2/Thumbs/DSC_1246.JPG[/img][/url]"]
["[url=","http://kativ.eu/files/naviga/Pictures/2014_","C2","/","][img]","/Thumbs/","[/img][/url]","DSC_1247.JPG","[url=http://kativ.eu/files/naviga/Pictures/2014_C2/DSC_1247.JPG][img]http://kativ.eu/files/naviga/Pictures/2014_C2/Thumbs/DSC_1247.JPG[/img][/url]"]
["[url=","http://kativ.eu/files/naviga/Pictures/2014_","C2","/","][img]","/Thumbs/","[/img][/url]","DSC_1250.JPG","[url=http://kativ.eu/files/naviga/Pictures/2014_C2/DSC_1250.JPG][img]http://kativ.eu/files/naviga/Pictures/2014_C2/Thumbs/DSC_1250.JPG[/img][/url]"]
["[url=","http://kativ.eu/files/naviga/Pictures/2014_","C2","/","][img]","/Thumbs/","[/img][/url]","DSC_1251.JPG","[url=http://kativ.eu/files/naviga/Pictures/2014_C2/DSC_1251.JPG][img]http://kativ.eu/files/naviga/Pictures/2014_C2/Thumbs/DSC_1251.JPG[/img][/url]"]
["[url=","http://kativ.eu/files/naviga/Pictures/2014_","C2","/","][img]","/Thumbs/","[/img][/url]","DSC_1252.JPG","[url=http://kativ.eu/files/naviga/Pictures/2014_C2/DSC_1252.JPG][img]http://kativ.eu/files/naviga/Pictures/2014_C2/Thumbs/DSC_1252.JPG[/img][/url]"]
["[url=","http://kativ.eu/files/naviga/Pictures/2014_","C2","/","][img]","/Thumbs/","[/img][/url]","DSC_1253.JPG","[url=http://kativ.eu/files/naviga/Pictures/2014_C2/DSC_1253.JPG][img]http://kativ.eu/files/naviga/Pictures/2014_C2/Thumbs/DSC_1253.JPG[/img][/url]"]
["[url=","http://kativ.eu/files/naviga/Pictures/2014_","C2","/","][img]","/Thumbs/","[/img][/url]","DSC_1254.JPG","[url=http://kativ.eu/files/naviga/Pictures/2014_C2/DSC_1254.JPG][img]http://kativ.eu/files/naviga/Pictures/2014_C2/Thumbs/DSC_1254.JPG[/img][/url]"]
["[url=","http://kativ.eu/files/naviga/Pictures/2014_","C2","/","][img]","/Thumbs/","[/img][/url]","DSC_1255.JPG","[url=http://kativ.eu/files/naviga/Pictures/2014_C2/DSC_1255.JPG][img]http://kativ.eu/files/naviga/Pictures/2014_C2/Thumbs/DSC_1255.JPG[/img][/url]"]
["[url=","http://kativ.eu/files/naviga/Pictures/2014_","C2","/","][img]","/Thumbs/","[/img][/url]","DSC_1256.JPG","[url=http://kativ.eu/files/naviga/Pictures/2014_C2/DSC_1256.JPG][img]http://kativ.eu/files/naviga/Pictures/2014_C2/Thumbs/DSC_1256.JPG[/img][/url]"]
["[url=","http://kativ.eu/files/naviga/Pictures/2014_","C2","/","][img]","/Thumbs/","[/img][/url]","DSC_1257.JPG","[url=http://kativ.eu/files/naviga/Pictures/2014_C2/DSC_1257.JPG][img]http://kativ.eu/files/naviga/Pictures/2014_C2/Thumbs/DSC_1257.JPG[/img][/url]"]
["[url=","http://kativ.eu/files/naviga/Pictures/2014_","C2","/","][img]","/Thumbs/","[/img][/url]","DSC_1258.JPG","[url=http://kativ.eu/files/naviga/Pictures/2014_C2/DSC_1258.JPG][img]http://kativ.eu/files/naviga/Pictures/2014_C2/Thumbs/DSC_1258.JPG[/img][/url]"]
["[url=","http://kativ.eu/files/naviga/Pictures/2014_","C2","/","][img]","/Thumbs/","[/img][/url]","DSC_1259.JPG","[url=http://kativ.eu/files/naviga/Pictures/2014_C2/DSC_1259.JPG][img]http://kativ.eu/files/naviga/Pictures/2014_C2/Thumbs/DSC_1259.JPG[/img][/url]"]
["[url=","http://kativ.eu/files/naviga/Pictures/2014_","C2","/","][img]","/Thumbs/","[/img][/url]","DSC_1260.JPG","[url=http://kativ.eu/files/naviga/Pictures/2014_C2/DSC_1260.JPG][img]http://kativ.eu/files/naviga/Pictures/2014_C2/Thumbs/DSC_1260.JPG[/img][/url]"]
["[url=","http://kativ.eu/files/naviga/Pictures/2014_","C2","/","][img]","/Thumbs/","[/img][/url]","DSC_1261.JPG","[url=http://kativ.eu/files/naviga/Pictures/2014_C2/DSC_1261.JPG][img]http://kativ.eu/files/naviga/Pictures/2014_C2/Thumbs/DSC_1261.JPG[/img][/url]"]
["[url=","http://kativ.eu/files/naviga/Pictures/2014_","C2","/","][img]","/Thumbs/","[/img][/url]","DSC_1262.JPG","[url=http://kativ.eu/files/naviga/Pictures/2014_C2/DSC_1262.JPG][img]http://kativ.eu/files/naviga/Pictures/2014_C2/Thumbs/DSC_1262.JPG[/img][/url]"]
["[url=","http://kativ.eu/files/naviga/Pictures/2014_","C2","/","][img]","/Thumbs/","[/img][/url]","DSC_1263.JPG","[url=http://kativ.eu/files/naviga/Pictures/2014_C2/DSC_1263.JPG][img]http://kativ.eu/files/naviga/Pictures/2014_C2/Thumbs/DSC_1263.JPG[/img][/url]"]
["[url=","http://kativ.eu/files/naviga/Pictures/2014_","C2","/","][img]","/Thumbs/","[/img][/url]","DSC_1264.JPG","[url=http://kativ.eu/files/naviga/Pictures/2014_C2/DSC_1264.JPG][img]http://kativ.eu/files/naviga/Pictures/2014_C2/Thumbs/DSC_1264.JPG[/img][/url]"]
["[url=","http://kativ.eu/files/naviga/Pictures/2014_","C2","/","][img]","/Thumbs/","[/img][/url]","DSC_1265.JPG","[url=http://kativ.eu/files/naviga/Pictures/2014_C2/DSC_1265.JPG][img]http://kativ.eu/files/naviga/Pictures/2014_C2/Thumbs/DSC_1265.JPG[/img][/url]"]
["[url=","http://kativ.eu/files/naviga/Pictures/2014_","C2","/","][img]","/Thumbs/","[/img][/url]","DSC_1266.JPG","[url=http://kativ.eu/files/naviga/Pictures/2014_C2/DSC_1266.JPG][img]http://kativ.eu/files/naviga/Pictures/2014_C2/Thumbs/DSC_1266.JPG[/img][/url]"]
["[url=","http://kativ.eu/files/naviga/Pictures/2014_","C2","/","][img]","/Thumbs/","[/img][/url]","DSC_1267.JPG","[url=http://kativ.eu/files/naviga/Pictures/2014_C2/DSC_1267.JPG][img]http://kativ.eu/files/naviga/Pictures/2014_C2/Thumbs/DSC_1267.JPG[/img][/url]"]
["[url=","http://kativ.eu/files/naviga/Pictures/2014_","C2","/","][img]","/Thumbs/","[/img][/url]","DSC_1268.JPG","[url=http://kativ.eu/files/naviga/Pictures/2014_C2/DSC_1268.JPG][img]http://kativ.eu/files/naviga/Pictures/2014_C2/Thumbs/DSC_1268.JPG[/img][/url]"]
["[url=","http://kativ.eu/files/naviga/Pictures/2014_","C2","/","][img]","/Thumbs/","[/img][/url]","DSC_1269.JPG","[url=http://kativ.eu/files/naviga/Pictures/2014_C2/DSC_1269.JPG][img]http://kativ.eu/files/naviga/Pictures/2014_C2/Thumbs/DSC_1269.JPG[/img][/url]"]
["[url=","http://kativ.eu/files/naviga/Pictures/2014_","C2","/","][img]","/Thumbs/","[/img][/url]","DSC_1270.JPG","[url=http://kativ.eu/files/naviga/Pictures/2014_C2/DSC_1270.JPG][img]http://kativ.eu/files/naviga/Pictures/2014_C2/Thumbs/DSC_1270.JPG[/img][/url]"]

{"sheet":"C3","index":3,"n_rows":179,"n_cols":10,"rows_kept":179,"cut":false,"hidden":false,"merged":[]}
["[url=","http://kativ.eu/files/naviga/Pictures/2014_","C3","/","][img]","/Thumbs/","[/img][/url]","DSC_0634.JPG",{"$f":"CONCATENATE(A1,B1,C1,D1,H1,E1,B1,C1,F1,H1,G1)","v":"[url=http://kativ.eu/files/naviga/Pictures/2014_C3/DSC_0634.JPG][img]http://kativ.eu/files/naviga/Pictures/2014_C3/Thumbs/DSC_0634.JPG[/img][/url]"},{"$f":"ConcatRange(I1:I45,\" \")","v":"[url=http://kativ.eu/files/naviga/Pictures/2014_C3/DSC_0634.JPG][img]http://kativ.eu/files/naviga/Pictures/2014_C3/Thumbs/DSC_0634.JPG[/img][/url] [url=http://kativ.eu/files/naviga/Pictures/2014_C3/DSC_0635.JPG][img]http://kativ.eu/files/naviga/Pictures/2014_C3/Thumbs/DSC_0635.JPG[/img][/url] [url=http://kativ.eu/files/naviga/Pictures/2014_C3/DSC_0636.JPG][img]http://kativ.eu/files/naviga/Pictures/2014_C3/Thumbs/DSC_0636.JPG[/img][/url] [url=http://kativ.eu/files/naviga/Pictures/2014_C3/DSC_0669.JPG][img]http://kativ.eu/files/naviga/Pictures/2014_C3/Thumbs/DSC_0669.JPG[/img][/url] [url=http://kativ.eu/files/naviga/Pictures/2014_C3/DSC_0670.JPG][img]http://kativ.eu/files/naviga/Pictures/2014_C3/Thumbs/DSC_0670.JPG[/img][/url] [url=http://kativ.eu/files/naviga/Pictures/2014_C3/DSC_0671.JPG][img]http://kativ.eu/files/naviga/Pictures/2014_C3/Thumbs/DSC_0671.JPG[/img][/url] [url=http://kativ.eu/files/naviga/Pictures/2014_C3/DSC_0672.JPG][img]http://kativ.eu/files/naviga/Pictures/2014_C3/Thumbs/DSC_0672.JPG[/img][/url] [url=http://kativ.eu/files/naviga/Pictures/2014_C3/DSC_0673.JPG][img]http://kativ.eu/files/naviga/Pictures/2014_C3/Thumbs/DSC_0673.JPG[/img][/url] [url=http://kativ.eu/files/naviga/Pictures/2014_C3/DSC_0674.JPG][img]http://kativ.eu/files/naviga/Pictures/2014_C3/Thumbs/DSC_0674.JPG[/img][/url] [url=http://kativ.eu/files/naviga/Pictures/2014_C3/DSC_0675.JPG][img]http://kativ.eu/files/naviga/Pictures/2014_C3/Thumbs/DSC_0675.JPG[/img][/url] [url=http://kativ.eu/files/naviga/Pictures/2014_C3/DSC_0762.JPG][img]http://kativ.eu/files/naviga/Pictures/2014_C3/Thumbs/DSC_0762.JPG[/img][/url] [url=http://kativ.eu/files/naviga/Pictures/2014_C3/DSC_0817.JPG][img]http://kativ.eu/files/naviga/Pictures/2014_C3/Thumbs/DSC_0817.JPG[/img][/url] [url=http://kativ.eu/files/naviga/Pictures/2014_C3/DSC_0818.JPG][img]http://kativ.eu/files/naviga/Pictures/2014_C3/Thumbs/DSC_0818.JPG[/img][/url] [url=http://kativ.eu/files/naviga/Pictures/2014_C3/DSC_0819.JPG][img]http://kativ.eu/files/naviga/Pictures/2014_C3/Thumbs/DSC_0819.JPG[/img][/url] [url=http://kativ.eu/files/naviga/Pictures/2014_C3/DSC_0820.JPG][img]http://kativ.eu/files/naviga/Pictures/2014_C3/Thumbs/DSC_0820.JPG[/img][/url] [url=http://kativ.eu/files/naviga/Pictures/2014_C3/DSC_0821.JPG][img]http://kativ.eu/files/naviga/Pictures/2014_C3/Thumbs/DSC_0821.JPG[/img][/url] [url=http://kativ.eu/files/naviga/Pictures/2014_C3/DSC_0822.JPG][img]http://kativ.eu/files/naviga/Pictures/2014_C3/Thumbs/DSC_0822.JPG[/img][/url] [url=http://kativ.eu/files/naviga/Pictures/2014_C3/DSC_0823.JPG][img]http://kativ.eu/files/naviga/Pictures/2014_C3/Thumbs/DSC_0823.JPG[/img][/url] [url=http://kativ.eu/files/naviga/Pictures/2014_C3/DSC_0824.JPG][img]http://kativ.eu/files/naviga/Pictures/2014_C3/Thumbs/DSC_0824.JPG[/img][/url] [url=http://kativ.eu/files/naviga/Pictures/2014_C3/DSC_0825.JPG][img]http://kativ.eu/files/naviga/Pictures/2014_C3/Thumbs/DSC_0825.JPG[/img][/url] [url=http://kativ.eu/files/naviga/Pictures/2014_C3/DSC_0826.JPG][img]http://kativ.eu/files/naviga/Pictures/2014_C3/Thumbs/DSC_0826.JPG[/img][/url] [url=http://kativ.eu/files/naviga/Pictures/2014_C3/DSC_0827.JPG][img]http://kativ.eu/files/naviga/Pictures/2014_C3/Thumbs/DSC_0827.JPG[/img][/url] [url=http://kativ.eu/files/naviga/Pictures/2014_C3/DSC_0828.JPG][img]http://kativ.eu/files/naviga/Pictures/2014_C3/Thumbs/DSC_0828.JPG[/img][/url] [url=http://kativ.eu/files/naviga/Pictures/2014_C3/DSC_0829.JPG][img]http://kativ.eu/files/naviga/Pictures/2014_C3/Thumbs/DSC_0829.JPG[/img][/url] [url=http://kativ.eu/files/naviga/Pictures/2014_C3/DSC_0830.JPG][img]http://kativ.eu/files/naviga/Pictures/2014_C3/Thumbs/DSC_0830.JPG[/img][/url] [url=http://kativ.eu/files/naviga/Pictures/2014_C3/DSC_0831.JPG][img]http://kativ.eu/files/naviga/Pictures/2014_C3/Thumbs/DSC_0831.JPG[/img][/url] [url=http://kativ.eu/files/naviga/Pictures/2014_C3/DSC_0832.JPG][img]http://kativ.eu/files/naviga/Pictures/2014_C3/Thumbs/DSC_0832.JPG[/img][/url] [url=http://kativ.eu/files/naviga/Pictures/2014_C3/DSC_0833.JPG][img]http://kativ.eu/files/naviga/Pictures/2014_C3/Thumbs/DSC_0833.JPG[/img][/url] [url=http://kativ.eu/files/naviga/Pictures/2014_C3/DSC_0834.JPG][img]http://kativ.eu/files/naviga/Pictures/2014_C3/Thumbs/DSC_0834.JPG[/img][/url] [url=http://kativ.eu/files/naviga/Pictures/2014_C3/DSC_0835.JPG][img]http://kativ.eu/files/naviga/Pictures/2014_C3/Thumbs/DSC_0835.JPG[/img][/url] [url=http://kativ.eu/files/naviga/Pictures/2014_C3/DSC_0836.JPG][img]http://kativ.eu/files/naviga/Pictures/2014_C3/Thumbs/DSC_0836.JPG[/img][/url] [url=http://kativ.eu/files/naviga/Pictures/2014_C3/DSC_0837.JPG][img]http://kativ.eu/files/naviga/Pictures/2014_C3/Thumbs/DSC_0837.JPG[/img][/url] [url=http://kativ.eu/files/naviga/Pictures/2014_C3/DSC_0838.JPG][img]http://kativ.eu/files/naviga/Pictures/2014_C3/Thumbs/DSC_0838.JPG[/img][/url] [url=http://kativ.eu/files/naviga/Pictures/2014_C3/DSC_0839.JPG][img]http://kativ.eu/files/naviga/Pictures/2014_C3/Thumbs/DSC_0839.JPG[/img][/url] [url=http://kativ.eu/files/naviga/Pictures/2014_C3/DSC_0840.JPG][img]http://kativ.eu/files/naviga/Pictures/2014_C3/Thumbs/DSC_0840.JPG[/img][/url] [url=http://kativ.eu/files/naviga/Pictures/2014_C3/DSC_0841.JPG][img]http://kativ.eu/files/naviga/Pictures/2014_C3/Thumbs/DSC_0841.JPG[/img][/url] [url=http://kativ.eu/files/naviga/Pictures/2014_C3/DSC_0842.JPG][img]http://kativ.eu/files/naviga/Pictures/2014_C3/Thumbs/DSC_0842.JPG[/img][/url] [url=http://kativ.eu/files/naviga/Pictures/2014_C3/DSC_0843.JPG][img]http://kativ.eu/files/naviga/Pictures/2014_C3/Thumbs/DSC_0843.JPG[/img][/url] [url=http://kativ.eu/files/naviga/Pictures/2014_C3/DSC_0844.JPG][img]http://kativ.eu/files/naviga/Pictures/2014_C3/Thumbs/DSC_0844.JPG[/img][/url] [url=http://kativ.eu/files/naviga/Pictures/2014_C3/DSC_0845.JPG][img]http://kativ.eu/files/naviga/Pictures/2014_C3/Thumbs/DSC_0845.JPG[/img][/url] [url=http://kativ.eu/files/naviga/Pictures/2014_C3/DSC_0846.JPG][img]http://kativ.eu/files/naviga/Pictures/2014_C3/Thumbs/DSC_0846.JPG[/img][/url] [url=http://kativ.eu/files/naviga/Pictures/2014_C3/DSC_0847.JPG][img]http://kativ.eu/files/naviga/Pictures/2014_C3/Thumbs/DSC_0847.JPG[/img][/url] [url=http://kativ.eu/files/naviga/Pictures/2014_C3/DSC_0848.JPG][img]http://kativ.eu/files/naviga/Pictures/2014_C3/Thumbs/DSC_0848.JPG[/img][/url] [url=http://kativ.eu/files/naviga/Pictures/2014_C3/DSC_0849.JPG][img]http://kativ.eu/files/naviga/Pictures/2014_C3/Thumbs/DSC_0849.JPG[/img][/url] [url=http://kativ.eu/files/naviga/Pictures/2014_C3/DSC_0850.JPG][img]http://kativ.eu/files/naviga/Pictures/2014_C3/Thumbs/DSC_0850.JPG[/img][/url]"}]
["[url=","http://kativ.eu/files/naviga/Pictures/2014_","C3","/","][img]","/Thumbs/","[/img][/url]","DSC_0635.JPG",{"$f":"CONCATENATE(A2,B2,C2,D2,H2,E2,B2,C2,F2,H2,G2)","v":"[url=http://kativ.eu/files/naviga/Pictures/2014_C3/DSC_0635.JPG][img]http://kativ.eu/files/naviga/Pictures/2014_C3/Thumbs/DSC_0635.JPG[/img][/url]"}]
["[url=","http://kativ.eu/files/naviga/Pictures/2014_","C3","/","][img]","/Thumbs/","[/img][/url]","DSC_0636.JPG","[url=http://kativ.eu/files/naviga/Pictures/2014_C3/DSC_0636.JPG][img]http://kativ.eu/files/naviga/Pictures/2014_C3/Thumbs/DSC_0636.JPG[/img][/url]"]
["[url=","http://kativ.eu/files/naviga/Pictures/2014_","C3","/","][img]","/Thumbs/","[/img][/url]","DSC_0669.JPG","[url=http://kativ.eu/files/naviga/Pictures/2014_C3/DSC_0669.JPG][img]http://kativ.eu/files/naviga/Pictures/2014_C3/Thumbs/DSC_0669.JPG[/img][/url]"]
["[url=","http://kativ.eu/files/naviga/Pictures/2014_","C3","/","][img]","/Thumbs/","[/img][/url]","DSC_0670.JPG","[url=http://kativ.eu/files/naviga/Pictures/2014_C3/DSC_0670.JPG][img]http://kativ.eu/files/naviga/Pictures/2014_C3/Thumbs/DSC_0670.JPG[/img][/url]"]
["[url=","http://kativ.eu/files/naviga/Pictures/2014_","C3","/","][img]","/Thumbs/","[/img][/url]","DSC_0671.JPG","[url=http://kativ.eu/files/naviga/Pictures/2014_C3/DSC_0671.JPG][img]http://kativ.eu/files/naviga/Pictures/2014_C3/Thumbs/DSC_0671.JPG[/img][/url]"]
["[url=","http://kativ.eu/files/naviga/Pictures/2014_","C3","/","][img]","/Thumbs/","[/img][/url]","DSC_0672.JPG","[url=http://kativ.eu/files/naviga/Pictures/2014_C3/DSC_0672.JPG][img]http://kativ.eu/files/naviga/Pictures/2014_C3/Thumbs/DSC_0672.JPG[/img][/url]"]
["[url=","http://kativ.eu/files/naviga/Pictures/2014_","C3","/","][img]","/Thumbs/","[/img][/url]","DSC_0673.JPG","[url=http://kativ.eu/files/naviga/Pictures/2014_C3/DSC_0673.JPG][img]http://kativ.eu/files/naviga/Pictures/2014_C3/Thumbs/DSC_0673.JPG[/img][/url]"]
["[url=","http://kativ.eu/files/naviga/Pictures/2014_","C3","/","][img]","/Thumbs/","[/img][/url]","DSC_0674.JPG","[url=http://kativ.eu/files/naviga/Pictures/2014_C3/DSC_0674.JPG][img]http://kativ.eu/files/naviga/Pictures/2014_C3/Thumbs/DSC_0674.JPG[/img][/url]"]
["[url=","http://kativ.eu/files/naviga/Pictures/2014_","C3","/","][img]","/Thumbs/","[/img][/url]","DSC_0675.JPG","[url=http://kativ.eu/files/naviga/Pictures/2014_C3/DSC_0675.JPG][img]http://kativ.eu/files/naviga/Pictures/2014_C3/Thumbs/DSC_0675.JPG[/img][/url]"]
["[url=","http://kativ.eu/files/naviga/Pictures/2014_","C3","/","][img]","/Thumbs/","[/img][/url]","DSC_0762.JPG","[url=http://kativ.eu/files/naviga/Pictures/2014_C3/DSC_0762.JPG][img]http://kativ.eu/files/naviga/Pictures/2014_C3/Thumbs/DSC_0762.JPG[/img][/url]"]
["[url=","http://kativ.eu/files/naviga/Pictures/2014_","C3","/","][img]","/Thumbs/","[/img][/url]","DSC_0817.JPG","[url=http://kativ.eu/files/naviga/Pictures/2014_C3/DSC_0817.JPG][img]http://kativ.eu/files/naviga/Pictures/2014_C3/Thumbs/DSC_0817.JPG[/img][/url]"]
["[url=","http://kativ.eu/files/naviga/Pictures/2014_","C3","/","][img]","/Thumbs/","[/img][/url]","DSC_0818.JPG","[url=http://kativ.eu/files/naviga/Pictures/2014_C3/DSC_0818.JPG][img]http://kativ.eu/files/naviga/Pictures/2014_C3/Thumbs/DSC_0818.JPG[/img][/url]"]
["[url=","http://kativ.eu/files/naviga/Pictures/2014_","C3","/","][img]","/Thumbs/","[/img][/url]","DSC_0819.JPG","[url=http://kativ.eu/files/naviga/Pictures/2014_C3/DSC_0819.JPG][img]http://kativ.eu/files/naviga/Pictures/2014_C3/Thumbs/DSC_0819.JPG[/img][/url]"]
["[url=","http://kativ.eu/files/naviga/Pictures/2014_","C3","/","][img]","/Thumbs/","[/img][/url]","DSC_0820.JPG","[url=http://kativ.eu/files/naviga/Pictures/2014_C3/DSC_0820.JPG][img]http://kativ.eu/files/naviga/Pictures/2014_C3/Thumbs/DSC_0820.JPG[/img][/url]"]
["[url=","http://kativ.eu/files/naviga/Pictures/2014_","C3","/","][img]","/Thumbs/","[/img][/url]","DSC_0821.JPG","[url=http://kativ.eu/files/naviga/Pictures/2014_C3/DSC_0821.JPG][img]http://kativ.eu/files/naviga/Pictures/2014_C3/Thumbs/DSC_0821.JPG[/img][/url]"]
["[url=","http://kativ.eu/files/naviga/Pictures/2014_","C3","/","][img]","/Thumbs/","[/img][/url]","DSC_0822.JPG","[url=http://kativ.eu/files/naviga/Pictures/2014_C3/DSC_0822.JPG][img]http://kativ.eu/files/naviga/Pictures/2014_C3/Thumbs/DSC_0822.JPG[/img][/url]"]
["[url=","http://kativ.eu/files/naviga/Pictures/2014_","C3","/","][img]","/Thumbs/","[/img][/url]","DSC_0823.JPG","[url=http://kativ.eu/files/naviga/Pictures/2014_C3/DSC_0823.JPG][img]http://kativ.eu/files/naviga/Pictures/2014_C3/Thumbs/DSC_0823.JPG[/img][/url]"]
["[url=","http://kativ.eu/files/naviga/Pictures/2014_","C3","/","][img]","/Thumbs/","[/img][/url]","DSC_0824.JPG","[url=http://kativ.eu/files/naviga/Pictures/2014_C3/DSC_0824.JPG][img]http://kativ.eu/files/naviga/Pictures/2014_C3/Thumbs/DSC_0824.JPG[/img][/url]"]
["[url=","http://kativ.eu/files/naviga/Pictures/2014_","C3","/","][img]","/Thumbs/","[/img][/url]","DSC_0825.JPG","[url=http://kativ.eu/files/naviga/Pictures/2014_C3/DSC_0825.JPG][img]http://kativ.eu/files/naviga/Pictures/2014_C3/Thumbs/DSC_0825.JPG[/img][/url]"]
["[url=","http://kativ.eu/files/naviga/Pictures/2014_","C3","/","][img]","/Thumbs/","[/img][/url]","DSC_0826.JPG","[url=http://kativ.eu/files/naviga/Pictures/2014_C3/DSC_0826.JPG][img]http://kativ.eu/files/naviga/Pictures/2014_C3/Thumbs/DSC_0826.JPG[/img][/url]"]
["[url=","http://kativ.eu/files/naviga/Pictures/2014_","C3","/","][img]","/Thumbs/","[/img][/url]","DSC_0827.JPG","[url=http://kativ.eu/files/naviga/Pictures/2014_C3/DSC_0827.JPG][img]http://kativ.eu/files/naviga/Pictures/2014_C3/Thumbs/DSC_0827.JPG[/img][/url]"]
["[url=","http://kativ.eu/files/naviga/Pictures/2014_","C3","/","][img]","/Thumbs/","[/img][/url]","DSC_0828.JPG","[url=http://kativ.eu/files/naviga/Pictures/2014_C3/DSC_0828.JPG][img]http://kativ.eu/files/naviga/Pictures/2014_C3/Thumbs/DSC_0828.JPG[/img][/url]"]
["[url=","http://kativ.eu/files/naviga/Pictures/2014_","C3","/","][img]","/Thumbs/","[/img][/url]","DSC_0829.JPG","[url=http://kativ.eu/files/naviga/Pictures/2014_C3/DSC_0829.JPG][img]http://kativ.eu/files/naviga/Pictures/2014_C3/Thumbs/DSC_0829.JPG[/img][/url]"]
["[url=","http://kativ.eu/files/naviga/Pictures/2014_","C3","/","][img]","/Thumbs/","[/img][/url]","DSC_0830.JPG","[url=http://kativ.eu/files/naviga/Pictures/2014_C3/DSC_0830.JPG][img]http://kativ.eu/files/naviga/Pictures/2014_C3/Thumbs/DSC_0830.JPG[/img][/url]"]
["[url=","http://kativ.eu/files/naviga/Pictures/2014_","C3","/","][img]","/Thumbs/","[/img][/url]","DSC_0831.JPG","[url=http://kativ.eu/files/naviga/Pictures/2014_C3/DSC_0831.JPG][img]http://kativ.eu/files/naviga/Pictures/2014_C3/Thumbs/DSC_0831.JPG[/img][/url]"]
["[url=","http://kativ.eu/files/naviga/Pictures/2014_","C3","/","][img]","/Thumbs/","[/img][/url]","DSC_0832.JPG","[url=http://kativ.eu/files/naviga/Pictures/2014_C3/DSC_0832.JPG][img]http://kativ.eu/files/naviga/Pictures/2014_C3/Thumbs/DSC_0832.JPG[/img][/url]"]
["[url=","http://kativ.eu/files/naviga/Pictures/2014_","C3","/","][img]","/Thumbs/","[/img][/url]","DSC_0833.JPG","[url=http://kativ.eu/files/naviga/Pictures/2014_C3/DSC_0833.JPG][img]http://kativ.eu/files/naviga/Pictures/2014_C3/Thumbs/DSC_0833.JPG[/img][/url]"]
["[url=","http://kativ.eu/files/naviga/Pictures/2014_","C3","/","][img]","/Thumbs/","[/img][/url]","DSC_0834.JPG","[url=http://kativ.eu/files/naviga/Pictures/2014_C3/DSC_0834.JPG][img]http://kativ.eu/files/naviga/Pictures/2014_C3/Thumbs/DSC_0834.JPG[/img][/url]"]
["[url=","http://kativ.eu/files/naviga/Pictures/2014_","C3","/","][img]","/Thumbs/","[/img][/url]","DSC_0835.JPG","[url=http://kativ.eu/files/naviga/Pictures/2014_C3/DSC_0835.JPG][img]http://kativ.eu/files/naviga/Pictures/2014_C3/Thumbs/DSC_0835.JPG[/img][/url]"]
["[url=","http://kativ.eu/files/naviga/Pictures/2014_","C3","/","][img]","/Thumbs/","[/img][/url]","DSC_0836.JPG","[url=http://kativ.eu/files/naviga/Pictures/2014_C3/DSC_0836.JPG][img]http://kativ.eu/files/naviga/Pictures/2014_C3/Thumbs/DSC_0836.JPG[/img][/url]"]
["[url=","http://kativ.eu/files/naviga/Pictures/2014_","C3","/","][img]","/Thumbs/","[/img][/url]","DSC_0837.JPG","[url=http://kativ.eu/files/naviga/Pictures/2014_C3/DSC_0837.JPG][img]http://kativ.eu/files/naviga/Pictures/2014_C3/Thumbs/DSC_0837.JPG[/img][/url]"]
["[url=","http://kativ.eu/files/naviga/Pictures/2014_","C3","/","][img]","/Thumbs/","[/img][/url]","DSC_0838.JPG","[url=http://kativ.eu/files/naviga/Pictures/2014_C3/DSC_0838.JPG][img]http://kativ.eu/files/naviga/Pictures/2014_C3/Thumbs/DSC_0838.JPG[/img][/url]"]
["[url=","http://kativ.eu/files/naviga/Pictures/2014_","C3","/","][img]","/Thumbs/","[/img][/url]","DSC_0839.JPG","[url=http://kativ.eu/files/naviga/Pictures/2014_C3/DSC_0839.JPG][img]http://kativ.eu/files/naviga/Pictures/2014_C3/Thumbs/DSC_0839.JPG[/img][/url]"]
["[url=","http://kativ.eu/files/naviga/Pictures/2014_","C3","/","][img]","/Thumbs/","[/img][/url]","DSC_0840.JPG","[url=http://kativ.eu/files/naviga/Pictures/2014_C3/DSC_0840.JPG][img]http://kativ.eu/files/naviga/Pictures/2014_C3/Thumbs/DSC_0840.JPG[/img][/url]"]
["[url=","http://kativ.eu/files/naviga/Pictures/2014_","C3","/","][img]","/Thumbs/","[/img][/url]","DSC_0841.JPG","[url=http://kativ.eu/files/naviga/Pictures/2014_C3/DSC_0841.JPG][img]http://kativ.eu/files/naviga/Pictures/2014_C3/Thumbs/DSC_0841.JPG[/img][/url]"]
["[url=","http://kativ.eu/files/naviga/Pictures/2014_","C3","/","][img]","/Thumbs/","[/img][/url]","DSC_0842.JPG","[url=http://kativ.eu/files/naviga/Pictures/2014_C3/DSC_0842.JPG][img]http://kativ.eu/files/naviga/Pictures/2014_C3/Thumbs/DSC_0842.JPG[/img][/url]"]
["[url=","http://kativ.eu/files/naviga/Pictures/2014_","C3","/","][img]","/Thumbs/","[/img][/url]","DSC_0843.JPG","[url=http://kativ.eu/files/naviga/Pictures/2014_C3/DSC_0843.JPG][img]http://kativ.eu/files/naviga/Pictures/2014_C3/Thumbs/DSC_0843.JPG[/img][/url]"]
["[url=","http://kativ.eu/files/naviga/Pictures/2014_","C3","/","][img]","/Thumbs/","[/img][/url]","DSC_0844.JPG","[url=http://kativ.eu/files/naviga/Pictures/2014_C3/DSC_0844.JPG][img]http://kativ.eu/files/naviga/Pictures/2014_C3/Thumbs/DSC_0844.JPG[/img][/url]"]
["[url=","http://kativ.eu/files/naviga/Pictures/2014_","C3","/","][img]","/Thumbs/","[/img][/url]","DSC_0845.JPG","[url=http://kativ.eu/files/naviga/Pictures/2014_C3/DSC_0845.JPG][img]http://kativ.eu/files/naviga/Pictures/2014_C3/Thumbs/DSC_0845.JPG[/img][/url]"]
["[url=","http://kativ.eu/files/naviga/Pictures/2014_","C3","/","][img]","/Thumbs/","[/img][/url]","DSC_0846.JPG","[url=http://kativ.eu/files/naviga/Pictures/2014_C3/DSC_0846.JPG][img]http://kativ.eu/files/naviga/Pictures/2014_C3/Thumbs/DSC_0846.JPG[/img][/url]"]
["[url=","http://kativ.eu/files/naviga/Pictures/2014_","C3","/","][img]","/Thumbs/","[/img][/url]","DSC_0847.JPG","[url=http://kativ.eu/files/naviga/Pictures/2014_C3/DSC_0847.JPG][img]http://kativ.eu/files/naviga/Pictures/2014_C3/Thumbs/DSC_0847.JPG[/img][/url]"]
["[url=","http://kativ.eu/files/naviga/Pictures/2014_","C3","/","][img]","/Thumbs/","[/img][/url]","DSC_0848.JPG","[url=http://kativ.eu/files/naviga/Pictures/2014_C3/DSC_0848.JPG][img]http://kativ.eu/files/naviga/Pictures/2014_C3/Thumbs/DSC_0848.JPG[/img][/url]"]
["[url=","http://kativ.eu/files/naviga/Pictures/2014_","C3","/","][img]","/Thumbs/","[/img][/url]","DSC_0849.JPG","[url=http://kativ.eu/files/naviga/Pictures/2014_C3/DSC_0849.JPG][img]http://kativ.eu/files/naviga/Pictures/2014_C3/Thumbs/DSC_0849.JPG[/img][/url]"]
["[url=","http://kativ.eu/files/naviga/Pictures/2014_","C3","/","][img]","/Thumbs/","[/img][/url]","DSC_0850.JPG","[url=http://kativ.eu/files/naviga/Pictures/2014_C3/DSC_0850.JPG][img]http://kativ.eu/files/naviga/Pictures/2014_C3/Thumbs/DSC_0850.JPG[/img][/url]"]
["[url=","http://kativ.eu/files/naviga/Pictures/2014_","C3","/","][img]","/Thumbs/","[/img][/url]","DSC_0851.JPG","[url=http://kativ.eu/files/naviga/Pictures/2014_C3/DSC_0851.JPG][img]http://kativ.eu/files/naviga/Pictures/2014_C3/Thumbs/DSC_0851.JPG[/img][/url]",{"$f":"ConcatRange(I46:I90,\" \")","v":"[url=http://kativ.eu/files/naviga/Pictures/2014_C3/DSC_0851.JPG][img]http://kativ.eu/files/naviga/Pictures/2014_C3/Thumbs/DSC_0851.JPG[/img][/url] [url=http://kativ.eu/files/naviga/Pictures/2014_C3/DSC_0852.JPG][img]http://kativ.eu/files/naviga/Pictures/2014_C3/Thumbs/DSC_0852.JPG[/img][/url] [url=http://kativ.eu/files/naviga/Pictures/2014_C3/DSC_0853.JPG][img]http://kativ.eu/files/naviga/Pictures/2014_C3/Thumbs/DSC_0853.JPG[/img][/url] [url=http://kativ.eu/files/naviga/Pictures/2014_C3/DSC_0854.JPG][img]http://kativ.eu/files/naviga/Pictures/2014_C3/Thumbs/DSC_0854.JPG[/img][/url] [url=http://kativ.eu/files/naviga/Pictures/2014_C3/DSC_0855.JPG][img]http://kativ.eu/files/naviga/Pictures/2014_C3/Thumbs/DSC_0855.JPG[/img][/url] [url=http://kativ.eu/files/naviga/Pictures/2014_C3/DSC_0856.JPG][img]http://kativ.eu/files/naviga/Pictures/2014_C3/Thumbs/DSC_0856.JPG[/img][/url] [url=http://kativ.eu/files/naviga/Pictures/2014_C3/DSC_0857.JPG][img]http://kativ.eu/files/naviga/Pictures/2014_C3/Thumbs/DSC_0857.JPG[/img][/url] [url=http://kativ.eu/files/naviga/Pictures/2014_C3/DSC_0858.JPG][img]http://kativ.eu/files/naviga/Pictures/2014_C3/Thumbs/DSC_0858.JPG[/img][/url] [url=http://kativ.eu/files/naviga/Pictures/2014_C3/DSC_0859.JPG][img]http://kativ.eu/files/naviga/Pictures/2014_C3/Thumbs/DSC_0859.JPG[/img][/url] [url=http://kativ.eu/files/naviga/Pictures/2014_C3/DSC_0860.JPG][img]http://kativ.eu/files/naviga/Pictures/2014_C3/Thumbs/DSC_0860.JPG[/img][/url] [url=http://kativ.eu/files/naviga/Pictures/2014_C3/DSC_0861.JPG][img]http://kativ.eu/files/naviga/Pictures/2014_C3/Thumbs/DSC_0861.JPG[/img][/url] [url=http://kativ.eu/files/naviga/Pictures/2014_C3/DSC_0862.JPG][img]http://kativ.eu/files/naviga/Pictures/2014_C3/Thumbs/DSC_0862.JPG[/img][/url] [url=http://kativ.eu/files/naviga/Pictures/2014_C3/DSC_0863.JPG][img]http://kativ.eu/files/naviga/Pictures/2014_C3/Thumbs/DSC_0863.JPG[/img][/url] [url=http://kativ.eu/files/naviga/Pictures/2014_C3/DSC_0864.JPG][img]http://kativ.eu/files/naviga/Pictures/2014_C3/Thumbs/DSC_0864.JPG[/img][/url] [url=http://kativ.eu/files/naviga/Pictures/2014_C3/DSC_0865.JPG][img]http://kativ.eu/files/naviga/Pictures/2014_C3/Thumbs/DSC_0865.JPG[/img][/url] [url=http://kativ.eu/files/naviga/Pictures/2014_C3/DSC_0866.JPG][img]http://kativ.eu/files/naviga/Pictures/2014_C3/Thumbs/DSC_0866.JPG[/img][/url] [url=http://kativ.eu/files/naviga/Pictures/2014_C3/DSC_0867.JPG][img]http://kativ.eu/files/naviga/Pictures/2014_C3/Thumbs/DSC_0867.JPG[/img][/url] [url=http://kativ.eu/files/naviga/Pictures/2014_C3/DSC_0868.JPG][img]http://kativ.eu/files/naviga/Pictures/2014_C3/Thumbs/DSC_0868.JPG[/img][/url] [url=http://kativ.eu/files/naviga/Pictures/2014_C3/DSC_0869.JPG][img]http://kativ.eu/files/naviga/Pictures/2014_C3/Thumbs/DSC_0869.JPG[/img][/url] [url=http://kativ.eu/files/naviga/Pictures/2014_C3/DSC_0870.JPG][img]http://kativ.eu/files/naviga/Pictures/2014_C3/Thumbs/DSC_0870.JPG[/img][/url] [url=http://kativ.eu/files/naviga/Pictures/2014_C3/DSC_0871.JPG][img]http://kativ.eu/files/naviga/Pictures/2014_C3/Thumbs/DSC_0871.JPG[/img][/url] [url=http://kativ.eu/files/naviga/Pictures/2014_C3/DSC_0872.JPG][img]http://kativ.eu/files/naviga/Pictures/2014_C3/Thumbs/DSC_0872.JPG[/img][/url] [url=http://kativ.eu/files/naviga/Pictures/2014_C3/DSC_0873.JPG][img]http://kativ.eu/files/naviga/Pictures/2014_C3/Thumbs/DSC_0873.JPG[/img][/url] [url=http://kativ.eu/files/naviga/Pictures/2014_C3/DSC_0874.JPG][img]http://kativ.eu/files/naviga/Pictures/2014_C3/Thumbs/DSC_0874.JPG[/img][/url] [url=http://kativ.eu/files/naviga/Pictures/2014_C3/DSC_0875.JPG][img]http://kativ.eu/files/naviga/Pictures/2014_C3/Thumbs/DSC_0875.JPG[/img][/url] [url=http://kativ.eu/files/naviga/Pictures/2014_C3/DSC_0876.JPG][img]http://kativ.eu/files/naviga/Pictures/2014_C3/Thumbs/DSC_0876.JPG[/img][/url] [url=http://kativ.eu/files/naviga/Pictures/2014_C3/DSC_0877.JPG][img]http://kativ.eu/files/naviga/Pictures/2014_C3/Thumbs/DSC_0877.JPG[/img][/url] [url=http://kativ.eu/files/naviga/Pictures/2014_C3/DSC_0878.JPG][img]http://kativ.eu/files/naviga/Pictures/2014_C3/Thumbs/DSC_0878.JPG[/img][/url] [url=http://kativ.eu/files/naviga/Pictures/2014_C3/DSC_0879.JPG][img]http://kativ.eu/files/naviga/Pictures/2014_C3/Thumbs/DSC_0879.JPG[/img][/url] [url=http://kativ.eu/files/naviga/Pictures/2014_C3/DSC_0880.JPG][img]http://kativ.eu/files/naviga/Pictures/2014_C3/Thumbs/DSC_0880.JPG[/img][/url] [url=http://kativ.eu/files/naviga/Pictures/2014_C3/DSC_0881.JPG][img]http://kativ.eu/files/naviga/Pictures/2014_C3/Thumbs/DSC_0881.JPG[/img][/url] [url=http://kativ.eu/files/naviga/Pictures/2014_C3/DSC_0882.JPG][img]http://kativ.eu/files/naviga/Pictures/2014_C3/Thumbs/DSC_0882.JPG[/img][/url] [url=http://kativ.eu/files/naviga/Pictures/2014_C3/DSC_0883.JPG][img]http://kativ.eu/files/naviga/Pictures/2014_C3/Thumbs/DSC_0883.JPG[/img][/url] [url=http://kativ.eu/files/naviga/Pictures/2014_C3/DSC_0884.JPG][img]http://kativ.eu/files/naviga/Pictures/2014_C3/Thumbs/DSC_0884.JPG[/img][/url] [url=http://kativ.eu/files/naviga/Pictures/2014_C3/DSC_0885.JPG][img]http://kativ.eu/files/naviga/Pictures/2014_C3/Thumbs/DSC_0885.JPG[/img][/url] [url=http://kativ.eu/files/naviga/Pictures/2014_C3/DSC_0886.JPG][img]http://kativ.eu/files/naviga/Pictures/2014_C3/Thumbs/DSC_0886.JPG[/img][/url] [url=http://kativ.eu/files/naviga/Pictures/2014_C3/DSC_0887.JPG][img]http://kativ.eu/files/naviga/Pictures/2014_C3/Thumbs/DSC_0887.JPG[/img][/url] [url=http://kativ.eu/files/naviga/Pictures/2014_C3/DSC_0888.JPG][img]http://kativ.eu/files/naviga/Pictures/2014_C3/Thumbs/DSC_0888.JPG[/img][/url] [url=http://kativ.eu/files/naviga/Pictures/2014_C3/DSC_0889.JPG][img]http://kativ.eu/files/naviga/Pictures/2014_C3/Thumbs/DSC_0889.JPG[/img][/url] [url=http://kativ.eu/files/naviga/Pictures/2014_C3/DSC_0890.JPG][img]http://kativ.eu/files/naviga/Pictures/2014_C3/Thumbs/DSC_0890.JPG[/img][/url] [url=http://kativ.eu/files/naviga/Pictures/2014_C3/DSC_0891.JPG][img]http://kativ.eu/files/naviga/Pictures/2014_C3/Thumbs/DSC_0891.JPG[/img][/url] [url=http://kativ.eu/files/naviga/Pictures/2014_C3/DSC_0892.JPG][img]http://kativ.eu/files/naviga/Pictures/2014_C3/Thumbs/DSC_0892.JPG[/img][/url] [url=http://kativ.eu/files/naviga/Pictures/2014_C3/DSC_0893.JPG][img]http://kativ.eu/files/naviga/Pictures/2014_C3/Thumbs/DSC_0893.JPG[/img][/url] [url=http://kativ.eu/files/naviga/Pictures/2014_C3/DSC_0894.JPG][img]http://kativ.eu/files/naviga/Pictures/2014_C3/Thumbs/DSC_0894.JPG[/img][/url] [url=http://kativ.eu/files/naviga/Pictures/2014_C3/DSC_0895.JPG][img]http://kativ.eu/files/naviga/Pictures/2014_C3/Thumbs/DSC_0895.JPG[/img][/url]"}]
["[url=","http://kativ.eu/files/naviga/Pictures/2014_","C3","/","][img]","/Thumbs/","[/img][/url]","DSC_0852.JPG","[url=http://kativ.eu/files/naviga/Pictures/2014_C3/DSC_0852.JPG][img]http://kativ.eu/files/naviga/Pictures/2014_C3/Thumbs/DSC_0852.JPG[/img][/url]"]
["[url=","http://kativ.eu/files/naviga/Pictures/2014_","C3","/","][img]","/Thumbs/","[/img][/url]","DSC_0853.JPG","[url=http://kativ.eu/files/naviga/Pictures/2014_C3/DSC_0853.JPG][img]http://kativ.eu/files/naviga/Pictures/2014_C3/Thumbs/DSC_0853.JPG[/img][/url]"]
["[url=","http://kativ.eu/files/naviga/Pictures/2014_","C3","/","][img]","/Thumbs/","[/img][/url]","DSC_0854.JPG","[url=http://kativ.eu/files/naviga/Pictures/2014_C3/DSC_0854.JPG][img]http://kativ.eu/files/naviga/Pictures/2014_C3/Thumbs/DSC_0854.JPG[/img][/url]"]
["[url=","http://kativ.eu/files/naviga/Pictures/2014_","C3","/","][img]","/Thumbs/","[/img][/url]","DSC_0855.JPG","[url=http://kativ.eu/files/naviga/Pictures/2014_C3/DSC_0855.JPG][img]http://kativ.eu/files/naviga/Pictures/2014_C3/Thumbs/DSC_0855.JPG[/img][/url]"]
["[url=","http://kativ.eu/files/naviga/Pictures/2014_","C3","/","][img]","/Thumbs/","[/img][/url]","DSC_0856.JPG","[url=http://kativ.eu/files/naviga/Pictures/2014_C3/DSC_0856.JPG][img]http://kativ.eu/files/naviga/Pictures/2014_C3/Thumbs/DSC_0856.JPG[/img][/url]"]
["[url=","http://kativ.eu/files/naviga/Pictures/2014_","C3","/","][img]","/Thumbs/","[/img][/url]","DSC_0857.JPG","[url=http://kativ.eu/files/naviga/Pictures/2014_C3/DSC_0857.JPG][img]http://kativ.eu/files/naviga/Pictures/2014_C3/Thumbs/DSC_0857.JPG[/img][/url]"]
["[url=","http://kativ.eu/files/naviga/Pictures/2014_","C3","/","][img]","/Thumbs/","[/img][/url]","DSC_0858.JPG","[url=http://kativ.eu/files/naviga/Pictures/2014_C3/DSC_0858.JPG][img]http://kativ.eu/files/naviga/Pictures/2014_C3/Thumbs/DSC_0858.JPG[/img][/url]"]
["[url=","http://kativ.eu/files/naviga/Pictures/2014_","C3","/","][img]","/Thumbs/","[/img][/url]","DSC_0859.JPG","[url=http://kativ.eu/files/naviga/Pictures/2014_C3/DSC_0859.JPG][img]http://kativ.eu/files/naviga/Pictures/2014_C3/Thumbs/DSC_0859.JPG[/img][/url]"]
["[url=","http://kativ.eu/files/naviga/Pictures/2014_","C3","/","][img]","/Thumbs/","[/img][/url]","DSC_0860.JPG","[url=http://kativ.eu/files/naviga/Pictures/2014_C3/DSC_0860.JPG][img]http://kativ.eu/files/naviga/Pictures/2014_C3/Thumbs/DSC_0860.JPG[/img][/url]"]
["[url=","http://kativ.eu/files/naviga/Pictures/2014_","C3","/","][img]","/Thumbs/","[/img][/url]","DSC_0861.JPG","[url=http://kativ.eu/files/naviga/Pictures/2014_C3/DSC_0861.JPG][img]http://kativ.eu/files/naviga/Pictures/2014_C3/Thumbs/DSC_0861.JPG[/img][/url]"]
["[url=","http://kativ.eu/files/naviga/Pictures/2014_","C3","/","][img]","/Thumbs/","[/img][/url]","DSC_0862.JPG","[url=http://kativ.eu/files/naviga/Pictures/2014_C3/DSC_0862.JPG][img]http://kativ.eu/files/naviga/Pictures/2014_C3/Thumbs/DSC_0862.JPG[/img][/url]"]
["[url=","http://kativ.eu/files/naviga/Pictures/2014_","C3","/","][img]","/Thumbs/","[/img][/url]","DSC_0863.JPG","[url=http://kativ.eu/files/naviga/Pictures/2014_C3/DSC_0863.JPG][img]http://kativ.eu/files/naviga/Pictures/2014_C3/Thumbs/DSC_0863.JPG[/img][/url]"]
["[url=","http://kativ.eu/files/naviga/Pictures/2014_","C3","/","][img]","/Thumbs/","[/img][/url]","DSC_0864.JPG","[url=http://kativ.eu/files/naviga/Pictures/2014_C3/DSC_0864.JPG][img]http://kativ.eu/files/naviga/Pictures/2014_C3/Thumbs/DSC_0864.JPG[/img][/url]"]
["[url=","http://kativ.eu/files/naviga/Pictures/2014_","C3","/","][img]","/Thumbs/","[/img][/url]","DSC_0865.JPG","[url=http://kativ.eu/files/naviga/Pictures/2014_C3/DSC_0865.JPG][img]http://kativ.eu/files/naviga/Pictures/2014_C3/Thumbs/DSC_0865.JPG[/img][/url]"]
["[url=","http://kativ.eu/files/naviga/Pictures/2014_","C3","/","][img]","/Thumbs/","[/img][/url]","DSC_0866.JPG","[url=http://kativ.eu/files/naviga/Pictures/2014_C3/DSC_0866.JPG][img]http://kativ.eu/files/naviga/Pictures/2014_C3/Thumbs/DSC_0866.JPG[/img][/url]"]
["[url=","http://kativ.eu/files/naviga/Pictures/2014_","C3","/","][img]","/Thumbs/","[/img][/url]","DSC_0867.JPG","[url=http://kativ.eu/files/naviga/Pictures/2014_C3/DSC_0867.JPG][img]http://kativ.eu/files/naviga/Pictures/2014_C3/Thumbs/DSC_0867.JPG[/img][/url]"]
["[url=","http://kativ.eu/files/naviga/Pictures/2014_","C3","/","][img]","/Thumbs/","[/img][/url]","DSC_0868.JPG","[url=http://kativ.eu/files/naviga/Pictures/2014_C3/DSC_0868.JPG][img]http://kativ.eu/files/naviga/Pictures/2014_C3/Thumbs/DSC_0868.JPG[/img][/url]"]
["[url=","http://kativ.eu/files/naviga/Pictures/2014_","C3","/","][img]","/Thumbs/","[/img][/url]","DSC_0869.JPG","[url=http://kativ.eu/files/naviga/Pictures/2014_C3/DSC_0869.JPG][img]http://kativ.eu/files/naviga/Pictures/2014_C3/Thumbs/DSC_0869.JPG[/img][/url]"]
["[url=","http://kativ.eu/files/naviga/Pictures/2014_","C3","/","][img]","/Thumbs/","[/img][/url]","DSC_0870.JPG","[url=http://kativ.eu/files/naviga/Pictures/2014_C3/DSC_0870.JPG][img]http://kativ.eu/files/naviga/Pictures/2014_C3/Thumbs/DSC_0870.JPG[/img][/url]"]
["[url=","http://kativ.eu/files/naviga/Pictures/2014_","C3","/","][img]","/Thumbs/","[/img][/url]","DSC_0871.JPG",{"$f":"CONCATENATE(A66,B66,C66,D66,H66,E66,B66,C66,F66,H66,G66)","v":"[url=http://kativ.eu/files/naviga/Pictures/2014_C3/DSC_0871.JPG][img]http://kativ.eu/files/naviga/Pictures/2014_C3/Thumbs/DSC_0871.JPG[/img][/url]"}]
["[url=","http://kativ.eu/files/naviga/Pictures/2014_","C3","/","][img]","/Thumbs/","[/img][/url]","DSC_0872.JPG","[url=http://kativ.eu/files/naviga/Pictures/2014_C3/DSC_0872.JPG][img]http://kativ.eu/files/naviga/Pictures/2014_C3/Thumbs/DSC_0872.JPG[/img][/url]"]
["[url=","http://kativ.eu/files/naviga/Pictures/2014_","C3","/","][img]","/Thumbs/","[/img][/url]","DSC_0873.JPG","[url=http://kativ.eu/files/naviga/Pictures/2014_C3/DSC_0873.JPG][img]http://kativ.eu/files/naviga/Pictures/2014_C3/Thumbs/DSC_0873.JPG[/img][/url]"]
["[url=","http://kativ.eu/files/naviga/Pictures/2014_","C3","/","][img]","/Thumbs/","[/img][/url]","DSC_0874.JPG","[url=http://kativ.eu/files/naviga/Pictures/2014_C3/DSC_0874.JPG][img]http://kativ.eu/files/naviga/Pictures/2014_C3/Thumbs/DSC_0874.JPG[/img][/url]"]
["[url=","http://kativ.eu/files/naviga/Pictures/2014_","C3","/","][img]","/Thumbs/","[/img][/url]","DSC_0875.JPG","[url=http://kativ.eu/files/naviga/Pictures/2014_C3/DSC_0875.JPG][img]http://kativ.eu/files/naviga/Pictures/2014_C3/Thumbs/DSC_0875.JPG[/img][/url]"]
["[url=","http://kativ.eu/files/naviga/Pictures/2014_","C3","/","][img]","/Thumbs/","[/img][/url]","DSC_0876.JPG","[url=http://kativ.eu/files/naviga/Pictures/2014_C3/DSC_0876.JPG][img]http://kativ.eu/files/naviga/Pictures/2014_C3/Thumbs/DSC_0876.JPG[/img][/url]"]
["[url=","http://kativ.eu/files/naviga/Pictures/2014_","C3","/","][img]","/Thumbs/","[/img][/url]","DSC_0877.JPG","[url=http://kativ.eu/files/naviga/Pictures/2014_C3/DSC_0877.JPG][img]http://kativ.eu/files/naviga/Pictures/2014_C3/Thumbs/DSC_0877.JPG[/img][/url]"]
["[url=","http://kativ.eu/files/naviga/Pictures/2014_","C3","/","][img]","/Thumbs/","[/img][/url]","DSC_0878.JPG","[url=http://kativ.eu/files/naviga/Pictures/2014_C3/DSC_0878.JPG][img]http://kativ.eu/files/naviga/Pictures/2014_C3/Thumbs/DSC_0878.JPG[/img][/url]"]
["[url=","http://kativ.eu/files/naviga/Pictures/2014_","C3","/","][img]","/Thumbs/","[/img][/url]","DSC_0879.JPG","[url=http://kativ.eu/files/naviga/Pictures/2014_C3/DSC_0879.JPG][img]http://kativ.eu/files/naviga/Pictures/2014_C3/Thumbs/DSC_0879.JPG[/img][/url]"]
["[url=","http://kativ.eu/files/naviga/Pictures/2014_","C3","/","][img]","/Thumbs/","[/img][/url]","DSC_0880.JPG","[url=http://kativ.eu/files/naviga/Pictures/2014_C3/DSC_0880.JPG][img]http://kativ.eu/files/naviga/Pictures/2014_C3/Thumbs/DSC_0880.JPG[/img][/url]"]
["[url=","http://kativ.eu/files/naviga/Pictures/2014_","C3","/","][img]","/Thumbs/","[/img][/url]","DSC_0881.JPG","[url=http://kativ.eu/files/naviga/Pictures/2014_C3/DSC_0881.JPG][img]http://kativ.eu/files/naviga/Pictures/2014_C3/Thumbs/DSC_0881.JPG[/img][/url]"]
["[url=","http://kativ.eu/files/naviga/Pictures/2014_","C3","/","][img]","/Thumbs/","[/img][/url]","DSC_0882.JPG","[url=http://kativ.eu/files/naviga/Pictures/2014_C3/DSC_0882.JPG][img]http://kativ.eu/files/naviga/Pictures/2014_C3/Thumbs/DSC_0882.JPG[/img][/url]"]
["[url=","http://kativ.eu/files/naviga/Pictures/2014_","C3","/","][img]","/Thumbs/","[/img][/url]","DSC_0883.JPG","[url=http://kativ.eu/files/naviga/Pictures/2014_C3/DSC_0883.JPG][img]http://kativ.eu/files/naviga/Pictures/2014_C3/Thumbs/DSC_0883.JPG[/img][/url]"]
["[url=","http://kativ.eu/files/naviga/Pictures/2014_","C3","/","][img]","/Thumbs/","[/img][/url]","DSC_0884.JPG","[url=http://kativ.eu/files/naviga/Pictures/2014_C3/DSC_0884.JPG][img]http://kativ.eu/files/naviga/Pictures/2014_C3/Thumbs/DSC_0884.JPG[/img][/url]"]
["[url=","http://kativ.eu/files/naviga/Pictures/2014_","C3","/","][img]","/Thumbs/","[/img][/url]","DSC_0885.JPG","[url=http://kativ.eu/files/naviga/Pictures/2014_C3/DSC_0885.JPG][img]http://kativ.eu/files/naviga/Pictures/2014_C3/Thumbs/DSC_0885.JPG[/img][/url]"]
["[url=","http://kativ.eu/files/naviga/Pictures/2014_","C3","/","][img]","/Thumbs/","[/img][/url]","DSC_0886.JPG","[url=http://kativ.eu/files/naviga/Pictures/2014_C3/DSC_0886.JPG][img]http://kativ.eu/files/naviga/Pictures/2014_C3/Thumbs/DSC_0886.JPG[/img][/url]"]
["[url=","http://kativ.eu/files/naviga/Pictures/2014_","C3","/","][img]","/Thumbs/","[/img][/url]","DSC_0887.JPG","[url=http://kativ.eu/files/naviga/Pictures/2014_C3/DSC_0887.JPG][img]http://kativ.eu/files/naviga/Pictures/2014_C3/Thumbs/DSC_0887.JPG[/img][/url]"]
["[url=","http://kativ.eu/files/naviga/Pictures/2014_","C3","/","][img]","/Thumbs/","[/img][/url]","DSC_0888.JPG","[url=http://kativ.eu/files/naviga/Pictures/2014_C3/DSC_0888.JPG][img]http://kativ.eu/files/naviga/Pictures/2014_C3/Thumbs/DSC_0888.JPG[/img][/url]"]
["[url=","http://kativ.eu/files/naviga/Pictures/2014_","C3","/","][img]","/Thumbs/","[/img][/url]","DSC_0889.JPG","[url=http://kativ.eu/files/naviga/Pictures/2014_C3/DSC_0889.JPG][img]http://kativ.eu/files/naviga/Pictures/2014_C3/Thumbs/DSC_0889.JPG[/img][/url]"]
["[url=","http://kativ.eu/files/naviga/Pictures/2014_","C3","/","][img]","/Thumbs/","[/img][/url]","DSC_0890.JPG","[url=http://kativ.eu/files/naviga/Pictures/2014_C3/DSC_0890.JPG][img]http://kativ.eu/files/naviga/Pictures/2014_C3/Thumbs/DSC_0890.JPG[/img][/url]"]
["[url=","http://kativ.eu/files/naviga/Pictures/2014_","C3","/","][img]","/Thumbs/","[/img][/url]","DSC_0891.JPG","[url=http://kativ.eu/files/naviga/Pictures/2014_C3/DSC_0891.JPG][img]http://kativ.eu/files/naviga/Pictures/2014_C3/Thumbs/DSC_0891.JPG[/img][/url]"]
["[url=","http://kativ.eu/files/naviga/Pictures/2014_","C3","/","][img]","/Thumbs/","[/img][/url]","DSC_0892.JPG","[url=http://kativ.eu/files/naviga/Pictures/2014_C3/DSC_0892.JPG][img]http://kativ.eu/files/naviga/Pictures/2014_C3/Thumbs/DSC_0892.JPG[/img][/url]"]
["[url=","http://kativ.eu/files/naviga/Pictures/2014_","C3","/","][img]","/Thumbs/","[/img][/url]","DSC_0893.JPG","[url=http://kativ.eu/files/naviga/Pictures/2014_C3/DSC_0893.JPG][img]http://kativ.eu/files/naviga/Pictures/2014_C3/Thumbs/DSC_0893.JPG[/img][/url]"]
["[url=","http://kativ.eu/files/naviga/Pictures/2014_","C3","/","][img]","/Thumbs/","[/img][/url]","DSC_0894.JPG","[url=http://kativ.eu/files/naviga/Pictures/2014_C3/DSC_0894.JPG][img]http://kativ.eu/files/naviga/Pictures/2014_C3/Thumbs/DSC_0894.JPG[/img][/url]"]
["[url=","http://kativ.eu/files/naviga/Pictures/2014_","C3","/","][img]","/Thumbs/","[/img][/url]","DSC_0895.JPG","[url=http://kativ.eu/files/naviga/Pictures/2014_C3/DSC_0895.JPG][img]http://kativ.eu/files/naviga/Pictures/2014_C3/Thumbs/DSC_0895.JPG[/img][/url]"]
["[url=","http://kativ.eu/files/naviga/Pictures/2014_","C3","/","][img]","/Thumbs/","[/img][/url]","DSC_0896.JPG","[url=http://kativ.eu/files/naviga/Pictures/2014_C3/DSC_0896.JPG][img]http://kativ.eu/files/naviga/Pictures/2014_C3/Thumbs/DSC_0896.JPG[/img][/url]",{"$f":"ConcatRange(I91:I135,\" \")","v":"[url=http://kativ.eu/files/naviga/Pictures/2014_C3/DSC_0896.JPG][img]http://kativ.eu/files/naviga/Pictures/2014_C3/Thumbs/DSC_0896.JPG[/img][/url] [url=http://kativ.eu/files/naviga/Pictures/2014_C3/DSC_0897.JPG][img]http://kativ.eu/files/naviga/Pictures/2014_C3/Thumbs/DSC_0897.JPG[/img][/url] [url=http://kativ.eu/files/naviga/Pictures/2014_C3/DSC_0898.JPG][img]http://kativ.eu/files/naviga/Pictures/2014_C3/Thumbs/DSC_0898.JPG[/img][/url] [url=http://kativ.eu/files/naviga/Pictures/2014_C3/DSC_0899.JPG][img]http://kativ.eu/files/naviga/Pictures/2014_C3/Thumbs/DSC_0899.JPG[/img][/url] [url=http://kativ.eu/files/naviga/Pictures/2014_C3/DSC_0900.JPG][img]http://kativ.eu/files/naviga/Pictures/2014_C3/Thumbs/DSC_0900.JPG[/img][/url] [url=http://kativ.eu/files/naviga/Pictures/2014_C3/DSC_0901.JPG][img]http://kativ.eu/files/naviga/Pictures/2014_C3/Thumbs/DSC_0901.JPG[/img][/url] [url=http://kativ.eu/files/naviga/Pictures/2014_C3/DSC_0902.JPG][img]http://kativ.eu/files/naviga/Pictures/2014_C3/Thumbs/DSC_0902.JPG[/img][/url] [url=http://kativ.eu/files/naviga/Pictures/2014_C3/DSC_0903.JPG][img]http://kativ.eu/files/naviga/Pictures/2014_C3/Thumbs/DSC_0903.JPG[/img][/url] [url=http://kativ.eu/files/naviga/Pictures/2014_C3/DSC_0904.JPG][img]http://kativ.eu/files/naviga/Pictures/2014_C3/Thumbs/DSC_0904.JPG[/img][/url] [url=http://kativ.eu/files/naviga/Pictures/2014_C3/DSC_0905.JPG][img]http://kativ.eu/files/naviga/Pictures/2014_C3/Thumbs/DSC_0905.JPG[/img][/url] [url=http://kativ.eu/files/naviga/Pictures/2014_C3/DSC_0906.JPG][img]http://kativ.eu/files/naviga/Pictures/2014_C3/Thumbs/DSC_0906.JPG[/img][/url] [url=http://kativ.eu/files/naviga/Pictures/2014_C3/DSC_0907.JPG][img]http://kativ.eu/files/naviga/Pictures/2014_C3/Thumbs/DSC_0907.JPG[/img][/url] [url=http://kativ.eu/files/naviga/Pictures/2014_C3/DSC_0908.JPG][img]http://kativ.eu/files/naviga/Pictures/2014_C3/Thumbs/DSC_0908.JPG[/img][/url] [url=http://kativ.eu/files/naviga/Pictures/2014_C3/DSC_0910.JPG][img]http://kativ.eu/files/naviga/Pictures/2014_C3/Thumbs/DSC_0910.JPG[/img][/url] [url=http://kativ.eu/files/naviga/Pictures/2014_C3/DSC_0911.JPG][img]http://kativ.eu/files/naviga/Pictures/2014_C3/Thumbs/DSC_0911.JPG[/img][/url] [url=http://kativ.eu/files/naviga/Pictures/2014_C3/DSC_0912.JPG][img]http://kativ.eu/files/naviga/Pictures/2014_C3/Thumbs/DSC_0912.JPG[/img][/url] [url=http://kativ.eu/files/naviga/Pictures/2014_C3/DSC_0913.JPG][img]http://kativ.eu/files/naviga/Pictures/2014_C3/Thumbs/DSC_0913.JPG[/img][/url] [url=http://kativ.eu/files/naviga/Pictures/2014_C3/DSC_0914.JPG][img]http://kativ.eu/files/naviga/Pictures/2014_C3/Thumbs/DSC_0914.JPG[/img][/url] [url=http://kativ.eu/files/naviga/Pictures/2014_C3/DSC_0915.JPG][img]http://kativ.eu/files/naviga/Pictures/2014_C3/Thumbs/DSC_0915.JPG[/img][/url] [url=http://kativ.eu/files/naviga/Pictures/2014_C3/DSC_0916.JPG][img]http://kativ.eu/files/naviga/Pictures/2014_C3/Thumbs/DSC_0916.JPG[/img][/url] [url=http://kativ.eu/files/naviga/Pictures/2014_C3/DSC_0917.JPG][img]http://kativ.eu/files/naviga/Pictures/2014_C3/Thumbs/DSC_0917.JPG[/img][/url] [url=http://kativ.eu/files/naviga/Pictures/2014_C3/DSC_0918.JPG][img]http://kativ.eu/files/naviga/Pictures/2014_C3/Thumbs/DSC_0918.JPG[/img][/url] [url=http://kativ.eu/files/naviga/Pictures/2014_C3/DSC_0919.JPG][img]http://kativ.eu/files/naviga/Pictures/2014_C3/Thumbs/DSC_0919.JPG[/img][/url] [url=http://kativ.eu/files/naviga/Pictures/2014_C3/DSC_0920.JPG][img]http://kativ.eu/files/naviga/Pictures/2014_C3/Thumbs/DSC_0920.JPG[/img][/url] [url=http://kativ.eu/files/naviga/Pictures/2014_C3/DSC_0921.JPG][img]http://kativ.eu/files/naviga/Pictures/2014_C3/Thumbs/DSC_0921.JPG[/img][/url] [url=http://kativ.eu/files/naviga/Pictures/2014_C3/DSC_0922.JPG][img]http://kativ.eu/files/naviga/Pictures/2014_C3/Thumbs/DSC_0922.JPG[/img][/url] [url=http://kativ.eu/files/naviga/Pictures/2014_C3/DSC_0923.JPG][img]http://kativ.eu/files/naviga/Pictures/2014_C3/Thumbs/DSC_0923.JPG[/img][/url] [url=http://kativ.eu/files/naviga/Pictures/2014_C3/DSC_0924.JPG][img]http://kativ.eu/files/naviga/Pictures/2014_C3/Thumbs/DSC_0924.JPG[/img][/url] [url=http://kativ.eu/files/naviga/Pictures/2014_C3/DSC_0925.JPG][img]http://kativ.eu/files/naviga/Pictures/2014_C3/Thumbs/DSC_0925.JPG[/img][/url] [url=http://kativ.eu/files/naviga/Pictures/2014_C3/DSC_0926.JPG][img]http://kativ.eu/files/naviga/Pictures/2014_C3/Thumbs/DSC_0926.JPG[/img][/url] [url=http://kativ.eu/files/naviga/Pictures/2014_C3/DSC_0927.JPG][img]http://kativ.eu/files/naviga/Pictures/2014_C3/Thumbs/DSC_0927.JPG[/img][/url] [url=http://kativ.eu/files/naviga/Pictures/2014_C3/DSC_0928.JPG][img]http://kativ.eu/files/naviga/Pictures/2014_C3/Thumbs/DSC_0928.JPG[/img][/url] [url=http://kativ.eu/files/naviga/Pictures/2014_C3/DSC_0929.JPG][img]http://kativ.eu/files/naviga/Pictures/2014_C3/Thumbs/DSC_0929.JPG[/img][/url] [url=http://kativ.eu/files/naviga/Pictures/2014_C3/DSC_0930.JPG][img]http://kativ.eu/files/naviga/Pictures/2014_C3/Thumbs/DSC_0930.JPG[/img][/url] [url=http://kativ.eu/files/naviga/Pictures/2014_C3/DSC_0931.JPG][img]http://kativ.eu/files/naviga/Pictures/2014_C3/Thumbs/DSC_0931.JPG[/img][/url] [url=http://kativ.eu/files/naviga/Pictures/2014_C3/DSC_0932.JPG][img]http://kativ.eu/files/naviga/Pictures/2014_C3/Thumbs/DSC_0932.JPG[/img][/url] [url=http://kativ.eu/files/naviga/Pictures/2014_C3/DSC_0933.JPG][img]http://kativ.eu/files/naviga/Pictures/2014_C3/Thumbs/DSC_0933.JPG[/img][/url] [url=http://kativ.eu/files/naviga/Pictures/2014_C3/DSC_0934.JPG][img]http://kativ.eu/files/naviga/Pictures/2014_C3/Thumbs/DSC_0934.JPG[/img][/url] [url=http://kativ.eu/files/naviga/Pictures/2014_C3/DSC_0935.JPG][img]http://kativ.eu/files/naviga/Pictures/2014_C3/Thumbs/DSC_0935.JPG[/img][/url] [url=http://kativ.eu/files/naviga/Pictures/2014_C3/DSC_0936.JPG][img]http://kativ.eu/files/naviga/Pictures/2014_C3/Thumbs/DSC_0936.JPG[/img][/url] [url=http://kativ.eu/files/naviga/Pictures/2014_C3/DSC_0937.JPG][img]http://kativ.eu/files/naviga/Pictures/2014_C3/Thumbs/DSC_0937.JPG[/img][/url] [url=http://kativ.eu/files/naviga/Pictures/2014_C3/DSC_0938.JPG][img]http://kativ.eu/files/naviga/Pictures/2014_C3/Thumbs/DSC_0938.JPG[/img][/url] [url=http://kativ.eu/files/naviga/Pictures/2014_C3/DSC_0939.JPG][img]http://kativ.eu/files/naviga/Pictures/2014_C3/Thumbs/DSC_0939.JPG[/img][/url] [url=http://kativ.eu/files/naviga/Pictures/2014_C3/DSC_0940.JPG][img]http://kativ.eu/files/naviga/Pictures/2014_C3/Thumbs/DSC_0940.JPG[/img][/url] [url=http://kativ.eu/files/naviga/Pictures/2014_C3/DSC_0941.JPG][img]http://kativ.eu/files/naviga/Pictures/2014_C3/Thumbs/DSC_0941.JPG[/img][/url]"}]
["[url=","http://kativ.eu/files/naviga/Pictures/2014_","C3","/","][img]","/Thumbs/","[/img][/url]","DSC_0897.JPG","[url=http://kativ.eu/files/naviga/Pictures/2014_C3/DSC_0897.JPG][img]http://kativ.eu/files/naviga/Pictures/2014_C3/Thumbs/DSC_0897.JPG[/img][/url]"]
["[url=","http://kativ.eu/files/naviga/Pictures/2014_","C3","/","][img]","/Thumbs/","[/img][/url]","DSC_0898.JPG","[url=http://kativ.eu/files/naviga/Pictures/2014_C3/DSC_0898.JPG][img]http://kativ.eu/files/naviga/Pictures/2014_C3/Thumbs/DSC_0898.JPG[/img][/url]"]
["[url=","http://kativ.eu/files/naviga/Pictures/2014_","C3","/","][img]","/Thumbs/","[/img][/url]","DSC_0899.JPG","[url=http://kativ.eu/files/naviga/Pictures/2014_C3/DSC_0899.JPG][img]http://kativ.eu/files/naviga/Pictures/2014_C3/Thumbs/DSC_0899.JPG[/img][/url]"]
["[url=","http://kativ.eu/files/naviga/Pictures/2014_","C3","/","][img]","/Thumbs/","[/img][/url]","DSC_0900.JPG","[url=http://kativ.eu/files/naviga/Pictures/2014_C3/DSC_0900.JPG][img]http://kativ.eu/files/naviga/Pictures/2014_C3/Thumbs/DSC_0900.JPG[/img][/url]"]
["[url=","http://kativ.eu/files/naviga/Pictures/2014_","C3","/","][img]","/Thumbs/","[/img][/url]","DSC_0901.JPG","[url=http://kativ.eu/files/naviga/Pictures/2014_C3/DSC_0901.JPG][img]http://kativ.eu/files/naviga/Pictures/2014_C3/Thumbs/DSC_0901.JPG[/img][/url]"]
["[url=","http://kativ.eu/files/naviga/Pictures/2014_","C3","/","][img]","/Thumbs/","[/img][/url]","DSC_0902.JPG","[url=http://kativ.eu/files/naviga/Pictures/2014_C3/DSC_0902.JPG][img]http://kativ.eu/files/naviga/Pictures/2014_C3/Thumbs/DSC_0902.JPG[/img][/url]"]
["[url=","http://kativ.eu/files/naviga/Pictures/2014_","C3","/","][img]","/Thumbs/","[/img][/url]","DSC_0903.JPG","[url=http://kativ.eu/files/naviga/Pictures/2014_C3/DSC_0903.JPG][img]http://kativ.eu/files/naviga/Pictures/2014_C3/Thumbs/DSC_0903.JPG[/img][/url]"]
["[url=","http://kativ.eu/files/naviga/Pictures/2014_","C3","/","][img]","/Thumbs/","[/img][/url]","DSC_0904.JPG","[url=http://kativ.eu/files/naviga/Pictures/2014_C3/DSC_0904.JPG][img]http://kativ.eu/files/naviga/Pictures/2014_C3/Thumbs/DSC_0904.JPG[/img][/url]"]
["[url=","http://kativ.eu/files/naviga/Pictures/2014_","C3","/","][img]","/Thumbs/","[/img][/url]","DSC_0905.JPG","[url=http://kativ.eu/files/naviga/Pictures/2014_C3/DSC_0905.JPG][img]http://kativ.eu/files/naviga/Pictures/2014_C3/Thumbs/DSC_0905.JPG[/img][/url]"]
["[url=","http://kativ.eu/files/naviga/Pictures/2014_","C3","/","][img]","/Thumbs/","[/img][/url]","DSC_0906.JPG","[url=http://kativ.eu/files/naviga/Pictures/2014_C3/DSC_0906.JPG][img]http://kativ.eu/files/naviga/Pictures/2014_C3/Thumbs/DSC_0906.JPG[/img][/url]"]
["[url=","http://kativ.eu/files/naviga/Pictures/2014_","C3","/","][img]","/Thumbs/","[/img][/url]","DSC_0907.JPG","[url=http://kativ.eu/files/naviga/Pictures/2014_C3/DSC_0907.JPG][img]http://kativ.eu/files/naviga/Pictures/2014_C3/Thumbs/DSC_0907.JPG[/img][/url]"]
["[url=","http://kativ.eu/files/naviga/Pictures/2014_","C3","/","][img]","/Thumbs/","[/img][/url]","DSC_0908.JPG","[url=http://kativ.eu/files/naviga/Pictures/2014_C3/DSC_0908.JPG][img]http://kativ.eu/files/naviga/Pictures/2014_C3/Thumbs/DSC_0908.JPG[/img][/url]"]
["[url=","http://kativ.eu/files/naviga/Pictures/2014_","C3","/","][img]","/Thumbs/","[/img][/url]","DSC_0910.JPG","[url=http://kativ.eu/files/naviga/Pictures/2014_C3/DSC_0910.JPG][img]http://kativ.eu/files/naviga/Pictures/2014_C3/Thumbs/DSC_0910.JPG[/img][/url]"]
["[url=","http://kativ.eu/files/naviga/Pictures/2014_","C3","/","][img]","/Thumbs/","[/img][/url]","DSC_0911.JPG","[url=http://kativ.eu/files/naviga/Pictures/2014_C3/DSC_0911.JPG][img]http://kativ.eu/files/naviga/Pictures/2014_C3/Thumbs/DSC_0911.JPG[/img][/url]"]
["[url=","http://kativ.eu/files/naviga/Pictures/2014_","C3","/","][img]","/Thumbs/","[/img][/url]","DSC_0912.JPG","[url=http://kativ.eu/files/naviga/Pictures/2014_C3/DSC_0912.JPG][img]http://kativ.eu/files/naviga/Pictures/2014_C3/Thumbs/DSC_0912.JPG[/img][/url]"]
["[url=","http://kativ.eu/files/naviga/Pictures/2014_","C3","/","][img]","/Thumbs/","[/img][/url]","DSC_0913.JPG","[url=http://kativ.eu/files/naviga/Pictures/2014_C3/DSC_0913.JPG][img]http://kativ.eu/files/naviga/Pictures/2014_C3/Thumbs/DSC_0913.JPG[/img][/url]"]
["[url=","http://kativ.eu/files/naviga/Pictures/2014_","C3","/","][img]","/Thumbs/","[/img][/url]","DSC_0914.JPG","[url=http://kativ.eu/files/naviga/Pictures/2014_C3/DSC_0914.JPG][img]http://kativ.eu/files/naviga/Pictures/2014_C3/Thumbs/DSC_0914.JPG[/img][/url]"]
["[url=","http://kativ.eu/files/naviga/Pictures/2014_","C3","/","][img]","/Thumbs/","[/img][/url]","DSC_0915.JPG","[url=http://kativ.eu/files/naviga/Pictures/2014_C3/DSC_0915.JPG][img]http://kativ.eu/files/naviga/Pictures/2014_C3/Thumbs/DSC_0915.JPG[/img][/url]"]
["[url=","http://kativ.eu/files/naviga/Pictures/2014_","C3","/","][img]","/Thumbs/","[/img][/url]","DSC_0916.JPG","[url=http://kativ.eu/files/naviga/Pictures/2014_C3/DSC_0916.JPG][img]http://kativ.eu/files/naviga/Pictures/2014_C3/Thumbs/DSC_0916.JPG[/img][/url]"]
["[url=","http://kativ.eu/files/naviga/Pictures/2014_","C3","/","][img]","/Thumbs/","[/img][/url]","DSC_0917.JPG","[url=http://kativ.eu/files/naviga/Pictures/2014_C3/DSC_0917.JPG][img]http://kativ.eu/files/naviga/Pictures/2014_C3/Thumbs/DSC_0917.JPG[/img][/url]"]
["[url=","http://kativ.eu/files/naviga/Pictures/2014_","C3","/","][img]","/Thumbs/","[/img][/url]","DSC_0918.JPG","[url=http://kativ.eu/files/naviga/Pictures/2014_C3/DSC_0918.JPG][img]http://kativ.eu/files/naviga/Pictures/2014_C3/Thumbs/DSC_0918.JPG[/img][/url]"]
["[url=","http://kativ.eu/files/naviga/Pictures/2014_","C3","/","][img]","/Thumbs/","[/img][/url]","DSC_0919.JPG","[url=http://kativ.eu/files/naviga/Pictures/2014_C3/DSC_0919.JPG][img]http://kativ.eu/files/naviga/Pictures/2014_C3/Thumbs/DSC_0919.JPG[/img][/url]"]
["[url=","http://kativ.eu/files/naviga/Pictures/2014_","C3","/","][img]","/Thumbs/","[/img][/url]","DSC_0920.JPG","[url=http://kativ.eu/files/naviga/Pictures/2014_C3/DSC_0920.JPG][img]http://kativ.eu/files/naviga/Pictures/2014_C3/Thumbs/DSC_0920.JPG[/img][/url]"]
["[url=","http://kativ.eu/files/naviga/Pictures/2014_","C3","/","][img]","/Thumbs/","[/img][/url]","DSC_0921.JPG","[url=http://kativ.eu/files/naviga/Pictures/2014_C3/DSC_0921.JPG][img]http://kativ.eu/files/naviga/Pictures/2014_C3/Thumbs/DSC_0921.JPG[/img][/url]"]
["[url=","http://kativ.eu/files/naviga/Pictures/2014_","C3","/","][img]","/Thumbs/","[/img][/url]","DSC_0922.JPG","[url=http://kativ.eu/files/naviga/Pictures/2014_C3/DSC_0922.JPG][img]http://kativ.eu/files/naviga/Pictures/2014_C3/Thumbs/DSC_0922.JPG[/img][/url]"]
["[url=","http://kativ.eu/files/naviga/Pictures/2014_","C3","/","][img]","/Thumbs/","[/img][/url]","DSC_0923.JPG","[url=http://kativ.eu/files/naviga/Pictures/2014_C3/DSC_0923.JPG][img]http://kativ.eu/files/naviga/Pictures/2014_C3/Thumbs/DSC_0923.JPG[/img][/url]"]
["[url=","http://kativ.eu/files/naviga/Pictures/2014_","C3","/","][img]","/Thumbs/","[/img][/url]","DSC_0924.JPG","[url=http://kativ.eu/files/naviga/Pictures/2014_C3/DSC_0924.JPG][img]http://kativ.eu/files/naviga/Pictures/2014_C3/Thumbs/DSC_0924.JPG[/img][/url]"]
["[url=","http://kativ.eu/files/naviga/Pictures/2014_","C3","/","][img]","/Thumbs/","[/img][/url]","DSC_0925.JPG","[url=http://kativ.eu/files/naviga/Pictures/2014_C3/DSC_0925.JPG][img]http://kativ.eu/files/naviga/Pictures/2014_C3/Thumbs/DSC_0925.JPG[/img][/url]"]
["[url=","http://kativ.eu/files/naviga/Pictures/2014_","C3","/","][img]","/Thumbs/","[/img][/url]","DSC_0926.JPG","[url=http://kativ.eu/files/naviga/Pictures/2014_C3/DSC_0926.JPG][img]http://kativ.eu/files/naviga/Pictures/2014_C3/Thumbs/DSC_0926.JPG[/img][/url]"]
["[url=","http://kativ.eu/files/naviga/Pictures/2014_","C3","/","][img]","/Thumbs/","[/img][/url]","DSC_0927.JPG","[url=http://kativ.eu/files/naviga/Pictures/2014_C3/DSC_0927.JPG][img]http://kativ.eu/files/naviga/Pictures/2014_C3/Thumbs/DSC_0927.JPG[/img][/url]"]
["[url=","http://kativ.eu/files/naviga/Pictures/2014_","C3","/","][img]","/Thumbs/","[/img][/url]","DSC_0928.JPG","[url=http://kativ.eu/files/naviga/Pictures/2014_C3/DSC_0928.JPG][img]http://kativ.eu/files/naviga/Pictures/2014_C3/Thumbs/DSC_0928.JPG[/img][/url]"]
["[url=","http://kativ.eu/files/naviga/Pictures/2014_","C3","/","][img]","/Thumbs/","[/img][/url]","DSC_0929.JPG","[url=http://kativ.eu/files/naviga/Pictures/2014_C3/DSC_0929.JPG][img]http://kativ.eu/files/naviga/Pictures/2014_C3/Thumbs/DSC_0929.JPG[/img][/url]"]
["[url=","http://kativ.eu/files/naviga/Pictures/2014_","C3","/","][img]","/Thumbs/","[/img][/url]","DSC_0930.JPG","[url=http://kativ.eu/files/naviga/Pictures/2014_C3/DSC_0930.JPG][img]http://kativ.eu/files/naviga/Pictures/2014_C3/Thumbs/DSC_0930.JPG[/img][/url]"]
["[url=","http://kativ.eu/files/naviga/Pictures/2014_","C3","/","][img]","/Thumbs/","[/img][/url]","DSC_0931.JPG","[url=http://kativ.eu/files/naviga/Pictures/2014_C3/DSC_0931.JPG][img]http://kativ.eu/files/naviga/Pictures/2014_C3/Thumbs/DSC_0931.JPG[/img][/url]"]
["[url=","http://kativ.eu/files/naviga/Pictures/2014_","C3","/","][img]","/Thumbs/","[/img][/url]","DSC_0932.JPG","[url=http://kativ.eu/files/naviga/Pictures/2014_C3/DSC_0932.JPG][img]http://kativ.eu/files/naviga/Pictures/2014_C3/Thumbs/DSC_0932.JPG[/img][/url]"]
["[url=","http://kativ.eu/files/naviga/Pictures/2014_","C3","/","][img]","/Thumbs/","[/img][/url]","DSC_0933.JPG","[url=http://kativ.eu/files/naviga/Pictures/2014_C3/DSC_0933.JPG][img]http://kativ.eu/files/naviga/Pictures/2014_C3/Thumbs/DSC_0933.JPG[/img][/url]"]
["[url=","http://kativ.eu/files/naviga/Pictures/2014_","C3","/","][img]","/Thumbs/","[/img][/url]","DSC_0934.JPG","[url=http://kativ.eu/files/naviga/Pictures/2014_C3/DSC_0934.JPG][img]http://kativ.eu/files/naviga/Pictures/2014_C3/Thumbs/DSC_0934.JPG[/img][/url]"]
["[url=","http://kativ.eu/files/naviga/Pictures/2014_","C3","/","][img]","/Thumbs/","[/img][/url]","DSC_0935.JPG","[url=http://kativ.eu/files/naviga/Pictures/2014_C3/DSC_0935.JPG][img]http://kativ.eu/files/naviga/Pictures/2014_C3/Thumbs/DSC_0935.JPG[/img][/url]"]
["[url=","http://kativ.eu/files/naviga/Pictures/2014_","C3","/","][img]","/Thumbs/","[/img][/url]","DSC_0936.JPG",{"$f":"CONCATENATE(A130,B130,C130,D130,H130,E130,B130,C130,F130,H130,G130)","v":"[url=http://kativ.eu/files/naviga/Pictures/2014_C3/DSC_0936.JPG][img]http://kativ.eu/files/naviga/Pictures/2014_C3/Thumbs/DSC_0936.JPG[/img][/url]"}]
["[url=","http://kativ.eu/files/naviga/Pictures/2014_","C3","/","][img]","/Thumbs/","[/img][/url]","DSC_0937.JPG","[url=http://kativ.eu/files/naviga/Pictures/2014_C3/DSC_0937.JPG][img]http://kativ.eu/files/naviga/Pictures/2014_C3/Thumbs/DSC_0937.JPG[/img][/url]"]
["[url=","http://kativ.eu/files/naviga/Pictures/2014_","C3","/","][img]","/Thumbs/","[/img][/url]","DSC_0938.JPG","[url=http://kativ.eu/files/naviga/Pictures/2014_C3/DSC_0938.JPG][img]http://kativ.eu/files/naviga/Pictures/2014_C3/Thumbs/DSC_0938.JPG[/img][/url]"]
["[url=","http://kativ.eu/files/naviga/Pictures/2014_","C3","/","][img]","/Thumbs/","[/img][/url]","DSC_0939.JPG","[url=http://kativ.eu/files/naviga/Pictures/2014_C3/DSC_0939.JPG][img]http://kativ.eu/files/naviga/Pictures/2014_C3/Thumbs/DSC_0939.JPG[/img][/url]"]
["[url=","http://kativ.eu/files/naviga/Pictures/2014_","C3","/","][img]","/Thumbs/","[/img][/url]","DSC_0940.JPG","[url=http://kativ.eu/files/naviga/Pictures/2014_C3/DSC_0940.JPG][img]http://kativ.eu/files/naviga/Pictures/2014_C3/Thumbs/DSC_0940.JPG[/img][/url]"]
["[url=","http://kativ.eu/files/naviga/Pictures/2014_","C3","/","][img]","/Thumbs/","[/img][/url]","DSC_0941.JPG","[url=http://kativ.eu/files/naviga/Pictures/2014_C3/DSC_0941.JPG][img]http://kativ.eu/files/naviga/Pictures/2014_C3/Thumbs/DSC_0941.JPG[/img][/url]"]
["[url=","http://kativ.eu/files/naviga/Pictures/2014_","C3","/","][img]","/Thumbs/","[/img][/url]","DSC_0942.JPG","[url=http://kativ.eu/files/naviga/Pictures/2014_C3/DSC_0942.JPG][img]http://kativ.eu/files/naviga/Pictures/2014_C3/Thumbs/DSC_0942.JPG[/img][/url]",{"$f":"ConcatRange(I136:I179,\" \")","v":"[url=http://kativ.eu/files/naviga/Pictures/2014_C3/DSC_0942.JPG][img]http://kativ.eu/files/naviga/Pictures/2014_C3/Thumbs/DSC_0942.JPG[/img][/url] [url=http://kativ.eu/files/naviga/Pictures/2014_C3/DSC_0943.JPG][img]http://kativ.eu/files/naviga/Pictures/2014_C3/Thumbs/DSC_0943.JPG[/img][/url] [url=http://kativ.eu/files/naviga/Pictures/2014_C3/DSC_0944.JPG][img]http://kativ.eu/files/naviga/Pictures/2014_C3/Thumbs/DSC_0944.JPG[/img][/url] [url=http://kativ.eu/files/naviga/Pictures/2014_C3/DSC_0945.JPG][img]http://kativ.eu/files/naviga/Pictures/2014_C3/Thumbs/DSC_0945.JPG[/img][/url] [url=http://kativ.eu/files/naviga/Pictures/2014_C3/DSC_0946.JPG][img]http://kativ.eu/files/naviga/Pictures/2014_C3/Thumbs/DSC_0946.JPG[/img][/url] [url=http://kativ.eu/files/naviga/Pictures/2014_C3/DSC_0947.JPG][img]http://kativ.eu/files/naviga/Pictures/2014_C3/Thumbs/DSC_0947.JPG[/img][/url] [url=http://kativ.eu/files/naviga/Pictures/2014_C3/DSC_0948.JPG][img]http://kativ.eu/files/naviga/Pictures/2014_C3/Thumbs/DSC_0948.JPG[/img][/url] [url=http://kativ.eu/files/naviga/Pictures/2014_C3/DSC_0949.JPG][img]http://kativ.eu/files/naviga/Pictures/2014_C3/Thumbs/DSC_0949.JPG[/img][/url] [url=http://kativ.eu/files/naviga/Pictures/2014_C3/DSC_0951.JPG][img]http://kativ.eu/files/naviga/Pictures/2014_C3/Thumbs/DSC_0951.JPG[/img][/url] [url=http://kativ.eu/files/naviga/Pictures/2014_C3/DSC_0952.JPG][img]http://kativ.eu/files/naviga/Pictures/2014_C3/Thumbs/DSC_0952.JPG[/img][/url] [url=http://kativ.eu/files/naviga/Pictures/2014_C3/DSC_0953.JPG][img]http://kativ.eu/files/naviga/Pictures/2014_C3/Thumbs/DSC_0953.JPG[/img][/url] [url=http://kativ.eu/files/naviga/Pictures/2014_C3/DSC_0954.JPG][img]http://kativ.eu/files/naviga/Pictures/2014_C3/Thumbs/DSC_0954.JPG[/img][/url] [url=http://kativ.eu/files/naviga/Pictures/2014_C3/DSC_0955.JPG][img]http://kativ.eu/files/naviga/Pictures/2014_C3/Thumbs/DSC_0955.JPG[/img][/url] [url=http://kativ.eu/files/naviga/Pictures/2014_C3/DSC_0956.JPG][img]http://kativ.eu/files/naviga/Pictures/2014_C3/Thumbs/DSC_0956.JPG[/img][/url] [url=http://kativ.eu/files/naviga/Pictures/2014_C3/DSC_0957.JPG][img]http://kativ.eu/files/naviga/Pictures/2014_C3/Thumbs/DSC_0957.JPG[/img][/url] [url=http://kativ.eu/files/naviga/Pictures/2014_C3/DSC_0958.JPG][img]http://kativ.eu/files/naviga/Pictures/2014_C3/Thumbs/DSC_0958.JPG[/img][/url] [url=http://kativ.eu/files/naviga/Pictures/2014_C3/DSC_0959.JPG][img]http://kativ.eu/files/naviga/Pictures/2014_C3/Thumbs/DSC_0959.JPG[/img][/url] [url=http://kativ.eu/files/naviga/Pictures/2014_C3/DSC_0960.JPG][img]http://kativ.eu/files/naviga/Pictures/2014_C3/Thumbs/DSC_0960.JPG[/img][/url] [url=http://kativ.eu/files/naviga/Pictures/2014_C3/DSC_0961.JPG][img]http://kativ.eu/files/naviga/Pictures/2014_C3/Thumbs/DSC_0961.JPG[/img][/url] [url=http://kativ.eu/files/naviga/Pictures/2014_C3/DSC_0962.JPG][img]http://kativ.eu/files/naviga/Pictures/2014_C3/Thumbs/DSC_0962.JPG[/img][/url] [url=http://kativ.eu/files/naviga/Pictures/2014_C3/DSC_0963.JPG][img]http://kativ.eu/files/naviga/Pictures/2014_C3/Thumbs/DSC_0963.JPG[/img][/url] [url=http://kativ.eu/files/naviga/Pictures/2014_C3/DSC_0964.JPG][img]http://kativ.eu/files/naviga/Pictures/2014_C3/Thumbs/DSC_0964.JPG[/img][/url] [url=http://kativ.eu/files/naviga/Pictures/2014_C3/DSC_0965.JPG][img]http://kativ.eu/files/naviga/Pictures/2014_C3/Thumbs/DSC_0965.JPG[/img][/url] [url=http://kativ.eu/files/naviga/Pictures/2014_C3/DSC_0966.JPG][img]http://kativ.eu/files/naviga/Pictures/2014_C3/Thumbs/DSC_0966.JPG[/img][/url] [url=http://kativ.eu/files/naviga/Pictures/2014_C3/DSC_0967.JPG][img]http://kativ.eu/files/naviga/Pictures/2014_C3/Thumbs/DSC_0967.JPG[/img][/url] [url=http://kativ.eu/files/naviga/Pictures/2014_C3/DSC_0968.JPG][img]http://kativ.eu/files/naviga/Pictures/2014_C3/Thumbs/DSC_0968.JPG[/img][/url] [url=http://kativ.eu/files/naviga/Pictures/2014_C3/DSC_0969.JPG][img]http://kativ.eu/files/naviga/Pictures/2014_C3/Thumbs/DSC_0969.JPG[/img][/url] [url=http://kativ.eu/files/naviga/Pictures/2014_C3/DSC_0970.JPG][img]http://kativ.eu/files/naviga/Pictures/2014_C3/Thumbs/DSC_0970.JPG[/img][/url] [url=http://kativ.eu/files/naviga/Pictures/2014_C3/DSC_0971.JPG][img]http://kativ.eu/files/naviga/Pictures/2014_C3/Thumbs/DSC_0971.JPG[/img][/url] [url=http://kativ.eu/files/naviga/Pictures/2014_C3/DSC_0972.JPG][img]http://kativ.eu/files/naviga/Pictures/2014_C3/Thumbs/DSC_0972.JPG[/img][/url] [url=http://kativ.eu/files/naviga/Pictures/2014_C3/DSC_0973.JPG][img]http://kativ.eu/files/naviga/Pictures/2014_C3/Thumbs/DSC_0973.JPG[/img][/url] [url=http://kativ.eu/files/naviga/Pictures/2014_C3/DSC_1066.JPG][img]http://kativ.eu/files/naviga/Pictures/2014_C3/Thumbs/DSC_1066.JPG[/img][/url] [url=http://kativ.eu/files/naviga/Pictures/2014_C3/DSC_1067.JPG][img]http://kativ.eu/files/naviga/Pictures/2014_C3/Thumbs/DSC_1067.JPG[/img][/url] [url=http://kativ.eu/files/naviga/Pictures/2014_C3/DSC_1068.JPG][img]http://kativ.eu/files/naviga/Pictures/2014_C3/Thumbs/DSC_1068.JPG[/img][/url] [url=http://kativ.eu/files/naviga/Pictures/2014_C3/DSC_1069.JPG][img]http://kativ.eu/files/naviga/Pictures/2014_C3/Thumbs/DSC_1069.JPG[/img][/url] [url=http://kativ.eu/files/naviga/Pictures/2014_C3/DSC_1070.JPG][img]http://kativ.eu/files/naviga/Pictures/2014_C3/Thumbs/DSC_1070.JPG[/img][/url] [url=http://kativ.eu/files/naviga/Pictures/2014_C3/DSC_1071.JPG][img]http://kativ.eu/files/naviga/Pictures/2014_C3/Thumbs/DSC_1071.JPG[/img][/url] [url=http://kativ.eu/files/naviga/Pictures/2014_C3/DSC_1072.JPG][img]http://kativ.eu/files/naviga/Pictures/2014_C3/Thumbs/DSC_1072.JPG[/img][/url] [url=http://kativ.eu/files/naviga/Pictures/2014_C3/DSC_1073.JPG][img]http://kativ.eu/files/naviga/Pictures/2014_C3/Thumbs/DSC_1073.JPG[/img][/url] [url=http://kativ.eu/files/naviga/Pictures/2014_C3/DSC_1074.JPG][img]http://kativ.eu/files/naviga/Pictures/2014_C3/Thumbs/DSC_1074.JPG[/img][/url] [url=http://kativ.eu/files/naviga/Pictures/2014_C3/DSC_1075.JPG][img]http://kativ.eu/files/naviga/Pictures/2014_C3/Thumbs/DSC_1075.JPG[/img][/url] [url=http://kativ.eu/files/naviga/Pictures/2014_C3/DSC_1076.JPG][img]http://kativ.eu/files/naviga/Pictures/2014_C3/Thumbs/DSC_1076.JPG[/img][/url] [url=http://kativ.eu/files/naviga/Pictures/2014_C3/DSC_1077.JPG][img]http://kativ.eu/files/naviga/Pictures/2014_C3/Thumbs/DSC_1077.JPG[/img][/url] [url=http://kativ.eu/files/naviga/Pictures/2014_C3/DSC_1078.JPG][img]http://kativ.eu/files/naviga/Pictures/2014_C3/Thumbs/DSC_1078.JPG[/img][/url]"}]
["[url=","http://kativ.eu/files/naviga/Pictures/2014_","C3","/","][img]","/Thumbs/","[/img][/url]","DSC_0943.JPG","[url=http://kativ.eu/files/naviga/Pictures/2014_C3/DSC_0943.JPG][img]http://kativ.eu/files/naviga/Pictures/2014_C3/Thumbs/DSC_0943.JPG[/img][/url]"]
["[url=","http://kativ.eu/files/naviga/Pictures/2014_","C3","/","][img]","/Thumbs/","[/img][/url]","DSC_0944.JPG","[url=http://kativ.eu/files/naviga/Pictures/2014_C3/DSC_0944.JPG][img]http://kativ.eu/files/naviga/Pictures/2014_C3/Thumbs/DSC_0944.JPG[/img][/url]"]
["[url=","http://kativ.eu/files/naviga/Pictures/2014_","C3","/","][img]","/Thumbs/","[/img][/url]","DSC_0945.JPG","[url=http://kativ.eu/files/naviga/Pictures/2014_C3/DSC_0945.JPG][img]http://kativ.eu/files/naviga/Pictures/2014_C3/Thumbs/DSC_0945.JPG[/img][/url]"]
["[url=","http://kativ.eu/files/naviga/Pictures/2014_","C3","/","][img]","/Thumbs/","[/img][/url]","DSC_0946.JPG","[url=http://kativ.eu/files/naviga/Pictures/2014_C3/DSC_0946.JPG][img]http://kativ.eu/files/naviga/Pictures/2014_C3/Thumbs/DSC_0946.JPG[/img][/url]"]
["[url=","http://kativ.eu/files/naviga/Pictures/2014_","C3","/","][img]","/Thumbs/","[/img][/url]","DSC_0947.JPG","[url=http://kativ.eu/files/naviga/Pictures/2014_C3/DSC_0947.JPG][img]http://kativ.eu/files/naviga/Pictures/2014_C3/Thumbs/DSC_0947.JPG[/img][/url]"]
["[url=","http://kativ.eu/files/naviga/Pictures/2014_","C3","/","][img]","/Thumbs/","[/img][/url]","DSC_0948.JPG","[url=http://kativ.eu/files/naviga/Pictures/2014_C3/DSC_0948.JPG][img]http://kativ.eu/files/naviga/Pictures/2014_C3/Thumbs/DSC_0948.JPG[/img][/url]"]
["[url=","http://kativ.eu/files/naviga/Pictures/2014_","C3","/","][img]","/Thumbs/","[/img][/url]","DSC_0949.JPG","[url=http://kativ.eu/files/naviga/Pictures/2014_C3/DSC_0949.JPG][img]http://kativ.eu/files/naviga/Pictures/2014_C3/Thumbs/DSC_0949.JPG[/img][/url]"]
["[url=","http://kativ.eu/files/naviga/Pictures/2014_","C3","/","][img]","/Thumbs/","[/img][/url]","DSC_0951.JPG","[url=http://kativ.eu/files/naviga/Pictures/2014_C3/DSC_0951.JPG][img]http://kativ.eu/files/naviga/Pictures/2014_C3/Thumbs/DSC_0951.JPG[/img][/url]"]
["[url=","http://kativ.eu/files/naviga/Pictures/2014_","C3","/","][img]","/Thumbs/","[/img][/url]","DSC_0952.JPG","[url=http://kativ.eu/files/naviga/Pictures/2014_C3/DSC_0952.JPG][img]http://kativ.eu/files/naviga/Pictures/2014_C3/Thumbs/DSC_0952.JPG[/img][/url]"]
["[url=","http://kativ.eu/files/naviga/Pictures/2014_","C3","/","][img]","/Thumbs/","[/img][/url]","DSC_0953.JPG","[url=http://kativ.eu/files/naviga/Pictures/2014_C3/DSC_0953.JPG][img]http://kativ.eu/files/naviga/Pictures/2014_C3/Thumbs/DSC_0953.JPG[/img][/url]"]
["[url=","http://kativ.eu/files/naviga/Pictures/2014_","C3","/","][img]","/Thumbs/","[/img][/url]","DSC_0954.JPG","[url=http://kativ.eu/files/naviga/Pictures/2014_C3/DSC_0954.JPG][img]http://kativ.eu/files/naviga/Pictures/2014_C3/Thumbs/DSC_0954.JPG[/img][/url]"]
["[url=","http://kativ.eu/files/naviga/Pictures/2014_","C3","/","][img]","/Thumbs/","[/img][/url]","DSC_0955.JPG","[url=http://kativ.eu/files/naviga/Pictures/2014_C3/DSC_0955.JPG][img]http://kativ.eu/files/naviga/Pictures/2014_C3/Thumbs/DSC_0955.JPG[/img][/url]"]
["[url=","http://kativ.eu/files/naviga/Pictures/2014_","C3","/","][img]","/Thumbs/","[/img][/url]","DSC_0956.JPG","[url=http://kativ.eu/files/naviga/Pictures/2014_C3/DSC_0956.JPG][img]http://kativ.eu/files/naviga/Pictures/2014_C3/Thumbs/DSC_0956.JPG[/img][/url]"]
["[url=","http://kativ.eu/files/naviga/Pictures/2014_","C3","/","][img]","/Thumbs/","[/img][/url]","DSC_0957.JPG","[url=http://kativ.eu/files/naviga/Pictures/2014_C3/DSC_0957.JPG][img]http://kativ.eu/files/naviga/Pictures/2014_C3/Thumbs/DSC_0957.JPG[/img][/url]"]
["[url=","http://kativ.eu/files/naviga/Pictures/2014_","C3","/","][img]","/Thumbs/","[/img][/url]","DSC_0958.JPG","[url=http://kativ.eu/files/naviga/Pictures/2014_C3/DSC_0958.JPG][img]http://kativ.eu/files/naviga/Pictures/2014_C3/Thumbs/DSC_0958.JPG[/img][/url]"]
["[url=","http://kativ.eu/files/naviga/Pictures/2014_","C3","/","][img]","/Thumbs/","[/img][/url]","DSC_0959.JPG","[url=http://kativ.eu/files/naviga/Pictures/2014_C3/DSC_0959.JPG][img]http://kativ.eu/files/naviga/Pictures/2014_C3/Thumbs/DSC_0959.JPG[/img][/url]"]
["[url=","http://kativ.eu/files/naviga/Pictures/2014_","C3","/","][img]","/Thumbs/","[/img][/url]","DSC_0960.JPG","[url=http://kativ.eu/files/naviga/Pictures/2014_C3/DSC_0960.JPG][img]http://kativ.eu/files/naviga/Pictures/2014_C3/Thumbs/DSC_0960.JPG[/img][/url]"]
["[url=","http://kativ.eu/files/naviga/Pictures/2014_","C3","/","][img]","/Thumbs/","[/img][/url]","DSC_0961.JPG","[url=http://kativ.eu/files/naviga/Pictures/2014_C3/DSC_0961.JPG][img]http://kativ.eu/files/naviga/Pictures/2014_C3/Thumbs/DSC_0961.JPG[/img][/url]"]
["[url=","http://kativ.eu/files/naviga/Pictures/2014_","C3","/","][img]","/Thumbs/","[/img][/url]","DSC_0962.JPG","[url=http://kativ.eu/files/naviga/Pictures/2014_C3/DSC_0962.JPG][img]http://kativ.eu/files/naviga/Pictures/2014_C3/Thumbs/DSC_0962.JPG[/img][/url]"]
["[url=","http://kativ.eu/files/naviga/Pictures/2014_","C3","/","][img]","/Thumbs/","[/img][/url]","DSC_0963.JPG","[url=http://kativ.eu/files/naviga/Pictures/2014_C3/DSC_0963.JPG][img]http://kativ.eu/files/naviga/Pictures/2014_C3/Thumbs/DSC_0963.JPG[/img][/url]"]
["[url=","http://kativ.eu/files/naviga/Pictures/2014_","C3","/","][img]","/Thumbs/","[/img][/url]","DSC_0964.JPG","[url=http://kativ.eu/files/naviga/Pictures/2014_C3/DSC_0964.JPG][img]http://kativ.eu/files/naviga/Pictures/2014_C3/Thumbs/DSC_0964.JPG[/img][/url]"]
["[url=","http://kativ.eu/files/naviga/Pictures/2014_","C3","/","][img]","/Thumbs/","[/img][/url]","DSC_0965.JPG","[url=http://kativ.eu/files/naviga/Pictures/2014_C3/DSC_0965.JPG][img]http://kativ.eu/files/naviga/Pictures/2014_C3/Thumbs/DSC_0965.JPG[/img][/url]"]
["[url=","http://kativ.eu/files/naviga/Pictures/2014_","C3","/","][img]","/Thumbs/","[/img][/url]","DSC_0966.JPG","[url=http://kativ.eu/files/naviga/Pictures/2014_C3/DSC_0966.JPG][img]http://kativ.eu/files/naviga/Pictures/2014_C3/Thumbs/DSC_0966.JPG[/img][/url]"]
["[url=","http://kativ.eu/files/naviga/Pictures/2014_","C3","/","][img]","/Thumbs/","[/img][/url]","DSC_0967.JPG","[url=http://kativ.eu/files/naviga/Pictures/2014_C3/DSC_0967.JPG][img]http://kativ.eu/files/naviga/Pictures/2014_C3/Thumbs/DSC_0967.JPG[/img][/url]"]
["[url=","http://kativ.eu/files/naviga/Pictures/2014_","C3","/","][img]","/Thumbs/","[/img][/url]","DSC_0968.JPG","[url=http://kativ.eu/files/naviga/Pictures/2014_C3/DSC_0968.JPG][img]http://kativ.eu/files/naviga/Pictures/2014_C3/Thumbs/DSC_0968.JPG[/img][/url]"]
["[url=","http://kativ.eu/files/naviga/Pictures/2014_","C3","/","][img]","/Thumbs/","[/img][/url]","DSC_0969.JPG","[url=http://kativ.eu/files/naviga/Pictures/2014_C3/DSC_0969.JPG][img]http://kativ.eu/files/naviga/Pictures/2014_C3/Thumbs/DSC_0969.JPG[/img][/url]"]
["[url=","http://kativ.eu/files/naviga/Pictures/2014_","C3","/","][img]","/Thumbs/","[/img][/url]","DSC_0970.JPG","[url=http://kativ.eu/files/naviga/Pictures/2014_C3/DSC_0970.JPG][img]http://kativ.eu/files/naviga/Pictures/2014_C3/Thumbs/DSC_0970.JPG[/img][/url]"]
["[url=","http://kativ.eu/files/naviga/Pictures/2014_","C3","/","][img]","/Thumbs/","[/img][/url]","DSC_0971.JPG","[url=http://kativ.eu/files/naviga/Pictures/2014_C3/DSC_0971.JPG][img]http://kativ.eu/files/naviga/Pictures/2014_C3/Thumbs/DSC_0971.JPG[/img][/url]"]
["[url=","http://kativ.eu/files/naviga/Pictures/2014_","C3","/","][img]","/Thumbs/","[/img][/url]","DSC_0972.JPG","[url=http://kativ.eu/files/naviga/Pictures/2014_C3/DSC_0972.JPG][img]http://kativ.eu/files/naviga/Pictures/2014_C3/Thumbs/DSC_0972.JPG[/img][/url]"]
["[url=","http://kativ.eu/files/naviga/Pictures/2014_","C3","/","][img]","/Thumbs/","[/img][/url]","DSC_0973.JPG","[url=http://kativ.eu/files/naviga/Pictures/2014_C3/DSC_0973.JPG][img]http://kativ.eu/files/naviga/Pictures/2014_C3/Thumbs/DSC_0973.JPG[/img][/url]"]
["[url=","http://kativ.eu/files/naviga/Pictures/2014_","C3","/","][img]","/Thumbs/","[/img][/url]","DSC_1066.JPG","[url=http://kativ.eu/files/naviga/Pictures/2014_C3/DSC_1066.JPG][img]http://kativ.eu/files/naviga/Pictures/2014_C3/Thumbs/DSC_1066.JPG[/img][/url]"]
["[url=","http://kativ.eu/files/naviga/Pictures/2014_","C3","/","][img]","/Thumbs/","[/img][/url]","DSC_1067.JPG","[url=http://kativ.eu/files/naviga/Pictures/2014_C3/DSC_1067.JPG][img]http://kativ.eu/files/naviga/Pictures/2014_C3/Thumbs/DSC_1067.JPG[/img][/url]"]
["[url=","http://kativ.eu/files/naviga/Pictures/2014_","C3","/","][img]","/Thumbs/","[/img][/url]","DSC_1068.JPG","[url=http://kativ.eu/files/naviga/Pictures/2014_C3/DSC_1068.JPG][img]http://kativ.eu/files/naviga/Pictures/2014_C3/Thumbs/DSC_1068.JPG[/img][/url]"]
["[url=","http://kativ.eu/files/naviga/Pictures/2014_","C3","/","][img]","/Thumbs/","[/img][/url]","DSC_1069.JPG","[url=http://kativ.eu/files/naviga/Pictures/2014_C3/DSC_1069.JPG][img]http://kativ.eu/files/naviga/Pictures/2014_C3/Thumbs/DSC_1069.JPG[/img][/url]"]
["[url=","http://kativ.eu/files/naviga/Pictures/2014_","C3","/","][img]","/Thumbs/","[/img][/url]","DSC_1070.JPG","[url=http://kativ.eu/files/naviga/Pictures/2014_C3/DSC_1070.JPG][img]http://kativ.eu/files/naviga/Pictures/2014_C3/Thumbs/DSC_1070.JPG[/img][/url]"]
["[url=","http://kativ.eu/files/naviga/Pictures/2014_","C3","/","][img]","/Thumbs/","[/img][/url]","DSC_1071.JPG","[url=http://kativ.eu/files/naviga/Pictures/2014_C3/DSC_1071.JPG][img]http://kativ.eu/files/naviga/Pictures/2014_C3/Thumbs/DSC_1071.JPG[/img][/url]"]
["[url=","http://kativ.eu/files/naviga/Pictures/2014_","C3","/","][img]","/Thumbs/","[/img][/url]","DSC_1072.JPG","[url=http://kativ.eu/files/naviga/Pictures/2014_C3/DSC_1072.JPG][img]http://kativ.eu/files/naviga/Pictures/2014_C3/Thumbs/DSC_1072.JPG[/img][/url]"]
["[url=","http://kativ.eu/files/naviga/Pictures/2014_","C3","/","][img]","/Thumbs/","[/img][/url]","DSC_1073.JPG","[url=http://kativ.eu/files/naviga/Pictures/2014_C3/DSC_1073.JPG][img]http://kativ.eu/files/naviga/Pictures/2014_C3/Thumbs/DSC_1073.JPG[/img][/url]"]
["[url=","http://kativ.eu/files/naviga/Pictures/2014_","C3","/","][img]","/Thumbs/","[/img][/url]","DSC_1074.JPG","[url=http://kativ.eu/files/naviga/Pictures/2014_C3/DSC_1074.JPG][img]http://kativ.eu/files/naviga/Pictures/2014_C3/Thumbs/DSC_1074.JPG[/img][/url]"]
["[url=","http://kativ.eu/files/naviga/Pictures/2014_","C3","/","][img]","/Thumbs/","[/img][/url]","DSC_1075.JPG","[url=http://kativ.eu/files/naviga/Pictures/2014_C3/DSC_1075.JPG][img]http://kativ.eu/files/naviga/Pictures/2014_C3/Thumbs/DSC_1075.JPG[/img][/url]"]
["[url=","http://kativ.eu/files/naviga/Pictures/2014_","C3","/","][img]","/Thumbs/","[/img][/url]","DSC_1076.JPG","[url=http://kativ.eu/files/naviga/Pictures/2014_C3/DSC_1076.JPG][img]http://kativ.eu/files/naviga/Pictures/2014_C3/Thumbs/DSC_1076.JPG[/img][/url]"]
["[url=","http://kativ.eu/files/naviga/Pictures/2014_","C3","/","][img]","/Thumbs/","[/img][/url]","DSC_1077.JPG","[url=http://kativ.eu/files/naviga/Pictures/2014_C3/DSC_1077.JPG][img]http://kativ.eu/files/naviga/Pictures/2014_C3/Thumbs/DSC_1077.JPG[/img][/url]"]
["[url=","http://kativ.eu/files/naviga/Pictures/2014_","C3","/","][img]","/Thumbs/","[/img][/url]","DSC_1078.JPG","[url=http://kativ.eu/files/naviga/Pictures/2014_C3/DSC_1078.JPG][img]http://kativ.eu/files/naviga/Pictures/2014_C3/Thumbs/DSC_1078.JPG[/img][/url]"]

{"sheet":"C4","index":4,"n_rows":39,"n_cols":10,"rows_kept":39,"cut":false,"hidden":false,"merged":[]}
["[url=","http://kativ.eu/files/naviga/Pictures/2014_","C4","/","][img]","/Thumbs/","[/img][/url]","DSC_0661.JPG",{"$f":"CONCATENATE(A1,B1,C1,D1,H1,E1,B1,C1,F1,H1,G1)","v":"[url=http://kativ.eu/files/naviga/Pictures/2014_C4/DSC_0661.JPG][img]http://kativ.eu/files/naviga/Pictures/2014_C4/Thumbs/DSC_0661.JPG[/img][/url]"},{"$f":"ConcatRange(I1:I39,\" \")","v":"[url=http://kativ.eu/files/naviga/Pictures/2014_C4/DSC_0661.JPG][img]http://kativ.eu/files/naviga/Pictures/2014_C4/Thumbs/DSC_0661.JPG[/img][/url] [url=http://kativ.eu/files/naviga/Pictures/2014_C4/DSC_0662.JPG][img]http://kativ.eu/files/naviga/Pictures/2014_C4/Thumbs/DSC_0662.JPG[/img][/url] [url=http://kativ.eu/files/naviga/Pictures/2014_C4/DSC_0663.JPG][img]http://kativ.eu/files/naviga/Pictures/2014_C4/Thumbs/DSC_0663.JPG[/img][/url] [url=http://kativ.eu/files/naviga/Pictures/2014_C4/DSC_1271.JPG][img]http://kativ.eu/files/naviga/Pictures/2014_C4/Thumbs/DSC_1271.JPG[/img][/url] [url=http://kativ.eu/files/naviga/Pictures/2014_C4/DSC_1272.JPG][img]http://kativ.eu/files/naviga/Pictures/2014_C4/Thumbs/DSC_1272.JPG[/img][/url] [url=http://kativ.eu/files/naviga/Pictures/2014_C4/DSC_1273.JPG][img]http://kativ.eu/files/naviga/Pictures/2014_C4/Thumbs/DSC_1273.JPG[/img][/url] [url=http://kativ.eu/files/naviga/Pictures/2014_C4/DSC_1274.JPG][img]http://kativ.eu/files/naviga/Pictures/2014_C4/Thumbs/DSC_1274.JPG[/img][/url] [url=http://kativ.eu/files/naviga/Pictures/2014_C4/DSC_1275.JPG][img]http://kativ.eu/files/naviga/Pictures/2014_C4/Thumbs/DSC_1275.JPG[/img][/url] [url=http://kativ.eu/files/naviga/Pictures/2014_C4/DSC_1276.JPG][img]http://kativ.eu/files/naviga/Pictures/2014_C4/Thumbs/DSC_1276.JPG[/img][/url] [url=http://kativ.eu/files/naviga/Pictures/2014_C4/DSC_1277.JPG][img]http://kativ.eu/files/naviga/Pictures/2014_C4/Thumbs/DSC_1277.JPG[/img][/url] [url=http://kativ.eu/files/naviga/Pictures/2014_C4/DSC_1278.JPG][img]http://kativ.eu/files/naviga/Pictures/2014_C4/Thumbs/DSC_1278.JPG[/img][/url] [url=http://kativ.eu/files/naviga/Pictures/2014_C4/DSC_1279.JPG][img]http://kativ.eu/files/naviga/Pictures/2014_C4/Thumbs/DSC_1279.JPG[/img][/url] [url=http://kativ.eu/files/naviga/Pictures/2014_C4/DSC_1280.JPG][img]http://kativ.eu/files/naviga/Pictures/2014_C4/Thumbs/DSC_1280.JPG[/img][/url] [url=http://kativ.eu/files/naviga/Pictures/2014_C4/DSC_1284.JPG][img]http://kativ.eu/files/naviga/Pictures/2014_C4/Thumbs/DSC_1284.JPG[/img][/url] [url=http://kativ.eu/files/naviga/Pictures/2014_C4/DSC_1285.JPG][img]http://kativ.eu/files/naviga/Pictures/2014_C4/Thumbs/DSC_1285.JPG[/img][/url] [url=http://kativ.eu/files/naviga/Pictures/2014_C4/DSC_1286.JPG][img]http://kativ.eu/files/naviga/Pictures/2014_C4/Thumbs/DSC_1286.JPG[/img][/url] [url=http://kativ.eu/files/naviga/Pictures/2014_C4/DSC_1287.JPG][img]http://kativ.eu/files/naviga/Pictures/2014_C4/Thumbs/DSC_1287.JPG[/img][/url] [url=http://kativ.eu/files/naviga/Pictures/2014_C4/DSC_1288.JPG][img]http://kativ.eu/files/naviga/Pictures/2014_C4/Thumbs/DSC_1288.JPG[/img][/url] [url=http://kativ.eu/files/naviga/Pictures/2014_C4/DSC_1289.JPG][img]http://kativ.eu/files/naviga/Pictures/2014_C4/Thumbs/DSC_1289.JPG[/img][/url] [url=http://kativ.eu/files/naviga/Pictures/2014_C4/DSC_1290.JPG][img]http://kativ.eu/files/naviga/Pictures/2014_C4/Thumbs/DSC_1290.JPG[/img][/url] [url=http://kativ.eu/files/naviga/Pictures/2014_C4/DSC_1291.JPG][img]http://kativ.eu/files/naviga/Pictures/2014_C4/Thumbs/DSC_1291.JPG[/img][/url] [url=http://kativ.eu/files/naviga/Pictures/2014_C4/DSC_1292.JPG][img]http://kativ.eu/files/naviga/Pictures/2014_C4/Thumbs/DSC_1292.JPG[/img][/url] [url=http://kativ.eu/files/naviga/Pictures/2014_C4/DSC_1293.JPG][img]http://kativ.eu/files/naviga/Pictures/2014_C4/Thumbs/DSC_1293.JPG[/img][/url] [url=http://kativ.eu/files/naviga/Pictures/2014_C4/DSC_1294.JPG][img]http://kativ.eu/files/naviga/Pictures/2014_C4/Thumbs/DSC_1294.JPG[/img][/url] [url=http://kativ.eu/files/naviga/Pictures/2014_C4/DSC_1295.JPG][img]http://kativ.eu/files/naviga/Pictures/2014_C4/Thumbs/DSC_1295.JPG[/img][/url] [url=http://kativ.eu/files/naviga/Pictures/2014_C4/DSC_1296.JPG][img]http://kativ.eu/files/naviga/Pictures/2014_C4/Thumbs/DSC_1296.JPG[/img][/url] [url=http://kativ.eu/files/naviga/Pictures/2014_C4/DSC_1297.JPG][img]http://kativ.eu/files/naviga/Pictures/2014_C4/Thumbs/DSC_1297.JPG[/img][/url] [url=http://kativ.eu/files/naviga/Pictures/2014_C4/DSC_1298.JPG][img]http://kativ.eu/files/naviga/Pictures/2014_C4/Thumbs/DSC_1298.JPG[/img][/url] [url=http://kativ.eu/files/naviga/Pictures/2014_C4/DSC_1299.JPG][img]http://kativ.eu/files/naviga/Pictures/2014_C4/Thumbs/DSC_1299.JPG[/img][/url] [url=http://kativ.eu/files/naviga/Pictures/2014_C4/DSC_1300.JPG][img]http://kativ.eu/files/naviga/Pictures/2014_C4/Thumbs/DSC_1300.JPG[/img][/url] [url=http://kativ.eu/files/naviga/Pictures/2014_C4/DSC_1301.JPG][img]http://kativ.eu/files/naviga/Pictures/2014_C4/Thumbs/DSC_1301.JPG[/img][/url] [url=http://kativ.eu/files/naviga/Pictures/2014_C4/DSC_1302.JPG][img]http://kativ.eu/files/naviga/Pictures/2014_C4/Thumbs/DSC_1302.JPG[/img][/url] [url=http://kativ.eu/files/naviga/Pictures/2014_C4/DSC_1303.JPG][img]http://kativ.eu/files/naviga/Pictures/2014_C4/Thumbs/DSC_1303.JPG[/img][/url] [url=http://kativ.eu/files/naviga/Pictures/2014_C4/DSC_1304.JPG][img]http://kativ.eu/files/naviga/Pictures/2014_C4/Thumbs/DSC_1304.JPG[/img][/url] [url=http://kativ.eu/files/naviga/Pictures/2014_C4/DSC_1305.JPG][img]http://kativ.eu/files/naviga/Pictures/2014_C4/Thumbs/DSC_1305.JPG[/img][/url] [url=http://kativ.eu/files/naviga/Pictures/2014_C4/DSC_1306.JPG][img]http://kativ.eu/files/naviga/Pictures/2014_C4/Thumbs/DSC_1306.JPG[/img][/url] [url=http://kativ.eu/files/naviga/Pictures/2014_C4/DSC_1307.JPG][img]http://kativ.eu/files/naviga/Pictures/2014_C4/Thumbs/DSC_1307.JPG[/img][/url] [url=http://kativ.eu/files/naviga/Pictures/2014_C4/DSC_1308.JPG][img]http://kativ.eu/files/naviga/Pictures/2014_C4/Thumbs/DSC_1308.JPG[/img][/url] [url=http://kativ.eu/files/naviga/Pictures/2014_C4/DSC_1309.JPG][img]http://kativ.eu/files/naviga/Pictures/2014_C4/Thumbs/DSC_1309.JPG[/img][/url]"}]
["[url=","http://kativ.eu/files/naviga/Pictures/2014_","C4","/","][img]","/Thumbs/","[/img][/url]","DSC_0662.JPG",{"$f":"CONCATENATE(A2,B2,C2,D2,H2,E2,B2,C2,F2,H2,G2)","v":"[url=http://kativ.eu/files/naviga/Pictures/2014_C4/DSC_0662.JPG][img]http://kativ.eu/files/naviga/Pictures/2014_C4/Thumbs/DSC_0662.JPG[/img][/url]"}]
["[url=","http://kativ.eu/files/naviga/Pictures/2014_","C4","/","][img]","/Thumbs/","[/img][/url]","DSC_0663.JPG","[url=http://kativ.eu/files/naviga/Pictures/2014_C4/DSC_0663.JPG][img]http://kativ.eu/files/naviga/Pictures/2014_C4/Thumbs/DSC_0663.JPG[/img][/url]"]
["[url=","http://kativ.eu/files/naviga/Pictures/2014_","C4","/","][img]","/Thumbs/","[/img][/url]","DSC_1271.JPG","[url=http://kativ.eu/files/naviga/Pictures/2014_C4/DSC_1271.JPG][img]http://kativ.eu/files/naviga/Pictures/2014_C4/Thumbs/DSC_1271.JPG[/img][/url]"]
["[url=","http://kativ.eu/files/naviga/Pictures/2014_","C4","/","][img]","/Thumbs/","[/img][/url]","DSC_1272.JPG","[url=http://kativ.eu/files/naviga/Pictures/2014_C4/DSC_1272.JPG][img]http://kativ.eu/files/naviga/Pictures/2014_C4/Thumbs/DSC_1272.JPG[/img][/url]"]
["[url=","http://kativ.eu/files/naviga/Pictures/2014_","C4","/","][img]","/Thumbs/","[/img][/url]","DSC_1273.JPG","[url=http://kativ.eu/files/naviga/Pictures/2014_C4/DSC_1273.JPG][img]http://kativ.eu/files/naviga/Pictures/2014_C4/Thumbs/DSC_1273.JPG[/img][/url]"]
["[url=","http://kativ.eu/files/naviga/Pictures/2014_","C4","/","][img]","/Thumbs/","[/img][/url]","DSC_1274.JPG","[url=http://kativ.eu/files/naviga/Pictures/2014_C4/DSC_1274.JPG][img]http://kativ.eu/files/naviga/Pictures/2014_C4/Thumbs/DSC_1274.JPG[/img][/url]"]
["[url=","http://kativ.eu/files/naviga/Pictures/2014_","C4","/","][img]","/Thumbs/","[/img][/url]","DSC_1275.JPG","[url=http://kativ.eu/files/naviga/Pictures/2014_C4/DSC_1275.JPG][img]http://kativ.eu/files/naviga/Pictures/2014_C4/Thumbs/DSC_1275.JPG[/img][/url]"]
["[url=","http://kativ.eu/files/naviga/Pictures/2014_","C4","/","][img]","/Thumbs/","[/img][/url]","DSC_1276.JPG","[url=http://kativ.eu/files/naviga/Pictures/2014_C4/DSC_1276.JPG][img]http://kativ.eu/files/naviga/Pictures/2014_C4/Thumbs/DSC_1276.JPG[/img][/url]"]
["[url=","http://kativ.eu/files/naviga/Pictures/2014_","C4","/","][img]","/Thumbs/","[/img][/url]","DSC_1277.JPG","[url=http://kativ.eu/files/naviga/Pictures/2014_C4/DSC_1277.JPG][img]http://kativ.eu/files/naviga/Pictures/2014_C4/Thumbs/DSC_1277.JPG[/img][/url]"]
["[url=","http://kativ.eu/files/naviga/Pictures/2014_","C4","/","][img]","/Thumbs/","[/img][/url]","DSC_1278.JPG","[url=http://kativ.eu/files/naviga/Pictures/2014_C4/DSC_1278.JPG][img]http://kativ.eu/files/naviga/Pictures/2014_C4/Thumbs/DSC_1278.JPG[/img][/url]"]
["[url=","http://kativ.eu/files/naviga/Pictures/2014_","C4","/","][img]","/Thumbs/","[/img][/url]","DSC_1279.JPG","[url=http://kativ.eu/files/naviga/Pictures/2014_C4/DSC_1279.JPG][img]http://kativ.eu/files/naviga/Pictures/2014_C4/Thumbs/DSC_1279.JPG[/img][/url]"]
["[url=","http://kativ.eu/files/naviga/Pictures/2014_","C4","/","][img]","/Thumbs/","[/img][/url]","DSC_1280.JPG","[url=http://kativ.eu/files/naviga/Pictures/2014_C4/DSC_1280.JPG][img]http://kativ.eu/files/naviga/Pictures/2014_C4/Thumbs/DSC_1280.JPG[/img][/url]"]
["[url=","http://kativ.eu/files/naviga/Pictures/2014_","C4","/","][img]","/Thumbs/","[/img][/url]","DSC_1284.JPG","[url=http://kativ.eu/files/naviga/Pictures/2014_C4/DSC_1284.JPG][img]http://kativ.eu/files/naviga/Pictures/2014_C4/Thumbs/DSC_1284.JPG[/img][/url]"]
["[url=","http://kativ.eu/files/naviga/Pictures/2014_","C4","/","][img]","/Thumbs/","[/img][/url]","DSC_1285.JPG","[url=http://kativ.eu/files/naviga/Pictures/2014_C4/DSC_1285.JPG][img]http://kativ.eu/files/naviga/Pictures/2014_C4/Thumbs/DSC_1285.JPG[/img][/url]"]
["[url=","http://kativ.eu/files/naviga/Pictures/2014_","C4","/","][img]","/Thumbs/","[/img][/url]","DSC_1286.JPG","[url=http://kativ.eu/files/naviga/Pictures/2014_C4/DSC_1286.JPG][img]http://kativ.eu/files/naviga/Pictures/2014_C4/Thumbs/DSC_1286.JPG[/img][/url]"]
["[url=","http://kativ.eu/files/naviga/Pictures/2014_","C4","/","][img]","/Thumbs/","[/img][/url]","DSC_1287.JPG","[url=http://kativ.eu/files/naviga/Pictures/2014_C4/DSC_1287.JPG][img]http://kativ.eu/files/naviga/Pictures/2014_C4/Thumbs/DSC_1287.JPG[/img][/url]"]
["[url=","http://kativ.eu/files/naviga/Pictures/2014_","C4","/","][img]","/Thumbs/","[/img][/url]","DSC_1288.JPG","[url=http://kativ.eu/files/naviga/Pictures/2014_C4/DSC_1288.JPG][img]http://kativ.eu/files/naviga/Pictures/2014_C4/Thumbs/DSC_1288.JPG[/img][/url]"]
["[url=","http://kativ.eu/files/naviga/Pictures/2014_","C4","/","][img]","/Thumbs/","[/img][/url]","DSC_1289.JPG","[url=http://kativ.eu/files/naviga/Pictures/2014_C4/DSC_1289.JPG][img]http://kativ.eu/files/naviga/Pictures/2014_C4/Thumbs/DSC_1289.JPG[/img][/url]"]
["[url=","http://kativ.eu/files/naviga/Pictures/2014_","C4","/","][img]","/Thumbs/","[/img][/url]","DSC_1290.JPG","[url=http://kativ.eu/files/naviga/Pictures/2014_C4/DSC_1290.JPG][img]http://kativ.eu/files/naviga/Pictures/2014_C4/Thumbs/DSC_1290.JPG[/img][/url]"]
["[url=","http://kativ.eu/files/naviga/Pictures/2014_","C4","/","][img]","/Thumbs/","[/img][/url]","DSC_1291.JPG","[url=http://kativ.eu/files/naviga/Pictures/2014_C4/DSC_1291.JPG][img]http://kativ.eu/files/naviga/Pictures/2014_C4/Thumbs/DSC_1291.JPG[/img][/url]"]
["[url=","http://kativ.eu/files/naviga/Pictures/2014_","C4","/","][img]","/Thumbs/","[/img][/url]","DSC_1292.JPG","[url=http://kativ.eu/files/naviga/Pictures/2014_C4/DSC_1292.JPG][img]http://kativ.eu/files/naviga/Pictures/2014_C4/Thumbs/DSC_1292.JPG[/img][/url]"]
["[url=","http://kativ.eu/files/naviga/Pictures/2014_","C4","/","][img]","/Thumbs/","[/img][/url]","DSC_1293.JPG","[url=http://kativ.eu/files/naviga/Pictures/2014_C4/DSC_1293.JPG][img]http://kativ.eu/files/naviga/Pictures/2014_C4/Thumbs/DSC_1293.JPG[/img][/url]"]
["[url=","http://kativ.eu/files/naviga/Pictures/2014_","C4","/","][img]","/Thumbs/","[/img][/url]","DSC_1294.JPG","[url=http://kativ.eu/files/naviga/Pictures/2014_C4/DSC_1294.JPG][img]http://kativ.eu/files/naviga/Pictures/2014_C4/Thumbs/DSC_1294.JPG[/img][/url]"]
["[url=","http://kativ.eu/files/naviga/Pictures/2014_","C4","/","][img]","/Thumbs/","[/img][/url]","DSC_1295.JPG","[url=http://kativ.eu/files/naviga/Pictures/2014_C4/DSC_1295.JPG][img]http://kativ.eu/files/naviga/Pictures/2014_C4/Thumbs/DSC_1295.JPG[/img][/url]"]
["[url=","http://kativ.eu/files/naviga/Pictures/2014_","C4","/","][img]","/Thumbs/","[/img][/url]","DSC_1296.JPG","[url=http://kativ.eu/files/naviga/Pictures/2014_C4/DSC_1296.JPG][img]http://kativ.eu/files/naviga/Pictures/2014_C4/Thumbs/DSC_1296.JPG[/img][/url]"]
["[url=","http://kativ.eu/files/naviga/Pictures/2014_","C4","/","][img]","/Thumbs/","[/img][/url]","DSC_1297.JPG","[url=http://kativ.eu/files/naviga/Pictures/2014_C4/DSC_1297.JPG][img]http://kativ.eu/files/naviga/Pictures/2014_C4/Thumbs/DSC_1297.JPG[/img][/url]"]
["[url=","http://kativ.eu/files/naviga/Pictures/2014_","C4","/","][img]","/Thumbs/","[/img][/url]","DSC_1298.JPG","[url=http://kativ.eu/files/naviga/Pictures/2014_C4/DSC_1298.JPG][img]http://kativ.eu/files/naviga/Pictures/2014_C4/Thumbs/DSC_1298.JPG[/img][/url]"]
["[url=","http://kativ.eu/files/naviga/Pictures/2014_","C4","/","][img]","/Thumbs/","[/img][/url]","DSC_1299.JPG","[url=http://kativ.eu/files/naviga/Pictures/2014_C4/DSC_1299.JPG][img]http://kativ.eu/files/naviga/Pictures/2014_C4/Thumbs/DSC_1299.JPG[/img][/url]"]
["[url=","http://kativ.eu/files/naviga/Pictures/2014_","C4","/","][img]","/Thumbs/","[/img][/url]","DSC_1300.JPG","[url=http://kativ.eu/files/naviga/Pictures/2014_C4/DSC_1300.JPG][img]http://kativ.eu/files/naviga/Pictures/2014_C4/Thumbs/DSC_1300.JPG[/img][/url]"]
["[url=","http://kativ.eu/files/naviga/Pictures/2014_","C4","/","][img]","/Thumbs/","[/img][/url]","DSC_1301.JPG","[url=http://kativ.eu/files/naviga/Pictures/2014_C4/DSC_1301.JPG][img]http://kativ.eu/files/naviga/Pictures/2014_C4/Thumbs/DSC_1301.JPG[/img][/url]"]
["[url=","http://kativ.eu/files/naviga/Pictures/2014_","C4","/","][img]","/Thumbs/","[/img][/url]","DSC_1302.JPG","[url=http://kativ.eu/files/naviga/Pictures/2014_C4/DSC_1302.JPG][img]http://kativ.eu/files/naviga/Pictures/2014_C4/Thumbs/DSC_1302.JPG[/img][/url]"]
["[url=","http://kativ.eu/files/naviga/Pictures/2014_","C4","/","][img]","/Thumbs/","[/img][/url]","DSC_1303.JPG","[url=http://kativ.eu/files/naviga/Pictures/2014_C4/DSC_1303.JPG][img]http://kativ.eu/files/naviga/Pictures/2014_C4/Thumbs/DSC_1303.JPG[/img][/url]"]
["[url=","http://kativ.eu/files/naviga/Pictures/2014_","C4","/","][img]","/Thumbs/","[/img][/url]","DSC_1304.JPG","[url=http://kativ.eu/files/naviga/Pictures/2014_C4/DSC_1304.JPG][img]http://kativ.eu/files/naviga/Pictures/2014_C4/Thumbs/DSC_1304.JPG[/img][/url]"]
["[url=","http://kativ.eu/files/naviga/Pictures/2014_","C4","/","][img]","/Thumbs/","[/img][/url]","DSC_1305.JPG","[url=http://kativ.eu/files/naviga/Pictures/2014_C4/DSC_1305.JPG][img]http://kativ.eu/files/naviga/Pictures/2014_C4/Thumbs/DSC_1305.JPG[/img][/url]"]
["[url=","http://kativ.eu/files/naviga/Pictures/2014_","C4","/","][img]","/Thumbs/","[/img][/url]","DSC_1306.JPG","[url=http://kativ.eu/files/naviga/Pictures/2014_C4/DSC_1306.JPG][img]http://kativ.eu/files/naviga/Pictures/2014_C4/Thumbs/DSC_1306.JPG[/img][/url]"]
["[url=","http://kativ.eu/files/naviga/Pictures/2014_","C4","/","][img]","/Thumbs/","[/img][/url]","DSC_1307.JPG","[url=http://kativ.eu/files/naviga/Pictures/2014_C4/DSC_1307.JPG][img]http://kativ.eu/files/naviga/Pictures/2014_C4/Thumbs/DSC_1307.JPG[/img][/url]"]
["[url=","http://kativ.eu/files/naviga/Pictures/2014_","C4","/","][img]","/Thumbs/","[/img][/url]","DSC_1308.JPG","[url=http://kativ.eu/files/naviga/Pictures/2014_C4/DSC_1308.JPG][img]http://kativ.eu/files/naviga/Pictures/2014_C4/Thumbs/DSC_1308.JPG[/img][/url]"]
["[url=","http://kativ.eu/files/naviga/Pictures/2014_","C4","/","][img]","/Thumbs/","[/img][/url]","DSC_1309.JPG","[url=http://kativ.eu/files/naviga/Pictures/2014_C4/DSC_1309.JPG][img]http://kativ.eu/files/naviga/Pictures/2014_C4/Thumbs/DSC_1309.JPG[/img][/url]"]

{"sheet":"C5","index":5,"n_rows":16,"n_cols":10,"rows_kept":16,"cut":false,"hidden":false,"merged":[]}
["[url=","http://kativ.eu/files/naviga/Pictures/2014_","C5","/","][img]","/Thumbs/","[/img][/url]","DSC_1310.JPG",{"$f":"CONCATENATE(A1,B1,C1,D1,H1,E1,B1,C1,F1,H1,G1)","v":"[url=http://kativ.eu/files/naviga/Pictures/2014_C5/DSC_1310.JPG][img]http://kativ.eu/files/naviga/Pictures/2014_C5/Thumbs/DSC_1310.JPG[/img][/url]"},{"$f":"ConcatRange(I1:I16,\" \")","v":"[url=http://kativ.eu/files/naviga/Pictures/2014_C5/DSC_1310.JPG][img]http://kativ.eu/files/naviga/Pictures/2014_C5/Thumbs/DSC_1310.JPG[/img][/url] [url=http://kativ.eu/files/naviga/Pictures/2014_C5/DSC_1311.JPG][img]http://kativ.eu/files/naviga/Pictures/2014_C5/Thumbs/DSC_1311.JPG[/img][/url] [url=http://kativ.eu/files/naviga/Pictures/2014_C5/DSC_1312.JPG][img]http://kativ.eu/files/naviga/Pictures/2014_C5/Thumbs/DSC_1312.JPG[/img][/url] [url=http://kativ.eu/files/naviga/Pictures/2014_C5/DSC_1313.JPG][img]http://kativ.eu/files/naviga/Pictures/2014_C5/Thumbs/DSC_1313.JPG[/img][/url] [url=http://kativ.eu/files/naviga/Pictures/2014_C5/DSC_1314.JPG][img]http://kativ.eu/files/naviga/Pictures/2014_C5/Thumbs/DSC_1314.JPG[/img][/url] [url=http://kativ.eu/files/naviga/Pictures/2014_C5/DSC_1315.JPG][img]http://kativ.eu/files/naviga/Pictures/2014_C5/Thumbs/DSC_1315.JPG[/img][/url] [url=http://kativ.eu/files/naviga/Pictures/2014_C5/DSC_1316.JPG][img]http://kativ.eu/files/naviga/Pictures/2014_C5/Thumbs/DSC_1316.JPG[/img][/url] [url=http://kativ.eu/files/naviga/Pictures/2014_C5/DSC_1317.JPG][img]http://kativ.eu/files/naviga/Pictures/2014_C5/Thumbs/DSC_1317.JPG[/img][/url] [url=http://kativ.eu/files/naviga/Pictures/2014_C5/DSC_1318.JPG][img]http://kativ.eu/files/naviga/Pictures/2014_C5/Thumbs/DSC_1318.JPG[/img][/url] [url=http://kativ.eu/files/naviga/Pictures/2014_C5/DSC_1319.JPG][img]http://kativ.eu/files/naviga/Pictures/2014_C5/Thumbs/DSC_1319.JPG[/img][/url] [url=http://kativ.eu/files/naviga/Pictures/2014_C5/DSC_1320.JPG][img]http://kativ.eu/files/naviga/Pictures/2014_C5/Thumbs/DSC_1320.JPG[/img][/url] [url=http://kativ.eu/files/naviga/Pictures/2014_C5/DSC_1321.JPG][img]http://kativ.eu/files/naviga/Pictures/2014_C5/Thumbs/DSC_1321.JPG[/img][/url] [url=http://kativ.eu/files/naviga/Pictures/2014_C5/DSC_1322.JPG][img]http://kativ.eu/files/naviga/Pictures/2014_C5/Thumbs/DSC_1322.JPG[/img][/url] [url=http://kativ.eu/files/naviga/Pictures/2014_C5/DSC_1323.JPG][img]http://kativ.eu/files/naviga/Pictures/2014_C5/Thumbs/DSC_1323.JPG[/img][/url] [url=http://kativ.eu/files/naviga/Pictures/2014_C5/DSC_1324.JPG][img]http://kativ.eu/files/naviga/Pictures/2014_C5/Thumbs/DSC_1324.JPG[/img][/url] [url=http://kativ.eu/files/naviga/Pictures/2014_C5/DSC_1325.JPG][img]http://kativ.eu/files/naviga/Pictures/2014_C5/Thumbs/DSC_1325.JPG[/img][/url]"}]
["[url=","http://kativ.eu/files/naviga/Pictures/2014_","C5","/","][img]","/Thumbs/","[/img][/url]","DSC_1311.JPG",{"$f":"CONCATENATE(A2,B2,C2,D2,H2,E2,B2,C2,F2,H2,G2)","v":"[url=http://kativ.eu/files/naviga/Pictures/2014_C5/DSC_1311.JPG][img]http://kativ.eu/files/naviga/Pictures/2014_C5/Thumbs/DSC_1311.JPG[/img][/url]"}]
["[url=","http://kativ.eu/files/naviga/Pictures/2014_","C5","/","][img]","/Thumbs/","[/img][/url]","DSC_1312.JPG","[url=http://kativ.eu/files/naviga/Pictures/2014_C5/DSC_1312.JPG][img]http://kativ.eu/files/naviga/Pictures/2014_C5/Thumbs/DSC_1312.JPG[/img][/url]"]
["[url=","http://kativ.eu/files/naviga/Pictures/2014_","C5","/","][img]","/Thumbs/","[/img][/url]","DSC_1313.JPG","[url=http://kativ.eu/files/naviga/Pictures/2014_C5/DSC_1313.JPG][img]http://kativ.eu/files/naviga/Pictures/2014_C5/Thumbs/DSC_1313.JPG[/img][/url]"]
["[url=","http://kativ.eu/files/naviga/Pictures/2014_","C5","/","][img]","/Thumbs/","[/img][/url]","DSC_1314.JPG","[url=http://kativ.eu/files/naviga/Pictures/2014_C5/DSC_1314.JPG][img]http://kativ.eu/files/naviga/Pictures/2014_C5/Thumbs/DSC_1314.JPG[/img][/url]"]
["[url=","http://kativ.eu/files/naviga/Pictures/2014_","C5","/","][img]","/Thumbs/","[/img][/url]","DSC_1315.JPG","[url=http://kativ.eu/files/naviga/Pictures/2014_C5/DSC_1315.JPG][img]http://kativ.eu/files/naviga/Pictures/2014_C5/Thumbs/DSC_1315.JPG[/img][/url]"]
["[url=","http://kativ.eu/files/naviga/Pictures/2014_","C5","/","][img]","/Thumbs/","[/img][/url]","DSC_1316.JPG","[url=http://kativ.eu/files/naviga/Pictures/2014_C5/DSC_1316.JPG][img]http://kativ.eu/files/naviga/Pictures/2014_C5/Thumbs/DSC_1316.JPG[/img][/url]"]
["[url=","http://kativ.eu/files/naviga/Pictures/2014_","C5","/","][img]","/Thumbs/","[/img][/url]","DSC_1317.JPG","[url=http://kativ.eu/files/naviga/Pictures/2014_C5/DSC_1317.JPG][img]http://kativ.eu/files/naviga/Pictures/2014_C5/Thumbs/DSC_1317.JPG[/img][/url]"]
["[url=","http://kativ.eu/files/naviga/Pictures/2014_","C5","/","][img]","/Thumbs/","[/img][/url]","DSC_1318.JPG","[url=http://kativ.eu/files/naviga/Pictures/2014_C5/DSC_1318.JPG][img]http://kativ.eu/files/naviga/Pictures/2014_C5/Thumbs/DSC_1318.JPG[/img][/url]"]
["[url=","http://kativ.eu/files/naviga/Pictures/2014_","C5","/","][img]","/Thumbs/","[/img][/url]","DSC_1319.JPG","[url=http://kativ.eu/files/naviga/Pictures/2014_C5/DSC_1319.JPG][img]http://kativ.eu/files/naviga/Pictures/2014_C5/Thumbs/DSC_1319.JPG[/img][/url]"]
["[url=","http://kativ.eu/files/naviga/Pictures/2014_","C5","/","][img]","/Thumbs/","[/img][/url]","DSC_1320.JPG","[url=http://kativ.eu/files/naviga/Pictures/2014_C5/DSC_1320.JPG][img]http://kativ.eu/files/naviga/Pictures/2014_C5/Thumbs/DSC_1320.JPG[/img][/url]"]
["[url=","http://kativ.eu/files/naviga/Pictures/2014_","C5","/","][img]","/Thumbs/","[/img][/url]","DSC_1321.JPG","[url=http://kativ.eu/files/naviga/Pictures/2014_C5/DSC_1321.JPG][img]http://kativ.eu/files/naviga/Pictures/2014_C5/Thumbs/DSC_1321.JPG[/img][/url]"]
["[url=","http://kativ.eu/files/naviga/Pictures/2014_","C5","/","][img]","/Thumbs/","[/img][/url]","DSC_1322.JPG","[url=http://kativ.eu/files/naviga/Pictures/2014_C5/DSC_1322.JPG][img]http://kativ.eu/files/naviga/Pictures/2014_C5/Thumbs/DSC_1322.JPG[/img][/url]"]
["[url=","http://kativ.eu/files/naviga/Pictures/2014_","C5","/","][img]","/Thumbs/","[/img][/url]","DSC_1323.JPG","[url=http://kativ.eu/files/naviga/Pictures/2014_C5/DSC_1323.JPG][img]http://kativ.eu/files/naviga/Pictures/2014_C5/Thumbs/DSC_1323.JPG[/img][/url]"]
["[url=","http://kativ.eu/files/naviga/Pictures/2014_","C5","/","][img]","/Thumbs/","[/img][/url]","DSC_1324.JPG","[url=http://kativ.eu/files/naviga/Pictures/2014_C5/DSC_1324.JPG][img]http://kativ.eu/files/naviga/Pictures/2014_C5/Thumbs/DSC_1324.JPG[/img][/url]"]
["[url=","http://kativ.eu/files/naviga/Pictures/2014_","C5","/","][img]","/Thumbs/","[/img][/url]","DSC_1325.JPG","[url=http://kativ.eu/files/naviga/Pictures/2014_C5/DSC_1325.JPG][img]http://kativ.eu/files/naviga/Pictures/2014_C5/Thumbs/DSC_1325.JPG[/img][/url]"]

{"sheet":"C6","index":6,"n_rows":96,"n_cols":10,"rows_kept":96,"cut":false,"hidden":false,"merged":[]}
["[url=","http://kativ.eu/files/naviga/Pictures/2014_","C6","/","][img]","/Thumbs/","[/img][/url]","DSC_0799.JPG",{"$f":"CONCATENATE(A1,B1,C1,D1,H1,E1,B1,C1,F1,H1,G1)","v":"[url=http://kativ.eu/files/naviga/Pictures/2014_C6/DSC_0799.JPG][img]http://kativ.eu/files/naviga/Pictures/2014_C6/Thumbs/DSC_0799.JPG[/img][/url]"},{"$f":"ConcatRange(I1:I45,\" \")","v":"[url=http://kativ.eu/files/naviga/Pictures/2014_C6/DSC_0799.JPG][img]http://kativ.eu/files/naviga/Pictures/2014_C6/Thumbs/DSC_0799.JPG[/img][/url] [url=http://kativ.eu/files/naviga/Pictures/2014_C6/DSC_0800.JPG][img]http://kativ.eu/files/naviga/Pictures/2014_C6/Thumbs/DSC_0800.JPG[/img][/url] [url=http://kativ.eu/files/naviga/Pictures/2014_C6/DSC_0801.JPG][img]http://kativ.eu/files/naviga/Pictures/2014_C6/Thumbs/DSC_0801.JPG[/img][/url] [url=http://kativ.eu/files/naviga/Pictures/2014_C6/DSC_0802.JPG][img]http://kativ.eu/files/naviga/Pictures/2014_C6/Thumbs/DSC_0802.JPG[/img][/url] [url=http://kativ.eu/files/naviga/Pictures/2014_C6/DSC_0803.JPG][img]http://kativ.eu/files/naviga/Pictures/2014_C6/Thumbs/DSC_0803.JPG[/img][/url] [url=http://kativ.eu/files/naviga/Pictures/2014_C6/DSC_0804.JPG][img]http://kativ.eu/files/naviga/Pictures/2014_C6/Thumbs/DSC_0804.JPG[/img][/url] [url=http://kativ.eu/files/naviga/Pictures/2014_C6/DSC_0805.JPG][img]http://kativ.eu/files/naviga/Pictures/2014_C6/Thumbs/DSC_0805.JPG[/img][/url] [url=http://kativ.eu/files/naviga/Pictures/2014_C6/DSC_0806.JPG][img]http://kativ.eu/files/naviga/Pictures/2014_C6/Thumbs/DSC_0806.JPG[/img][/url] [url=http://kativ.eu/files/naviga/Pictures/2014_C6/DSC_0807.JPG][img]http://kativ.eu/files/naviga/Pictures/2014_C6/Thumbs/DSC_0807.JPG[/img][/url] [url=http://kativ.eu/files/naviga/Pictures/2014_C6/DSC_0808.JPG][img]http://kativ.eu/files/naviga/Pictures/2014_C6/Thumbs/DSC_0808.JPG[/img][/url] [url=http://kativ.eu/files/naviga/Pictures/2014_C6/DSC_0809.JPG][img]http://kativ.eu/files/naviga/Pictures/2014_C6/Thumbs/DSC_0809.JPG[/img][/url] [url=http://kativ.eu/files/naviga/Pictures/2014_C6/DSC_0810.JPG][img]http://kativ.eu/files/naviga/Pictures/2014_C6/Thumbs/DSC_0810.JPG[/img][/url] [url=http://kativ.eu/files/naviga/Pictures/2014_C6/DSC_0811.JPG][img]http://kativ.eu/files/naviga/Pictures/2014_C6/Thumbs/DSC_0811.JPG[/img][/url] [url=http://kativ.eu/files/naviga/Pictures/2014_C6/DSC_0812.JPG][img]http://kativ.eu/files/naviga/Pictures/2014_C6/Thumbs/DSC_0812.JPG[/img][/url] [url=http://kativ.eu/files/naviga/Pictures/2014_C6/DSC_0813.JPG][img]http://kativ.eu/files/naviga/Pictures/2014_C6/Thumbs/DSC_0813.JPG[/img][/url] [url=http://kativ.eu/files/naviga/Pictures/2014_C6/DSC_0814.JPG][img]http://kativ.eu/files/naviga/Pictures/2014_C6/Thumbs/DSC_0814.JPG[/img][/url] [url=http://kativ.eu/files/naviga/Pictures/2014_C6/DSC_0815.JPG][img]http://kativ.eu/files/naviga/Pictures/2014_C6/Thumbs/DSC_0815.JPG[/img][/url] [url=http://kativ.eu/files/naviga/Pictures/2014_C6/DSC_0816.JPG][img]http://kativ.eu/files/naviga/Pictures/2014_C6/Thumbs/DSC_0816.JPG[/img][/url] [url=http://kativ.eu/files/naviga/Pictures/2014_C6/DSC_1083.JPG][img]http://kativ.eu/files/naviga/Pictures/2014_C6/Thumbs/DSC_1083.JPG[/img][/url] [url=http://kativ.eu/files/naviga/Pictures/2014_C6/DSC_1084.JPG][img]http://kativ.eu/files/naviga/Pictures/2014_C6/Thumbs/DSC_1084.JPG[/img][/url] [url=http://kativ.eu/files/naviga/Pictures/2014_C6/DSC_1085.JPG][img]http://kativ.eu/files/naviga/Pictures/2014_C6/Thumbs/DSC_1085.JPG[/img][/url] [url=http://kativ.eu/files/naviga/Pictures/2014_C6/DSC_1086.JPG][img]http://kativ.eu/files/naviga/Pictures/2014_C6/Thumbs/DSC_1086.JPG[/img][/url] [url=http://kativ.eu/files/naviga/Pictures/2014_C6/DSC_1087.JPG][img]http://kativ.eu/files/naviga/Pictures/2014_C6/Thumbs/DSC_1087.JPG[/img][/url] [url=http://kativ.eu/files/naviga/Pictures/2014_C6/DSC_1088.JPG][img]http://kativ.eu/files/naviga/Pictures/2014_C6/Thumbs/DSC_1088.JPG[/img][/url] [url=http://kativ.eu/files/naviga/Pictures/2014_C6/DSC_1089.JPG][img]http://kativ.eu/files/naviga/Pictures/2014_C6/Thumbs/DSC_1089.JPG[/img][/url] [url=http://kativ.eu/files/naviga/Pictures/2014_C6/DSC_1090.JPG][img]http://kativ.eu/files/naviga/Pictures/2014_C6/Thumbs/DSC_1090.JPG[/img][/url] [url=http://kativ.eu/files/naviga/Pictures/2014_C6/DSC_1091.JPG][img]http://kativ.eu/files/naviga/Pictures/2014_C6/Thumbs/DSC_1091.JPG[/img][/url] [url=http://kativ.eu/files/naviga/Pictures/2014_C6/DSC_1092.JPG][img]http://kativ.eu/files/naviga/Pictures/2014_C6/Thumbs/DSC_1092.JPG[/img][/url] [url=http://kativ.eu/files/naviga/Pictures/2014_C6/DSC_1093.JPG][img]http://kativ.eu/files/naviga/Pictures/2014_C6/Thumbs/DSC_1093.JPG[/img][/url] [url=http://kativ.eu/files/naviga/Pictures/2014_C6/DSC_1094.JPG][img]http://kativ.eu/files/naviga/Pictures/2014_C6/Thumbs/DSC_1094.JPG[/img][/url] [url=http://kativ.eu/files/naviga/Pictures/2014_C6/DSC_1095.JPG][img]http://kativ.eu/files/naviga/Pictures/2014_C6/Thumbs/DSC_1095.JPG[/img][/url] [url=http://kativ.eu/files/naviga/Pictures/2014_C6/DSC_1096.JPG][img]http://kativ.eu/files/naviga/Pictures/2014_C6/Thumbs/DSC_1096.JPG[/img][/url] [url=http://kativ.eu/files/naviga/Pictures/2014_C6/DSC_1097.JPG][img]http://kativ.eu/files/naviga/Pictures/2014_C6/Thumbs/DSC_1097.JPG[/img][/url] [url=http://kativ.eu/files/naviga/Pictures/2014_C6/DSC_1098.JPG][img]http://kativ.eu/files/naviga/Pictures/2014_C6/Thumbs/DSC_1098.JPG[/img][/url] [url=http://kativ.eu/files/naviga/Pictures/2014_C6/DSC_1099.JPG][img]http://kativ.eu/files/naviga/Pictures/2014_C6/Thumbs/DSC_1099.JPG[/img][/url] [url=http://kativ.eu/files/naviga/Pictures/2014_C6/DSC_1100.JPG][img]http://kativ.eu/files/naviga/Pictures/2014_C6/Thumbs/DSC_1100.JPG[/img][/url] [url=http://kativ.eu/files/naviga/Pictures/2014_C6/DSC_1101.JPG][img]http://kativ.eu/files/naviga/Pictures/2014_C6/Thumbs/DSC_1101.JPG[/img][/url] [url=http://kativ.eu/files/naviga/Pictures/2014_C6/DSC_1102.JPG][img]http://kativ.eu/files/naviga/Pictures/2014_C6/Thumbs/DSC_1102.JPG[/img][/url] [url=http://kativ.eu/files/naviga/Pictures/2014_C6/DSC_1103.JPG][img]http://kativ.eu/files/naviga/Pictures/2014_C6/Thumbs/DSC_1103.JPG[/img][/url] [url=http://kativ.eu/files/naviga/Pictures/2014_C6/DSC_1104.JPG][img]http://kativ.eu/files/naviga/Pictures/2014_C6/Thumbs/DSC_1104.JPG[/img][/url] [url=http://kativ.eu/files/naviga/Pictures/2014_C6/DSC_1105.JPG][img]http://kativ.eu/files/naviga/Pictures/2014_C6/Thumbs/DSC_1105.JPG[/img][/url] [url=http://kativ.eu/files/naviga/Pictures/2014_C6/DSC_1106.JPG][img]http://kativ.eu/files/naviga/Pictures/2014_C6/Thumbs/DSC_1106.JPG[/img][/url] [url=http://kativ.eu/files/naviga/Pictures/2014_C6/DSC_1107.JPG][img]http://kativ.eu/files/naviga/Pictures/2014_C6/Thumbs/DSC_1107.JPG[/img][/url] [url=http://kativ.eu/files/naviga/Pictures/2014_C6/DSC_1108.JPG][img]http://kativ.eu/files/naviga/Pictures/2014_C6/Thumbs/DSC_1108.JPG[/img][/url] [url=http://kativ.eu/files/naviga/Pictures/2014_C6/DSC_1109.JPG][img]http://kativ.eu/files/naviga/Pictures/2014_C6/Thumbs/DSC_1109.JPG[/img][/url]"}]
["[url=","http://kativ.eu/files/naviga/Pictures/2014_","C6","/","][img]","/Thumbs/","[/img][/url]","DSC_0800.JPG",{"$f":"CONCATENATE(A2,B2,C2,D2,H2,E2,B2,C2,F2,H2,G2)","v":"[url=http://kativ.eu/files/naviga/Pictures/2014_C6/DSC_0800.JPG][img]http://kativ.eu/files/naviga/Pictures/2014_C6/Thumbs/DSC_0800.JPG[/img][/url]"}]
["[url=","http://kativ.eu/files/naviga/Pictures/2014_","C6","/","][img]","/Thumbs/","[/img][/url]","DSC_0801.JPG","[url=http://kativ.eu/files/naviga/Pictures/2014_C6/DSC_0801.JPG][img]http://kativ.eu/files/naviga/Pictures/2014_C6/Thumbs/DSC_0801.JPG[/img][/url]"]
["[url=","http://kativ.eu/files/naviga/Pictures/2014_","C6","/","][img]","/Thumbs/","[/img][/url]","DSC_0802.JPG","[url=http://kativ.eu/files/naviga/Pictures/2014_C6/DSC_0802.JPG][img]http://kativ.eu/files/naviga/Pictures/2014_C6/Thumbs/DSC_0802.JPG[/img][/url]"]
["[url=","http://kativ.eu/files/naviga/Pictures/2014_","C6","/","][img]","/Thumbs/","[/img][/url]","DSC_0803.JPG","[url=http://kativ.eu/files/naviga/Pictures/2014_C6/DSC_0803.JPG][img]http://kativ.eu/files/naviga/Pictures/2014_C6/Thumbs/DSC_0803.JPG[/img][/url]"]
["[url=","http://kativ.eu/files/naviga/Pictures/2014_","C6","/","][img]","/Thumbs/","[/img][/url]","DSC_0804.JPG","[url=http://kativ.eu/files/naviga/Pictures/2014_C6/DSC_0804.JPG][img]http://kativ.eu/files/naviga/Pictures/2014_C6/Thumbs/DSC_0804.JPG[/img][/url]"]
["[url=","http://kativ.eu/files/naviga/Pictures/2014_","C6","/","][img]","/Thumbs/","[/img][/url]","DSC_0805.JPG","[url=http://kativ.eu/files/naviga/Pictures/2014_C6/DSC_0805.JPG][img]http://kativ.eu/files/naviga/Pictures/2014_C6/Thumbs/DSC_0805.JPG[/img][/url]"]
["[url=","http://kativ.eu/files/naviga/Pictures/2014_","C6","/","][img]","/Thumbs/","[/img][/url]","DSC_0806.JPG","[url=http://kativ.eu/files/naviga/Pictures/2014_C6/DSC_0806.JPG][img]http://kativ.eu/files/naviga/Pictures/2014_C6/Thumbs/DSC_0806.JPG[/img][/url]"]
["[url=","http://kativ.eu/files/naviga/Pictures/2014_","C6","/","][img]","/Thumbs/","[/img][/url]","DSC_0807.JPG","[url=http://kativ.eu/files/naviga/Pictures/2014_C6/DSC_0807.JPG][img]http://kativ.eu/files/naviga/Pictures/2014_C6/Thumbs/DSC_0807.JPG[/img][/url]"]
["[url=","http://kativ.eu/files/naviga/Pictures/2014_","C6","/","][img]","/Thumbs/","[/img][/url]","DSC_0808.JPG","[url=http://kativ.eu/files/naviga/Pictures/2014_C6/DSC_0808.JPG][img]http://kativ.eu/files/naviga/Pictures/2014_C6/Thumbs/DSC_0808.JPG[/img][/url]"]
["[url=","http://kativ.eu/files/naviga/Pictures/2014_","C6","/","][img]","/Thumbs/","[/img][/url]","DSC_0809.JPG","[url=http://kativ.eu/files/naviga/Pictures/2014_C6/DSC_0809.JPG][img]http://kativ.eu/files/naviga/Pictures/2014_C6/Thumbs/DSC_0809.JPG[/img][/url]"]
["[url=","http://kativ.eu/files/naviga/Pictures/2014_","C6","/","][img]","/Thumbs/","[/img][/url]","DSC_0810.JPG","[url=http://kativ.eu/files/naviga/Pictures/2014_C6/DSC_0810.JPG][img]http://kativ.eu/files/naviga/Pictures/2014_C6/Thumbs/DSC_0810.JPG[/img][/url]"]
["[url=","http://kativ.eu/files/naviga/Pictures/2014_","C6","/","][img]","/Thumbs/","[/img][/url]","DSC_0811.JPG","[url=http://kativ.eu/files/naviga/Pictures/2014_C6/DSC_0811.JPG][img]http://kativ.eu/files/naviga/Pictures/2014_C6/Thumbs/DSC_0811.JPG[/img][/url]"]
["[url=","http://kativ.eu/files/naviga/Pictures/2014_","C6","/","][img]","/Thumbs/","[/img][/url]","DSC_0812.JPG","[url=http://kativ.eu/files/naviga/Pictures/2014_C6/DSC_0812.JPG][img]http://kativ.eu/files/naviga/Pictures/2014_C6/Thumbs/DSC_0812.JPG[/img][/url]"]
["[url=","http://kativ.eu/files/naviga/Pictures/2014_","C6","/","][img]","/Thumbs/","[/img][/url]","DSC_0813.JPG","[url=http://kativ.eu/files/naviga/Pictures/2014_C6/DSC_0813.JPG][img]http://kativ.eu/files/naviga/Pictures/2014_C6/Thumbs/DSC_0813.JPG[/img][/url]"]
["[url=","http://kativ.eu/files/naviga/Pictures/2014_","C6","/","][img]","/Thumbs/","[/img][/url]","DSC_0814.JPG","[url=http://kativ.eu/files/naviga/Pictures/2014_C6/DSC_0814.JPG][img]http://kativ.eu/files/naviga/Pictures/2014_C6/Thumbs/DSC_0814.JPG[/img][/url]"]
["[url=","http://kativ.eu/files/naviga/Pictures/2014_","C6","/","][img]","/Thumbs/","[/img][/url]","DSC_0815.JPG","[url=http://kativ.eu/files/naviga/Pictures/2014_C6/DSC_0815.JPG][img]http://kativ.eu/files/naviga/Pictures/2014_C6/Thumbs/DSC_0815.JPG[/img][/url]"]
["[url=","http://kativ.eu/files/naviga/Pictures/2014_","C6","/","][img]","/Thumbs/","[/img][/url]","DSC_0816.JPG","[url=http://kativ.eu/files/naviga/Pictures/2014_C6/DSC_0816.JPG][img]http://kativ.eu/files/naviga/Pictures/2014_C6/Thumbs/DSC_0816.JPG[/img][/url]"]
["[url=","http://kativ.eu/files/naviga/Pictures/2014_","C6","/","][img]","/Thumbs/","[/img][/url]","DSC_1083.JPG","[url=http://kativ.eu/files/naviga/Pictures/2014_C6/DSC_1083.JPG][img]http://kativ.eu/files/naviga/Pictures/2014_C6/Thumbs/DSC_1083.JPG[/img][/url]"]
["[url=","http://kativ.eu/files/naviga/Pictures/2014_","C6","/","][img]","/Thumbs/","[/img][/url]","DSC_1084.JPG","[url=http://kativ.eu/files/naviga/Pictures/2014_C6/DSC_1084.JPG][img]http://kativ.eu/files/naviga/Pictures/2014_C6/Thumbs/DSC_1084.JPG[/img][/url]"]
["[url=","http://kativ.eu/files/naviga/Pictures/2014_","C6","/","][img]","/Thumbs/","[/img][/url]","DSC_1085.JPG","[url=http://kativ.eu/files/naviga/Pictures/2014_C6/DSC_1085.JPG][img]http://kativ.eu/files/naviga/Pictures/2014_C6/Thumbs/DSC_1085.JPG[/img][/url]"]
["[url=","http://kativ.eu/files/naviga/Pictures/2014_","C6","/","][img]","/Thumbs/","[/img][/url]","DSC_1086.JPG","[url=http://kativ.eu/files/naviga/Pictures/2014_C6/DSC_1086.JPG][img]http://kativ.eu/files/naviga/Pictures/2014_C6/Thumbs/DSC_1086.JPG[/img][/url]"]
["[url=","http://kativ.eu/files/naviga/Pictures/2014_","C6","/","][img]","/Thumbs/","[/img][/url]","DSC_1087.JPG","[url=http://kativ.eu/files/naviga/Pictures/2014_C6/DSC_1087.JPG][img]http://kativ.eu/files/naviga/Pictures/2014_C6/Thumbs/DSC_1087.JPG[/img][/url]"]
["[url=","http://kativ.eu/files/naviga/Pictures/2014_","C6","/","][img]","/Thumbs/","[/img][/url]","DSC_1088.JPG","[url=http://kativ.eu/files/naviga/Pictures/2014_C6/DSC_1088.JPG][img]http://kativ.eu/files/naviga/Pictures/2014_C6/Thumbs/DSC_1088.JPG[/img][/url]"]
["[url=","http://kativ.eu/files/naviga/Pictures/2014_","C6","/","][img]","/Thumbs/","[/img][/url]","DSC_1089.JPG","[url=http://kativ.eu/files/naviga/Pictures/2014_C6/DSC_1089.JPG][img]http://kativ.eu/files/naviga/Pictures/2014_C6/Thumbs/DSC_1089.JPG[/img][/url]"]
["[url=","http://kativ.eu/files/naviga/Pictures/2014_","C6","/","][img]","/Thumbs/","[/img][/url]","DSC_1090.JPG","[url=http://kativ.eu/files/naviga/Pictures/2014_C6/DSC_1090.JPG][img]http://kativ.eu/files/naviga/Pictures/2014_C6/Thumbs/DSC_1090.JPG[/img][/url]"]
["[url=","http://kativ.eu/files/naviga/Pictures/2014_","C6","/","][img]","/Thumbs/","[/img][/url]","DSC_1091.JPG","[url=http://kativ.eu/files/naviga/Pictures/2014_C6/DSC_1091.JPG][img]http://kativ.eu/files/naviga/Pictures/2014_C6/Thumbs/DSC_1091.JPG[/img][/url]"]
["[url=","http://kativ.eu/files/naviga/Pictures/2014_","C6","/","][img]","/Thumbs/","[/img][/url]","DSC_1092.JPG","[url=http://kativ.eu/files/naviga/Pictures/2014_C6/DSC_1092.JPG][img]http://kativ.eu/files/naviga/Pictures/2014_C6/Thumbs/DSC_1092.JPG[/img][/url]"]
["[url=","http://kativ.eu/files/naviga/Pictures/2014_","C6","/","][img]","/Thumbs/","[/img][/url]","DSC_1093.JPG","[url=http://kativ.eu/files/naviga/Pictures/2014_C6/DSC_1093.JPG][img]http://kativ.eu/files/naviga/Pictures/2014_C6/Thumbs/DSC_1093.JPG[/img][/url]"]
["[url=","http://kativ.eu/files/naviga/Pictures/2014_","C6","/","][img]","/Thumbs/","[/img][/url]","DSC_1094.JPG","[url=http://kativ.eu/files/naviga/Pictures/2014_C6/DSC_1094.JPG][img]http://kativ.eu/files/naviga/Pictures/2014_C6/Thumbs/DSC_1094.JPG[/img][/url]"]
["[url=","http://kativ.eu/files/naviga/Pictures/2014_","C6","/","][img]","/Thumbs/","[/img][/url]","DSC_1095.JPG","[url=http://kativ.eu/files/naviga/Pictures/2014_C6/DSC_1095.JPG][img]http://kativ.eu/files/naviga/Pictures/2014_C6/Thumbs/DSC_1095.JPG[/img][/url]"]
["[url=","http://kativ.eu/files/naviga/Pictures/2014_","C6","/","][img]","/Thumbs/","[/img][/url]","DSC_1096.JPG","[url=http://kativ.eu/files/naviga/Pictures/2014_C6/DSC_1096.JPG][img]http://kativ.eu/files/naviga/Pictures/2014_C6/Thumbs/DSC_1096.JPG[/img][/url]"]
["[url=","http://kativ.eu/files/naviga/Pictures/2014_","C6","/","][img]","/Thumbs/","[/img][/url]","DSC_1097.JPG","[url=http://kativ.eu/files/naviga/Pictures/2014_C6/DSC_1097.JPG][img]http://kativ.eu/files/naviga/Pictures/2014_C6/Thumbs/DSC_1097.JPG[/img][/url]"]
["[url=","http://kativ.eu/files/naviga/Pictures/2014_","C6","/","][img]","/Thumbs/","[/img][/url]","DSC_1098.JPG","[url=http://kativ.eu/files/naviga/Pictures/2014_C6/DSC_1098.JPG][img]http://kativ.eu/files/naviga/Pictures/2014_C6/Thumbs/DSC_1098.JPG[/img][/url]"]
["[url=","http://kativ.eu/files/naviga/Pictures/2014_","C6","/","][img]","/Thumbs/","[/img][/url]","DSC_1099.JPG","[url=http://kativ.eu/files/naviga/Pictures/2014_C6/DSC_1099.JPG][img]http://kativ.eu/files/naviga/Pictures/2014_C6/Thumbs/DSC_1099.JPG[/img][/url]"]
["[url=","http://kativ.eu/files/naviga/Pictures/2014_","C6","/","][img]","/Thumbs/","[/img][/url]","DSC_1100.JPG","[url=http://kativ.eu/files/naviga/Pictures/2014_C6/DSC_1100.JPG][img]http://kativ.eu/files/naviga/Pictures/2014_C6/Thumbs/DSC_1100.JPG[/img][/url]"]
["[url=","http://kativ.eu/files/naviga/Pictures/2014_","C6","/","][img]","/Thumbs/","[/img][/url]","DSC_1101.JPG","[url=http://kativ.eu/files/naviga/Pictures/2014_C6/DSC_1101.JPG][img]http://kativ.eu/files/naviga/Pictures/2014_C6/Thumbs/DSC_1101.JPG[/img][/url]"]
["[url=","http://kativ.eu/files/naviga/Pictures/2014_","C6","/","][img]","/Thumbs/","[/img][/url]","DSC_1102.JPG","[url=http://kativ.eu/files/naviga/Pictures/2014_C6/DSC_1102.JPG][img]http://kativ.eu/files/naviga/Pictures/2014_C6/Thumbs/DSC_1102.JPG[/img][/url]"]
["[url=","http://kativ.eu/files/naviga/Pictures/2014_","C6","/","][img]","/Thumbs/","[/img][/url]","DSC_1103.JPG","[url=http://kativ.eu/files/naviga/Pictures/2014_C6/DSC_1103.JPG][img]http://kativ.eu/files/naviga/Pictures/2014_C6/Thumbs/DSC_1103.JPG[/img][/url]"]
["[url=","http://kativ.eu/files/naviga/Pictures/2014_","C6","/","][img]","/Thumbs/","[/img][/url]","DSC_1104.JPG","[url=http://kativ.eu/files/naviga/Pictures/2014_C6/DSC_1104.JPG][img]http://kativ.eu/files/naviga/Pictures/2014_C6/Thumbs/DSC_1104.JPG[/img][/url]"]
["[url=","http://kativ.eu/files/naviga/Pictures/2014_","C6","/","][img]","/Thumbs/","[/img][/url]","DSC_1105.JPG","[url=http://kativ.eu/files/naviga/Pictures/2014_C6/DSC_1105.JPG][img]http://kativ.eu/files/naviga/Pictures/2014_C6/Thumbs/DSC_1105.JPG[/img][/url]"]
["[url=","http://kativ.eu/files/naviga/Pictures/2014_","C6","/","][img]","/Thumbs/","[/img][/url]","DSC_1106.JPG","[url=http://kativ.eu/files/naviga/Pictures/2014_C6/DSC_1106.JPG][img]http://kativ.eu/files/naviga/Pictures/2014_C6/Thumbs/DSC_1106.JPG[/img][/url]"]
["[url=","http://kativ.eu/files/naviga/Pictures/2014_","C6","/","][img]","/Thumbs/","[/img][/url]","DSC_1107.JPG","[url=http://kativ.eu/files/naviga/Pictures/2014_C6/DSC_1107.JPG][img]http://kativ.eu/files/naviga/Pictures/2014_C6/Thumbs/DSC_1107.JPG[/img][/url]"]
["[url=","http://kativ.eu/files/naviga/Pictures/2014_","C6","/","][img]","/Thumbs/","[/img][/url]","DSC_1108.JPG","[url=http://kativ.eu/files/naviga/Pictures/2014_C6/DSC_1108.JPG][img]http://kativ.eu/files/naviga/Pictures/2014_C6/Thumbs/DSC_1108.JPG[/img][/url]"]
["[url=","http://kativ.eu/files/naviga/Pictures/2014_","C6","/","][img]","/Thumbs/","[/img][/url]","DSC_1109.JPG","[url=http://kativ.eu/files/naviga/Pictures/2014_C6/DSC_1109.JPG][img]http://kativ.eu/files/naviga/Pictures/2014_C6/Thumbs/DSC_1109.JPG[/img][/url]"]
["[url=","http://kativ.eu/files/naviga/Pictures/2014_","C6","/","][img]","/Thumbs/","[/img][/url]","DSC_1110.JPG","[url=http://kativ.eu/files/naviga/Pictures/2014_C6/DSC_1110.JPG][img]http://kativ.eu/files/naviga/Pictures/2014_C6/Thumbs/DSC_1110.JPG[/img][/url]",{"$f":"ConcatRange(I46:I96,\" \")","v":"[url=http://kativ.eu/files/naviga/Pictures/2014_C6/DSC_1110.JPG][img]http://kativ.eu/files/naviga/Pictures/2014_C6/Thumbs/DSC_1110.JPG[/img][/url] [url=http://kativ.eu/files/naviga/Pictures/2014_C6/DSC_1111.JPG][img]http://kativ.eu/files/naviga/Pictures/2014_C6/Thumbs/DSC_1111.JPG[/img][/url] [url=http://kativ.eu/files/naviga/Pictures/2014_C6/DSC_1112.JPG][img]http://kativ.eu/files/naviga/Pictures/2014_C6/Thumbs/DSC_1112.JPG[/img][/url] [url=http://kativ.eu/files/naviga/Pictures/2014_C6/DSC_1113.JPG][img]http://kativ.eu/files/naviga/Pictures/2014_C6/Thumbs/DSC_1113.JPG[/img][/url] [url=http://kativ.eu/files/naviga/Pictures/2014_C6/DSC_1114.JPG][img]http://kativ.eu/files/naviga/Pictures/2014_C6/Thumbs/DSC_1114.JPG[/img][/url] [url=http://kativ.eu/files/naviga/Pictures/2014_C6/DSC_1115.JPG][img]http://kativ.eu/files/naviga/Pictures/2014_C6/Thumbs/DSC_1115.JPG[/img][/url] [url=http://kativ.eu/files/naviga/Pictures/2014_C6/DSC_1116.JPG][img]http://kativ.eu/files/naviga/Pictures/2014_C6/Thumbs/DSC_1116.JPG[/img][/url] [url=http://kativ.eu/files/naviga/Pictures/2014_C6/DSC_1117.JPG][img]http://kativ.eu/files/naviga/Pictures/2014_C6/Thumbs/DSC_1117.JPG[/img][/url] [url=http://kativ.eu/files/naviga/Pictures/2014_C6/DSC_1118.JPG][img]http://kativ.eu/files/naviga/Pictures/2014_C6/Thumbs/DSC_1118.JPG[/img][/url] [url=http://kativ.eu/files/naviga/Pictures/2014_C6/DSC_1119.JPG][img]http://kativ.eu/files/naviga/Pictures/2014_C6/Thumbs/DSC_1119.JPG[/img][/url] [url=http://kativ.eu/files/naviga/Pictures/2014_C6/DSC_1121.JPG][img]http://kativ.eu/files/naviga/Pictures/2014_C6/Thumbs/DSC_1121.JPG[/img][/url] [url=http://kativ.eu/files/naviga/Pictures/2014_C6/DSC_1122.JPG][img]http://kativ.eu/files/naviga/Pictures/2014_C6/Thumbs/DSC_1122.JPG[/img][/url] [url=http://kativ.eu/files/naviga/Pictures/2014_C6/DSC_1123.JPG][img]http://kativ.eu/files/naviga/Pictures/2014_C6/Thumbs/DSC_1123.JPG[/img][/url] [url=http://kativ.eu/files/naviga/Pictures/2014_C6/DSC_1145.JPG][img]http://kativ.eu/files/naviga/Pictures/2014_C6/Thumbs/DSC_1145.JPG[/img][/url] [url=http://kativ.eu/files/naviga/Pictures/2014_C6/DSC_1146.JPG][img]http://kativ.eu/files/naviga/Pictures/2014_C6/Thumbs/DSC_1146.JPG[/img][/url] [url=http://kativ.eu/files/naviga/Pictures/2014_C6/DSC_1147.JPG][img]http://kativ.eu/files/naviga/Pictures/2014_C6/Thumbs/DSC_1147.JPG[/img][/url] [url=http://kativ.eu/files/naviga/Pictures/2014_C6/DSC_1148.JPG][img]http://kativ.eu/files/naviga/Pictures/2014_C6/Thumbs/DSC_1148.JPG[/img][/url] [url=http://kativ.eu/files/naviga/Pictures/2014_C6/DSC_1149.JPG][img]http://kativ.eu/files/naviga/Pictures/2014_C6/Thumbs/DSC_1149.JPG[/img][/url] [url=http://kativ.eu/files/naviga/Pictures/2014_C6/DSC_1150.JPG][img]http://kativ.eu/files/naviga/Pictures/2014_C6/Thumbs/DSC_1150.JPG[/img][/url] [url=http://kativ.eu/files/naviga/Pictures/2014_C6/DSC_1151.JPG][img]http://kativ.eu/files/naviga/Pictures/2014_C6/Thumbs/DSC_1151.JPG[/img][/url] [url=http://kativ.eu/files/naviga/Pictures/2014_C6/DSC_1152.JPG][img]http://kativ.eu/files/naviga/Pictures/2014_C6/Thumbs/DSC_1152.JPG[/img][/url] [url=http://kativ.eu/files/naviga/Pictures/2014_C6/DSC_1153.JPG][img]http://kativ.eu/files/naviga/Pictures/2014_C6/Thumbs/DSC_1153.JPG[/img][/url] [url=http://kativ.eu/files/naviga/Pictures/2014_C6/DSC_1154.JPG][img]http://kativ.eu/files/naviga/Pictures/2014_C6/Thumbs/DSC_1154.JPG[/img][/url] [url=http://kativ.eu/files/naviga/Pictures/2014_C6/DSC_1155.JPG][img]http://kativ.eu/files/naviga/Pictures/2014_C6/Thumbs/DSC_1155.JPG[/img][/url] [url=http://kativ.eu/files/naviga/Pictures/2014_C6/DSC_1156.JPG][img]http://kativ.eu/files/naviga/Pictures/2014_C6/Thumbs/DSC_1156.JPG[/img][/url] [url=http://kativ.eu/files/naviga/Pictures/2014_C6/DSC_1157.JPG][img]http://kativ.eu/files/naviga/Pictures/2014_C6/Thumbs/DSC_1157.JPG[/img][/url] [url=http://kativ.eu/files/naviga/Pictures/2014_C6/DSC_1158.JPG][img]http://kativ.eu/files/naviga/Pictures/2014_C6/Thumbs/DSC_1158.JPG[/img][/url] [url=http://kativ.eu/files/naviga/Pictures/2014_C6/DSC_1217.JPG][img]http://kativ.eu/files/naviga/Pictures/2014_C6/Thumbs/DSC_1217.JPG[/img][/url] [url=http://kativ.eu/files/naviga/Pictures/2014_C6/DSC_1218.JPG][img]http://kativ.eu/files/naviga/Pictures/2014_C6/Thumbs/DSC_1218.JPG[/img][/url] [url=http://kativ.eu/files/naviga/Pictures/2014_C6/DSC_1219.JPG][img]http://kativ.eu/files/naviga/Pictures/2014_C6/Thumbs/DSC_1219.JPG[/img][/url] [url=http://kativ.eu/files/naviga/Pictures/2014_C6/DSC_1220.JPG][img]http://kativ.eu/files/naviga/Pictures/2014_C6/Thumbs/DSC_1220.JPG[/img][/url] [url=http://kativ.eu/files/naviga/Pictures/2014_C6/DSC_1221.JPG][img]http://kativ.eu/files/naviga/Pictures/2014_C6/Thumbs/DSC_1221.JPG[/img][/url] [url=http://kativ.eu/files/naviga/Pictures/2014_C6/DSC_1222.JPG][img]http://kativ.eu/files/naviga/Pictures/2014_C6/Thumbs/DSC_1222.JPG[/img][/url] [url=http://kativ.eu/files/naviga/Pictures/2014_C6/DSC_1223.JPG][img]http://kativ.eu/files/naviga/Pictures/2014_C6/Thumbs/DSC_1223.JPG[/img][/url] [url=http://kativ.eu/files/naviga/Pictures/2014_C6/DSC_1224.JPG][img]http://kativ.eu/files/naviga/Pictures/2014_C6/Thumbs/DSC_1224.JPG[/img][/url] [url=http://kativ.eu/files/naviga/Pictures/2014_C6/DSC_1225.JPG][img]http://kativ.eu/files/naviga/Pictures/2014_C6/Thumbs/DSC_1225.JPG[/img][/url] [url=http://kativ.eu/files/naviga/Pictures/2014_C6/DSC_1226.JPG][img]http://kativ.eu/files/naviga/Pictures/2014_C6/Thumbs/DSC_1226.JPG[/img][/url] [url=http://kativ.eu/files/naviga/Pictures/2014_C6/DSC_1227.JPG][img]http://kativ.eu/files/naviga/Pictures/2014_C6/Thumbs/DSC_1227.JPG[/img][/url] [url=http://kativ.eu/files/naviga/Pictures/2014_C6/DSC_1228.JPG][img]http://kativ.eu/files/naviga/Pictures/2014_C6/Thumbs/DSC_1228.JPG[/img][/url] [url=http://kativ.eu/files/naviga/Pictures/2014_C6/DSC_1229.JPG][img]http://kativ.eu/files/naviga/Pictures/2014_C6/Thumbs/DSC_1229.JPG[/img][/url] [url=http://kativ.eu/files/naviga/Pictures/2014_C6/DSC_1230.JPG][img]http://kativ.eu/files/naviga/Pictures/2014_C6/Thumbs/DSC_1230.JPG[/img][/url] [url=http://kativ.eu/files/naviga/Pictures/2014_C6/DSC_1235.JPG][img]http://kativ.eu/files/naviga/Pictures/2014_C6/Thumbs/DSC_1235.JPG[/img][/url] [url=http://kativ.eu/files/naviga/Pictures/2014_C6/DSC_1236.JPG][img]http://kativ.eu/files/naviga/Pictures/2014_C6/Thumbs/DSC_1236.JPG[/img][/url] [url=http://kativ.eu/files/naviga/Pictures/2014_C6/DSC_1237.JPG][img]http://kativ.eu/files/naviga/Pictures/2014_C6/Thumbs/DSC_1237.JPG[/img][/url] [url=http://kativ.eu/files/naviga/Pictures/2014_C6/DSC_1238.JPG][img]http://kativ.eu/files/naviga/Pictures/2014_C6/Thumbs/DSC_1238.JPG[/img][/url] [url=http://kativ.eu/files/naviga/Pictures/2014_C6/DSC_1239.JPG][img]http://kativ.eu/files/naviga/Pictures/2014_C6/Thumbs/DSC_1239.JPG[/img][/url] [url=http://kativ.eu/files/naviga/Pictures/2014_C6/DSC_1240.JPG][img]http://kativ.eu/files/naviga/Pictures/2014_C6/Thumbs/DSC_1240.JPG[/img][/url] [url=http://kativ.eu/files/naviga/Pictures/2014_C6/DSC_1241.JPG][img]http://kativ.eu/files/naviga/Pictures/2014_C6/Thumbs/DSC_1241.JPG[/img][/url] [url=http://kativ.eu/files/naviga/Pictures/2014_C6/DSC_1242.JPG][img]http://kativ.eu/files/naviga/Pictures/2014_C6/Thumbs/DSC_1242.JPG[/img][/url] [url=http://kativ.eu/files/naviga/Pictures/2014_C6/DSC_1248.JPG][img]http://kativ.eu/files/naviga/Pictures/2014_C6/Thumbs/DSC_1248.JPG[/img][/url] [url=http://kativ.eu/files/naviga/Pictures/2014_C6/DSC_1249.JPG][img]http://kativ.eu/files/naviga/Pictures/2014_C6/Thumbs/DSC_1249.JPG[/img][/url]"}]
["[url=","http://kativ.eu/files/naviga/Pictures/2014_","C6","/","][img]","/Thumbs/","[/img][/url]","DSC_1111.JPG","[url=http://kativ.eu/files/naviga/Pictures/2014_C6/DSC_1111.JPG][img]http://kativ.eu/files/naviga/Pictures/2014_C6/Thumbs/DSC_1111.JPG[/img][/url]"]
["[url=","http://kativ.eu/files/naviga/Pictures/2014_","C6","/","][img]","/Thumbs/","[/img][/url]","DSC_1112.JPG","[url=http://kativ.eu/files/naviga/Pictures/2014_C6/DSC_1112.JPG][img]http://kativ.eu/files/naviga/Pictures/2014_C6/Thumbs/DSC_1112.JPG[/img][/url]"]
["[url=","http://kativ.eu/files/naviga/Pictures/2014_","C6","/","][img]","/Thumbs/","[/img][/url]","DSC_1113.JPG","[url=http://kativ.eu/files/naviga/Pictures/2014_C6/DSC_1113.JPG][img]http://kativ.eu/files/naviga/Pictures/2014_C6/Thumbs/DSC_1113.JPG[/img][/url]"]
["[url=","http://kativ.eu/files/naviga/Pictures/2014_","C6","/","][img]","/Thumbs/","[/img][/url]","DSC_1114.JPG","[url=http://kativ.eu/files/naviga/Pictures/2014_C6/DSC_1114.JPG][img]http://kativ.eu/files/naviga/Pictures/2014_C6/Thumbs/DSC_1114.JPG[/img][/url]"]
["[url=","http://kativ.eu/files/naviga/Pictures/2014_","C6","/","][img]","/Thumbs/","[/img][/url]","DSC_1115.JPG","[url=http://kativ.eu/files/naviga/Pictures/2014_C6/DSC_1115.JPG][img]http://kativ.eu/files/naviga/Pictures/2014_C6/Thumbs/DSC_1115.JPG[/img][/url]"]
["[url=","http://kativ.eu/files/naviga/Pictures/2014_","C6","/","][img]","/Thumbs/","[/img][/url]","DSC_1116.JPG","[url=http://kativ.eu/files/naviga/Pictures/2014_C6/DSC_1116.JPG][img]http://kativ.eu/files/naviga/Pictures/2014_C6/Thumbs/DSC_1116.JPG[/img][/url]"]
["[url=","http://kativ.eu/files/naviga/Pictures/2014_","C6","/","][img]","/Thumbs/","[/img][/url]","DSC_1117.JPG","[url=http://kativ.eu/files/naviga/Pictures/2014_C6/DSC_1117.JPG][img]http://kativ.eu/files/naviga/Pictures/2014_C6/Thumbs/DSC_1117.JPG[/img][/url]"]
["[url=","http://kativ.eu/files/naviga/Pictures/2014_","C6","/","][img]","/Thumbs/","[/img][/url]","DSC_1118.JPG","[url=http://kativ.eu/files/naviga/Pictures/2014_C6/DSC_1118.JPG][img]http://kativ.eu/files/naviga/Pictures/2014_C6/Thumbs/DSC_1118.JPG[/img][/url]"]
["[url=","http://kativ.eu/files/naviga/Pictures/2014_","C6","/","][img]","/Thumbs/","[/img][/url]","DSC_1119.JPG","[url=http://kativ.eu/files/naviga/Pictures/2014_C6/DSC_1119.JPG][img]http://kativ.eu/files/naviga/Pictures/2014_C6/Thumbs/DSC_1119.JPG[/img][/url]"]
["[url=","http://kativ.eu/files/naviga/Pictures/2014_","C6","/","][img]","/Thumbs/","[/img][/url]","DSC_1121.JPG","[url=http://kativ.eu/files/naviga/Pictures/2014_C6/DSC_1121.JPG][img]http://kativ.eu/files/naviga/Pictures/2014_C6/Thumbs/DSC_1121.JPG[/img][/url]"]
["[url=","http://kativ.eu/files/naviga/Pictures/2014_","C6","/","][img]","/Thumbs/","[/img][/url]","DSC_1122.JPG","[url=http://kativ.eu/files/naviga/Pictures/2014_C6/DSC_1122.JPG][img]http://kativ.eu/files/naviga/Pictures/2014_C6/Thumbs/DSC_1122.JPG[/img][/url]"]
["[url=","http://kativ.eu/files/naviga/Pictures/2014_","C6","/","][img]","/Thumbs/","[/img][/url]","DSC_1123.JPG","[url=http://kativ.eu/files/naviga/Pictures/2014_C6/DSC_1123.JPG][img]http://kativ.eu/files/naviga/Pictures/2014_C6/Thumbs/DSC_1123.JPG[/img][/url]"]
["[url=","http://kativ.eu/files/naviga/Pictures/2014_","C6","/","][img]","/Thumbs/","[/img][/url]","DSC_1145.JPG","[url=http://kativ.eu/files/naviga/Pictures/2014_C6/DSC_1145.JPG][img]http://kativ.eu/files/naviga/Pictures/2014_C6/Thumbs/DSC_1145.JPG[/img][/url]"]
["[url=","http://kativ.eu/files/naviga/Pictures/2014_","C6","/","][img]","/Thumbs/","[/img][/url]","DSC_1146.JPG","[url=http://kativ.eu/files/naviga/Pictures/2014_C6/DSC_1146.JPG][img]http://kativ.eu/files/naviga/Pictures/2014_C6/Thumbs/DSC_1146.JPG[/img][/url]"]
["[url=","http://kativ.eu/files/naviga/Pictures/2014_","C6","/","][img]","/Thumbs/","[/img][/url]","DSC_1147.JPG","[url=http://kativ.eu/files/naviga/Pictures/2014_C6/DSC_1147.JPG][img]http://kativ.eu/files/naviga/Pictures/2014_C6/Thumbs/DSC_1147.JPG[/img][/url]"]
["[url=","http://kativ.eu/files/naviga/Pictures/2014_","C6","/","][img]","/Thumbs/","[/img][/url]","DSC_1148.JPG","[url=http://kativ.eu/files/naviga/Pictures/2014_C6/DSC_1148.JPG][img]http://kativ.eu/files/naviga/Pictures/2014_C6/Thumbs/DSC_1148.JPG[/img][/url]"]
["[url=","http://kativ.eu/files/naviga/Pictures/2014_","C6","/","][img]","/Thumbs/","[/img][/url]","DSC_1149.JPG","[url=http://kativ.eu/files/naviga/Pictures/2014_C6/DSC_1149.JPG][img]http://kativ.eu/files/naviga/Pictures/2014_C6/Thumbs/DSC_1149.JPG[/img][/url]"]
["[url=","http://kativ.eu/files/naviga/Pictures/2014_","C6","/","][img]","/Thumbs/","[/img][/url]","DSC_1150.JPG","[url=http://kativ.eu/files/naviga/Pictures/2014_C6/DSC_1150.JPG][img]http://kativ.eu/files/naviga/Pictures/2014_C6/Thumbs/DSC_1150.JPG[/img][/url]"]
["[url=","http://kativ.eu/files/naviga/Pictures/2014_","C6","/","][img]","/Thumbs/","[/img][/url]","DSC_1151.JPG","[url=http://kativ.eu/files/naviga/Pictures/2014_C6/DSC_1151.JPG][img]http://kativ.eu/files/naviga/Pictures/2014_C6/Thumbs/DSC_1151.JPG[/img][/url]"]
["[url=","http://kativ.eu/files/naviga/Pictures/2014_","C6","/","][img]","/Thumbs/","[/img][/url]","DSC_1152.JPG",{"$f":"CONCATENATE(A66,B66,C66,D66,H66,E66,B66,C66,F66,H66,G66)","v":"[url=http://kativ.eu/files/naviga/Pictures/2014_C6/DSC_1152.JPG][img]http://kativ.eu/files/naviga/Pictures/2014_C6/Thumbs/DSC_1152.JPG[/img][/url]"}]
["[url=","http://kativ.eu/files/naviga/Pictures/2014_","C6","/","][img]","/Thumbs/","[/img][/url]","DSC_1153.JPG","[url=http://kativ.eu/files/naviga/Pictures/2014_C6/DSC_1153.JPG][img]http://kativ.eu/files/naviga/Pictures/2014_C6/Thumbs/DSC_1153.JPG[/img][/url]"]
["[url=","http://kativ.eu/files/naviga/Pictures/2014_","C6","/","][img]","/Thumbs/","[/img][/url]","DSC_1154.JPG","[url=http://kativ.eu/files/naviga/Pictures/2014_C6/DSC_1154.JPG][img]http://kativ.eu/files/naviga/Pictures/2014_C6/Thumbs/DSC_1154.JPG[/img][/url]"]
["[url=","http://kativ.eu/files/naviga/Pictures/2014_","C6","/","][img]","/Thumbs/","[/img][/url]","DSC_1155.JPG","[url=http://kativ.eu/files/naviga/Pictures/2014_C6/DSC_1155.JPG][img]http://kativ.eu/files/naviga/Pictures/2014_C6/Thumbs/DSC_1155.JPG[/img][/url]"]
["[url=","http://kativ.eu/files/naviga/Pictures/2014_","C6","/","][img]","/Thumbs/","[/img][/url]","DSC_1156.JPG","[url=http://kativ.eu/files/naviga/Pictures/2014_C6/DSC_1156.JPG][img]http://kativ.eu/files/naviga/Pictures/2014_C6/Thumbs/DSC_1156.JPG[/img][/url]"]
["[url=","http://kativ.eu/files/naviga/Pictures/2014_","C6","/","][img]","/Thumbs/","[/img][/url]","DSC_1157.JPG","[url=http://kativ.eu/files/naviga/Pictures/2014_C6/DSC_1157.JPG][img]http://kativ.eu/files/naviga/Pictures/2014_C6/Thumbs/DSC_1157.JPG[/img][/url]"]
["[url=","http://kativ.eu/files/naviga/Pictures/2014_","C6","/","][img]","/Thumbs/","[/img][/url]","DSC_1158.JPG","[url=http://kativ.eu/files/naviga/Pictures/2014_C6/DSC_1158.JPG][img]http://kativ.eu/files/naviga/Pictures/2014_C6/Thumbs/DSC_1158.JPG[/img][/url]"]
["[url=","http://kativ.eu/files/naviga/Pictures/2014_","C6","/","][img]","/Thumbs/","[/img][/url]","DSC_1217.JPG","[url=http://kativ.eu/files/naviga/Pictures/2014_C6/DSC_1217.JPG][img]http://kativ.eu/files/naviga/Pictures/2014_C6/Thumbs/DSC_1217.JPG[/img][/url]"]
["[url=","http://kativ.eu/files/naviga/Pictures/2014_","C6","/","][img]","/Thumbs/","[/img][/url]","DSC_1218.JPG","[url=http://kativ.eu/files/naviga/Pictures/2014_C6/DSC_1218.JPG][img]http://kativ.eu/files/naviga/Pictures/2014_C6/Thumbs/DSC_1218.JPG[/img][/url]"]
["[url=","http://kativ.eu/files/naviga/Pictures/2014_","C6","/","][img]","/Thumbs/","[/img][/url]","DSC_1219.JPG","[url=http://kativ.eu/files/naviga/Pictures/2014_C6/DSC_1219.JPG][img]http://kativ.eu/files/naviga/Pictures/2014_C6/Thumbs/DSC_1219.JPG[/img][/url]"]
["[url=","http://kativ.eu/files/naviga/Pictures/2014_","C6","/","][img]","/Thumbs/","[/img][/url]","DSC_1220.JPG","[url=http://kativ.eu/files/naviga/Pictures/2014_C6/DSC_1220.JPG][img]http://kativ.eu/files/naviga/Pictures/2014_C6/Thumbs/DSC_1220.JPG[/img][/url]"]
["[url=","http://kativ.eu/files/naviga/Pictures/2014_","C6","/","][img]","/Thumbs/","[/img][/url]","DSC_1221.JPG","[url=http://kativ.eu/files/naviga/Pictures/2014_C6/DSC_1221.JPG][img]http://kativ.eu/files/naviga/Pictures/2014_C6/Thumbs/DSC_1221.JPG[/img][/url]"]
["[url=","http://kativ.eu/files/naviga/Pictures/2014_","C6","/","][img]","/Thumbs/","[/img][/url]","DSC_1222.JPG","[url=http://kativ.eu/files/naviga/Pictures/2014_C6/DSC_1222.JPG][img]http://kativ.eu/files/naviga/Pictures/2014_C6/Thumbs/DSC_1222.JPG[/img][/url]"]
["[url=","http://kativ.eu/files/naviga/Pictures/2014_","C6","/","][img]","/Thumbs/","[/img][/url]","DSC_1223.JPG","[url=http://kativ.eu/files/naviga/Pictures/2014_C6/DSC_1223.JPG][img]http://kativ.eu/files/naviga/Pictures/2014_C6/Thumbs/DSC_1223.JPG[/img][/url]"]
["[url=","http://kativ.eu/files/naviga/Pictures/2014_","C6","/","][img]","/Thumbs/","[/img][/url]","DSC_1224.JPG","[url=http://kativ.eu/files/naviga/Pictures/2014_C6/DSC_1224.JPG][img]http://kativ.eu/files/naviga/Pictures/2014_C6/Thumbs/DSC_1224.JPG[/img][/url]"]
["[url=","http://kativ.eu/files/naviga/Pictures/2014_","C6","/","][img]","/Thumbs/","[/img][/url]","DSC_1225.JPG","[url=http://kativ.eu/files/naviga/Pictures/2014_C6/DSC_1225.JPG][img]http://kativ.eu/files/naviga/Pictures/2014_C6/Thumbs/DSC_1225.JPG[/img][/url]"]
["[url=","http://kativ.eu/files/naviga/Pictures/2014_","C6","/","][img]","/Thumbs/","[/img][/url]","DSC_1226.JPG","[url=http://kativ.eu/files/naviga/Pictures/2014_C6/DSC_1226.JPG][img]http://kativ.eu/files/naviga/Pictures/2014_C6/Thumbs/DSC_1226.JPG[/img][/url]"]
["[url=","http://kativ.eu/files/naviga/Pictures/2014_","C6","/","][img]","/Thumbs/","[/img][/url]","DSC_1227.JPG","[url=http://kativ.eu/files/naviga/Pictures/2014_C6/DSC_1227.JPG][img]http://kativ.eu/files/naviga/Pictures/2014_C6/Thumbs/DSC_1227.JPG[/img][/url]"]
["[url=","http://kativ.eu/files/naviga/Pictures/2014_","C6","/","][img]","/Thumbs/","[/img][/url]","DSC_1228.JPG","[url=http://kativ.eu/files/naviga/Pictures/2014_C6/DSC_1228.JPG][img]http://kativ.eu/files/naviga/Pictures/2014_C6/Thumbs/DSC_1228.JPG[/img][/url]"]
["[url=","http://kativ.eu/files/naviga/Pictures/2014_","C6","/","][img]","/Thumbs/","[/img][/url]","DSC_1229.JPG","[url=http://kativ.eu/files/naviga/Pictures/2014_C6/DSC_1229.JPG][img]http://kativ.eu/files/naviga/Pictures/2014_C6/Thumbs/DSC_1229.JPG[/img][/url]"]
["[url=","http://kativ.eu/files/naviga/Pictures/2014_","C6","/","][img]","/Thumbs/","[/img][/url]","DSC_1230.JPG","[url=http://kativ.eu/files/naviga/Pictures/2014_C6/DSC_1230.JPG][img]http://kativ.eu/files/naviga/Pictures/2014_C6/Thumbs/DSC_1230.JPG[/img][/url]"]
["[url=","http://kativ.eu/files/naviga/Pictures/2014_","C6","/","][img]","/Thumbs/","[/img][/url]","DSC_1235.JPG","[url=http://kativ.eu/files/naviga/Pictures/2014_C6/DSC_1235.JPG][img]http://kativ.eu/files/naviga/Pictures/2014_C6/Thumbs/DSC_1235.JPG[/img][/url]"]
["[url=","http://kativ.eu/files/naviga/Pictures/2014_","C6","/","][img]","/Thumbs/","[/img][/url]","DSC_1236.JPG","[url=http://kativ.eu/files/naviga/Pictures/2014_C6/DSC_1236.JPG][img]http://kativ.eu/files/naviga/Pictures/2014_C6/Thumbs/DSC_1236.JPG[/img][/url]"]
["[url=","http://kativ.eu/files/naviga/Pictures/2014_","C6","/","][img]","/Thumbs/","[/img][/url]","DSC_1237.JPG","[url=http://kativ.eu/files/naviga/Pictures/2014_C6/DSC_1237.JPG][img]http://kativ.eu/files/naviga/Pictures/2014_C6/Thumbs/DSC_1237.JPG[/img][/url]"]
["[url=","http://kativ.eu/files/naviga/Pictures/2014_","C6","/","][img]","/Thumbs/","[/img][/url]","DSC_1238.JPG","[url=http://kativ.eu/files/naviga/Pictures/2014_C6/DSC_1238.JPG][img]http://kativ.eu/files/naviga/Pictures/2014_C6/Thumbs/DSC_1238.JPG[/img][/url]"]
["[url=","http://kativ.eu/files/naviga/Pictures/2014_","C6","/","][img]","/Thumbs/","[/img][/url]","DSC_1239.JPG","[url=http://kativ.eu/files/naviga/Pictures/2014_C6/DSC_1239.JPG][img]http://kativ.eu/files/naviga/Pictures/2014_C6/Thumbs/DSC_1239.JPG[/img][/url]"]
["[url=","http://kativ.eu/files/naviga/Pictures/2014_","C6","/","][img]","/Thumbs/","[/img][/url]","DSC_1240.JPG","[url=http://kativ.eu/files/naviga/Pictures/2014_C6/DSC_1240.JPG][img]http://kativ.eu/files/naviga/Pictures/2014_C6/Thumbs/DSC_1240.JPG[/img][/url]"]
["[url=","http://kativ.eu/files/naviga/Pictures/2014_","C6","/","][img]","/Thumbs/","[/img][/url]","DSC_1241.JPG","[url=http://kativ.eu/files/naviga/Pictures/2014_C6/DSC_1241.JPG][img]http://kativ.eu/files/naviga/Pictures/2014_C6/Thumbs/DSC_1241.JPG[/img][/url]"]
["[url=","http://kativ.eu/files/naviga/Pictures/2014_","C6","/","][img]","/Thumbs/","[/img][/url]","DSC_1242.JPG","[url=http://kativ.eu/files/naviga/Pictures/2014_C6/DSC_1242.JPG][img]http://kativ.eu/files/naviga/Pictures/2014_C6/Thumbs/DSC_1242.JPG[/img][/url]"]
["[url=","http://kativ.eu/files/naviga/Pictures/2014_","C6","/","][img]","/Thumbs/","[/img][/url]","DSC_1248.JPG","[url=http://kativ.eu/files/naviga/Pictures/2014_C6/DSC_1248.JPG][img]http://kativ.eu/files/naviga/Pictures/2014_C6/Thumbs/DSC_1248.JPG[/img][/url]"]
["[url=","http://kativ.eu/files/naviga/Pictures/2014_","C6","/","][img]","/Thumbs/","[/img][/url]","DSC_1249.JPG","[url=http://kativ.eu/files/naviga/Pictures/2014_C6/DSC_1249.JPG][img]http://kativ.eu/files/naviga/Pictures/2014_C6/Thumbs/DSC_1249.JPG[/img][/url]"]

{"sheet":"C7","index":7,"n_rows":89,"n_cols":10,"rows_kept":89,"cut":false,"hidden":false,"merged":[]}
["[url=","http://kativ.eu/files/naviga/Pictures/2014_","C7","/","][img]","/Thumbs/","[/img][/url]","DSC_0676.JPG",{"$f":"CONCATENATE(A1,B1,C1,D1,H1,E1,B1,C1,F1,H1,G1)","v":"[url=http://kativ.eu/files/naviga/Pictures/2014_C7/DSC_0676.JPG][img]http://kativ.eu/files/naviga/Pictures/2014_C7/Thumbs/DSC_0676.JPG[/img][/url]"},{"$f":"ConcatRange(I1:I45,\" \")","v":"[url=http://kativ.eu/files/naviga/Pictures/2014_C7/DSC_0676.JPG][img]http://kativ.eu/files/naviga/Pictures/2014_C7/Thumbs/DSC_0676.JPG[/img][/url] [url=http://kativ.eu/files/naviga/Pictures/2014_C7/DSC_0677.JPG][img]http://kativ.eu/files/naviga/Pictures/2014_C7/Thumbs/DSC_0677.JPG[/img][/url] [url=http://kativ.eu/files/naviga/Pictures/2014_C7/DSC_0678.JPG][img]http://kativ.eu/files/naviga/Pictures/2014_C7/Thumbs/DSC_0678.JPG[/img][/url] [url=http://kativ.eu/files/naviga/Pictures/2014_C7/DSC_0679.JPG][img]http://kativ.eu/files/naviga/Pictures/2014_C7/Thumbs/DSC_0679.JPG[/img][/url] [url=http://kativ.eu/files/naviga/Pictures/2014_C7/DSC_0680.JPG][img]http://kativ.eu/files/naviga/Pictures/2014_C7/Thumbs/DSC_0680.JPG[/img][/url] [url=http://kativ.eu/files/naviga/Pictures/2014_C7/DSC_1003.JPG][img]http://kativ.eu/files/naviga/Pictures/2014_C7/Thumbs/DSC_1003.JPG[/img][/url] [url=http://kativ.eu/files/naviga/Pictures/2014_C7/DSC_1004.JPG][img]http://kativ.eu/files/naviga/Pictures/2014_C7/Thumbs/DSC_1004.JPG[/img][/url] [url=http://kativ.eu/files/naviga/Pictures/2014_C7/DSC_1005.JPG][img]http://kativ.eu/files/naviga/Pictures/2014_C7/Thumbs/DSC_1005.JPG[/img][/url] [url=http://kativ.eu/files/naviga/Pictures/2014_C7/DSC_1006.JPG][img]http://kativ.eu/files/naviga/Pictures/2014_C7/Thumbs/DSC_1006.JPG[/img][/url] [url=http://kativ.eu/files/naviga/Pictures/2014_C7/DSC_1007.JPG][img]http://kativ.eu/files/naviga/Pictures/2014_C7/Thumbs/DSC_1007.JPG[/img][/url] [url=http://kativ.eu/files/naviga/Pictures/2014_C7/DSC_1008.JPG][img]http://kativ.eu/files/naviga/Pictures/2014_C7/Thumbs/DSC_1008.JPG[/img][/url] [url=http://kativ.eu/files/naviga/Pictures/2014_C7/DSC_1009.JPG][img]http://kativ.eu/files/naviga/Pictures/2014_C7/Thumbs/DSC_1009.JPG[/img][/url] [url=http://kativ.eu/files/naviga/Pictures/2014_C7/DSC_1010.JPG][img]http://kativ.eu/files/naviga/Pictures/2014_C7/Thumbs/DSC_1010.JPG[/img][/url] [url=http://kativ.eu/files/naviga/Pictures/2014_C7/DSC_1011.JPG][img]http://kativ.eu/files/naviga/Pictures/2014_C7/Thumbs/DSC_1011.JPG[/img][/url] [url=http://kativ.eu/files/naviga/Pictures/2014_C7/DSC_1012.JPG][img]http://kativ.eu/files/naviga/Pictures/2014_C7/Thumbs/DSC_1012.JPG[/img][/url] [url=http://kativ.eu/files/naviga/Pictures/2014_C7/DSC_1013.JPG][img]http://kativ.eu/files/naviga/Pictures/2014_C7/Thumbs/DSC_1013.JPG[/img][/url] [url=http://kativ.eu/files/naviga/Pictures/2014_C7/DSC_1014.JPG][img]http://kativ.eu/files/naviga/Pictures/2014_C7/Thumbs/DSC_1014.JPG[/img][/url] [url=http://kativ.eu/files/naviga/Pictures/2014_C7/DSC_1015.JPG][img]http://kativ.eu/files/naviga/Pictures/2014_C7/Thumbs/DSC_1015.JPG[/img][/url] [url=http://kativ.eu/files/naviga/Pictures/2014_C7/DSC_1016.JPG][img]http://kativ.eu/files/naviga/Pictures/2014_C7/Thumbs/DSC_1016.JPG[/img][/url] [url=http://kativ.eu/files/naviga/Pictures/2014_C7/DSC_1017.JPG][img]http://kativ.eu/files/naviga/Pictures/2014_C7/Thumbs/DSC_1017.JPG[/img][/url] [url=http://kativ.eu/files/naviga/Pictures/2014_C7/DSC_1018.JPG][img]http://kativ.eu/files/naviga/Pictures/2014_C7/Thumbs/DSC_1018.JPG[/img][/url] [url=http://kativ.eu/files/naviga/Pictures/2014_C7/DSC_1019.JPG][img]http://kativ.eu/files/naviga/Pictures/2014_C7/Thumbs/DSC_1019.JPG[/img][/url] [url=http://kativ.eu/files/naviga/Pictures/2014_C7/DSC_1020.JPG][img]http://kativ.eu/files/naviga/Pictures/2014_C7/Thumbs/DSC_1020.JPG[/img][/url] [url=http://kativ.eu/files/naviga/Pictures/2014_C7/DSC_1021.JPG][img]http://kativ.eu/files/naviga/Pictures/2014_C7/Thumbs/DSC_1021.JPG[/img][/url] [url=http://kativ.eu/files/naviga/Pictures/2014_C7/DSC_1022.JPG][img]http://kativ.eu/files/naviga/Pictures/2014_C7/Thumbs/DSC_1022.JPG[/img][/url] [url=http://kativ.eu/files/naviga/Pictures/2014_C7/DSC_1023.JPG][img]http://kativ.eu/files/naviga/Pictures/2014_C7/Thumbs/DSC_1023.JPG[/img][/url] [url=http://kativ.eu/files/naviga/Pictures/2014_C7/DSC_1024.JPG][img]http://kativ.eu/files/naviga/Pictures/2014_C7/Thumbs/DSC_1024.JPG[/img][/url] [url=http://kativ.eu/files/naviga/Pictures/2014_C7/DSC_1025.JPG][img]http://kativ.eu/files/naviga/Pictures/2014_C7/Thumbs/DSC_1025.JPG[/img][/url] [url=http://kativ.eu/files/naviga/Pictures/2014_C7/DSC_1026.JPG][img]http://kativ.eu/files/naviga/Pictures/2014_C7/Thumbs/DSC_1026.JPG[/img][/url] [url=http://kativ.eu/files/naviga/Pictures/2014_C7/DSC_1027.JPG][img]http://kativ.eu/files/naviga/Pictures/2014_C7/Thumbs/DSC_1027.JPG[/img][/url] [url=http://kativ.eu/files/naviga/Pictures/2014_C7/DSC_1028.JPG][img]http://kativ.eu/files/naviga/Pictures/2014_C7/Thumbs/DSC_1028.JPG[/img][/url] [url=http://kativ.eu/files/naviga/Pictures/2014_C7/DSC_1029.JPG][img]http://kativ.eu/files/naviga/Pictures/2014_C7/Thumbs/DSC_1029.JPG[/img][/url] [url=http://kativ.eu/files/naviga/Pictures/2014_C7/DSC_1030.JPG][img]http://kativ.eu/files/naviga/Pictures/2014_C7/Thumbs/DSC_1030.JPG[/img][/url] [url=http://kativ.eu/files/naviga/Pictures/2014_C7/DSC_1031.JPG][img]http://kativ.eu/files/naviga/Pictures/2014_C7/Thumbs/DSC_1031.JPG[/img][/url] [url=http://kativ.eu/files/naviga/Pictures/2014_C7/DSC_1032.JPG][img]http://kativ.eu/files/naviga/Pictures/2014_C7/Thumbs/DSC_1032.JPG[/img][/url] [url=http://kativ.eu/files/naviga/Pictures/2014_C7/DSC_1033.JPG][img]http://kativ.eu/files/naviga/Pictures/2014_C7/Thumbs/DSC_1033.JPG[/img][/url] [url=http://kativ.eu/files/naviga/Pictures/2014_C7/DSC_1034.JPG][img]http://kativ.eu/files/naviga/Pictures/2014_C7/Thumbs/DSC_1034.JPG[/img][/url] [url=http://kativ.eu/files/naviga/Pictures/2014_C7/DSC_1035.JPG][img]http://kativ.eu/files/naviga/Pictures/2014_C7/Thumbs/DSC_1035.JPG[/img][/url] [url=http://kativ.eu/files/naviga/Pictures/2014_C7/DSC_1036.JPG][img]http://kativ.eu/files/naviga/Pictures/2014_C7/Thumbs/DSC_1036.JPG[/img][/url] [url=http://kativ.eu/files/naviga/Pictures/2014_C7/DSC_1037.JPG][img]http://kativ.eu/files/naviga/Pictures/2014_C7/Thumbs/DSC_1037.JPG[/img][/url] [url=http://kativ.eu/files/naviga/Pictures/2014_C7/DSC_1038.JPG][img]http://kativ.eu/files/naviga/Pictures/2014_C7/Thumbs/DSC_1038.JPG[/img][/url] [url=http://kativ.eu/files/naviga/Pictures/2014_C7/DSC_1039.JPG][img]http://kativ.eu/files/naviga/Pictures/2014_C7/Thumbs/DSC_1039.JPG[/img][/url] [url=http://kativ.eu/files/naviga/Pictures/2014_C7/DSC_1040.JPG][img]http://kativ.eu/files/naviga/Pictures/2014_C7/Thumbs/DSC_1040.JPG[/img][/url] [url=http://kativ.eu/files/naviga/Pictures/2014_C7/DSC_1041.JPG][img]http://kativ.eu/files/naviga/Pictures/2014_C7/Thumbs/DSC_1041.JPG[/img][/url] [url=http://kativ.eu/files/naviga/Pictures/2014_C7/DSC_1042.JPG][img]http://kativ.eu/files/naviga/Pictures/2014_C7/Thumbs/DSC_1042.JPG[/img][/url]"}]
["[url=","http://kativ.eu/files/naviga/Pictures/2014_","C7","/","][img]","/Thumbs/","[/img][/url]","DSC_0677.JPG",{"$f":"CONCATENATE(A2,B2,C2,D2,H2,E2,B2,C2,F2,H2,G2)","v":"[url=http://kativ.eu/files/naviga/Pictures/2014_C7/DSC_0677.JPG][img]http://kativ.eu/files/naviga/Pictures/2014_C7/Thumbs/DSC_0677.JPG[/img][/url]"}]
["[url=","http://kativ.eu/files/naviga/Pictures/2014_","C7","/","][img]","/Thumbs/","[/img][/url]","DSC_0678.JPG","[url=http://kativ.eu/files/naviga/Pictures/2014_C7/DSC_0678.JPG][img]http://kativ.eu/files/naviga/Pictures/2014_C7/Thumbs/DSC_0678.JPG[/img][/url]"]
["[url=","http://kativ.eu/files/naviga/Pictures/2014_","C7","/","][img]","/Thumbs/","[/img][/url]","DSC_0679.JPG","[url=http://kativ.eu/files/naviga/Pictures/2014_C7/DSC_0679.JPG][img]http://kativ.eu/files/naviga/Pictures/2014_C7/Thumbs/DSC_0679.JPG[/img][/url]"]
["[url=","http://kativ.eu/files/naviga/Pictures/2014_","C7","/","][img]","/Thumbs/","[/img][/url]","DSC_0680.JPG","[url=http://kativ.eu/files/naviga/Pictures/2014_C7/DSC_0680.JPG][img]http://kativ.eu/files/naviga/Pictures/2014_C7/Thumbs/DSC_0680.JPG[/img][/url]"]
["[url=","http://kativ.eu/files/naviga/Pictures/2014_","C7","/","][img]","/Thumbs/","[/img][/url]","DSC_1003.JPG","[url=http://kativ.eu/files/naviga/Pictures/2014_C7/DSC_1003.JPG][img]http://kativ.eu/files/naviga/Pictures/2014_C7/Thumbs/DSC_1003.JPG[/img][/url]"]
["[url=","http://kativ.eu/files/naviga/Pictures/2014_","C7","/","][img]","/Thumbs/","[/img][/url]","DSC_1004.JPG","[url=http://kativ.eu/files/naviga/Pictures/2014_C7/DSC_1004.JPG][img]http://kativ.eu/files/naviga/Pictures/2014_C7/Thumbs/DSC_1004.JPG[/img][/url]"]
["[url=","http://kativ.eu/files/naviga/Pictures/2014_","C7","/","][img]","/Thumbs/","[/img][/url]","DSC_1005.JPG","[url=http://kativ.eu/files/naviga/Pictures/2014_C7/DSC_1005.JPG][img]http://kativ.eu/files/naviga/Pictures/2014_C7/Thumbs/DSC_1005.JPG[/img][/url]"]
["[url=","http://kativ.eu/files/naviga/Pictures/2014_","C7","/","][img]","/Thumbs/","[/img][/url]","DSC_1006.JPG","[url=http://kativ.eu/files/naviga/Pictures/2014_C7/DSC_1006.JPG][img]http://kativ.eu/files/naviga/Pictures/2014_C7/Thumbs/DSC_1006.JPG[/img][/url]"]
["[url=","http://kativ.eu/files/naviga/Pictures/2014_","C7","/","][img]","/Thumbs/","[/img][/url]","DSC_1007.JPG","[url=http://kativ.eu/files/naviga/Pictures/2014_C7/DSC_1007.JPG][img]http://kativ.eu/files/naviga/Pictures/2014_C7/Thumbs/DSC_1007.JPG[/img][/url]"]
["[url=","http://kativ.eu/files/naviga/Pictures/2014_","C7","/","][img]","/Thumbs/","[/img][/url]","DSC_1008.JPG","[url=http://kativ.eu/files/naviga/Pictures/2014_C7/DSC_1008.JPG][img]http://kativ.eu/files/naviga/Pictures/2014_C7/Thumbs/DSC_1008.JPG[/img][/url]"]
["[url=","http://kativ.eu/files/naviga/Pictures/2014_","C7","/","][img]","/Thumbs/","[/img][/url]","DSC_1009.JPG","[url=http://kativ.eu/files/naviga/Pictures/2014_C7/DSC_1009.JPG][img]http://kativ.eu/files/naviga/Pictures/2014_C7/Thumbs/DSC_1009.JPG[/img][/url]"]
["[url=","http://kativ.eu/files/naviga/Pictures/2014_","C7","/","][img]","/Thumbs/","[/img][/url]","DSC_1010.JPG","[url=http://kativ.eu/files/naviga/Pictures/2014_C7/DSC_1010.JPG][img]http://kativ.eu/files/naviga/Pictures/2014_C7/Thumbs/DSC_1010.JPG[/img][/url]"]
["[url=","http://kativ.eu/files/naviga/Pictures/2014_","C7","/","][img]","/Thumbs/","[/img][/url]","DSC_1011.JPG","[url=http://kativ.eu/files/naviga/Pictures/2014_C7/DSC_1011.JPG][img]http://kativ.eu/files/naviga/Pictures/2014_C7/Thumbs/DSC_1011.JPG[/img][/url]"]
["[url=","http://kativ.eu/files/naviga/Pictures/2014_","C7","/","][img]","/Thumbs/","[/img][/url]","DSC_1012.JPG","[url=http://kativ.eu/files/naviga/Pictures/2014_C7/DSC_1012.JPG][img]http://kativ.eu/files/naviga/Pictures/2014_C7/Thumbs/DSC_1012.JPG[/img][/url]"]
["[url=","http://kativ.eu/files/naviga/Pictures/2014_","C7","/","][img]","/Thumbs/","[/img][/url]","DSC_1013.JPG","[url=http://kativ.eu/files/naviga/Pictures/2014_C7/DSC_1013.JPG][img]http://kativ.eu/files/naviga/Pictures/2014_C7/Thumbs/DSC_1013.JPG[/img][/url]"]
["[url=","http://kativ.eu/files/naviga/Pictures/2014_","C7","/","][img]","/Thumbs/","[/img][/url]","DSC_1014.JPG","[url=http://kativ.eu/files/naviga/Pictures/2014_C7/DSC_1014.JPG][img]http://kativ.eu/files/naviga/Pictures/2014_C7/Thumbs/DSC_1014.JPG[/img][/url]"]
["[url=","http://kativ.eu/files/naviga/Pictures/2014_","C7","/","][img]","/Thumbs/","[/img][/url]","DSC_1015.JPG","[url=http://kativ.eu/files/naviga/Pictures/2014_C7/DSC_1015.JPG][img]http://kativ.eu/files/naviga/Pictures/2014_C7/Thumbs/DSC_1015.JPG[/img][/url]"]
["[url=","http://kativ.eu/files/naviga/Pictures/2014_","C7","/","][img]","/Thumbs/","[/img][/url]","DSC_1016.JPG","[url=http://kativ.eu/files/naviga/Pictures/2014_C7/DSC_1016.JPG][img]http://kativ.eu/files/naviga/Pictures/2014_C7/Thumbs/DSC_1016.JPG[/img][/url]"]
["[url=","http://kativ.eu/files/naviga/Pictures/2014_","C7","/","][img]","/Thumbs/","[/img][/url]","DSC_1017.JPG","[url=http://kativ.eu/files/naviga/Pictures/2014_C7/DSC_1017.JPG][img]http://kativ.eu/files/naviga/Pictures/2014_C7/Thumbs/DSC_1017.JPG[/img][/url]"]
["[url=","http://kativ.eu/files/naviga/Pictures/2014_","C7","/","][img]","/Thumbs/","[/img][/url]","DSC_1018.JPG","[url=http://kativ.eu/files/naviga/Pictures/2014_C7/DSC_1018.JPG][img]http://kativ.eu/files/naviga/Pictures/2014_C7/Thumbs/DSC_1018.JPG[/img][/url]"]
["[url=","http://kativ.eu/files/naviga/Pictures/2014_","C7","/","][img]","/Thumbs/","[/img][/url]","DSC_1019.JPG","[url=http://kativ.eu/files/naviga/Pictures/2014_C7/DSC_1019.JPG][img]http://kativ.eu/files/naviga/Pictures/2014_C7/Thumbs/DSC_1019.JPG[/img][/url]"]
["[url=","http://kativ.eu/files/naviga/Pictures/2014_","C7","/","][img]","/Thumbs/","[/img][/url]","DSC_1020.JPG","[url=http://kativ.eu/files/naviga/Pictures/2014_C7/DSC_1020.JPG][img]http://kativ.eu/files/naviga/Pictures/2014_C7/Thumbs/DSC_1020.JPG[/img][/url]"]
["[url=","http://kativ.eu/files/naviga/Pictures/2014_","C7","/","][img]","/Thumbs/","[/img][/url]","DSC_1021.JPG","[url=http://kativ.eu/files/naviga/Pictures/2014_C7/DSC_1021.JPG][img]http://kativ.eu/files/naviga/Pictures/2014_C7/Thumbs/DSC_1021.JPG[/img][/url]"]
["[url=","http://kativ.eu/files/naviga/Pictures/2014_","C7","/","][img]","/Thumbs/","[/img][/url]","DSC_1022.JPG","[url=http://kativ.eu/files/naviga/Pictures/2014_C7/DSC_1022.JPG][img]http://kativ.eu/files/naviga/Pictures/2014_C7/Thumbs/DSC_1022.JPG[/img][/url]"]
["[url=","http://kativ.eu/files/naviga/Pictures/2014_","C7","/","][img]","/Thumbs/","[/img][/url]","DSC_1023.JPG","[url=http://kativ.eu/files/naviga/Pictures/2014_C7/DSC_1023.JPG][img]http://kativ.eu/files/naviga/Pictures/2014_C7/Thumbs/DSC_1023.JPG[/img][/url]"]
["[url=","http://kativ.eu/files/naviga/Pictures/2014_","C7","/","][img]","/Thumbs/","[/img][/url]","DSC_1024.JPG","[url=http://kativ.eu/files/naviga/Pictures/2014_C7/DSC_1024.JPG][img]http://kativ.eu/files/naviga/Pictures/2014_C7/Thumbs/DSC_1024.JPG[/img][/url]"]
["[url=","http://kativ.eu/files/naviga/Pictures/2014_","C7","/","][img]","/Thumbs/","[/img][/url]","DSC_1025.JPG","[url=http://kativ.eu/files/naviga/Pictures/2014_C7/DSC_1025.JPG][img]http://kativ.eu/files/naviga/Pictures/2014_C7/Thumbs/DSC_1025.JPG[/img][/url]"]
["[url=","http://kativ.eu/files/naviga/Pictures/2014_","C7","/","][img]","/Thumbs/","[/img][/url]","DSC_1026.JPG","[url=http://kativ.eu/files/naviga/Pictures/2014_C7/DSC_1026.JPG][img]http://kativ.eu/files/naviga/Pictures/2014_C7/Thumbs/DSC_1026.JPG[/img][/url]"]
["[url=","http://kativ.eu/files/naviga/Pictures/2014_","C7","/","][img]","/Thumbs/","[/img][/url]","DSC_1027.JPG","[url=http://kativ.eu/files/naviga/Pictures/2014_C7/DSC_1027.JPG][img]http://kativ.eu/files/naviga/Pictures/2014_C7/Thumbs/DSC_1027.JPG[/img][/url]"]
["[url=","http://kativ.eu/files/naviga/Pictures/2014_","C7","/","][img]","/Thumbs/","[/img][/url]","DSC_1028.JPG","[url=http://kativ.eu/files/naviga/Pictures/2014_C7/DSC_1028.JPG][img]http://kativ.eu/files/naviga/Pictures/2014_C7/Thumbs/DSC_1028.JPG[/img][/url]"]
["[url=","http://kativ.eu/files/naviga/Pictures/2014_","C7","/","][img]","/Thumbs/","[/img][/url]","DSC_1029.JPG","[url=http://kativ.eu/files/naviga/Pictures/2014_C7/DSC_1029.JPG][img]http://kativ.eu/files/naviga/Pictures/2014_C7/Thumbs/DSC_1029.JPG[/img][/url]"]
["[url=","http://kativ.eu/files/naviga/Pictures/2014_","C7","/","][img]","/Thumbs/","[/img][/url]","DSC_1030.JPG","[url=http://kativ.eu/files/naviga/Pictures/2014_C7/DSC_1030.JPG][img]http://kativ.eu/files/naviga/Pictures/2014_C7/Thumbs/DSC_1030.JPG[/img][/url]"]
["[url=","http://kativ.eu/files/naviga/Pictures/2014_","C7","/","][img]","/Thumbs/","[/img][/url]","DSC_1031.JPG","[url=http://kativ.eu/files/naviga/Pictures/2014_C7/DSC_1031.JPG][img]http://kativ.eu/files/naviga/Pictures/2014_C7/Thumbs/DSC_1031.JPG[/img][/url]"]
["[url=","http://kativ.eu/files/naviga/Pictures/2014_","C7","/","][img]","/Thumbs/","[/img][/url]","DSC_1032.JPG","[url=http://kativ.eu/files/naviga/Pictures/2014_C7/DSC_1032.JPG][img]http://kativ.eu/files/naviga/Pictures/2014_C7/Thumbs/DSC_1032.JPG[/img][/url]"]
["[url=","http://kativ.eu/files/naviga/Pictures/2014_","C7","/","][img]","/Thumbs/","[/img][/url]","DSC_1033.JPG","[url=http://kativ.eu/files/naviga/Pictures/2014_C7/DSC_1033.JPG][img]http://kativ.eu/files/naviga/Pictures/2014_C7/Thumbs/DSC_1033.JPG[/img][/url]"]
["[url=","http://kativ.eu/files/naviga/Pictures/2014_","C7","/","][img]","/Thumbs/","[/img][/url]","DSC_1034.JPG","[url=http://kativ.eu/files/naviga/Pictures/2014_C7/DSC_1034.JPG][img]http://kativ.eu/files/naviga/Pictures/2014_C7/Thumbs/DSC_1034.JPG[/img][/url]"]
["[url=","http://kativ.eu/files/naviga/Pictures/2014_","C7","/","][img]","/Thumbs/","[/img][/url]","DSC_1035.JPG","[url=http://kativ.eu/files/naviga/Pictures/2014_C7/DSC_1035.JPG][img]http://kativ.eu/files/naviga/Pictures/2014_C7/Thumbs/DSC_1035.JPG[/img][/url]"]
["[url=","http://kativ.eu/files/naviga/Pictures/2014_","C7","/","][img]","/Thumbs/","[/img][/url]","DSC_1036.JPG","[url=http://kativ.eu/files/naviga/Pictures/2014_C7/DSC_1036.JPG][img]http://kativ.eu/files/naviga/Pictures/2014_C7/Thumbs/DSC_1036.JPG[/img][/url]"]
["[url=","http://kativ.eu/files/naviga/Pictures/2014_","C7","/","][img]","/Thumbs/","[/img][/url]","DSC_1037.JPG","[url=http://kativ.eu/files/naviga/Pictures/2014_C7/DSC_1037.JPG][img]http://kativ.eu/files/naviga/Pictures/2014_C7/Thumbs/DSC_1037.JPG[/img][/url]"]
["[url=","http://kativ.eu/files/naviga/Pictures/2014_","C7","/","][img]","/Thumbs/","[/img][/url]","DSC_1038.JPG","[url=http://kativ.eu/files/naviga/Pictures/2014_C7/DSC_1038.JPG][img]http://kativ.eu/files/naviga/Pictures/2014_C7/Thumbs/DSC_1038.JPG[/img][/url]"]
["[url=","http://kativ.eu/files/naviga/Pictures/2014_","C7","/","][img]","/Thumbs/","[/img][/url]","DSC_1039.JPG","[url=http://kativ.eu/files/naviga/Pictures/2014_C7/DSC_1039.JPG][img]http://kativ.eu/files/naviga/Pictures/2014_C7/Thumbs/DSC_1039.JPG[/img][/url]"]
["[url=","http://kativ.eu/files/naviga/Pictures/2014_","C7","/","][img]","/Thumbs/","[/img][/url]","DSC_1040.JPG","[url=http://kativ.eu/files/naviga/Pictures/2014_C7/DSC_1040.JPG][img]http://kativ.eu/files/naviga/Pictures/2014_C7/Thumbs/DSC_1040.JPG[/img][/url]"]
["[url=","http://kativ.eu/files/naviga/Pictures/2014_","C7","/","][img]","/Thumbs/","[/img][/url]","DSC_1041.JPG","[url=http://kativ.eu/files/naviga/Pictures/2014_C7/DSC_1041.JPG][img]http://kativ.eu/files/naviga/Pictures/2014_C7/Thumbs/DSC_1041.JPG[/img][/url]"]
["[url=","http://kativ.eu/files/naviga/Pictures/2014_","C7","/","][img]","/Thumbs/","[/img][/url]","DSC_1042.JPG","[url=http://kativ.eu/files/naviga/Pictures/2014_C7/DSC_1042.JPG][img]http://kativ.eu/files/naviga/Pictures/2014_C7/Thumbs/DSC_1042.JPG[/img][/url]"]
["[url=","http://kativ.eu/files/naviga/Pictures/2014_","C7","/","][img]","/Thumbs/","[/img][/url]","DSC_1043.JPG","[url=http://kativ.eu/files/naviga/Pictures/2014_C7/DSC_1043.JPG][img]http://kativ.eu/files/naviga/Pictures/2014_C7/Thumbs/DSC_1043.JPG[/img][/url]",{"$f":"ConcatRange(I46:I89,\" \")","v":"[url=http://kativ.eu/files/naviga/Pictures/2014_C7/DSC_1043.JPG][img]http://kativ.eu/files/naviga/Pictures/2014_C7/Thumbs/DSC_1043.JPG[/img][/url] [url=http://kativ.eu/files/naviga/Pictures/2014_C7/DSC_1044.JPG][img]http://kativ.eu/files/naviga/Pictures/2014_C7/Thumbs/DSC_1044.JPG[/img][/url] [url=http://kativ.eu/files/naviga/Pictures/2014_C7/DSC_1045.JPG][img]http://kativ.eu/files/naviga/Pictures/2014_C7/Thumbs/DSC_1045.JPG[/img][/url] [url=http://kativ.eu/files/naviga/Pictures/2014_C7/DSC_1046.JPG][img]http://kativ.eu/files/naviga/Pictures/2014_C7/Thumbs/DSC_1046.JPG[/img][/url] [url=http://kativ.eu/files/naviga/Pictures/2014_C7/DSC_1047.JPG][img]http://kativ.eu/files/naviga/Pictures/2014_C7/Thumbs/DSC_1047.JPG[/img][/url] [url=http://kativ.eu/files/naviga/Pictures/2014_C7/DSC_1048.JPG][img]http://kativ.eu/files/naviga/Pictures/2014_C7/Thumbs/DSC_1048.JPG[/img][/url] [url=http://kativ.eu/files/naviga/Pictures/2014_C7/DSC_1049.JPG][img]http://kativ.eu/files/naviga/Pictures/2014_C7/Thumbs/DSC_1049.JPG[/img][/url] [url=http://kativ.eu/files/naviga/Pictures/2014_C7/DSC_1050.JPG][img]http://kativ.eu/files/naviga/Pictures/2014_C7/Thumbs/DSC_1050.JPG[/img][/url] [url=http://kativ.eu/files/naviga/Pictures/2014_C7/DSC_1051.JPG][img]http://kativ.eu/files/naviga/Pictures/2014_C7/Thumbs/DSC_1051.JPG[/img][/url] [url=http://kativ.eu/files/naviga/Pictures/2014_C7/DSC_1052.JPG][img]http://kativ.eu/files/naviga/Pictures/2014_C7/Thumbs/DSC_1052.JPG[/img][/url] [url=http://kativ.eu/files/naviga/Pictures/2014_C7/DSC_1053.JPG][img]http://kativ.eu/files/naviga/Pictures/2014_C7/Thumbs/DSC_1053.JPG[/img][/url] [url=http://kativ.eu/files/naviga/Pictures/2014_C7/DSC_1054.JPG][img]http://kativ.eu/files/naviga/Pictures/2014_C7/Thumbs/DSC_1054.JPG[/img][/url] [url=http://kativ.eu/files/naviga/Pictures/2014_C7/DSC_1055.JPG][img]http://kativ.eu/files/naviga/Pictures/2014_C7/Thumbs/DSC_1055.JPG[/img][/url] [url=http://kativ.eu/files/naviga/Pictures/2014_C7/DSC_1056.JPG][img]http://kativ.eu/files/naviga/Pictures/2014_C7/Thumbs/DSC_1056.JPG[/img][/url] [url=http://kativ.eu/files/naviga/Pictures/2014_C7/DSC_1057.JPG][img]http://kativ.eu/files/naviga/Pictures/2014_C7/Thumbs/DSC_1057.JPG[/img][/url] [url=http://kativ.eu/files/naviga/Pictures/2014_C7/DSC_1058.JPG][img]http://kativ.eu/files/naviga/Pictures/2014_C7/Thumbs/DSC_1058.JPG[/img][/url] [url=http://kativ.eu/files/naviga/Pictures/2014_C7/DSC_1059.JPG][img]http://kativ.eu/files/naviga/Pictures/2014_C7/Thumbs/DSC_1059.JPG[/img][/url] [url=http://kativ.eu/files/naviga/Pictures/2014_C7/DSC_1060.JPG][img]http://kativ.eu/files/naviga/Pictures/2014_C7/Thumbs/DSC_1060.JPG[/img][/url] [url=http://kativ.eu/files/naviga/Pictures/2014_C7/DSC_1061.JPG][img]http://kativ.eu/files/naviga/Pictures/2014_C7/Thumbs/DSC_1061.JPG[/img][/url] [url=http://kativ.eu/files/naviga/Pictures/2014_C7/DSC_1062.JPG][img]http://kativ.eu/files/naviga/Pictures/2014_C7/Thumbs/DSC_1062.JPG[/img][/url] [url=http://kativ.eu/files/naviga/Pictures/2014_C7/DSC_1063.JPG][img]http://kativ.eu/files/naviga/Pictures/2014_C7/Thumbs/DSC_1063.JPG[/img][/url] [url=http://kativ.eu/files/naviga/Pictures/2014_C7/DSC_1064.JPG][img]http://kativ.eu/files/naviga/Pictures/2014_C7/Thumbs/DSC_1064.JPG[/img][/url] [url=http://kativ.eu/files/naviga/Pictures/2014_C7/DSC_1065.JPG][img]http://kativ.eu/files/naviga/Pictures/2014_C7/Thumbs/DSC_1065.JPG[/img][/url] [url=http://kativ.eu/files/naviga/Pictures/2014_C7/DSC_1124.JPG][img]http://kativ.eu/files/naviga/Pictures/2014_C7/Thumbs/DSC_1124.JPG[/img][/url] [url=http://kativ.eu/files/naviga/Pictures/2014_C7/DSC_1125.JPG][img]http://kativ.eu/files/naviga/Pictures/2014_C7/Thumbs/DSC_1125.JPG[/img][/url] [url=http://kativ.eu/files/naviga/Pictures/2014_C7/DSC_1126.JPG][img]http://kativ.eu/files/naviga/Pictures/2014_C7/Thumbs/DSC_1126.JPG[/img][/url] [url=http://kativ.eu/files/naviga/Pictures/2014_C7/DSC_1127.JPG][img]http://kativ.eu/files/naviga/Pictures/2014_C7/Thumbs/DSC_1127.JPG[/img][/url] [url=http://kativ.eu/files/naviga/Pictures/2014_C7/DSC_1128.JPG][img]http://kativ.eu/files/naviga/Pictures/2014_C7/Thumbs/DSC_1128.JPG[/img][/url] [url=http://kativ.eu/files/naviga/Pictures/2014_C7/DSC_1129.JPG][img]http://kativ.eu/files/naviga/Pictures/2014_C7/Thumbs/DSC_1129.JPG[/img][/url] [url=http://kativ.eu/files/naviga/Pictures/2014_C7/DSC_1130.JPG][img]http://kativ.eu/files/naviga/Pictures/2014_C7/Thumbs/DSC_1130.JPG[/img][/url] [url=http://kativ.eu/files/naviga/Pictures/2014_C7/DSC_1131.JPG][img]http://kativ.eu/files/naviga/Pictures/2014_C7/Thumbs/DSC_1131.JPG[/img][/url] [url=http://kativ.eu/files/naviga/Pictures/2014_C7/DSC_1132.JPG][img]http://kativ.eu/files/naviga/Pictures/2014_C7/Thumbs/DSC_1132.JPG[/img][/url] [url=http://kativ.eu/files/naviga/Pictures/2014_C7/DSC_1133.JPG][img]http://kativ.eu/files/naviga/Pictures/2014_C7/Thumbs/DSC_1133.JPG[/img][/url] [url=http://kativ.eu/files/naviga/Pictures/2014_C7/DSC_1134.JPG][img]http://kativ.eu/files/naviga/Pictures/2014_C7/Thumbs/DSC_1134.JPG[/img][/url] [url=http://kativ.eu/files/naviga/Pictures/2014_C7/DSC_1135.JPG][img]http://kativ.eu/files/naviga/Pictures/2014_C7/Thumbs/DSC_1135.JPG[/img][/url] [url=http://kativ.eu/files/naviga/Pictures/2014_C7/DSC_1136.JPG][img]http://kativ.eu/files/naviga/Pictures/2014_C7/Thumbs/DSC_1136.JPG[/img][/url] [url=http://kativ.eu/files/naviga/Pictures/2014_C7/DSC_1137.JPG][img]http://kativ.eu/files/naviga/Pictures/2014_C7/Thumbs/DSC_1137.JPG[/img][/url] [url=http://kativ.eu/files/naviga/Pictures/2014_C7/DSC_1138.JPG][img]http://kativ.eu/files/naviga/Pictures/2014_C7/Thumbs/DSC_1138.JPG[/img][/url] [url=http://kativ.eu/files/naviga/Pictures/2014_C7/DSC_1139.JPG][img]http://kativ.eu/files/naviga/Pictures/2014_C7/Thumbs/DSC_1139.JPG[/img][/url] [url=http://kativ.eu/files/naviga/Pictures/2014_C7/DSC_1140.JPG][img]http://kativ.eu/files/naviga/Pictures/2014_C7/Thumbs/DSC_1140.JPG[/img][/url] [url=http://kativ.eu/files/naviga/Pictures/2014_C7/DSC_1141.JPG][img]http://kativ.eu/files/naviga/Pictures/2014_C7/Thumbs/DSC_1141.JPG[/img][/url] [url=http://kativ.eu/files/naviga/Pictures/2014_C7/DSC_1142.JPG][img]http://kativ.eu/files/naviga/Pictures/2014_C7/Thumbs/DSC_1142.JPG[/img][/url] [url=http://kativ.eu/files/naviga/Pictures/2014_C7/DSC_1143.JPG][img]http://kativ.eu/files/naviga/Pictures/2014_C7/Thumbs/DSC_1143.JPG[/img][/url] [url=http://kativ.eu/files/naviga/Pictures/2014_C7/DSC_1144.JPG][img]http://kativ.eu/files/naviga/Pictures/2014_C7/Thumbs/DSC_1144.JPG[/img][/url]"}]
["[url=","http://kativ.eu/files/naviga/Pictures/2014_","C7","/","][img]","/Thumbs/","[/img][/url]","DSC_1044.JPG","[url=http://kativ.eu/files/naviga/Pictures/2014_C7/DSC_1044.JPG][img]http://kativ.eu/files/naviga/Pictures/2014_C7/Thumbs/DSC_1044.JPG[/img][/url]"]
["[url=","http://kativ.eu/files/naviga/Pictures/2014_","C7","/","][img]","/Thumbs/","[/img][/url]","DSC_1045.JPG","[url=http://kativ.eu/files/naviga/Pictures/2014_C7/DSC_1045.JPG][img]http://kativ.eu/files/naviga/Pictures/2014_C7/Thumbs/DSC_1045.JPG[/img][/url]"]
["[url=","http://kativ.eu/files/naviga/Pictures/2014_","C7","/","][img]","/Thumbs/","[/img][/url]","DSC_1046.JPG","[url=http://kativ.eu/files/naviga/Pictures/2014_C7/DSC_1046.JPG][img]http://kativ.eu/files/naviga/Pictures/2014_C7/Thumbs/DSC_1046.JPG[/img][/url]"]
["[url=","http://kativ.eu/files/naviga/Pictures/2014_","C7","/","][img]","/Thumbs/","[/img][/url]","DSC_1047.JPG","[url=http://kativ.eu/files/naviga/Pictures/2014_C7/DSC_1047.JPG][img]http://kativ.eu/files/naviga/Pictures/2014_C7/Thumbs/DSC_1047.JPG[/img][/url]"]
["[url=","http://kativ.eu/files/naviga/Pictures/2014_","C7","/","][img]","/Thumbs/","[/img][/url]","DSC_1048.JPG","[url=http://kativ.eu/files/naviga/Pictures/2014_C7/DSC_1048.JPG][img]http://kativ.eu/files/naviga/Pictures/2014_C7/Thumbs/DSC_1048.JPG[/img][/url]"]
["[url=","http://kativ.eu/files/naviga/Pictures/2014_","C7","/","][img]","/Thumbs/","[/img][/url]","DSC_1049.JPG","[url=http://kativ.eu/files/naviga/Pictures/2014_C7/DSC_1049.JPG][img]http://kativ.eu/files/naviga/Pictures/2014_C7/Thumbs/DSC_1049.JPG[/img][/url]"]
["[url=","http://kativ.eu/files/naviga/Pictures/2014_","C7","/","][img]","/Thumbs/","[/img][/url]","DSC_1050.JPG","[url=http://kativ.eu/files/naviga/Pictures/2014_C7/DSC_1050.JPG][img]http://kativ.eu/files/naviga/Pictures/2014_C7/Thumbs/DSC_1050.JPG[/img][/url]"]
["[url=","http://kativ.eu/files/naviga/Pictures/2014_","C7","/","][img]","/Thumbs/","[/img][/url]","DSC_1051.JPG","[url=http://kativ.eu/files/naviga/Pictures/2014_C7/DSC_1051.JPG][img]http://kativ.eu/files/naviga/Pictures/2014_C7/Thumbs/DSC_1051.JPG[/img][/url]"]
["[url=","http://kativ.eu/files/naviga/Pictures/2014_","C7","/","][img]","/Thumbs/","[/img][/url]","DSC_1052.JPG","[url=http://kativ.eu/files/naviga/Pictures/2014_C7/DSC_1052.JPG][img]http://kativ.eu/files/naviga/Pictures/2014_C7/Thumbs/DSC_1052.JPG[/img][/url]"]
["[url=","http://kativ.eu/files/naviga/Pictures/2014_","C7","/","][img]","/Thumbs/","[/img][/url]","DSC_1053.JPG","[url=http://kativ.eu/files/naviga/Pictures/2014_C7/DSC_1053.JPG][img]http://kativ.eu/files/naviga/Pictures/2014_C7/Thumbs/DSC_1053.JPG[/img][/url]"]
["[url=","http://kativ.eu/files/naviga/Pictures/2014_","C7","/","][img]","/Thumbs/","[/img][/url]","DSC_1054.JPG","[url=http://kativ.eu/files/naviga/Pictures/2014_C7/DSC_1054.JPG][img]http://kativ.eu/files/naviga/Pictures/2014_C7/Thumbs/DSC_1054.JPG[/img][/url]"]
["[url=","http://kativ.eu/files/naviga/Pictures/2014_","C7","/","][img]","/Thumbs/","[/img][/url]","DSC_1055.JPG","[url=http://kativ.eu/files/naviga/Pictures/2014_C7/DSC_1055.JPG][img]http://kativ.eu/files/naviga/Pictures/2014_C7/Thumbs/DSC_1055.JPG[/img][/url]"]
["[url=","http://kativ.eu/files/naviga/Pictures/2014_","C7","/","][img]","/Thumbs/","[/img][/url]","DSC_1056.JPG","[url=http://kativ.eu/files/naviga/Pictures/2014_C7/DSC_1056.JPG][img]http://kativ.eu/files/naviga/Pictures/2014_C7/Thumbs/DSC_1056.JPG[/img][/url]"]
["[url=","http://kativ.eu/files/naviga/Pictures/2014_","C7","/","][img]","/Thumbs/","[/img][/url]","DSC_1057.JPG","[url=http://kativ.eu/files/naviga/Pictures/2014_C7/DSC_1057.JPG][img]http://kativ.eu/files/naviga/Pictures/2014_C7/Thumbs/DSC_1057.JPG[/img][/url]"]
["[url=","http://kativ.eu/files/naviga/Pictures/2014_","C7","/","][img]","/Thumbs/","[/img][/url]","DSC_1058.JPG","[url=http://kativ.eu/files/naviga/Pictures/2014_C7/DSC_1058.JPG][img]http://kativ.eu/files/naviga/Pictures/2014_C7/Thumbs/DSC_1058.JPG[/img][/url]"]
["[url=","http://kativ.eu/files/naviga/Pictures/2014_","C7","/","][img]","/Thumbs/","[/img][/url]","DSC_1059.JPG","[url=http://kativ.eu/files/naviga/Pictures/2014_C7/DSC_1059.JPG][img]http://kativ.eu/files/naviga/Pictures/2014_C7/Thumbs/DSC_1059.JPG[/img][/url]"]
["[url=","http://kativ.eu/files/naviga/Pictures/2014_","C7","/","][img]","/Thumbs/","[/img][/url]","DSC_1060.JPG","[url=http://kativ.eu/files/naviga/Pictures/2014_C7/DSC_1060.JPG][img]http://kativ.eu/files/naviga/Pictures/2014_C7/Thumbs/DSC_1060.JPG[/img][/url]"]
["[url=","http://kativ.eu/files/naviga/Pictures/2014_","C7","/","][img]","/Thumbs/","[/img][/url]","DSC_1061.JPG","[url=http://kativ.eu/files/naviga/Pictures/2014_C7/DSC_1061.JPG][img]http://kativ.eu/files/naviga/Pictures/2014_C7/Thumbs/DSC_1061.JPG[/img][/url]"]
["[url=","http://kativ.eu/files/naviga/Pictures/2014_","C7","/","][img]","/Thumbs/","[/img][/url]","DSC_1062.JPG","[url=http://kativ.eu/files/naviga/Pictures/2014_C7/DSC_1062.JPG][img]http://kativ.eu/files/naviga/Pictures/2014_C7/Thumbs/DSC_1062.JPG[/img][/url]"]
["[url=","http://kativ.eu/files/naviga/Pictures/2014_","C7","/","][img]","/Thumbs/","[/img][/url]","DSC_1063.JPG",{"$f":"CONCATENATE(A66,B66,C66,D66,H66,E66,B66,C66,F66,H66,G66)","v":"[url=http://kativ.eu/files/naviga/Pictures/2014_C7/DSC_1063.JPG][img]http://kativ.eu/files/naviga/Pictures/2014_C7/Thumbs/DSC_1063.JPG[/img][/url]"}]
["[url=","http://kativ.eu/files/naviga/Pictures/2014_","C7","/","][img]","/Thumbs/","[/img][/url]","DSC_1064.JPG","[url=http://kativ.eu/files/naviga/Pictures/2014_C7/DSC_1064.JPG][img]http://kativ.eu/files/naviga/Pictures/2014_C7/Thumbs/DSC_1064.JPG[/img][/url]"]
["[url=","http://kativ.eu/files/naviga/Pictures/2014_","C7","/","][img]","/Thumbs/","[/img][/url]","DSC_1065.JPG","[url=http://kativ.eu/files/naviga/Pictures/2014_C7/DSC_1065.JPG][img]http://kativ.eu/files/naviga/Pictures/2014_C7/Thumbs/DSC_1065.JPG[/img][/url]"]
["[url=","http://kativ.eu/files/naviga/Pictures/2014_","C7","/","][img]","/Thumbs/","[/img][/url]","DSC_1124.JPG","[url=http://kativ.eu/files/naviga/Pictures/2014_C7/DSC_1124.JPG][img]http://kativ.eu/files/naviga/Pictures/2014_C7/Thumbs/DSC_1124.JPG[/img][/url]"]
["[url=","http://kativ.eu/files/naviga/Pictures/2014_","C7","/","][img]","/Thumbs/","[/img][/url]","DSC_1125.JPG","[url=http://kativ.eu/files/naviga/Pictures/2014_C7/DSC_1125.JPG][img]http://kativ.eu/files/naviga/Pictures/2014_C7/Thumbs/DSC_1125.JPG[/img][/url]"]
["[url=","http://kativ.eu/files/naviga/Pictures/2014_","C7","/","][img]","/Thumbs/","[/img][/url]","DSC_1126.JPG","[url=http://kativ.eu/files/naviga/Pictures/2014_C7/DSC_1126.JPG][img]http://kativ.eu/files/naviga/Pictures/2014_C7/Thumbs/DSC_1126.JPG[/img][/url]"]
["[url=","http://kativ.eu/files/naviga/Pictures/2014_","C7","/","][img]","/Thumbs/","[/img][/url]","DSC_1127.JPG","[url=http://kativ.eu/files/naviga/Pictures/2014_C7/DSC_1127.JPG][img]http://kativ.eu/files/naviga/Pictures/2014_C7/Thumbs/DSC_1127.JPG[/img][/url]"]
["[url=","http://kativ.eu/files/naviga/Pictures/2014_","C7","/","][img]","/Thumbs/","[/img][/url]","DSC_1128.JPG","[url=http://kativ.eu/files/naviga/Pictures/2014_C7/DSC_1128.JPG][img]http://kativ.eu/files/naviga/Pictures/2014_C7/Thumbs/DSC_1128.JPG[/img][/url]"]
["[url=","http://kativ.eu/files/naviga/Pictures/2014_","C7","/","][img]","/Thumbs/","[/img][/url]","DSC_1129.JPG","[url=http://kativ.eu/files/naviga/Pictures/2014_C7/DSC_1129.JPG][img]http://kativ.eu/files/naviga/Pictures/2014_C7/Thumbs/DSC_1129.JPG[/img][/url]"]
["[url=","http://kativ.eu/files/naviga/Pictures/2014_","C7","/","][img]","/Thumbs/","[/img][/url]","DSC_1130.JPG","[url=http://kativ.eu/files/naviga/Pictures/2014_C7/DSC_1130.JPG][img]http://kativ.eu/files/naviga/Pictures/2014_C7/Thumbs/DSC_1130.JPG[/img][/url]"]
["[url=","http://kativ.eu/files/naviga/Pictures/2014_","C7","/","][img]","/Thumbs/","[/img][/url]","DSC_1131.JPG","[url=http://kativ.eu/files/naviga/Pictures/2014_C7/DSC_1131.JPG][img]http://kativ.eu/files/naviga/Pictures/2014_C7/Thumbs/DSC_1131.JPG[/img][/url]"]
["[url=","http://kativ.eu/files/naviga/Pictures/2014_","C7","/","][img]","/Thumbs/","[/img][/url]","DSC_1132.JPG","[url=http://kativ.eu/files/naviga/Pictures/2014_C7/DSC_1132.JPG][img]http://kativ.eu/files/naviga/Pictures/2014_C7/Thumbs/DSC_1132.JPG[/img][/url]"]
["[url=","http://kativ.eu/files/naviga/Pictures/2014_","C7","/","][img]","/Thumbs/","[/img][/url]","DSC_1133.JPG","[url=http://kativ.eu/files/naviga/Pictures/2014_C7/DSC_1133.JPG][img]http://kativ.eu/files/naviga/Pictures/2014_C7/Thumbs/DSC_1133.JPG[/img][/url]"]
["[url=","http://kativ.eu/files/naviga/Pictures/2014_","C7","/","][img]","/Thumbs/","[/img][/url]","DSC_1134.JPG","[url=http://kativ.eu/files/naviga/Pictures/2014_C7/DSC_1134.JPG][img]http://kativ.eu/files/naviga/Pictures/2014_C7/Thumbs/DSC_1134.JPG[/img][/url]"]
["[url=","http://kativ.eu/files/naviga/Pictures/2014_","C7","/","][img]","/Thumbs/","[/img][/url]","DSC_1135.JPG","[url=http://kativ.eu/files/naviga/Pictures/2014_C7/DSC_1135.JPG][img]http://kativ.eu/files/naviga/Pictures/2014_C7/Thumbs/DSC_1135.JPG[/img][/url]"]
["[url=","http://kativ.eu/files/naviga/Pictures/2014_","C7","/","][img]","/Thumbs/","[/img][/url]","DSC_1136.JPG","[url=http://kativ.eu/files/naviga/Pictures/2014_C7/DSC_1136.JPG][img]http://kativ.eu/files/naviga/Pictures/2014_C7/Thumbs/DSC_1136.JPG[/img][/url]"]
["[url=","http://kativ.eu/files/naviga/Pictures/2014_","C7","/","][img]","/Thumbs/","[/img][/url]","DSC_1137.JPG","[url=http://kativ.eu/files/naviga/Pictures/2014_C7/DSC_1137.JPG][img]http://kativ.eu/files/naviga/Pictures/2014_C7/Thumbs/DSC_1137.JPG[/img][/url]"]
["[url=","http://kativ.eu/files/naviga/Pictures/2014_","C7","/","][img]","/Thumbs/","[/img][/url]","DSC_1138.JPG","[url=http://kativ.eu/files/naviga/Pictures/2014_C7/DSC_1138.JPG][img]http://kativ.eu/files/naviga/Pictures/2014_C7/Thumbs/DSC_1138.JPG[/img][/url]"]
["[url=","http://kativ.eu/files/naviga/Pictures/2014_","C7","/","][img]","/Thumbs/","[/img][/url]","DSC_1139.JPG","[url=http://kativ.eu/files/naviga/Pictures/2014_C7/DSC_1139.JPG][img]http://kativ.eu/files/naviga/Pictures/2014_C7/Thumbs/DSC_1139.JPG[/img][/url]"]
["[url=","http://kativ.eu/files/naviga/Pictures/2014_","C7","/","][img]","/Thumbs/","[/img][/url]","DSC_1140.JPG","[url=http://kativ.eu/files/naviga/Pictures/2014_C7/DSC_1140.JPG][img]http://kativ.eu/files/naviga/Pictures/2014_C7/Thumbs/DSC_1140.JPG[/img][/url]"]
["[url=","http://kativ.eu/files/naviga/Pictures/2014_","C7","/","][img]","/Thumbs/","[/img][/url]","DSC_1141.JPG","[url=http://kativ.eu/files/naviga/Pictures/2014_C7/DSC_1141.JPG][img]http://kativ.eu/files/naviga/Pictures/2014_C7/Thumbs/DSC_1141.JPG[/img][/url]"]
["[url=","http://kativ.eu/files/naviga/Pictures/2014_","C7","/","][img]","/Thumbs/","[/img][/url]","DSC_1142.JPG","[url=http://kativ.eu/files/naviga/Pictures/2014_C7/DSC_1142.JPG][img]http://kativ.eu/files/naviga/Pictures/2014_C7/Thumbs/DSC_1142.JPG[/img][/url]"]
["[url=","http://kativ.eu/files/naviga/Pictures/2014_","C7","/","][img]","/Thumbs/","[/img][/url]","DSC_1143.JPG","[url=http://kativ.eu/files/naviga/Pictures/2014_C7/DSC_1143.JPG][img]http://kativ.eu/files/naviga/Pictures/2014_C7/Thumbs/DSC_1143.JPG[/img][/url]"]
["[url=","http://kativ.eu/files/naviga/Pictures/2014_","C7","/","][img]","/Thumbs/","[/img][/url]","DSC_1144.JPG","[url=http://kativ.eu/files/naviga/Pictures/2014_C7/DSC_1144.JPG][img]http://kativ.eu/files/naviga/Pictures/2014_C7/Thumbs/DSC_1144.JPG[/img][/url]"]

{"sheet":"CJuri","index":8,"n_rows":15,"n_cols":10,"rows_kept":15,"cut":false,"hidden":false,"merged":[]}
["[url=","http://kativ.eu/files/naviga/Pictures/2014_","Cjuri","/","][img]","/Thumbs/","[/img][/url]","DSC_0630.JPG",{"$f":"CONCATENATE(A1,B1,C1,D1,H1,E1,B1,C1,F1,H1,G1)","v":"[url=http://kativ.eu/files/naviga/Pictures/2014_Cjuri/DSC_0630.JPG][img]http://kativ.eu/files/naviga/Pictures/2014_Cjuri/Thumbs/DSC_0630.JPG[/img][/url]"},{"$f":"ConcatRange(I1:I15,\" \")","v":"[url=http://kativ.eu/files/naviga/Pictures/2014_Cjuri/DSC_0630.JPG][img]http://kativ.eu/files/naviga/Pictures/2014_Cjuri/Thumbs/DSC_0630.JPG[/img][/url] [url=http://kativ.eu/files/naviga/Pictures/2014_Cjuri/DSC_0631.JPG][img]http://kativ.eu/files/naviga/Pictures/2014_Cjuri/Thumbs/DSC_0631.JPG[/img][/url] [url=http://kativ.eu/files/naviga/Pictures/2014_Cjuri/DSC_0632.JPG][img]http://kativ.eu/files/naviga/Pictures/2014_Cjuri/Thumbs/DSC_0632.JPG[/img][/url] [url=http://kativ.eu/files/naviga/Pictures/2014_Cjuri/DSC_0633.JPG][img]http://kativ.eu/files/naviga/Pictures/2014_Cjuri/Thumbs/DSC_0633.JPG[/img][/url] [url=http://kativ.eu/files/naviga/Pictures/2014_Cjuri/DSC_0637.JPG][img]http://kativ.eu/files/naviga/Pictures/2014_Cjuri/Thumbs/DSC_0637.JPG[/img][/url] [url=http://kativ.eu/files/naviga/Pictures/2014_Cjuri/DSC_0638.JPG][img]http://kativ.eu/files/naviga/Pictures/2014_Cjuri/Thumbs/DSC_0638.JPG[/img][/url] [url=http://kativ.eu/files/naviga/Pictures/2014_Cjuri/DSC_0639.JPG][img]http://kativ.eu/files/naviga/Pictures/2014_Cjuri/Thumbs/DSC_0639.JPG[/img][/url] [url=http://kativ.eu/files/naviga/Pictures/2014_Cjuri/DSC_0640.JPG][img]http://kativ.eu/files/naviga/Pictures/2014_Cjuri/Thumbs/DSC_0640.JPG[/img][/url] [url=http://kativ.eu/files/naviga/Pictures/2014_Cjuri/DSC_0641.JPG][img]http://kativ.eu/files/naviga/Pictures/2014_Cjuri/Thumbs/DSC_0641.JPG[/img][/url] [url=http://kativ.eu/files/naviga/Pictures/2014_Cjuri/DSC_0647.JPG][img]http://kativ.eu/files/naviga/Pictures/2014_Cjuri/Thumbs/DSC_0647.JPG[/img][/url] [url=http://kativ.eu/files/naviga/Pictures/2014_Cjuri/DSC_0648.JPG][img]http://kativ.eu/files/naviga/Pictures/2014_Cjuri/Thumbs/DSC_0648.JPG[/img][/url] [url=http://kativ.eu/files/naviga/Pictures/2014_Cjuri/DSC_0666.JPG][img]http://kativ.eu/files/naviga/Pictures/2014_Cjuri/Thumbs/DSC_0666.JPG[/img][/url] [url=http://kativ.eu/files/naviga/Pictures/2014_Cjuri/DSC_0667.JPG][img]http://kativ.eu/files/naviga/Pictures/2014_Cjuri/Thumbs/DSC_0667.JPG[/img][/url] [url=http://kativ.eu/files/naviga/Pictures/2014_Cjuri/DSC_0668.JPG][img]http://kativ.eu/files/naviga/Pictures/2014_Cjuri/Thumbs/DSC_0668.JPG[/img][/url] [url=http://kativ.eu/files/naviga/Pictures/2014_Cjuri/DSC_0681.JPG][img]http://kativ.eu/files/naviga/Pictures/2014_Cjuri/Thumbs/DSC_0681.JPG[/img][/url]"}]
["[url=","http://kativ.eu/files/naviga/Pictures/2014_","Cjuri","/","][img]","/Thumbs/","[/img][/url]","DSC_0631.JPG",{"$f":"CONCATENATE(A2,B2,C2,D2,H2,E2,B2,C2,F2,H2,G2)","v":"[url=http://kativ.eu/files/naviga/Pictures/2014_Cjuri/DSC_0631.JPG][img]http://kativ.eu/files/naviga/Pictures/2014_Cjuri/Thumbs/DSC_0631.JPG[/img][/url]"}]
["[url=","http://kativ.eu/files/naviga/Pictures/2014_","Cjuri","/","][img]","/Thumbs/","[/img][/url]","DSC_0632.JPG","[url=http://kativ.eu/files/naviga/Pictures/2014_Cjuri/DSC_0632.JPG][img]http://kativ.eu/files/naviga/Pictures/2014_Cjuri/Thumbs/DSC_0632.JPG[/img][/url]"]
["[url=","http://kativ.eu/files/naviga/Pictures/2014_","Cjuri","/","][img]","/Thumbs/","[/img][/url]","DSC_0633.JPG","[url=http://kativ.eu/files/naviga/Pictures/2014_Cjuri/DSC_0633.JPG][img]http://kativ.eu/files/naviga/Pictures/2014_Cjuri/Thumbs/DSC_0633.JPG[/img][/url]"]
["[url=","http://kativ.eu/files/naviga/Pictures/2014_","Cjuri","/","][img]","/Thumbs/","[/img][/url]","DSC_0637.JPG","[url=http://kativ.eu/files/naviga/Pictures/2014_Cjuri/DSC_0637.JPG][img]http://kativ.eu/files/naviga/Pictures/2014_Cjuri/Thumbs/DSC_0637.JPG[/img][/url]"]
["[url=","http://kativ.eu/files/naviga/Pictures/2014_","Cjuri","/","][img]","/Thumbs/","[/img][/url]","DSC_0638.JPG","[url=http://kativ.eu/files/naviga/Pictures/2014_Cjuri/DSC_0638.JPG][img]http://kativ.eu/files/naviga/Pictures/2014_Cjuri/Thumbs/DSC_0638.JPG[/img][/url]"]
["[url=","http://kativ.eu/files/naviga/Pictures/2014_","Cjuri","/","][img]","/Thumbs/","[/img][/url]","DSC_0639.JPG","[url=http://kativ.eu/files/naviga/Pictures/2014_Cjuri/DSC_0639.JPG][img]http://kativ.eu/files/naviga/Pictures/2014_Cjuri/Thumbs/DSC_0639.JPG[/img][/url]"]
["[url=","http://kativ.eu/files/naviga/Pictures/2014_","Cjuri","/","][img]","/Thumbs/","[/img][/url]","DSC_0640.JPG","[url=http://kativ.eu/files/naviga/Pictures/2014_Cjuri/DSC_0640.JPG][img]http://kativ.eu/files/naviga/Pictures/2014_Cjuri/Thumbs/DSC_0640.JPG[/img][/url]"]
["[url=","http://kativ.eu/files/naviga/Pictures/2014_","Cjuri","/","][img]","/Thumbs/","[/img][/url]","DSC_0641.JPG","[url=http://kativ.eu/files/naviga/Pictures/2014_Cjuri/DSC_0641.JPG][img]http://kativ.eu/files/naviga/Pictures/2014_Cjuri/Thumbs/DSC_0641.JPG[/img][/url]"]
["[url=","http://kativ.eu/files/naviga/Pictures/2014_","Cjuri","/","][img]","/Thumbs/","[/img][/url]","DSC_0647.JPG","[url=http://kativ.eu/files/naviga/Pictures/2014_Cjuri/DSC_0647.JPG][img]http://kativ.eu/files/naviga/Pictures/2014_Cjuri/Thumbs/DSC_0647.JPG[/img][/url]"]
["[url=","http://kativ.eu/files/naviga/Pictures/2014_","Cjuri","/","][img]","/Thumbs/","[/img][/url]","DSC_0648.JPG","[url=http://kativ.eu/files/naviga/Pictures/2014_Cjuri/DSC_0648.JPG][img]http://kativ.eu/files/naviga/Pictures/2014_Cjuri/Thumbs/DSC_0648.JPG[/img][/url]"]
["[url=","http://kativ.eu/files/naviga/Pictures/2014_","Cjuri","/","][img]","/Thumbs/","[/img][/url]","DSC_0666.JPG","[url=http://kativ.eu/files/naviga/Pictures/2014_Cjuri/DSC_0666.JPG][img]http://kativ.eu/files/naviga/Pictures/2014_Cjuri/Thumbs/DSC_0666.JPG[/img][/url]"]
["[url=","http://kativ.eu/files/naviga/Pictures/2014_","Cjuri","/","][img]","/Thumbs/","[/img][/url]","DSC_0667.JPG","[url=http://kativ.eu/files/naviga/Pictures/2014_Cjuri/DSC_0667.JPG][img]http://kativ.eu/files/naviga/Pictures/2014_Cjuri/Thumbs/DSC_0667.JPG[/img][/url]"]
["[url=","http://kativ.eu/files/naviga/Pictures/2014_","Cjuri","/","][img]","/Thumbs/","[/img][/url]","DSC_0668.JPG","[url=http://kativ.eu/files/naviga/Pictures/2014_Cjuri/DSC_0668.JPG][img]http://kativ.eu/files/naviga/Pictures/2014_Cjuri/Thumbs/DSC_0668.JPG[/img][/url]"]
["[url=","http://kativ.eu/files/naviga/Pictures/2014_","Cjuri","/","][img]","/Thumbs/","[/img][/url]","DSC_0681.JPG","[url=http://kativ.eu/files/naviga/Pictures/2014_Cjuri/DSC_0681.JPG][img]http://kativ.eu/files/naviga/Pictures/2014_Cjuri/Thumbs/DSC_0681.JPG[/img][/url]"]